Workbook

Sheet Sample Report (hidden)
A2: Date
A3: Hen
A4: Program
A5: Start at 999999
A6: Sequence component 1 | B6: Time 1 | C6: Seqeunce Component 2 | D6: Time 2 | E6: Seqeunce Component 3 | F6: Time 3 | G6: Correct 0 = No 1=Yes | J6: Seqeunce | K6: Time
A7: 12 | B7: 7 | C7: 12 | D7: 42 | E7: 13 | F7: 18 | G7: if 77 new line, if 31 or 41 = yes new line on 77, | J7: =string of Seqeunce compponent 1, 2 & 3 | K7: =time 3
A8: This continues until ther is a 1 on its own to indicate start of summary data
J9: 10-19 =1
A10: Summary Data | J10: 20-29 =2
A11: Correct | B11: Incorrect | C11: Rft | D11: total | E11: Av Correct | F11: Av Incorrect | G11: Percent correct | H11: Time | J11: in this example the seqeunce would be 111
A12: 40 | B12: 33 | C12: 40 | D12: 73 | E12: 23.95 | F12: 15 | G12: 54 | H12: 806

Sheet Summary
A2: Day | B2: Date | C2: Average Response Rate | D2: Target % | E2: RF for non correct sequence | F2: U Value | K2: Block 1 | L2: Block 2 | M2: Block 3 | N2: Block 4 | O2: Block 5 | P2: Block 6
A3: 1 | B3: ='!M930930.010'!B2:C2 -> <date> | C3: =('!M930930.010'!J99/60)/'!M930930.010'!Q3 -> 4.278136201 | D3: ='!M930930.010'!N44/'!M930930.010'!Q3 -> 0.01075268817 | E3: =SUM('!M930930.010'!L44:Q44)/'!M930930.010'!Q3 -> 121 | F3: ='!M930930.010'!Q40 -> 0.5643152944 | J3: Average Response Rate | K3: =AVERAGE(C3:C7) -> 3.204023554 | L3: =AVERAGE(C8:C12) -> 3.063898026 | M3: =AVERAGE(C13:C17) -> 2.462775076 | N3: =AVERAGE(C18:C22) -> 2.26715302 | O3: =AVERAGE(C23:C27) -> 2.270784706 | P3: =AVERAGE(C28:C32) -> 2.663821576
A4: 2 | B4: ='!MA01740.010'!B2:C2 -> <date> | C4: =('!MA01740.010'!J102/60)/'!MA01740.010'!Q3 -> 4.155381944 | D4: ='!MA01740.010'!N44/'!MA01740.010'!Q3 -> 0.01041666667 | E4: =SUM('!MA01740.010'!L44:Q44)/'!MA01740.010'!Q3 -> 220.25 | F4: ='!MA01740.010'!Q40 -> 0.5139003286 | J4: Target % | K4: =AVERAGE(D3:D7) -> 0.03402901021 | L4: =AVERAGE(D8:D12) -> 0.06322180855 | M4: =AVERAGE(D13:D17) -> 0.05976636578 | N4: =AVERAGE(D18:D22) -> 0.09799439068 | O4: =AVERAGE(D23:D27) -> 0.1609495842 | P4: =AVERAGE(D28:D32) -> 0.2631310619
A5: 3 | B5: ='!MA02830.010'!B2:C2 -> <date> | C5: =('!MA02830.010'!J105/60)/'!MA02830.010'!Q3 -> 4.031986532 | D5: ='!MA02830.010'!N44/'!MA02830.010'!Q3 -> 0.0303030303 | E5: =SUM('!MA02830.010'!L44:Q44)/'!MA02830.010'!Q3 -> 112.5959596 | F5: ='!MA02830.010'!Q40 -> 0.4576828949 | J5: CCRF | K5: =AVERAGE(E3:E7) -> 162.029864 | L5: =AVERAGE(E8:E12) -> 103.9320671 | M5: =AVERAGE(E13:E17) -> 103.3055863 | N5: =AVERAGE(E18:E22) -> 100.309225 | O5: =AVERAGE(E23:E27) -> 110.4344812 | P5: =AVERAGE(E28:E32) -> 150.0291645
A6: 4 | B6: ='!MA03740.010'!B2:C2 -> <date> | C6: =('!MA03740.010'!J117/60)/'!MA03740.010'!Q3 -> 3.554613095 | D6: ='!MA03740.010'!N44/'!MA03740.010'!Q3 -> 0.07142857143 | E6: =SUM('!MA03740.010'!L44:Q44)/'!MA03740.010'!Q3 -> 188.9017857 | F6: ='!MA03740.010'!Q40 -> 0.6011820116 | J6: U Value | K6: =AVERAGE(F3:F7) -> 0.5319048184 | L6: =AVERAGE(F8:F12) -> 0.511142589 | M6: =AVERAGE(F13:F17) -> 0.5335919481 | N6: =AVERAGE(F18:F22) -> 0.5294196405 | O6: =AVERAGE(F23:F27) -> 0.5358834132 | P6: =AVERAGE(F28:F32) -> 0.5212783964
A7: 5 | B7: ='!MA04840.010'!B2:C2 -> <date> | C7: =('!MA04840.010'!J133/60)/'!MA04840.010'!Q3 -> 0 | D7: ='!MA04840.010'!N44/'!MA04840.010'!Q3 -> 0.04724409449 | E7: =SUM('!MA04840.010'!L44:Q44)/'!MA04840.010'!Q3 -> 167.4015748 | F7: ='!MA04840.010'!Q40 -> 0.5224435625
A8: 6 | B8: ='!MA05850.010'!B2:C2 -> <date> | C8: =('!MA05850.010'!J142/60)/'!MA05850.010'!Q3 -> 2.921936275 | D8: ='!MA05850.010'!N44/'!MA05850.010'!Q3 -> 0.03676470588 | E8: =SUM('!MA05850.010'!L44:Q44)/'!MA05850.010'!Q3 -> 163.0220588 | F8: ='!MA05850.010'!Q40 -> 0.5272021266
A9: 7 | B9: ='!MA06820.010'!B2:C2 -> <date> | C9: =('!MA06820.010'!J122/60)/'!MA06820.010'!Q3 -> 3.443821839 | D9: ='!MA06820.010'!N44/'!MA06820.010'!Q3 -> 0.0775862069 | E9: =SUM('!MA06820.010'!L44:Q44)/'!MA06820.010'!Q3 -> 97.06896552 | F9: ='!MA06820.010'!Q40 -> 0.5149001617 | G9: =K3 -> 3.204023554 | H9: 3.063898026 | I9: 2.462775076 | J9: 2.26715302 | K9: 2.270784706 | L9: 2.663821576 | M9: =K4 -> 0.03402901021 | N9: 0.06322180855 | O9: 0.05976636578 | P9: 0.09799439068 | Q9: 0.1609495842 | R9: 0.2631310619 | S9: =K6 -> 0.5319048184 | T9: 0.511142589 | U9: 0.5335919481 | V9: 0.5294196405 | W9: 0.5358834132 | X9: 0.5212783964
A10: 8 | B10: ='!MA07B40.010'!B2:C2 -> <date> | C10: =('!MA07B40.010'!J147/60)/'!MA07B40.010'!Q3 -> 2.826950355 | D10: ='!MA07B40.010'!N44/'!MA07B40.010'!Q3 -> 0.07092198582 | E10: =SUM('!MA07B40.010'!L44:Q44)/'!MA07B40.010'!Q3 -> 79.91489362 | F10: ='!MA07B40.010'!Q40 -> 0.5049223777
A11: 9 | B11: ='!MA08920.010'!B2:C2 -> <date> | C11: =('!MA08920.010'!J134/60)/'!MA08920.010'!Q3 -> 3.079198966 | D11: ='!MA08920.010'!N44/'!MA08920.010'!Q3 -> 0.06976744186 | E11: =SUM('!MA08920.010'!L44:Q44)/'!MA08920.010'!Q3 -> 94.36434109 | F11: ='!MA08920.010'!Q40 -> 0.5113985933
A12: 10 | B12: ='!MA09940.010'!B2:C2 -> <date> | C12: =('!MA09940.010'!J137/60)/'!MA09940.010'!Q3 -> 3.047582697 | D12: ='!MA09940.010'!N44/'!MA09940.010'!Q3 -> 0.06106870229 | E12: =SUM('!MA09940.010'!L44:Q44)/'!MA09940.010'!Q3 -> 85.29007634 | F12: ='!MA09940.010'!Q40 -> 0.4972896856
A13: 11 | B13: ='!MA10A30.010'!B2:C2 -> <date> | C13: =('!MA10A30.010'!J148/60)/'!MA10A30.010'!Q3 -> 2.815492958 | D13: ='!MA10A30.010'!N44/'!MA10A30.010'!Q3 -> 0.06338028169 | E13: =SUM('!MA10A30.010'!L44:Q44)/'!MA10A30.010'!Q3 -> 85.75352113 | F13: ='!MA10A30.010'!Q40 -> 0.5432999268
A14: 12 | B14: ='!MA11940.010'!B2:C2 -> <date> | C14: =('!MA11940.010'!J116/60)/'!MA11940.010'!Q3 -> 3.584984985 | D14: ='!MA11940.010'!N44/'!MA11940.010'!Q3 -> 0.08108108108 | E14: =SUM('!MA11940.010'!L44:Q44)/'!MA11940.010'!Q3 -> 191.5045045 | F14: ='!MA11940.010'!Q40 -> 0.5888630776
A15: 13 | B15: ='!MA12B30.010'!B2:C2 -> <date> | C15: =('!MA12B30.010'!J159/60)/'!MA12B30.010'!Q3 -> 0 | D15: ='!MA12B30.010'!N44/'!MA12B30.010'!Q3 -> 0.06535947712 | E15: =SUM('!MA12B30.010'!L44:Q44)/'!MA12B30.010'!Q3 -> 73.67320261 | F15: ='!MA12B30.010'!Q40 -> 0.4921297209
A16: 14 | B16: ='!MA13930.010'!B2:C2 -> <date> | C16: =('!MA13930.010'!J146/60)/'!MA13930.010'!Q3 -> 2.850833333 | D16: ='!MA13930.010'!N44/'!MA13930.010'!Q3 -> 0.04285714286 | E16: =SUM('!MA13930.010'!L44:Q44)/'!MA13930.010'!Q3 -> 79.74285714 | F16: ='!MA13930.010'!Q40 -> 0.4783828228
A17: 15 | B17: ='!MA14B00.010'!B2:C2 -> <date> | C17: =('!MA14B00.010'!J136/60)/'!MA14B00.010'!Q3 -> 3.062564103 | D17: ='!MA14B00.010'!N44/'!MA14B00.010'!Q3 -> 0.04615384615 | E17: =SUM('!MA14B00.010'!L44:Q44)/'!MA14B00.010'!Q3 -> 85.85384615 | F17: ='!MA14B00.010'!Q40 -> 0.5652841924
A18: 16 | B18: ='!MA15950.010'!B2:C2 -> <date> | C18: =('!MA15950.010'!J135/60)/'!MA15950.010'!Q3 -> 3.093152455 | D18: ='!MA15950.010'!N44/'!MA15950.010'!Q3 -> 0.06976744186 | E18: =SUM('!MA15950.010'!L44:Q44)/'!MA15950.010'!Q3 -> 86.6124031 | F18: ='!MA15950.010'!Q40 -> 0.6033046744
A19: 17 | B19: ='!MA16830.010'!B2:C2 -> <date> | C19: =('!MA16830.010'!J130/60)/'!MA16830.010'!Q3 -> 0 | D19: ='!MA16830.010'!N44/'!MA16830.010'!Q3 -> 0.1370967742 | E19: =SUM('!MA16830.010'!L44:Q44)/'!MA16830.010'!Q3 -> 98.13709677 | F19: ='!MA16830.010'!Q40 -> 0.5622153434
A20: 18 | B20: ='!MA17C00.010'!B2:C2 -> <date> | C20: =('!MA17C00.010'!J146/60)/'!MA17C00.010'!Q3 -> 2.845952381 | D20: ='!MA17C00.010'!N44/'!MA17C00.010'!Q3 -> 0.1071428571 | E20: =SUM('!MA17C00.010'!L44:Q44)/'!MA17C00.010'!Q3 -> 151.95 | F20: ='!MA17C00.010'!Q40 -> 0.5609038093
A21: 19 | B21: ='!MA18A20.010'!B2:C2 -> <date> | C21: =('!MA18A20.010'!J148/60)/'!MA18A20.010'!Q3 -> 2.805751174 | D21: ='!MA18A20.010'!N44/'!MA18A20.010'!Q3 -> 0.09154929577 | E21: =SUM('!MA18A20.010'!L44:Q44)/'!MA18A20.010'!Q3 -> 85.78169014 | F21: ='!MA18A20.010'!Q40 -> 0.476284989
A22: 20 | B22: ='!MA19B20.010'!B2:C2 -> <date> | C22: =('!MA19B20.010'!J160/60)/'!MA19B20.010'!Q3 -> 2.590909091 | D22: ='!MA19B20.010'!N44/'!MA19B20.010'!Q3 -> 0.08441558442 | E22: =SUM('!MA19B20.010'!L44:Q44)/'!MA19B20.010'!Q3 -> 79.06493506 | F22: ='!MA19B20.010'!Q40 -> 0.4443893863
A23: 21 | B23: ='!MA20940.010'!B2:C2 -> <date> | C23: =('!MA20940.010'!J151/60)/'!MA20940.010'!Q3 -> 2.747931034 | D23: ='!MA20940.010'!N44/'!MA20940.010'!Q3 -> 0.1517241379 | E23: =SUM('!MA20940.010'!L44:Q44)/'!MA20940.010'!Q3 -> 77.86896552 | F23: ='!MA20940.010'!Q40 -> 0.5134179382
A24: 22 | B24: ='!MA21A00.010'!B2:C2 -> <date> | C24: =('!MA21A00.010'!J139/60)/'!MA21A00.010'!Q3 -> 0 | D24: ='!MA21A00.010'!N44/'!MA21A00.010'!Q3 -> 0.1578947368 | E24: =SUM('!MA21A00.010'!L44:Q44)/'!MA21A00.010'!Q3 -> 84.10526316 | F24: ='!MA21A00.010'!Q40 -> 0.5574012295
A25: 23 | B25: ='!MA22930.010'!B2:C2 -> <date> | C25: =('!MA22930.010'!J136/60)/'!MA22930.010'!Q3 -> 3.065641026 | D25: ='!MA22930.010'!N44/'!MA22930.010'!Q3 -> 0.1615384615 | E25: =SUM('!MA22930.010'!L44:Q44)/'!MA22930.010'!Q3 -> 162.9615385 | F25: ='!MA22930.010'!Q40 -> 0.5416219145
A26: 24 | B26: ='!MA23A00.010'!B2:C2 -> <date> | C26: =('!MA23A00.010'!J147/60)/'!MA23A00.010'!Q3 -> 2.801995305 | D26: ='!MA23A00.010'!N44/'!MA23A00.010'!Q3 -> 0.176056338 | E26: =SUM('!MA23A00.010'!L44:Q44)/'!MA23A00.010'!Q3 -> 149.8873239 | F26: ='!MA23A00.010'!Q40 -> 0.5180996068
A27: 25 | B27: ='!MA24A30.010'!B2:C2 -> <date> | C27: =('!MA24A30.010'!J152/60)/'!MA24A30.010'!Q3 -> 2.738356164 | D27: ='!MA24A30.010'!N44/'!MA24A30.010'!Q3 -> 0.1575342466 | E27: =SUM('!MA24A30.010'!L44:Q44)/'!MA24A30.010'!Q3 -> 77.34931507 | F27: ='!MA24A30.010'!Q40 -> 0.5488763771
A28: 26 | B28: ='!MA25940.010'!B2:C2 -> <date> | C28: =('!MA25940.010'!J144/60)/'!MA25940.010'!Q3 -> 2.890700483 | D28: ='!MA25940.010'!N44/'!MA25940.010'!Q3 -> 0.2101449275 | E28: =SUM('!MA25940.010'!L44:Q44)/'!MA25940.010'!Q3 -> 88.37681159 | F28: ='!MA25940.010'!Q40 -> 0.5280153192
A29: 27 | B29: ='!MA26A10.010'!B2:C2 -> <date> | C29: =('!MA26A10.010'!J150/60)/'!MA26A10.010'!Q3 -> 2.746781609 | D29: ='!MA26A10.010'!N44/'!MA26A10.010'!Q3 -> 0.1655172414 | E29: =SUM('!MA26A10.010'!L44:Q44)/'!MA26A10.010'!Q3 -> 152.9931034 | F29: ='!MA26A10.010'!Q40 -> 0.5495183493
A30: 28 | B30: ='!MA27930.010'!B2:C2 -> <date> | C30: =('!MA27930.010'!J138/60)/'!MA27930.010'!Q3 -> 2.57979798 | D30: ='!MA27930.010'!N44/'!MA27930.010'!Q3 -> 0.303030303 | E30: =SUM('!MA27930.010'!L44:Q44)/'!MA27930.010'!Q3 -> 160.6439394 | F30: ='!MA27930.010'!Q40 -> 0.4980980094
A31: 29 | B31: ='!MA28A20.010'!B2:C2 -> <date> | C31: =('!MA28A20.010'!J113/60)/'!MA28A20.010'!Q3 -> 2.438006231 | D31: ='!MA28A20.010'!N44/'!MA28A20.010'!Q3 -> 0.3738317757 | E31: =SUM('!MA28A20.010'!L44:Q44)/'!MA28A20.010'!Q3 -> 198.1028037 | F31: ='!MA28A20.010'!Q40 -> 0.5094819077
A32: 30

Sheet Start
F1: Use Folder 51 | H1: Auto Clean Up | J1: Correct sequence
F2: FALSE | H2: TRUE | J2: 21121
A4: Working with Folder | G4: Process All/Or Pick A number: ALL or an integer
A5: E:\Hen Data\Raw Data\103_183\phase 5 con\ | G5: ALL
A6: Filenames:
A7: !M930930.010 | G7: Paint Cells
A8: !MA01740.010 | G8: FALSE
A9: !MA02830.010
A10: !MA03740.010
A11: !MA04840.010
A12: !MA05850.010
A13: !MA06820.010
A14: !MA07B40.010
A15: !MA08920.010
A16: !MA09940.010
A17: !MA10A30.010
A18: !MA11940.010
A19: !MA12B30.010
A20: !MA13930.010
A21: !MA14B00.010
A22: !MA15950.010
A23: !MA16830.010
A24: !MA18A20.010
A25: !MA17C00.010
A26: !MA19B20.010
A27: !MA20940.010
A28: !MA21A00.010
A29: !MA22930.010
A30: !MA23A00.010
A31: !MA24A30.010
A32: !MA25940.010
A33: !MA26A10.010
A34: !MA27930.010
A35: !MA28A20.010

Sheet !M930930.010
A1: Report for:!M930930.010
A2: Date: | B2: <date>
A3: Hen: | B3: <hen> | F3: Correct Sequence | G3: =Start!J2 -> 21121 | P3: Total Sequences in Data | Q3: =4994-COUNTBLANK(L7:L5000) -> 93 | V3: Total Sequences in Block Data | W3: =COUNTA(L7:L22) -> 16 | AA3: Total Sequences in Block Data | AB3: =COUNTA(L23:L37) -> 15 | AF3: Total Sequences in Block Data | AG3: =COUNTA(L38:L53) -> 16 | AK3: Total Sequences in Block Data | AL3: =COUNTA(L54:L68) -> 15 | AP3: Total Sequences in Block Data | AQ3: =COUNTA(L69:L84) -> 16 | AU3: Total Sequences in Block Data | AV3: =COUNTA(L85:L99) -> 15
P4: Total Sequences in Summary | Q4: =SUM(O7:O38) -> 93 | V4: Total Sequences in Block Summary | W4: =SUM(U7:U38) -> 16 | AA4: Total Sequences in Block Summary | AB4: =SUM(Z7:Z38) -> 15 | AF4: Total Sequences in Block Summary | AG4: =SUM(AE7:AE38) -> 16 | AK4: Total Sequences in Block Summary | AL4: =SUM(AJ7:AJ38) -> 15 | AP4: Total Sequences in Block Summary | AQ4: =SUM(AO7:AO38) -> 16 | AU4: Total Sequences in Block Summary | AV4: =SUM(AT7:AT38) -> 15
T5: Block 1 | Y5: Block 2 | AD5: Block 3 | AI5: Block 4 | AN5: Block 5 | AS5: Block 6
A6: Sequence Component 1 | B6: Time 1 | C6: Sequence Component 2 | D6: Time 2 | E6: Sequence Component 3 | F6: Time 3 | G6: Sequence Component 4 | H6: Time 4 | I6: Sequence Component 5 | J6: Time 5 | K6: Correct? 0=No 1=Yes | L6: Sequence | N6: Frequency | P6: Relative Frequency | Q6: Variability | T6: Frequency | V6: Relative Frequency | W6: Variability | Y6: Frequency | AA6: Relative Frequency | AB6: Variability | AD6: Frequency | AF6: Relative Frequency | AG6: Variability | AI6: Frequency | AK6: Relative Frequency | AL6: Variability | AN6: Frequency | AP6: Relative Frequency | AQ6: Variability | AS6: Frequency | AU6: Relative Frequency | AV6: Variability
A7: 12 | B7: 12 | C7: 24 | D7: 34 | E7: 24 | F7: 42 | G7: 14 | H7: 61 | I7: 13 | J7: 83 | K7: 0 | L7: 12211 | N7: 11111 | O7: =COUNTIF($L$7:$L$500,N7) -> 8 | P7: =O7/$Q$4 -> 0.08602150538 | Q7: =IF(P7=0,0,(P7*((LOG(P7))/LOG(2)))) -> -0.3044437687 | T7: =N7 -> 11111 | U7: =COUNTIF(L7:L22,T7) -> 0 | V7: =U7/(W4-U25) -> 0 | W7: =IF(V7=0,0,(V7*((LOG(V7))/LOG(2)))) -> 0 | Y7: =N7 -> 11111 | Z7: =COUNTIF(L23:L37,Y7) -> 1 | AA7: =Z7/(AB4-Z25) -> 0.06666666667 | AB7: =IF(AA7=0,0,(AA7*((LOG(AA7))/LOG(2)))) -> -0.260459373 | AD7: =N7 -> 11111 | AE7: =COUNTIF(L38:L53,AD7) -> 0 | AF7: =AE7/(AG4-AE25) -> 0 | AG7: =IF(AF7=0,0,(AF7*((LOG(AF7))/LOG(2)))) -> 0 | AI7: =N7 -> 11111 | AJ7: =COUNTIF(L54:L68,AI7) -> 0 | AK7: =AJ7/(AL4-AJ25) -> 0 | AL7: =IF(AK7=0,0,(AK7*((LOG(AK7))/LOG(2)))) -> 0 | AN7: =N7 -> 11111 | AO7: =COUNTIF(L69:L84,AN7) -> 4 | AP7: =AO7/(AQ4-AO25) -> 0.25 | AQ7: =IF(AP7=0,0,(AP7*((LOG(AP7))/LOG(2)))) -> -0.5 | AS7: =N7 -> 11111 | AT7: =COUNTIF(L85:L99,AS7) -> 3 | AU7: =AT7/(AV4-AT25) -> 0.2142857143 | AV7: =IF(AU7=0,0,(AU7*((LOG(AU7))/LOG(2)))) -> -0.4762269474
A8: 12 | B8: 185 | C8: 24 | D8: 198 | E8: 13 | F8: 215 | G8: 23 | H8: 228 | I8: 13 | J8: 241 | K8: 0 | L8: 12121 | N8: 11112 | O8: =COUNTIF($L$7:$L$500,N8) -> 7 | P8: =O8/$Q$4 -> 0.0752688172 | Q8: =IF(P8=0,0,(P8*((LOG(P8))/LOG(2)))) -> -0.2808884648 | T8: =N8 -> 11112 | U8: =COUNTIF(L7:L22,T8) -> 0 | V8: =U8/(W4-U25) -> 0 | W8: =IF(V8=0,0,(V8*((LOG(V8))/LOG(2)))) -> 0 | Y8: =N8 -> 11112 | Z8: =COUNTIF(L23:L37,Y8) -> 0 | AA8: =Z8/(AB4-Z25) -> 0 | AB8: =IF(AA8=0,0,(AA8*((LOG(AA8))/LOG(2)))) -> 0 | AD8: =N8 -> 11112 | AE8: =COUNTIF(L38:L53,AD8) -> 1 | AF8: =AE8/(AG4-AE25) -> 0.0625 | AG8: =IF(AF8=0,0,(AF8*((LOG(AF8))/LOG(2)))) -> -0.25 | AI8: =N8 -> 11112 | AJ8: =COUNTIF(L54:L68,AI8) -> 2 | AK8: =AJ8/(AL4-AJ25) -> 0.1333333333 | AL8: =IF(AK8=0,0,(AK8*((LOG(AK8))/LOG(2)))) -> -0.3875854127 | AN8: =N8 -> 11112 | AO8: =COUNTIF(L69:L84,AN8) -> 3 | AP8: =AO8/(AQ4-AO25) -> 0.1875 | AQ8: =IF(AP8=0,0,(AP8*((LOG(AP8))/LOG(2)))) -> -0.4528195311 | AS8: =N8 -> 11112 | AT8: =COUNTIF(L85:L99,AS8) -> 1 | AU8: =AT8/(AV4-AT25) -> 0.07142857143 | AV8: =IF(AU8=0,0,(AU8*((LOG(AU8))/LOG(2)))) -> -0.271953923
A9: 21 | B9: 366 | C9: 11 | D9: 383 | E9: 22 | F9: 395 | G9: 23 | H9: 424 | I9: 13 | J9: 436 | K9: 0 | L9: 21221 | N9: 11121 | O9: =COUNTIF($L$7:$L$500,N9) -> 8 | P9: =O9/$Q$4 -> 0.08602150538 | Q9: =IF(P9=0,0,(P9*((LOG(P9))/LOG(2)))) -> -0.3044437687 | T9: =N9 -> 11121 | U9: =COUNTIF(L7:L22,T9) -> 1 | V9: =U9/(W4-U25) -> 0.0625 | W9: =IF(V9=0,0,(V9*((LOG(V9))/LOG(2)))) -> -0.25 | Y9: =N9 -> 11121 | Z9: =COUNTIF(L23:L37,Y9) -> 4 | AA9: =Z9/(AB4-Z25) -> 0.2666666667 | AB9: =IF(AA9=0,0,(AA9*((LOG(AA9))/LOG(2)))) -> -0.5085041588 | AD9: =N9 -> 11121 | AE9: =COUNTIF(L38:L53,AD9) -> 0 | AF9: =AE9/(AG4-AE25) -> 0 | AG9: =IF(AF9=0,0,(AF9*((LOG(AF9))/LOG(2)))) -> 0 | AI9: =N9 -> 11121 | AJ9: =COUNTIF(L54:L68,AI9) -> 1 | AK9: =AJ9/(AL4-AJ25) -> 0.06666666667 | AL9: =IF(AK9=0,0,(AK9*((LOG(AK9))/LOG(2)))) -> -0.260459373 | AN9: =N9 -> 11121 | AO9: =COUNTIF(L69:L84,AN9) -> 1 | AP9: =AO9/(AQ4-AO25) -> 0.0625 | AQ9: =IF(AP9=0,0,(AP9*((LOG(AP9))/LOG(2)))) -> -0.25 | AS9: =N9 -> 11121 | AT9: =COUNTIF(L85:L99,AS9) -> 1 | AU9: =AT9/(AV4-AT25) -> 0.07142857143 | AV9: =IF(AU9=0,0,(AU9*((LOG(AU9))/LOG(2)))) -> -0.271953923
A10: 12 | B10: 552 | C10: 24 | D10: 569 | E10: 13 | F10: 584 | G10: 23 | H10: 601 | I10: 13 | J10: 610 | K10: 0 | L10: 12121 | N10: 11122 | O10: =COUNTIF($L$7:$L$500,N10) -> 20 | P10: =O10/$Q$4 -> 0.2150537634 | Q10: =IF(P10=0,0,(P10*((LOG(P10))/LOG(2)))) -> -0.4768238099 | T10: =N10 -> 11122 | U10: =COUNTIF(L7:L22,T10) -> 1 | V10: =U10/(W4-U25) -> 0.0625 | W10: =IF(V10=0,0,(V10*((LOG(V10))/LOG(2)))) -> -0.25 | Y10: =N10 -> 11122 | Z10: =COUNTIF(L23:L37,Y10) -> 4 | AA10: =Z10/(AB4-Z25) -> 0.2666666667 | AB10: =IF(AA10=0,0,(AA10*((LOG(AA10))/LOG(2)))) -> -0.5085041588 | AD10: =N10 -> 11122 | AE10: =COUNTIF(L38:L53,AD10) -> 3 | AF10: =AE10/(AG4-AE25) -> 0.1875 | AG10: =IF(AF10=0,0,(AF10*((LOG(AF10))/LOG(2)))) -> -0.4528195311 | AI10: =N10 -> 11122 | AJ10: =COUNTIF(L54:L68,AI10) -> 5 | AK10: =AJ10/(AL4-AJ25) -> 0.3333333333 | AL10: =IF(AK10=0,0,(AK10*((LOG(AK10))/LOG(2)))) -> -0.5283208336 | AN10: =N10 -> 11122 | AO10: =COUNTIF(L69:L84,AN10) -> 4 | AP10: =AO10/(AQ4-AO25) -> 0.25 | AQ10: =IF(AP10=0,0,(AP10*((LOG(AP10))/LOG(2)))) -> -0.5 | AS10: =N10 -> 11122 | AT10: =COUNTIF(L85:L99,AS10) -> 3 | AU10: =AT10/(AV4-AT25) -> 0.2142857143 | AV10: =IF(AU10=0,0,(AU10*((LOG(AU10))/LOG(2)))) -> -0.4762269474
A11: 12 | B11: 712 | C11: 24 | D11: 727 | E11: 13 | F11: 743 | G11: 23 | H11: 758 | I11: 13 | J11: 770 | K11: 0 | L11: 12121 | N11: 11211 | O11: =COUNTIF($L$7:$L$500,N11) -> 1 | P11: =O11/$Q$4 -> 0.01075268817 | Q11: =IF(P11=0,0,(P11*((LOG(P11))/LOG(2)))) -> -0.0703135356 | T11: =N11 -> 11211 | U11: =COUNTIF(L7:L22,T11) -> 0 | V11: =U11/(W4-U25) -> 0 | W11: =IF(V11=0,0,(V11*((LOG(V11))/LOG(2)))) -> 0 | Y11: =N11 -> 11211 | Z11: =COUNTIF(L23:L37,Y11) -> 1 | AA11: =Z11/(AB4-Z25) -> 0.06666666667 | AB11: =IF(AA11=0,0,(AA11*((LOG(AA11))/LOG(2)))) -> -0.260459373 | AD11: =N11 -> 11211 | AE11: =COUNTIF(L38:L53,AD11) -> 0 | AF11: =AE11/(AG4-AE25) -> 0 | AG11: =IF(AF11=0,0,(AF11*((LOG(AF11))/LOG(2)))) -> 0 | AI11: =N11 -> 11211 | AJ11: =COUNTIF(L54:L68,AI11) -> 0 | AK11: =AJ11/(AL4-AJ25) -> 0 | AL11: =IF(AK11=0,0,(AK11*((LOG(AK11))/LOG(2)))) -> 0 | AN11: =N11 -> 11211 | AO11: =COUNTIF(L69:L84,AN11) -> 0 | AP11: =AO11/(AQ4-AO25) -> 0 | AQ11: =IF(AP11=0,0,(AP11*((LOG(AP11))/LOG(2)))) -> 0 | AS11: =N11 -> 11211 | AT11: =COUNTIF(L85:L99,AS11) -> 0 | AU11: =AT11/(AV4-AT25) -> 0 | AV11: =IF(AU11=0,0,(AU11*((LOG(AU11))/LOG(2)))) -> 0
A12: 12 | B12: 874 | C12: 24 | D12: 886 | E12: 13 | F12: 899 | G12: 23 | H12: 918 | I12: 13 | J12: 926 | K12: 0 | L12: 12121 | N12: 11212 | O12: =COUNTIF($L$7:$L$500,N12) -> 3 | P12: =O12/$Q$4 -> 0.03225806452 | Q12: =IF(P12=0,0,(P12*((LOG(P12))/LOG(2)))) -> -0.1598127842 | T12: =N12 -> 11212 | U12: =COUNTIF(L7:L22,T12) -> 0 | V12: =U12/(W4-U25) -> 0 | W12: =IF(V12=0,0,(V12*((LOG(V12))/LOG(2)))) -> 0 | Y12: =N12 -> 11212 | Z12: =COUNTIF(L23:L37,Y12) -> 0 | AA12: =Z12/(AB4-Z25) -> 0 | AB12: =IF(AA12=0,0,(AA12*((LOG(AA12))/LOG(2)))) -> 0 | AD12: =N12 -> 11212 | AE12: =COUNTIF(L38:L53,AD12) -> 1 | AF12: =AE12/(AG4-AE25) -> 0.0625 | AG12: =IF(AF12=0,0,(AF12*((LOG(AF12))/LOG(2)))) -> -0.25 | AI12: =N12 -> 11212 | AJ12: =COUNTIF(L54:L68,AI12) -> 1 | AK12: =AJ12/(AL4-AJ25) -> 0.06666666667 | AL12: =IF(AK12=0,0,(AK12*((LOG(AK12))/LOG(2)))) -> -0.260459373 | AN12: =N12 -> 11212 | AO12: =COUNTIF(L69:L84,AN12) -> 0 | AP12: =AO12/(AQ4-AO25) -> 0 | AQ12: =IF(AP12=0,0,(AP12*((LOG(AP12))/LOG(2)))) -> 0 | AS12: =N12 -> 11212 | AT12: =COUNTIF(L85:L99,AS12) -> 1 | AU12: =AT12/(AV4-AT25) -> 0.07142857143 | AV12: =IF(AU12=0,0,(AU12*((LOG(AU12))/LOG(2)))) -> -0.271953923
A13: 21 | B13: 1053 | C13: 22 | D13: 1072 | E13: 13 | F13: 1085 | G13: 23 | H13: 1100 | I13: 24 | J13: 1108 | K13: 0 | L13: 22122 | N13: 11221 | O13: =COUNTIF($L$7:$L$500,N13) -> 8 | P13: =O13/$Q$4 -> 0.08602150538 | Q13: =IF(P13=0,0,(P13*((LOG(P13))/LOG(2)))) -> -0.3044437687 | T13: =N13 -> 11221 | U13: =COUNTIF(L7:L22,T13) -> 0 | V13: =U13/(W4-U25) -> 0 | W13: =IF(V13=0,0,(V13*((LOG(V13))/LOG(2)))) -> 0 | Y13: =N13 -> 11221 | Z13: =COUNTIF(L23:L37,Y13) -> 1 | AA13: =Z13/(AB4-Z25) -> 0.06666666667 | AB13: =IF(AA13=0,0,(AA13*((LOG(AA13))/LOG(2)))) -> -0.260459373 | AD13: =N13 -> 11221 | AE13: =COUNTIF(L38:L53,AD13) -> 4 | AF13: =AE13/(AG4-AE25) -> 0.25 | AG13: =IF(AF13=0,0,(AF13*((LOG(AF13))/LOG(2)))) -> -0.5 | AI13: =N13 -> 11221 | AJ13: =COUNTIF(L54:L68,AI13) -> 2 | AK13: =AJ13/(AL4-AJ25) -> 0.1333333333 | AL13: =IF(AK13=0,0,(AK13*((LOG(AK13))/LOG(2)))) -> -0.3875854127 | AN13: =N13 -> 11221 | AO13: =COUNTIF(L69:L84,AN13) -> 0 | AP13: =AO13/(AQ4-AO25) -> 0 | AQ13: =IF(AP13=0,0,(AP13*((LOG(AP13))/LOG(2)))) -> 0 | AS13: =N13 -> 11221 | AT13: =COUNTIF(L85:L99,AS13) -> 1 | AU13: =AT13/(AV4-AT25) -> 0.07142857143 | AV13: =IF(AU13=0,0,(AU13*((LOG(AU13))/LOG(2)))) -> -0.271953923
A14: 12 | B14: 1215 | C14: 24 | D14: 1233 | E14: 24 | F14: 1244 | G14: 14 | H14: 1257 | I14: 24 | J14: 1273 | K14: 0 | L14: 12212 | N14: 11222 | O14: =COUNTIF($L$7:$L$500,N14) -> 15 | P14: =O14/$Q$4 -> 0.1612903226 | Q14: =IF(P14=0,0,(P14*((LOG(P14))/LOG(2)))) -> -0.4245593896 | T14: =N14 -> 11222 | U14: =COUNTIF(L7:L22,T14) -> 2 | V14: =U14/(W4-U25) -> 0.125 | W14: =IF(V14=0,0,(V14*((LOG(V14))/LOG(2)))) -> -0.375 | Y14: =N14 -> 11222 | Z14: =COUNTIF(L23:L37,Y14) -> 2 | AA14: =Z14/(AB4-Z25) -> 0.1333333333 | AB14: =IF(AA14=0,0,(AA14*((LOG(AA14))/LOG(2)))) -> -0.3875854127 | AD14: =N14 -> 11222 | AE14: =COUNTIF(L38:L53,AD14) -> 4 | AF14: =AE14/(AG4-AE25) -> 0.25 | AG14: =IF(AF14=0,0,(AF14*((LOG(AF14))/LOG(2)))) -> -0.5 | AI14: =N14 -> 11222 | AJ14: =COUNTIF(L54:L68,AI14) -> 2 | AK14: =AJ14/(AL4-AJ25) -> 0.1333333333 | AL14: =IF(AK14=0,0,(AK14*((LOG(AK14))/LOG(2)))) -> -0.3875854127 | AN14: =N14 -> 11222 | AO14: =COUNTIF(L69:L84,AN14) -> 2 | AP14: =AO14/(AQ4-AO25) -> 0.125 | AQ14: =IF(AP14=0,0,(AP14*((LOG(AP14))/LOG(2)))) -> -0.375 | AS14: =N14 -> 11222 | AT14: =COUNTIF(L85:L99,AS14) -> 3 | AU14: =AT14/(AV4-AT25) -> 0.2142857143 | AV14: =IF(AU14=0,0,(AU14*((LOG(AU14))/LOG(2)))) -> -0.4762269474
A15: 12 | B15: 1395 | C15: 24 | D15: 1412 | E15: 24 | F15: 1420 | G15: 14 | H15: 1434 | I15: 24 | J15: 1449 | K15: 0 | L15: 12212 | N15: 12111 | O15: =COUNTIF($L$7:$L$500,N15) -> 2 | P15: =O15/$Q$4 -> 0.02150537634 | Q15: =IF(P15=0,0,(P15*((LOG(P15))/LOG(2)))) -> -0.1191216949 | T15: =N15 -> 12111 | U15: =COUNTIF(L7:L22,T15) -> 1 | V15: =U15/(W4-U25) -> 0.0625 | W15: =IF(V15=0,0,(V15*((LOG(V15))/LOG(2)))) -> -0.25 | Y15: =N15 -> 12111 | Z15: =COUNTIF(L23:L37,Y15) -> 1 | AA15: =Z15/(AB4-Z25) -> 0.06666666667 | AB15: =IF(AA15=0,0,(AA15*((LOG(AA15))/LOG(2)))) -> -0.260459373 | AD15: =N15 -> 12111 | AE15: =COUNTIF(L38:L53,AD15) -> 0 | AF15: =AE15/(AG4-AE25) -> 0 | AG15: =IF(AF15=0,0,(AF15*((LOG(AF15))/LOG(2)))) -> 0 | AI15: =N15 -> 12111 | AJ15: =COUNTIF(L54:L68,AI15) -> 0 | AK15: =AJ15/(AL4-AJ25) -> 0 | AL15: =IF(AK15=0,0,(AK15*((LOG(AK15))/LOG(2)))) -> 0 | AN15: =N15 -> 12111 | AO15: =COUNTIF(L69:L84,AN15) -> 0 | AP15: =AO15/(AQ4-AO25) -> 0 | AQ15: =IF(AP15=0,0,(AP15*((LOG(AP15))/LOG(2)))) -> 0 | AS15: =N15 -> 12111 | AT15: =COUNTIF(L85:L99,AS15) -> 0 | AU15: =AT15/(AV4-AT25) -> 0 | AV15: =IF(AU15=0,0,(AU15*((LOG(AU15))/LOG(2)))) -> 0
A16: 12 | B16: 1557 | C16: 13 | D16: 1585 | E16: 24 | F16: 1602 | G16: 23 | H16: 1613 | I16: 24 | J16: 1630 | K16: 0 | L16: 11222 | N16: 12112 | O16: =COUNTIF($L$7:$L$500,N16) -> 1 | P16: =O16/$Q$4 -> 0.01075268817 | Q16: =IF(P16=0,0,(P16*((LOG(P16))/LOG(2)))) -> -0.0703135356 | T16: =N16 -> 12112 | U16: =COUNTIF(L7:L22,T16) -> 1 | V16: =U16/(W4-U25) -> 0.0625 | W16: =IF(V16=0,0,(V16*((LOG(V16))/LOG(2)))) -> -0.25 | Y16: =N16 -> 12112 | Z16: =COUNTIF(L23:L37,Y16) -> 0 | AA16: =Z16/(AB4-Z25) -> 0 | AB16: =IF(AA16=0,0,(AA16*((LOG(AA16))/LOG(2)))) -> 0 | AD16: =N16 -> 12112 | AE16: =COUNTIF(L38:L53,AD16) -> 0 | AF16: =AE16/(AG4-AE25) -> 0 | AG16: =IF(AF16=0,0,(AF16*((LOG(AF16))/LOG(2)))) -> 0 | AI16: =N16 -> 12112 | AJ16: =COUNTIF(L54:L68,AI16) -> 0 | AK16: =AJ16/(AL4-AJ25) -> 0 | AL16: =IF(AK16=0,0,(AK16*((LOG(AK16))/LOG(2)))) -> 0 | AN16: =N16 -> 12112 | AO16: =COUNTIF(L69:L84,AN16) -> 0 | AP16: =AO16/(AQ4-AO25) -> 0 | AQ16: =IF(AP16=0,0,(AP16*((LOG(AP16))/LOG(2)))) -> 0 | AS16: =N16 -> 12112 | AT16: =COUNTIF(L85:L99,AS16) -> 0 | AU16: =AT16/(AV4-AT25) -> 0 | AV16: =IF(AU16=0,0,(AU16*((LOG(AU16))/LOG(2)))) -> 0
A17: 12 | B17: 1790 | C17: 13 | D17: 1809 | E17: 24 | F17: 1821 | G17: 23 | H17: 1832 | I17: 24 | J17: 1851 | K17: 0 | L17: 11222 | N17: 12121 | O17: =COUNTIF($L$7:$L$500,N17) -> 4 | P17: =O17/$Q$4 -> 0.04301075269 | Q17: =IF(P17=0,0,(P17*((LOG(P17))/LOG(2)))) -> -0.195232637 | T17: =N17 -> 12121 | U17: =COUNTIF(L7:L22,T17) -> 4 | V17: =U17/(W4-U25) -> 0.25 | W17: =IF(V17=0,0,(V17*((LOG(V17))/LOG(2)))) -> -0.5 | Y17: =N17 -> 12121 | Z17: =COUNTIF(L23:L37,Y17) -> 0 | AA17: =Z17/(AB4-Z25) -> 0 | AB17: =IF(AA17=0,0,(AA17*((LOG(AA17))/LOG(2)))) -> 0 | AD17: =N17 -> 12121 | AE17: =COUNTIF(L38:L53,AD17) -> 0 | AF17: =AE17/(AG4-AE25) -> 0 | AG17: =IF(AF17=0,0,(AF17*((LOG(AF17))/LOG(2)))) -> 0 | AI17: =N17 -> 12121 | AJ17: =COUNTIF(L54:L68,AI17) -> 0 | AK17: =AJ17/(AL4-AJ25) -> 0 | AL17: =IF(AK17=0,0,(AK17*((LOG(AK17))/LOG(2)))) -> 0 | AN17: =N17 -> 12121 | AO17: =COUNTIF(L69:L84,AN17) -> 0 | AP17: =AO17/(AQ4-AO25) -> 0 | AQ17: =IF(AP17=0,0,(AP17*((LOG(AP17))/LOG(2)))) -> 0 | AS17: =N17 -> 12121 | AT17: =COUNTIF(L85:L99,AS17) -> 0 | AU17: =AT17/(AV4-AT25) -> 0 | AV17: =IF(AU17=0,0,(AU17*((LOG(AU17))/LOG(2)))) -> 0
A18: 12 | B18: 1968 | C18: 24 | D18: 1982 | E18: 13 | F18: 1996 | G18: 14 | H18: 2008 | I18: 13 | J18: 2034 | K18: 0 | L18: 12111 | N18: 12122 | O18: =COUNTIF($L$7:$L$500,N18) -> 2 | P18: =O18/$Q$4 -> 0.02150537634 | Q18: =IF(P18=0,0,(P18*((LOG(P18))/LOG(2)))) -> -0.1191216949 | T18: =N18 -> 12122 | U18: =COUNTIF(L7:L22,T18) -> 1 | V18: =U18/(W4-U25) -> 0.0625 | W18: =IF(V18=0,0,(V18*((LOG(V18))/LOG(2)))) -> -0.25 | Y18: =N18 -> 12122 | Z18: =COUNTIF(L23:L37,Y18) -> 0 | AA18: =Z18/(AB4-Z25) -> 0 | AB18: =IF(AA18=0,0,(AA18*((LOG(AA18))/LOG(2)))) -> 0 | AD18: =N18 -> 12122 | AE18: =COUNTIF(L38:L53,AD18) -> 0 | AF18: =AE18/(AG4-AE25) -> 0 | AG18: =IF(AF18=0,0,(AF18*((LOG(AF18))/LOG(2)))) -> 0 | AI18: =N18 -> 12122 | AJ18: =COUNTIF(L54:L68,AI18) -> 1 | AK18: =AJ18/(AL4-AJ25) -> 0.06666666667 | AL18: =IF(AK18=0,0,(AK18*((LOG(AK18))/LOG(2)))) -> -0.260459373 | AN18: =N18 -> 12122 | AO18: =COUNTIF(L69:L84,AN18) -> 0 | AP18: =AO18/(AQ4-AO25) -> 0 | AQ18: =IF(AP18=0,0,(AP18*((LOG(AP18))/LOG(2)))) -> 0 | AS18: =N18 -> 12122 | AT18: =COUNTIF(L85:L99,AS18) -> 0 | AU18: =AT18/(AV4-AT25) -> 0 | AV18: =IF(AU18=0,0,(AU18*((LOG(AU18))/LOG(2)))) -> 0
A19: 12 | B19: 2219 | C19: 24 | D19: 2232 | E19: 13 | F19: 2242 | G19: 14 | H19: 2257 | I19: 24 | J19: 2269 | K19: 0 | L19: 12112 | N19: 12211 | O19: =COUNTIF($L$7:$L$500,N19) -> 1 | P19: =O19/$Q$4 -> 0.01075268817 | Q19: =IF(P19=0,0,(P19*((LOG(P19))/LOG(2)))) -> -0.0703135356 | T19: =N19 -> 12211 | U19: =COUNTIF(L7:L22,T19) -> 1 | V19: =U19/(W4-U25) -> 0.0625 | W19: =IF(V19=0,0,(V19*((LOG(V19))/LOG(2)))) -> -0.25 | Y19: =N19 -> 12211 | Z19: =COUNTIF(L23:L37,Y19) -> 0 | AA19: =Z19/(AB4-Z25) -> 0 | AB19: =IF(AA19=0,0,(AA19*((LOG(AA19))/LOG(2)))) -> 0 | AD19: =N19 -> 12211 | AE19: =COUNTIF(L38:L53,AD19) -> 0 | AF19: =AE19/(AG4-AE25) -> 0 | AG19: =IF(AF19=0,0,(AF19*((LOG(AF19))/LOG(2)))) -> 0 | AI19: =N19 -> 12211 | AJ19: =COUNTIF(L54:L68,AI19) -> 0 | AK19: =AJ19/(AL4-AJ25) -> 0 | AL19: =IF(AK19=0,0,(AK19*((LOG(AK19))/LOG(2)))) -> 0 | AN19: =N19 -> 12211 | AO19: =COUNTIF(L69:L84,AN19) -> 0 | AP19: =AO19/(AQ4-AO25) -> 0 | AQ19: =IF(AP19=0,0,(AP19*((LOG(AP19))/LOG(2)))) -> 0 | AS19: =N19 -> 12211 | AT19: =COUNTIF(L85:L99,AS19) -> 0 | AU19: =AT19/(AV4-AT25) -> 0 | AV19: =IF(AU19=0,0,(AU19*((LOG(AU19))/LOG(2)))) -> 0
A20: 12 | B20: 2386 | C20: 13 | D20: 2400 | E20: 13 | F20: 2412 | G20: 23 | H20: 2427 | I20: 13 | J20: 2444 | K20: 0 | L20: 11121 | N20: 12212 | O20: =COUNTIF($L$7:$L$500,N20) -> 3 | P20: =O20/$Q$4 -> 0.03225806452 | Q20: =IF(P20=0,0,(P20*((LOG(P20))/LOG(2)))) -> -0.1598127842 | T20: =N20 -> 12212 | U20: =COUNTIF(L7:L22,T20) -> 2 | V20: =U20/(W4-U25) -> 0.125 | W20: =IF(V20=0,0,(V20*((LOG(V20))/LOG(2)))) -> -0.375 | Y20: =N20 -> 12212 | Z20: =COUNTIF(L23:L37,Y20) -> 0 | AA20: =Z20/(AB4-Z25) -> 0 | AB20: =IF(AA20=0,0,(AA20*((LOG(AA20))/LOG(2)))) -> 0 | AD20: =N20 -> 12212 | AE20: =COUNTIF(L38:L53,AD20) -> 1 | AF20: =AE20/(AG4-AE25) -> 0.0625 | AG20: =IF(AF20=0,0,(AF20*((LOG(AF20))/LOG(2)))) -> -0.25 | AI20: =N20 -> 12212 | AJ20: =COUNTIF(L54:L68,AI20) -> 0 | AK20: =AJ20/(AL4-AJ25) -> 0 | AL20: =IF(AK20=0,0,(AK20*((LOG(AK20))/LOG(2)))) -> 0 | AN20: =N20 -> 12212 | AO20: =COUNTIF(L69:L84,AN20) -> 0 | AP20: =AO20/(AQ4-AO25) -> 0 | AQ20: =IF(AP20=0,0,(AP20*((LOG(AP20))/LOG(2)))) -> 0 | AS20: =N20 -> 12212 | AT20: =COUNTIF(L85:L99,AS20) -> 0 | AU20: =AT20/(AV4-AT25) -> 0 | AV20: =IF(AU20=0,0,(AU20*((LOG(AU20))/LOG(2)))) -> 0
A21: 12 | B21: 2567 | C21: 13 | D21: 2576 | E21: 13 | F21: 2585 | G21: 23 | H21: 2597 | I21: 24 | J21: 2608 | K21: 0 | L21: 11122 | N21: 12221 | O21: =COUNTIF($L$7:$L$500,N21) -> 3 | P21: =O21/$Q$4 -> 0.03225806452 | Q21: =IF(P21=0,0,(P21*((LOG(P21))/LOG(2)))) -> -0.1598127842 | T21: =N21 -> 12221 | U21: =COUNTIF(L7:L22,T21) -> 0 | V21: =U21/(W4-U25) -> 0 | W21: =IF(V21=0,0,(V21*((LOG(V21))/LOG(2)))) -> 0 | Y21: =N21 -> 12221 | Z21: =COUNTIF(L23:L37,Y21) -> 1 | AA21: =Z21/(AB4-Z25) -> 0.06666666667 | AB21: =IF(AA21=0,0,(AA21*((LOG(AA21))/LOG(2)))) -> -0.260459373 | AD21: =N21 -> 12221 | AE21: =COUNTIF(L38:L53,AD21) -> 2 | AF21: =AE21/(AG4-AE25) -> 0.125 | AG21: =IF(AF21=0,0,(AF21*((LOG(AF21))/LOG(2)))) -> -0.375 | AI21: =N21 -> 12221 | AJ21: =COUNTIF(L54:L68,AI21) -> 0 | AK21: =AJ21/(AL4-AJ25) -> 0 | AL21: =IF(AK21=0,0,(AK21*((LOG(AK21))/LOG(2)))) -> 0 | AN21: =N21 -> 12221 | AO21: =COUNTIF(L69:L84,AN21) -> 0 | AP21: =AO21/(AQ4-AO25) -> 0 | AQ21: =IF(AP21=0,0,(AP21*((LOG(AP21))/LOG(2)))) -> 0 | AS21: =N21 -> 12221 | AT21: =COUNTIF(L85:L99,AS21) -> 0 | AU21: =AT21/(AV4-AT25) -> 0 | AV21: =IF(AU21=0,0,(AU21*((LOG(AU21))/LOG(2)))) -> 0
A22: 12 | B22: 2887 | C22: 24 | D22: 2901 | E22: 13 | F22: 2926 | G22: 23 | H22: 2938 | I22: 24 | J22: 2950 | K22: 0 | L22: 12122 | N22: 12222 | O22: =COUNTIF($L$7:$L$500,N22) -> 1 | P22: =O22/$Q$4 -> 0.01075268817 | Q22: =IF(P22=0,0,(P22*((LOG(P22))/LOG(2)))) -> -0.0703135356 | T22: =N22 -> 12222 | U22: =COUNTIF(L7:L22,T22) -> 0 | V22: =U22/(W4-U25) -> 0 | W22: =IF(V22=0,0,(V22*((LOG(V22))/LOG(2)))) -> 0 | Y22: =N22 -> 12222 | Z22: =COUNTIF(L23:L37,Y22) -> 0 | AA22: =Z22/(AB4-Z25) -> 0 | AB22: =IF(AA22=0,0,(AA22*((LOG(AA22))/LOG(2)))) -> 0 | AD22: =N22 -> 12222 | AE22: =COUNTIF(L38:L53,AD22) -> 0 | AF22: =AE22/(AG4-AE25) -> 0 | AG22: =IF(AF22=0,0,(AF22*((LOG(AF22))/LOG(2)))) -> 0 | AI22: =N22 -> 12222 | AJ22: =COUNTIF(L54:L68,AI22) -> 1 | AK22: =AJ22/(AL4-AJ25) -> 0.06666666667 | AL22: =IF(AK22=0,0,(AK22*((LOG(AK22))/LOG(2)))) -> -0.260459373 | AN22: =N22 -> 12222 | AO22: =COUNTIF(L69:L84,AN22) -> 0 | AP22: =AO22/(AQ4-AO25) -> 0 | AQ22: =IF(AP22=0,0,(AP22*((LOG(AP22))/LOG(2)))) -> 0 | AS22: =N22 -> 12222 | AT22: =COUNTIF(L85:L99,AS22) -> 0 | AU22: =AT22/(AV4-AT25) -> 0 | AV22: =IF(AU22=0,0,(AU22*((LOG(AU22))/LOG(2)))) -> 0
A23: 12 | B23: 3088 | C23: 13 | D23: 3098 | E23: 13 | F23: 3110 | G23: 14 | H23: 3122 | I23: 13 | J23: 3134 | K23: 0 | L23: 11111 | N23: 21111 | O23: =COUNTIF($L$7:$L$500,N23) -> 2 | P23: =O23/$Q$4 -> 0.02150537634 | Q23: =IF(P23=0,0,(P23*((LOG(P23))/LOG(2)))) -> -0.1191216949 | T23: =N23 -> 21111 | U23: =COUNTIF(L7:L22,T23) -> 0 | V23: =U23/(W4-U25) -> 0 | W23: =IF(V23=0,0,(V23*((LOG(V23))/LOG(2)))) -> 0 | Y23: =N23 -> 21111 | Z23: =COUNTIF(L23:L37,Y23) -> 0 | AA23: =Z23/(AB4-Z25) -> 0 | AB23: =IF(AA23=0,0,(AA23*((LOG(AA23))/LOG(2)))) -> 0 | AD23: =N23 -> 21111 | AE23: =COUNTIF(L38:L53,AD23) -> 0 | AF23: =AE23/(AG4-AE25) -> 0 | AG23: =IF(AF23=0,0,(AF23*((LOG(AF23))/LOG(2)))) -> 0 | AI23: =N23 -> 21111 | AJ23: =COUNTIF(L54:L68,AI23) -> 0 | AK23: =AJ23/(AL4-AJ25) -> 0 | AL23: =IF(AK23=0,0,(AK23*((LOG(AK23))/LOG(2)))) -> 0 | AN23: =N23 -> 21111 | AO23: =COUNTIF(L69:L84,AN23) -> 1 | AP23: =AO23/(AQ4-AO25) -> 0.0625 | AQ23: =IF(AP23=0,0,(AP23*((LOG(AP23))/LOG(2)))) -> -0.25 | AS23: =N23 -> 21111 | AT23: =COUNTIF(L85:L99,AS23) -> 1 | AU23: =AT23/(AV4-AT25) -> 0.07142857143 | AV23: =IF(AU23=0,0,(AU23*((LOG(AU23))/LOG(2)))) -> -0.271953923
A24: 12 | B24: 3314 | C24: 13 | D24: 3326 | E24: 13 | F24: 3451 | G24: 23 | H24: 3464 | I24: 24 | J24: 3477 | K24: 0 | L24: 11122 | N24: 21112 | O24: =COUNTIF($L$7:$L$500,N24) -> 1 | P24: =O24/$Q$4 -> 0.01075268817 | Q24: =IF(P24=0,0,(P24*((LOG(P24))/LOG(2)))) -> -0.0703135356 | T24: =N24 -> 21112 | U24: =COUNTIF(L7:L22,T24) -> 0 | V24: =U24/(W4-U25) -> 0 | W24: =IF(V24=0,0,(V24*((LOG(V24))/LOG(2)))) -> 0 | Y24: =N24 -> 21112 | Z24: =COUNTIF(L23:L37,Y24) -> 0 | AA24: =Z24/(AB4-Z25) -> 0 | AB24: =IF(AA24=0,0,(AA24*((LOG(AA24))/LOG(2)))) -> 0 | AD24: =N24 -> 21112 | AE24: =COUNTIF(L38:L53,AD24) -> 0 | AF24: =AE24/(AG4-AE25) -> 0 | AG24: =IF(AF24=0,0,(AF24*((LOG(AF24))/LOG(2)))) -> 0 | AI24: =N24 -> 21112 | AJ24: =COUNTIF(L54:L68,AI24) -> 0 | AK24: =AJ24/(AL4-AJ25) -> 0 | AL24: =IF(AK24=0,0,(AK24*((LOG(AK24))/LOG(2)))) -> 0 | AN24: =N24 -> 21112 | AO24: =COUNTIF(L69:L84,AN24) -> 1 | AP24: =AO24/(AQ4-AO25) -> 0.0625 | AQ24: =IF(AP24=0,0,(AP24*((LOG(AP24))/LOG(2)))) -> -0.25 | AS24: =N24 -> 21112 | AT24: =COUNTIF(L85:L99,AS24) -> 0 | AU24: =AT24/(AV4-AT25) -> 0 | AV24: =IF(AU24=0,0,(AU24*((LOG(AU24))/LOG(2)))) -> 0
A25: 12 | B25: 3578 | C25: 13 | D25: 3612 | E25: 13 | F25: 3625 | G25: 23 | H25: 3639 | I25: 24 | J25: 3655 | K25: 0 | L25: 11122 | N25: 21121 | O25: =COUNTIF($L$7:$L$500,N25) -> 1 | P25: =O25/$Q$4 -> 0.01075268817 | Q25: =IF(P25=0,0,(P25*((LOG(P25))/LOG(2)))) -> -0.0703135356 | T25: =N25 -> 21121 | U25: =COUNTIF(L7:L22,T25) -> 0 | Y25: =N25 -> 21121 | Z25: =COUNTIF(L23:L37,Y25) -> 0 | AD25: =N25 -> 21121 | AE25: =COUNTIF(L38:L53,AD25) -> 0 | AI25: =N25 -> 21121 | AJ25: =COUNTIF(L54:L68,AI25) -> 0 | AN25: =N25 -> 21121 | AO25: =COUNTIF(L69:L84,AN25) -> 0 | AS25: =N25 -> 21121 | AT25: =COUNTIF(L85:L99,AS25) -> 1
A26: 12 | B26: 3757 | C26: 24 | D26: 3775 | E26: 24 | F26: 3784 | G26: 23 | H26: 3796 | I26: 13 | J26: 3832 | K26: 0 | L26: 12221 | N26: 21122 | O26: =COUNTIF($L$7:$L$500,N26) -> 0 | P26: =O26/$Q$4 -> 0 | Q26: =IF(P26=0,0,(P26*((LOG(P26))/LOG(2)))) -> 0 | T26: =N26 -> 21122 | U26: =COUNTIF(L7:L22,T26) -> 0 | V26: =U26/(W4-U25) -> 0 | W26: =IF(V26=0,0,(V26*((LOG(V26))/LOG(2)))) -> 0 | Y26: =N26 -> 21122 | Z26: =COUNTIF(L23:L37,Y26) -> 0 | AA26: =Z26/(AB4-Z25) -> 0 | AB26: =IF(AA26=0,0,(AA26*((LOG(AA26))/LOG(2)))) -> 0 | AD26: =N26 -> 21122 | AE26: =COUNTIF(L38:L53,AD26) -> 0 | AF26: =AE26/(AG4-AE25) -> 0 | AG26: =IF(AF26=0,0,(AF26*((LOG(AF26))/LOG(2)))) -> 0 | AI26: =N26 -> 21122 | AJ26: =COUNTIF(L54:L68,AI26) -> 0 | AK26: =AJ26/(AL4-AJ25) -> 0 | AL26: =IF(AK26=0,0,(AK26*((LOG(AK26))/LOG(2)))) -> 0 | AN26: =N26 -> 21122 | AO26: =COUNTIF(L69:L84,AN26) -> 0 | AP26: =AO26/(AQ4-AO25) -> 0 | AQ26: =IF(AP26=0,0,(AP26*((LOG(AP26))/LOG(2)))) -> 0 | AS26: =N26 -> 21122 | AT26: =COUNTIF(L85:L99,AS26) -> 0 | AU26: =AT26/(AV4-AT25) -> 0 | AV26: =IF(AU26=0,0,(AU26*((LOG(AU26))/LOG(2)))) -> 0
A27: 12 | B27: 3936 | C27: 13 | D27: 3948 | E27: 24 | F27: 3961 | G27: 14 | H27: 3982 | I27: 13 | J27: 3993 | K27: 0 | L27: 11211 | N27: 21211 | O27: =COUNTIF($L$7:$L$500,N27) -> 0 | P27: =O27/$Q$4 -> 0 | Q27: =IF(P27=0,0,(P27*((LOG(P27))/LOG(2)))) -> 0 | T27: =N27 -> 21211 | U27: =COUNTIF(L7:L22,T27) -> 0 | V27: =U27/(W4-U25) -> 0 | W27: =IF(V27=0,0,(V27*((LOG(V27))/LOG(2)))) -> 0 | Y27: =N27 -> 21211 | Z27: =COUNTIF(L23:L37,Y27) -> 0 | AA27: =Z27/(AB4-Z25) -> 0 | AB27: =IF(AA27=0,0,(AA27*((LOG(AA27))/LOG(2)))) -> 0 | AD27: =N27 -> 21211 | AE27: =COUNTIF(L38:L53,AD27) -> 0 | AF27: =AE27/(AG4-AE25) -> 0 | AG27: =IF(AF27=0,0,(AF27*((LOG(AF27))/LOG(2)))) -> 0 | AI27: =N27 -> 21211 | AJ27: =COUNTIF(L54:L68,AI27) -> 0 | AK27: =AJ27/(AL4-AJ25) -> 0 | AL27: =IF(AK27=0,0,(AK27*((LOG(AK27))/LOG(2)))) -> 0 | AN27: =N27 -> 21211 | AO27: =COUNTIF(L69:L84,AN27) -> 0 | AP27: =AO27/(AQ4-AO25) -> 0 | AQ27: =IF(AP27=0,0,(AP27*((LOG(AP27))/LOG(2)))) -> 0 | AS27: =N27 -> 21211 | AT27: =COUNTIF(L85:L99,AS27) -> 0 | AU27: =AT27/(AV4-AT25) -> 0 | AV27: =IF(AU27=0,0,(AU27*((LOG(AU27))/LOG(2)))) -> 0
A28: 12 | B28: 4126 | C28: 13 | D28: 4159 | E28: 24 | F28: 4172 | G28: 23 | H28: 4185 | I28: 13 | J28: 4211 | K28: 0 | L28: 11221 | N28: 21212 | O28: =COUNTIF($L$7:$L$500,N28) -> 0 | P28: =O28/$Q$4 -> 0 | Q28: =IF(P28=0,0,(P28*((LOG(P28))/LOG(2)))) -> 0 | T28: =N28 -> 21212 | U28: =COUNTIF(L7:L22,T28) -> 0 | V28: =U28/(W4-U25) -> 0 | W28: =IF(V28=0,0,(V28*((LOG(V28))/LOG(2)))) -> 0 | Y28: =N28 -> 21212 | Z28: =COUNTIF(L23:L37,Y28) -> 0 | AA28: =Z28/(AB4-Z25) -> 0 | AB28: =IF(AA28=0,0,(AA28*((LOG(AA28))/LOG(2)))) -> 0 | AD28: =N28 -> 21212 | AE28: =COUNTIF(L38:L53,AD28) -> 0 | AF28: =AE28/(AG4-AE25) -> 0 | AG28: =IF(AF28=0,0,(AF28*((LOG(AF28))/LOG(2)))) -> 0 | AI28: =N28 -> 21212 | AJ28: =COUNTIF(L54:L68,AI28) -> 0 | AK28: =AJ28/(AL4-AJ25) -> 0 | AL28: =IF(AK28=0,0,(AK28*((LOG(AK28))/LOG(2)))) -> 0 | AN28: =N28 -> 21212 | AO28: =COUNTIF(L69:L84,AN28) -> 0 | AP28: =AO28/(AQ4-AO25) -> 0 | AQ28: =IF(AP28=0,0,(AP28*((LOG(AP28))/LOG(2)))) -> 0 | AS28: =N28 -> 21212 | AT28: =COUNTIF(L85:L99,AS28) -> 0 | AU28: =AT28/(AV4-AT25) -> 0 | AV28: =IF(AU28=0,0,(AU28*((LOG(AU28))/LOG(2)))) -> 0
A29: 12 | B29: 4333 | C29: 13 | D29: 4348 | E29: 13 | F29: 4364 | G29: 23 | H29: 4385 | I29: 24 | J29: 4394 | K29: 0 | L29: 11122 | N29: 21221 | O29: =COUNTIF($L$7:$L$500,N29) -> 1 | P29: =O29/$Q$4 -> 0.01075268817 | Q29: =IF(P29=0,0,(P29*((LOG(P29))/LOG(2)))) -> -0.0703135356 | T29: =N29 -> 21221 | U29: =COUNTIF(L7:L22,T29) -> 1 | V29: =U29/(W4-U25) -> 0.0625 | W29: =IF(V29=0,0,(V29*((LOG(V29))/LOG(2)))) -> -0.25 | Y29: =N29 -> 21221 | Z29: =COUNTIF(L23:L37,Y29) -> 0 | AA29: =Z29/(AB4-Z25) -> 0 | AB29: =IF(AA29=0,0,(AA29*((LOG(AA29))/LOG(2)))) -> 0 | AD29: =N29 -> 21221 | AE29: =COUNTIF(L38:L53,AD29) -> 0 | AF29: =AE29/(AG4-AE25) -> 0 | AG29: =IF(AF29=0,0,(AF29*((LOG(AF29))/LOG(2)))) -> 0 | AI29: =N29 -> 21221 | AJ29: =COUNTIF(L54:L68,AI29) -> 0 | AK29: =AJ29/(AL4-AJ25) -> 0 | AL29: =IF(AK29=0,0,(AK29*((LOG(AK29))/LOG(2)))) -> 0 | AN29: =N29 -> 21221 | AO29: =COUNTIF(L69:L84,AN29) -> 0 | AP29: =AO29/(AQ4-AO25) -> 0 | AQ29: =IF(AP29=0,0,(AP29*((LOG(AP29))/LOG(2)))) -> 0 | AS29: =N29 -> 21221 | AT29: =COUNTIF(L85:L99,AS29) -> 0 | AU29: =AT29/(AV4-AT25) -> 0 | AV29: =IF(AU29=0,0,(AU29*((LOG(AU29))/LOG(2)))) -> 0
A30: 12 | B30: 4537 | C30: 13 | D30: 4561 | E30: 13 | F30: 4576 | G30: 23 | H30: 4591 | I30: 13 | J30: 4618 | K30: 0 | L30: 11121 | N30: 21222 | O30: =COUNTIF($L$7:$L$500,N30) -> 0 | P30: =O30/$Q$4 -> 0 | Q30: =IF(P30=0,0,(P30*((LOG(P30))/LOG(2)))) -> 0 | T30: =N30 -> 21222 | U30: =COUNTIF(L7:L22,T30) -> 0 | V30: =U30/(W4-U25) -> 0 | W30: =IF(V30=0,0,(V30*((LOG(V30))/LOG(2)))) -> 0 | Y30: =N30 -> 21222 | Z30: =COUNTIF(L23:L37,Y30) -> 0 | AA30: =Z30/(AB4-Z25) -> 0 | AB30: =IF(AA30=0,0,(AA30*((LOG(AA30))/LOG(2)))) -> 0 | AD30: =N30 -> 21222 | AE30: =COUNTIF(L38:L53,AD30) -> 0 | AF30: =AE30/(AG4-AE25) -> 0 | AG30: =IF(AF30=0,0,(AF30*((LOG(AF30))/LOG(2)))) -> 0 | AI30: =N30 -> 21222 | AJ30: =COUNTIF(L54:L68,AI30) -> 0 | AK30: =AJ30/(AL4-AJ25) -> 0 | AL30: =IF(AK30=0,0,(AK30*((LOG(AK30))/LOG(2)))) -> 0 | AN30: =N30 -> 21222 | AO30: =COUNTIF(L69:L84,AN30) -> 0 | AP30: =AO30/(AQ4-AO25) -> 0 | AQ30: =IF(AP30=0,0,(AP30*((LOG(AP30))/LOG(2)))) -> 0 | AS30: =N30 -> 21222 | AT30: =COUNTIF(L85:L99,AS30) -> 0 | AU30: =AT30/(AV4-AT25) -> 0 | AV30: =IF(AU30=0,0,(AU30*((LOG(AU30))/LOG(2)))) -> 0
A31: 12 | B31: 4775 | C31: 13 | D31: 4814 | E31: 24 | F31: 4832 | G31: 23 | H31: 4845 | I31: 24 | J31: 4856 | K31: 0 | L31: 11222 | N31: 22111 | O31: =COUNTIF($L$7:$L$500,N31) -> 0 | P31: =O31/$Q$4 -> 0 | Q31: =IF(P31=0,0,(P31*((LOG(P31))/LOG(2)))) -> 0 | T31: =N31 -> 22111 | U31: =COUNTIF(L7:L22,T31) -> 0 | V31: =U31/(W4-U25) -> 0 | W31: =IF(V31=0,0,(V31*((LOG(V31))/LOG(2)))) -> 0 | Y31: =N31 -> 22111 | Z31: =COUNTIF(L23:L37,Y31) -> 0 | AA31: =Z31/(AB4-Z25) -> 0 | AB31: =IF(AA31=0,0,(AA31*((LOG(AA31))/LOG(2)))) -> 0 | AD31: =N31 -> 22111 | AE31: =COUNTIF(L38:L53,AD31) -> 0 | AF31: =AE31/(AG4-AE25) -> 0 | AG31: =IF(AF31=0,0,(AF31*((LOG(AF31))/LOG(2)))) -> 0 | AI31: =N31 -> 22111 | AJ31: =COUNTIF(L54:L68,AI31) -> 0 | AK31: =AJ31/(AL4-AJ25) -> 0 | AL31: =IF(AK31=0,0,(AK31*((LOG(AK31))/LOG(2)))) -> 0 | AN31: =N31 -> 22111 | AO31: =COUNTIF(L69:L84,AN31) -> 0 | AP31: =AO31/(AQ4-AO25) -> 0 | AQ31: =IF(AP31=0,0,(AP31*((LOG(AP31))/LOG(2)))) -> 0 | AS31: =N31 -> 22111 | AT31: =COUNTIF(L85:L99,AS31) -> 0 | AU31: =AT31/(AV4-AT25) -> 0 | AV31: =IF(AU31=0,0,(AU31*((LOG(AU31))/LOG(2)))) -> 0
A32: 12 | B32: 4976 | C32: 13 | D32: 5006 | E32: 13 | F32: 5018 | G32: 23 | H32: 5031 | I32: 13 | J32: 5055 | K32: 0 | L32: 11121 | N32: 22112 | O32: =COUNTIF($L$7:$L$500,N32) -> 0 | P32: =O32/$Q$4 -> 0 | Q32: =IF(P32=0,0,(P32*((LOG(P32))/LOG(2)))) -> 0 | T32: =N32 -> 22112 | U32: =COUNTIF(L7:L22,T32) -> 0 | V32: =U32/(W4-U25) -> 0 | W32: =IF(V32=0,0,(V32*((LOG(V32))/LOG(2)))) -> 0 | Y32: =N32 -> 22112 | Z32: =COUNTIF(L23:L37,Y32) -> 0 | AA32: =Z32/(AB4-Z25) -> 0 | AB32: =IF(AA32=0,0,(AA32*((LOG(AA32))/LOG(2)))) -> 0 | AD32: =N32 -> 22112 | AE32: =COUNTIF(L38:L53,AD32) -> 0 | AF32: =AE32/(AG4-AE25) -> 0 | AG32: =IF(AF32=0,0,(AF32*((LOG(AF32))/LOG(2)))) -> 0 | AI32: =N32 -> 22112 | AJ32: =COUNTIF(L54:L68,AI32) -> 0 | AK32: =AJ32/(AL4-AJ25) -> 0 | AL32: =IF(AK32=0,0,(AK32*((LOG(AK32))/LOG(2)))) -> 0 | AN32: =N32 -> 22112 | AO32: =COUNTIF(L69:L84,AN32) -> 0 | AP32: =AO32/(AQ4-AO25) -> 0 | AQ32: =IF(AP32=0,0,(AP32*((LOG(AP32))/LOG(2)))) -> 0 | AS32: =N32 -> 22112 | AT32: =COUNTIF(L85:L99,AS32) -> 0 | AU32: =AT32/(AV4-AT25) -> 0 | AV32: =IF(AU32=0,0,(AU32*((LOG(AU32))/LOG(2)))) -> 0
A33: 12 | B33: 5195 | C33: 24 | D33: 5227 | E33: 13 | F33: 5246 | G33: 14 | H33: 5258 | I33: 13 | J33: 5270 | K33: 0 | L33: 12111 | N33: 22121 | O33: =COUNTIF($L$7:$L$500,N33) -> 0 | P33: =O33/$Q$4 -> 0 | Q33: =IF(P33=0,0,(P33*((LOG(P33))/LOG(2)))) -> 0 | T33: =N33 -> 22121 | U33: =COUNTIF(L7:L22,T33) -> 0 | V33: =U33/(W4-U25) -> 0 | W33: =IF(V33=0,0,(V33*((LOG(V33))/LOG(2)))) -> 0 | Y33: =N33 -> 22121 | Z33: =COUNTIF(L23:L37,Y33) -> 0 | AA33: =Z33/(AB4-Z25) -> 0 | AB33: =IF(AA33=0,0,(AA33*((LOG(AA33))/LOG(2)))) -> 0 | AD33: =N33 -> 22121 | AE33: =COUNTIF(L38:L53,AD33) -> 0 | AF33: =AE33/(AG4-AE25) -> 0 | AG33: =IF(AF33=0,0,(AF33*((LOG(AF33))/LOG(2)))) -> 0 | AI33: =N33 -> 22121 | AJ33: =COUNTIF(L54:L68,AI33) -> 0 | AK33: =AJ33/(AL4-AJ25) -> 0 | AL33: =IF(AK33=0,0,(AK33*((LOG(AK33))/LOG(2)))) -> 0 | AN33: =N33 -> 22121 | AO33: =COUNTIF(L69:L84,AN33) -> 0 | AP33: =AO33/(AQ4-AO25) -> 0 | AQ33: =IF(AP33=0,0,(AP33*((LOG(AP33))/LOG(2)))) -> 0 | AS33: =N33 -> 22121 | AT33: =COUNTIF(L85:L99,AS33) -> 0 | AU33: =AT33/(AV4-AT25) -> 0 | AV33: =IF(AU33=0,0,(AU33*((LOG(AU33))/LOG(2)))) -> 0
A34: 12 | B34: 5405 | C34: 13 | D34: 5417 | E34: 13 | F34: 5436 | G34: 23 | H34: 5456 | I34: 13 | J34: 5478 | K34: 0 | L34: 11121 | N34: 22122 | O34: =COUNTIF($L$7:$L$500,N34) -> 1 | P34: =O34/$Q$4 -> 0.01075268817 | Q34: =IF(P34=0,0,(P34*((LOG(P34))/LOG(2)))) -> -0.0703135356 | T34: =N34 -> 22122 | U34: =COUNTIF(L7:L22,T34) -> 1 | V34: =U34/(W4-U25) -> 0.0625 | W34: =IF(V34=0,0,(V34*((LOG(V34))/LOG(2)))) -> -0.25 | Y34: =N34 -> 22122 | Z34: =COUNTIF(L23:L37,Y34) -> 0 | AA34: =Z34/(AB4-Z25) -> 0 | AB34: =IF(AA34=0,0,(AA34*((LOG(AA34))/LOG(2)))) -> 0 | AD34: =N34 -> 22122 | AE34: =COUNTIF(L38:L53,AD34) -> 0 | AF34: =AE34/(AG4-AE25) -> 0 | AG34: =IF(AF34=0,0,(AF34*((LOG(AF34))/LOG(2)))) -> 0 | AI34: =N34 -> 22122 | AJ34: =COUNTIF(L54:L68,AI34) -> 0 | AK34: =AJ34/(AL4-AJ25) -> 0 | AL34: =IF(AK34=0,0,(AK34*((LOG(AK34))/LOG(2)))) -> 0 | AN34: =N34 -> 22122 | AO34: =COUNTIF(L69:L84,AN34) -> 0 | AP34: =AO34/(AQ4-AO25) -> 0 | AQ34: =IF(AP34=0,0,(AP34*((LOG(AP34))/LOG(2)))) -> 0 | AS34: =N34 -> 22122 | AT34: =COUNTIF(L85:L99,AS34) -> 0 | AU34: =AT34/(AV4-AT25) -> 0 | AV34: =IF(AU34=0,0,(AU34*((LOG(AU34))/LOG(2)))) -> 0
A35: 12 | B35: 5693 | C35: 13 | D35: 5760 | E35: 24 | F35: 5772 | G35: 23 | H35: 5788 | I35: 24 | J35: 5800 | K35: 0 | L35: 11222 | N35: 22211 | O35: =COUNTIF($L$7:$L$500,N35) -> 0 | P35: =O35/$Q$4 -> 0 | Q35: =IF(P35=0,0,(P35*((LOG(P35))/LOG(2)))) -> 0 | T35: =N35 -> 22211 | U35: =COUNTIF(L7:L22,T35) -> 0 | V35: =U35/(W4-U25) -> 0 | W35: =IF(V35=0,0,(V35*((LOG(V35))/LOG(2)))) -> 0 | Y35: =N35 -> 22211 | Z35: =COUNTIF(L23:L37,Y35) -> 0 | AA35: =Z35/(AB4-Z25) -> 0 | AB35: =IF(AA35=0,0,(AA35*((LOG(AA35))/LOG(2)))) -> 0 | AD35: =N35 -> 22211 | AE35: =COUNTIF(L38:L53,AD35) -> 0 | AF35: =AE35/(AG4-AE25) -> 0 | AG35: =IF(AF35=0,0,(AF35*((LOG(AF35))/LOG(2)))) -> 0 | AI35: =N35 -> 22211 | AJ35: =COUNTIF(L54:L68,AI35) -> 0 | AK35: =AJ35/(AL4-AJ25) -> 0 | AL35: =IF(AK35=0,0,(AK35*((LOG(AK35))/LOG(2)))) -> 0 | AN35: =N35 -> 22211 | AO35: =COUNTIF(L69:L84,AN35) -> 0 | AP35: =AO35/(AQ4-AO25) -> 0 | AQ35: =IF(AP35=0,0,(AP35*((LOG(AP35))/LOG(2)))) -> 0 | AS35: =N35 -> 22211 | AT35: =COUNTIF(L85:L99,AS35) -> 0 | AU35: =AT35/(AV4-AT25) -> 0 | AV35: =IF(AU35=0,0,(AU35*((LOG(AU35))/LOG(2)))) -> 0
A36: 12 | B36: 5954 | C36: 13 | D36: 5967 | E36: 13 | F36: 5980 | G36: 23 | H36: 5992 | I36: 13 | J36: 6007 | K36: 0 | L36: 11121 | N36: 22212 | O36: =COUNTIF($L$7:$L$500,N36) -> 0 | P36: =O36/$Q$4 -> 0 | Q36: =IF(P36=0,0,(P36*((LOG(P36))/LOG(2)))) -> 0 | T36: =N36 -> 22212 | U36: =COUNTIF(L7:L22,T36) -> 0 | V36: =U36/(W4-U25) -> 0 | W36: =IF(V36=0,0,(V36*((LOG(V36))/LOG(2)))) -> 0 | Y36: =N36 -> 22212 | Z36: =COUNTIF(L23:L37,Y36) -> 0 | AA36: =Z36/(AB4-Z25) -> 0 | AB36: =IF(AA36=0,0,(AA36*((LOG(AA36))/LOG(2)))) -> 0 | AD36: =N36 -> 22212 | AE36: =COUNTIF(L38:L53,AD36) -> 0 | AF36: =AE36/(AG4-AE25) -> 0 | AG36: =IF(AF36=0,0,(AF36*((LOG(AF36))/LOG(2)))) -> 0 | AI36: =N36 -> 22212 | AJ36: =COUNTIF(L54:L68,AI36) -> 0 | AK36: =AJ36/(AL4-AJ25) -> 0 | AL36: =IF(AK36=0,0,(AK36*((LOG(AK36))/LOG(2)))) -> 0 | AN36: =N36 -> 22212 | AO36: =COUNTIF(L69:L84,AN36) -> 0 | AP36: =AO36/(AQ4-AO25) -> 0 | AQ36: =IF(AP36=0,0,(AP36*((LOG(AP36))/LOG(2)))) -> 0 | AS36: =N36 -> 22212 | AT36: =COUNTIF(L85:L99,AS36) -> 0 | AU36: =AT36/(AV4-AT25) -> 0 | AV36: =IF(AU36=0,0,(AU36*((LOG(AU36))/LOG(2)))) -> 0
A37: 12 | B37: 6134 | C37: 13 | D37: 6150 | E37: 13 | F37: 6161 | G37: 23 | H37: 6175 | I37: 24 | J37: 6188 | K37: 0 | L37: 11122 | N37: 22221 | O37: =COUNTIF($L$7:$L$500,N37) -> 0 | P37: =O37/$Q$4 -> 0 | Q37: =IF(P37=0,0,(P37*((LOG(P37))/LOG(2)))) -> 0 | T37: =N37 -> 22221 | U37: =COUNTIF(L7:L22,T37) -> 0 | V37: =U37/(W4-U25) -> 0 | W37: =IF(V37=0,0,(V37*((LOG(V37))/LOG(2)))) -> 0 | Y37: =N37 -> 22221 | Z37: =COUNTIF(L23:L37,Y37) -> 0 | AA37: =Z37/(AB4-Z25) -> 0 | AB37: =IF(AA37=0,0,(AA37*((LOG(AA37))/LOG(2)))) -> 0 | AD37: =N37 -> 22221 | AE37: =COUNTIF(L38:L53,AD37) -> 0 | AF37: =AE37/(AG4-AE25) -> 0 | AG37: =IF(AF37=0,0,(AF37*((LOG(AF37))/LOG(2)))) -> 0 | AI37: =N37 -> 22221 | AJ37: =COUNTIF(L54:L68,AI37) -> 0 | AK37: =AJ37/(AL4-AJ25) -> 0 | AL37: =IF(AK37=0,0,(AK37*((LOG(AK37))/LOG(2)))) -> 0 | AN37: =N37 -> 22221 | AO37: =COUNTIF(L69:L84,AN37) -> 0 | AP37: =AO37/(AQ4-AO25) -> 0 | AQ37: =IF(AP37=0,0,(AP37*((LOG(AP37))/LOG(2)))) -> 0 | AS37: =N37 -> 22221 | AT37: =COUNTIF(L85:L99,AS37) -> 0 | AU37: =AT37/(AV4-AT25) -> 0 | AV37: =IF(AU37=0,0,(AU37*((LOG(AU37))/LOG(2)))) -> 0
A38: 12 | B38: 6354 | C38: 13 | D38: 6375 | E38: 24 | F38: 6387 | G38: 23 | H38: 6395 | I38: 24 | J38: 6407 | K38: 0 | L38: 11222 | N38: 22222 | O38: =COUNTIF($L$7:$L$500,N38) -> 0 | P38: =O38/$Q$4 -> 0 | Q38: =IF(P38=0,0,(P38*((LOG(P38))/LOG(2)))) -> 0 | T38: =N38 -> 22222 | U38: =COUNTIF(L7:L22,T38) -> 0 | V38: =U38/(W4-U25) -> 0 | W38: =IF(V38=0,0,(V38*((LOG(V38))/LOG(2)))) -> 0 | Y38: =N38 -> 22222 | Z38: =COUNTIF(L23:L37,Y38) -> 0 | AA38: =Z38/(AB4-Z25) -> 0 | AB38: =IF(AA38=0,0,(AA38*((LOG(AA38))/LOG(2)))) -> 0 | AD38: =N38 -> 22222 | AE38: =COUNTIF(L38:L53,AD38) -> 0 | AF38: =AE38/(AG4-AE25) -> 0 | AG38: =IF(AF38=0,0,(AF38*((LOG(AF38))/LOG(2)))) -> 0 | AI38: =N38 -> 22222 | AJ38: =COUNTIF(L54:L68,AI38) -> 0 | AK38: =AJ38/(AL4-AJ25) -> 0 | AL38: =IF(AK38=0,0,(AK38*((LOG(AK38))/LOG(2)))) -> 0 | AN38: =N38 -> 22222 | AO38: =COUNTIF(L69:L84,AN38) -> 0 | AP38: =AO38/(AQ4-AO25) -> 0 | AQ38: =IF(AP38=0,0,(AP38*((LOG(AP38))/LOG(2)))) -> 0 | AS38: =N38 -> 22222 | AT38: =COUNTIF(L85:L99,AS38) -> 0 | AU38: =AT38/(AV4-AT25) -> 0 | AV38: =IF(AU38=0,0,(AU38*((LOG(AU38))/LOG(2)))) -> 0
A39: 12 | B39: 6549 | C39: 24 | D39: 6570 | E39: 24 | F39: 6584 | G39: 14 | H39: 6595 | I39: 24 | J39: 6614 | K39: 0 | L39: 12212 | P39: =SUM(P7:P38) -> 1 | Q39: =-SUM(Q7:Q38) -> 3.690147329 | V39: =SUM(V7:V38) -> 1 | W39: =-SUM(W7:W38) -> 3.25 | AA39: =SUM(AA7:AA38) -> 1 | AB39: =-SUM(AB7:AB38) -> 2.706890596 | AF39: =SUM(AF7:AF38) -> 1 | AG39: =-SUM(AG7:AG38) -> 2.577819531 | AK39: =SUM(AK7:AK38) -> 1 | AL39: =-SUM(AL7:AL38) -> 2.732914564 | AP39: =SUM(AP7:AP38) -> 1 | AQ39: =-SUM(AQ7:AQ38) -> 2.577819531 | AU39: =SUM(AU7:AU38) -> 1 | AV39: =-SUM(AV7:AV38) -> 2.788450457
A40: 12 | B40: 6776 | C40: 13 | D40: 6785 | E40: 13 | F40: 6797 | G40: 23 | H40: 6827 | I40: 24 | J40: 6849 | K40: 0 | L40: 11122 | P40: U= | Q40: =Q39/(LOG(Q4)/LOG(2)) -> 0.5643152944 | V40: U1= | W40: =W39/(LOG(W4)/LOG(2)) -> 0.8125 | AA40: U2= | AB40: =AB39/(LOG(AB4)/LOG(2)) -> 0.6928503702 | AF40: U3= | AG40: =AG39/(LOG(AG4)/LOG(2)) -> 0.6444548828 | AK40: U4= | AL40: =AL39/(LOG(AL4)/LOG(2)) -> 0.6995114138 | AP40: U5= | AQ40: =AQ39/(LOG(AQ4)/LOG(2)) -> 0.6444548828 | AU40: U6= | AV40: =AV39/(LOG(AV4)/LOG(2)) -> 0.7137262713
A41: 12 | B41: 7021 | C41: 13 | D41: 7041 | E41: 24 | F41: 7054 | G41: 23 | H41: 7076 | I41: 13 | J41: 7096 | K41: 0 | L41: 11221
A42: 12 | B42: 7275 | C42: 13 | D42: 7288 | E42: 24 | F42: 7300 | G42: 23 | H42: 7310 | I42: 24 | J42: 7322 | K42: 0 | L42: 11222
A43: 12 | B43: 7584 | C43: 13 | D43: 7596 | E43: 24 | F43: 7613 | G43: 23 | H43: 7624 | I43: 13 | J43: 7642 | K43: 0 | L43: 11221 | N43: Total Target Seq
A44: 12 | B44: 7787 | C44: 13 | D44: 7802 | E44: 24 | F44: 7816 | G44: 23 | H44: 7836 | I44: 13 | J44: 7851 | K44: 0 | L44: 11221 | N44: =COUNTIF(L7:L99,G3) -> 1 | P44: 16 | Q44: 15 | R44: 16 | S44: 15 | T44: 16 | U44: 15
A45: 12 | B45: 7965 | C45: 13 | D45: 7985 | E45: 24 | F45: 8000 | G45: 23 | H45: 8012 | I45: 24 | J45: 8025 | K45: 0 | L45: 11222 | P45: % of reinforcement given in 6 equal intervals based on number of trials
A46: 12 | B46: 8210 | C46: 13 | D46: 8224 | E46: 24 | F46: 8239 | G46: 14 | H46: 8257 | I46: 24 | J46: 8272 | K46: 0 | L46: 11212 | P46: %_1 | Q46: %_2 | R46: %_3 | S46: %_4 | T46: %_5 | U46: %_6
A47: 12 | B47: 8633 | C47: 13 | D47: 8646 | E47: 13 | F47: 8663 | G47: 14 | H47: 8680 | I47: 24 | J47: 8699 | K47: 0 | L47: 11112 | O47: target sequence | P47: =$G$3 -> 21121 | Q47: =$G$3 -> 21121 | R47: =$G$3 -> 21121 | S47: =$G$3 -> 21121 | T47: =$G$3 -> 21121 | U47: =$G$3 -> 21121
A48: 12 | B48: 8829 | C48: 13 | D48: 8860 | E48: 24 | F48: 8876 | G48: 23 | H48: 8888 | I48: 13 | J48: 8900 | K48: 0 | L48: 11221 | O48: total reinforcement | P48: =U25 -> 0 | Q48: =Z25 -> 0 | R48: =AE25 -> 0 | S48: =AJ25 -> 0 | T48: =AO25 -> 0 | U48: =AT25 -> 1
A49: 12 | B49: 9225 | C49: 24 | D49: 9244 | E49: 24 | F49: 9263 | G49: 23 | H49: 9273 | I49: 13 | J49: 9297 | K49: 0 | L49: 12221 | O49: % target
A50: 12 | B50: 9425 | C50: 13 | D50: 9438 | E50: 13 | F50: 9450 | G50: 23 | H50: 9468 | I50: 24 | J50: 9479 | K50: 0 | L50: 11122 | O50: CCRF
A51: 12 | B51: 9611 | C51: 13 | D51: 9627 | E51: 13 | F51: 9641 | G51: 23 | H51: 9656 | I51: 24 | J51: 9670 | K51: 0 | L51: 11122 | O51: % CCRf
A52: 12 | B52: 9806 | C52: 13 | D52: 9823 | E52: 24 | F52: 9836 | G52: 23 | H52: 9844 | I52: 24 | J52: 9853 | K52: 0 | L52: 11222 | O52: average response rate | P52: =J22/P44 -> 184.375 | Q52: =(J37-J22)/Q44 -> 215.8666667 | R52: =(J53-J37)/R44 -> 241.8125 | S52: =(J68-J53)/S44 -> 239.2 | T52: =(J84-J68)/T44 -> 247.375 | U52: =(J99-J84)/U44 -> 417.9333333
A53: 12 | B53: 9993 | C53: 24 | D53: 10015 | E53: 24 | F53: 10024 | G53: 23 | H53: 10037 | I53: 13 | J53: 10057 | K53: 0 | L53: 12221
A54: 12 | B54: 10284 | C54: 13 | D54: 10303 | E54: 13 | F54: 10317 | G54: 23 | H54: 10329 | I54: 24 | J54: 10337 | K54: 0 | L54: 11122
A55: 12 | B55: 10460 | C55: 24 | D55: 10494 | E55: 24 | F55: 10503 | G55: 23 | H55: 10512 | I55: 24 | J55: 10527 | K55: 0 | L55: 12222
A56: 12 | B56: 10653 | C56: 13 | D56: 10680 | E56: 13 | F56: 10693 | G56: 23 | H56: 10706 | I56: 24 | J56: 10717 | K56: 0 | L56: 11122
A57: 12 | B57: 10822 | C57: 13 | D57: 10837 | E57: 13 | F57: 10854 | G57: 23 | H57: 10868 | I57: 24 | J57: 10876 | K57: 0 | L57: 11122
A58: 12 | B58: 11008 | C58: 13 | D58: 11025 | E58: 13 | F58: 11040 | G58: 23 | H58: 11053 | I58: 24 | J58: 11061 | K58: 0 | L58: 11122
A59: 12 | B59: 11444 | C59: 13 | D59: 11464 | E59: 24 | F59: 11485 | G59: 23 | H59: 11501 | I59: 24 | J59: 11513 | K59: 0 | L59: 11222
A60: 12 | B60: 11645 | C60: 13 | D60: 11664 | E60: 24 | F60: 11686 | G60: 23 | H60: 11698 | I60: 13 | J60: 11716 | K60: 0 | L60: 11221
A61: 12 | B61: 11958 | C61: 24 | D61: 11976 | E61: 13 | F61: 11992 | G61: 23 | H61: 12013 | I61: 24 | J61: 12022 | K61: 0 | L61: 12122
A62: 12 | B62: 12170 | C62: 13 | D62: 12190 | E62: 13 | F62: 12205 | G62: 23 | H62: 12231 | I62: 13 | J62: 12245 | K62: 0 | L62: 11121
A63: 12 | B63: 12491 | C63: 13 | D63: 12505 | E63: 24 | F63: 12519 | G63: 23 | H63: 12528 | I63: 24 | J63: 12541 | K63: 0 | L63: 11222
A64: 12 | B64: 12683 | C64: 13 | D64: 12705 | E64: 13 | F64: 12719 | G64: 23 | H64: 12733 | I64: 24 | J64: 12742 | K64: 0 | L64: 11122
A65: 12 | B65: 12860 | C65: 13 | D65: 12869 | E65: 24 | F65: 12888 | G65: 23 | H65: 12900 | I65: 13 | J65: 12913 | K65: 0 | L65: 11221
A66: 12 | B66: 13198 | C66: 13 | D66: 13217 | E66: 24 | F66: 13253 | G66: 14 | H66: 13273 | I66: 24 | J66: 13292 | K66: 0 | L66: 11212
A67: 12 | B67: 13414 | C67: 13 | D67: 13423 | E67: 13 | F67: 13432 | G67: 14 | H67: 13450 | I67: 24 | J67: 13463 | K67: 0 | L67: 11112
A68: 12 | B68: 13596 | C68: 13 | D68: 13605 | E68: 13 | F68: 13619 | G68: 14 | H68: 13630 | I68: 24 | J68: 13645 | K68: 0 | L68: 11112
A69: 12 | B69: 13819 | C69: 13 | D69: 13829 | E69: 13 | F69: 13842 | G69: 14 | H69: 13854 | I69: 24 | J69: 13870 | K69: 0 | L69: 11112
A70: 12 | B70: 14006 | C70: 13 | D70: 14020 | E70: 13 | F70: 14029 | G70: 14 | H70: 14040 | I70: 24 | J70: 14061 | K70: 0 | L70: 11112
A71: 12 | B71: 14178 | C71: 13 | D71: 14186 | E71: 13 | F71: 14197 | G71: 14 | H71: 14210 | I71: 13 | J71: 14223 | K71: 0 | L71: 11111
A72: 12 | B72: 14369 | C72: 13 | D72: 14378 | E72: 13 | F72: 14389 | G72: 14 | H72: 14401 | I72: 13 | J72: 14409 | K72: 0 | L72: 11111
A73: 12 | B73: 14550 | C73: 13 | D73: 14557 | E73: 13 | F73: 14566 | G73: 14 | H73: 14582 | I73: 13 | J73: 14592 | K73: 0 | L73: 11111
A74: 12 | B74: 14943 | C74: 13 | D74: 14955 | E74: 13 | F74: 14968 | G74: 23 | H74: 14991 | I74: 24 | J74: 15000 | K74: 0 | L74: 11122
A75: 12 | B75: 15122 | C75: 13 | D75: 15132 | E75: 13 | F75: 15140 | G75: 14 | H75: 15153 | I75: 13 | J75: 15166 | K75: 0 | L75: 11111
A76: 12 | B76: 15298 | C76: 13 | D76: 15309 | E76: 13 | F76: 15322 | G76: 23 | H76: 15340 | I76: 13 | J76: 15358 | K76: 0 | L76: 11121
A77: 21 | B77: 15507 | C77: 11 | D77: 15520 | E77: 11 | F77: 15533 | G77: 12 | H77: 15546 | I77: 13 | J77: 15563 | K77: 0 | L77: 21111
A78: 12 | B78: 15705 | C78: 13 | D78: 15717 | E78: 24 | F78: 15783 | G78: 23 | H78: 15798 | I78: 24 | J78: 15806 | K78: 0 | L78: 11222
A79: 12 | B79: 15977 | C79: 13 | D79: 15987 | E79: 13 | F79: 15995 | G79: 23 | H79: 16008 | I79: 24 | J79: 16025 | K79: 0 | L79: 11122
A80: 21 | B80: 16269 | C80: 11 | D80: 16279 | E80: 11 | F80: 16289 | G80: 12 | H80: 16297 | I80: 24 | J80: 16325 | K80: 0 | L80: 21112
A81: 12 | B81: 16637 | C81: 13 | D81: 16659 | E81: 13 | F81: 16674 | G81: 14 | H81: 16683 | I81: 24 | J81: 16698 | K81: 0 | L81: 11112
A82: 12 | B82: 17033 | C82: 13 | D82: 17049 | E82: 13 | F82: 17060 | G82: 23 | H82: 17077 | I82: 24 | J82: 17085 | K82: 0 | L82: 11122
A83: 12 | B83: 17243 | C83: 13 | D83: 17251 | E83: 13 | F83: 17264 | G83: 23 | H83: 17288 | I83: 24 | J83: 17308 | K83: 0 | L83: 11122
A84: 12 | B84: 17544 | C84: 13 | D84: 17558 | E84: 24 | F84: 17571 | G84: 23 | H84: 17592 | I84: 24 | J84: 17603 | K84: 0 | L84: 11222
A85: 12 | B85: 17730 | C85: 13 | D85: 17739 | E85: 13 | F85: 17751 | G85: 23 | H85: 17776 | I85: 24 | J85: 17786 | K85: 0 | L85: 11122
A86: 12 | B86: 18302 | C86: 13 | D86: 18318 | E86: 13 | F86: 18336 | G86: 14 | H86: 18348 | I86: 24 | J86: 18362 | K86: 0 | L86: 11112
A87: 12 | B87: 18771 | C87: 13 | D87: 18784 | E87: 24 | F87: 18799 | G87: 23 | H87: 18808 | I87: 24 | J87: 18819 | K87: 0 | L87: 11222
A88: 12 | B88: 18931 | C88: 13 | D88: 18939 | E88: 13 | F88: 18946 | G88: 14 | H88: 18959 | I88: 13 | J88: 18967 | K88: 0 | L88: 11111
A89: 12 | B89: 19099 | C89: 13 | D89: 19118 | E89: 13 | F89: 19133 | G89: 23 | H89: 19146 | I89: 24 | J89: 19154 | K89: 0 | L89: 11122
A90: 21 | B90: 19609 | C90: 11 | D90: 19638 | E90: 11 | F90: 19666 | G90: 12 | H90: 19674 | I90: 13 | J90: 19685 | K90: 0 | L90: 21111
A91: 12 | B91: 20209 | C91: 13 | D91: 20225 | E91: 24 | F91: 20243 | G91: 23 | H91: 20254 | I91: 24 | J91: 20269 | K91: 0 | L91: 11222
A92: 12 | B92: 20432 | C92: 13 | D92: 20443 | E92: 13 | F92: 20466 | G92: 23 | H92: 20483 | I92: 24 | J92: 20492 | K92: 0 | L92: 11122
A93: 12 | B93: 20696 | C93: 13 | D93: 20711 | E93: 24 | F93: 20724 | G93: 23 | H93: 20733 | I93: 24 | J93: 20739 | K93: 0 | L93: 11222
A94: 12 | B94: 21239 | C94: 13 | D94: 21254 | E94: 24 | F94: 21274 | G94: 23 | H94: 21289 | I94: 13 | J94: 21304 | K94: 0 | L94: 11221
A95: 12 | B95: 22863 | C95: 13 | D95: 22877 | E95: 13 | F95: 22893 | G95: 14 | H95: 22914 | I95: 13 | J95: 22922 | K95: 0 | L95: 11111
A96: 21 | B96: 23140 | C96: 11 | D96: 23156 | E96: 11 | F96: 23170 | G96: 21 | H96: 23185 | I96: 11 | J96: 23200 | K96: 1 | L96: 21121
A97: 12 | B97: 23385 | C97: 13 | D97: 23409 | E97: 13 | F97: 23424 | G97: 14 | H97: 23432 | I97: 13 | J97: 23448 | K97: 0 | L97: 11111
A98: 12 | B98: 23558 | C98: 13 | D98: 23569 | E98: 13 | F98: 23621 | G98: 23 | H98: 23638 | I98: 13 | J98: 23649 | K98: 0 | L98: 11121
A99: 12 | B99: 23787 | C99: 13 | D99: 23820 | E99: 24 | F99: 23842 | G99: 14 | H99: 23855 | I99: 24 | J99: 23872 | K99: 0 | L99: 11212

Sheet !MA01740.010
A1: Report for:!MA01740.010
A2: Date: | B2: <date>
A3: Hen: | B3: <hen> | F3: Correct Sequence | G3: =Start!J2 -> 21121 | P3: Total Sequences in Data | Q3: =4994-COUNTBLANK(L7:L5000) -> 96 | V3: Total Sequences in Block Data | W3: =COUNTA(L7:L22) -> 16 | AA3: Total Sequences in Block Data | AB3: =COUNTA(L23:L38) -> 16 | AF3: Total Sequences in Block Data | AG3: =COUNTA(L39:L54) -> 16 | AK3: Total Sequences in Block Data | AL3: =COUNTA(L55:L70) -> 16 | AP3: Total Sequences in Block Data | AQ3: =COUNTA(L71:L86) -> 16 | AU3: Total Sequences in Block Data | AV3: =COUNTA(L87:L102) -> 16
P4: Total Sequences in Summary | Q4: =SUM(O7:O38) -> 96 | V4: Total Sequences in Block Summary | W4: =SUM(U7:U38) -> 16 | AA4: Total Sequences in Block Summary | AB4: =SUM(Z7:Z38) -> 16 | AF4: Total Sequences in Block Summary | AG4: =SUM(AE7:AE38) -> 16 | AK4: Total Sequences in Block Summary | AL4: =SUM(AJ7:AJ38) -> 16 | AP4: Total Sequences in Block Summary | AQ4: =SUM(AO7:AO38) -> 16 | AU4: Total Sequences in Block Summary | AV4: =SUM(AT7:AT38) -> 16
T5: Block 1 | Y5: Block 2 | AD5: Block 3 | AI5: Block 4 | AN5: Block 5 | AS5: Block 6
A6: Sequence Component 1 | B6: Time 1 | C6: Sequence Component 2 | D6: Time 2 | E6: Sequence Component 3 | F6: Time 3 | G6: Sequence Component 4 | H6: Time 4 | I6: Sequence Component 5 | J6: Time 5 | K6: Correct? 0=No 1=Yes | L6: Sequence | N6: Frequency | P6: Relative Frequency | Q6: Variability | T6: Frequency | V6: Relative Frequency | W6: Variability | Y6: Frequency | AA6: Relative Frequency | AB6: Variability | AD6: Frequency | AF6: Relative Frequency | AG6: Variability | AI6: Frequency | AK6: Relative Frequency | AL6: Variability | AN6: Frequency | AP6: Relative Frequency | AQ6: Variability | AS6: Frequency | AU6: Relative Frequency | AV6: Variability
A7: 12 | B7: 10 | C7: 24 | D7: 26 | E7: 24 | F7: 44 | G7: 23 | H7: 57 | I7: 24 | J7: 97 | K7: 0 | L7: 12222 | N7: 11111 | O7: =COUNTIF($L$7:$L$500,N7) -> 33 | P7: =O7/$Q$4 -> 0.34375 | Q7: =IF(P7=0,0,(P7*((LOG(P7))/LOG(2)))) -> -0.5295703811 | T7: =N7 -> 11111 | U7: =COUNTIF(L7:L22,T7) -> 1 | V7: =U7/(W4-U25) -> 0.0625 | W7: =IF(V7=0,0,(V7*((LOG(V7))/LOG(2)))) -> -0.25 | Y7: =N7 -> 11111 | Z7: =COUNTIF(L23:L38,Y7) -> 2 | AA7: =Z7/(AB4-Z25) -> 0.125 | AB7: =IF(AA7=0,0,(AA7*((LOG(AA7))/LOG(2)))) -> -0.375 | AD7: =N7 -> 11111 | AE7: =COUNTIF(L39:L54,AD7) -> 13 | AF7: =AE7/(AG4-AE25) -> 0.8125 | AG7: =IF(AF7=0,0,(AF7*((LOG(AF7))/LOG(2)))) -> -0.243392729 | AI7: =N7 -> 11111 | AJ7: =COUNTIF(L55:L70,AI7) -> 6 | AK7: =AJ7/(AL4-AJ25) -> 0.4 | AL7: =IF(AK7=0,0,(AK7*((LOG(AK7))/LOG(2)))) -> -0.528771238 | AN7: =N7 -> 11111 | AO7: =COUNTIF(L71:L86,AN7) -> 7 | AP7: =AO7/(AQ4-AO25) -> 0.4375 | AQ7: =IF(AP7=0,0,(AP7*((LOG(AP7))/LOG(2)))) -> -0.5217822216 | AS7: =N7 -> 11111 | AT7: =COUNTIF(L87:L102,AS7) -> 4 | AU7: =AT7/(AV4-AT25) -> 0.25 | AV7: =IF(AU7=0,0,(AU7*((LOG(AU7))/LOG(2)))) -> -0.5
A8: 12 | B8: 204 | C8: 24 | D8: 225 | E8: 24 | F8: 238 | G8: 14 | H8: 254 | I8: 24 | J8: 271 | K8: 0 | L8: 12212 | N8: 11112 | O8: =COUNTIF($L$7:$L$500,N8) -> 7 | P8: =O8/$Q$4 -> 0.07291666667 | Q8: =IF(P8=0,0,(P8*((LOG(P8))/LOG(2)))) -> -0.2754505526 | T8: =N8 -> 11112 | U8: =COUNTIF(L7:L22,T8) -> 0 | V8: =U8/(W4-U25) -> 0 | W8: =IF(V8=0,0,(V8*((LOG(V8))/LOG(2)))) -> 0 | Y8: =N8 -> 11112 | Z8: =COUNTIF(L23:L38,Y8) -> 0 | AA8: =Z8/(AB4-Z25) -> 0 | AB8: =IF(AA8=0,0,(AA8*((LOG(AA8))/LOG(2)))) -> 0 | AD8: =N8 -> 11112 | AE8: =COUNTIF(L39:L54,AD8) -> 0 | AF8: =AE8/(AG4-AE25) -> 0 | AG8: =IF(AF8=0,0,(AF8*((LOG(AF8))/LOG(2)))) -> 0 | AI8: =N8 -> 11112 | AJ8: =COUNTIF(L55:L70,AI8) -> 1 | AK8: =AJ8/(AL4-AJ25) -> 0.06666666667 | AL8: =IF(AK8=0,0,(AK8*((LOG(AK8))/LOG(2)))) -> -0.260459373 | AN8: =N8 -> 11112 | AO8: =COUNTIF(L71:L86,AN8) -> 1 | AP8: =AO8/(AQ4-AO25) -> 0.0625 | AQ8: =IF(AP8=0,0,(AP8*((LOG(AP8))/LOG(2)))) -> -0.25 | AS8: =N8 -> 11112 | AT8: =COUNTIF(L87:L102,AS8) -> 5 | AU8: =AT8/(AV4-AT25) -> 0.3125 | AV8: =IF(AU8=0,0,(AU8*((LOG(AU8))/LOG(2)))) -> -0.5243974703
A9: 12 | B9: 377 | C9: 24 | D9: 389 | E9: 24 | F9: 398 | G9: 14 | H9: 413 | I9: 13 | J9: 451 | K9: 0 | L9: 12211 | N9: 11121 | O9: =COUNTIF($L$7:$L$500,N9) -> 9 | P9: =O9/$Q$4 -> 0.09375 | Q9: =IF(P9=0,0,(P9*((LOG(P9))/LOG(2)))) -> -0.3201597656 | T9: =N9 -> 11121 | U9: =COUNTIF(L7:L22,T9) -> 0 | V9: =U9/(W4-U25) -> 0 | W9: =IF(V9=0,0,(V9*((LOG(V9))/LOG(2)))) -> 0 | Y9: =N9 -> 11121 | Z9: =COUNTIF(L23:L38,Y9) -> 1 | AA9: =Z9/(AB4-Z25) -> 0.0625 | AB9: =IF(AA9=0,0,(AA9*((LOG(AA9))/LOG(2)))) -> -0.25 | AD9: =N9 -> 11121 | AE9: =COUNTIF(L39:L54,AD9) -> 0 | AF9: =AE9/(AG4-AE25) -> 0 | AG9: =IF(AF9=0,0,(AF9*((LOG(AF9))/LOG(2)))) -> 0 | AI9: =N9 -> 11121 | AJ9: =COUNTIF(L55:L70,AI9) -> 1 | AK9: =AJ9/(AL4-AJ25) -> 0.06666666667 | AL9: =IF(AK9=0,0,(AK9*((LOG(AK9))/LOG(2)))) -> -0.260459373 | AN9: =N9 -> 11121 | AO9: =COUNTIF(L71:L86,AN9) -> 4 | AP9: =AO9/(AQ4-AO25) -> 0.25 | AQ9: =IF(AP9=0,0,(AP9*((LOG(AP9))/LOG(2)))) -> -0.5 | AS9: =N9 -> 11121 | AT9: =COUNTIF(L87:L102,AS9) -> 3 | AU9: =AT9/(AV4-AT25) -> 0.1875 | AV9: =IF(AU9=0,0,(AU9*((LOG(AU9))/LOG(2)))) -> -0.4528195311
A10: 12 | B10: 560 | C10: 24 | D10: 573 | E10: 24 | F10: 584 | G10: 23 | H10: 595 | I10: 13 | J10: 623 | K10: 0 | L10: 12221 | N10: 11122 | O10: =COUNTIF($L$7:$L$500,N10) -> 4 | P10: =O10/$Q$4 -> 0.04166666667 | Q10: =IF(P10=0,0,(P10*((LOG(P10))/LOG(2)))) -> -0.1910401042 | T10: =N10 -> 11122 | U10: =COUNTIF(L7:L22,T10) -> 0 | V10: =U10/(W4-U25) -> 0 | W10: =IF(V10=0,0,(V10*((LOG(V10))/LOG(2)))) -> 0 | Y10: =N10 -> 11122 | Z10: =COUNTIF(L23:L38,Y10) -> 3 | AA10: =Z10/(AB4-Z25) -> 0.1875 | AB10: =IF(AA10=0,0,(AA10*((LOG(AA10))/LOG(2)))) -> -0.4528195311 | AD10: =N10 -> 11122 | AE10: =COUNTIF(L39:L54,AD10) -> 0 | AF10: =AE10/(AG4-AE25) -> 0 | AG10: =IF(AF10=0,0,(AF10*((LOG(AF10))/LOG(2)))) -> 0 | AI10: =N10 -> 11122 | AJ10: =COUNTIF(L55:L70,AI10) -> 0 | AK10: =AJ10/(AL4-AJ25) -> 0 | AL10: =IF(AK10=0,0,(AK10*((LOG(AK10))/LOG(2)))) -> 0 | AN10: =N10 -> 11122 | AO10: =COUNTIF(L71:L86,AN10) -> 1 | AP10: =AO10/(AQ4-AO25) -> 0.0625 | AQ10: =IF(AP10=0,0,(AP10*((LOG(AP10))/LOG(2)))) -> -0.25 | AS10: =N10 -> 11122 | AT10: =COUNTIF(L87:L102,AS10) -> 0 | AU10: =AT10/(AV4-AT25) -> 0 | AV10: =IF(AU10=0,0,(AU10*((LOG(AU10))/LOG(2)))) -> 0
A11: 12 | B11: 746 | C11: 24 | D11: 759 | E11: 24 | F11: 781 | G11: 14 | H11: 806 | I11: 24 | J11: 825 | K11: 0 | L11: 12212 | N11: 11211 | O11: =COUNTIF($L$7:$L$500,N11) -> 10 | P11: =O11/$Q$4 -> 0.1041666667 | Q11: =IF(P11=0,0,(P11*((LOG(P11))/LOG(2)))) -> -0.3398994173 | T11: =N11 -> 11211 | U11: =COUNTIF(L7:L22,T11) -> 1 | V11: =U11/(W4-U25) -> 0.0625 | W11: =IF(V11=0,0,(V11*((LOG(V11))/LOG(2)))) -> -0.25 | Y11: =N11 -> 11211 | Z11: =COUNTIF(L23:L38,Y11) -> 3 | AA11: =Z11/(AB4-Z25) -> 0.1875 | AB11: =IF(AA11=0,0,(AA11*((LOG(AA11))/LOG(2)))) -> -0.4528195311 | AD11: =N11 -> 11211 | AE11: =COUNTIF(L39:L54,AD11) -> 1 | AF11: =AE11/(AG4-AE25) -> 0.0625 | AG11: =IF(AF11=0,0,(AF11*((LOG(AF11))/LOG(2)))) -> -0.25 | AI11: =N11 -> 11211 | AJ11: =COUNTIF(L55:L70,AI11) -> 1 | AK11: =AJ11/(AL4-AJ25) -> 0.06666666667 | AL11: =IF(AK11=0,0,(AK11*((LOG(AK11))/LOG(2)))) -> -0.260459373 | AN11: =N11 -> 11211 | AO11: =COUNTIF(L71:L86,AN11) -> 3 | AP11: =AO11/(AQ4-AO25) -> 0.1875 | AQ11: =IF(AP11=0,0,(AP11*((LOG(AP11))/LOG(2)))) -> -0.4528195311 | AS11: =N11 -> 11211 | AT11: =COUNTIF(L87:L102,AS11) -> 1 | AU11: =AT11/(AV4-AT25) -> 0.0625 | AV11: =IF(AU11=0,0,(AU11*((LOG(AU11))/LOG(2)))) -> -0.25
A12: 12 | B12: 946 | C12: 24 | D12: 960 | E12: 24 | F12: 974 | G12: 14 | H12: 984 | I12: 13 | J12: 997 | K12: 0 | L12: 12211 | N12: 11212 | O12: =COUNTIF($L$7:$L$500,N12) -> 7 | P12: =O12/$Q$4 -> 0.07291666667 | Q12: =IF(P12=0,0,(P12*((LOG(P12))/LOG(2)))) -> -0.2754505526 | T12: =N12 -> 11212 | U12: =COUNTIF(L7:L22,T12) -> 0 | V12: =U12/(W4-U25) -> 0 | W12: =IF(V12=0,0,(V12*((LOG(V12))/LOG(2)))) -> 0 | Y12: =N12 -> 11212 | Z12: =COUNTIF(L23:L38,Y12) -> 1 | AA12: =Z12/(AB4-Z25) -> 0.0625 | AB12: =IF(AA12=0,0,(AA12*((LOG(AA12))/LOG(2)))) -> -0.25 | AD12: =N12 -> 11212 | AE12: =COUNTIF(L39:L54,AD12) -> 1 | AF12: =AE12/(AG4-AE25) -> 0.0625 | AG12: =IF(AF12=0,0,(AF12*((LOG(AF12))/LOG(2)))) -> -0.25 | AI12: =N12 -> 11212 | AJ12: =COUNTIF(L55:L70,AI12) -> 4 | AK12: =AJ12/(AL4-AJ25) -> 0.2666666667 | AL12: =IF(AK12=0,0,(AK12*((LOG(AK12))/LOG(2)))) -> -0.5085041588 | AN12: =N12 -> 11212 | AO12: =COUNTIF(L71:L86,AN12) -> 0 | AP12: =AO12/(AQ4-AO25) -> 0 | AQ12: =IF(AP12=0,0,(AP12*((LOG(AP12))/LOG(2)))) -> 0 | AS12: =N12 -> 11212 | AT12: =COUNTIF(L87:L102,AS12) -> 1 | AU12: =AT12/(AV4-AT25) -> 0.0625 | AV12: =IF(AU12=0,0,(AU12*((LOG(AU12))/LOG(2)))) -> -0.25
A13: 12 | B13: 1209 | C13: 24 | D13: 1222 | E13: 13 | F13: 1238 | G13: 23 | H13: 1252 | I13: 13 | J13: 1267 | K13: 0 | L13: 12121 | N13: 11221 | O13: =COUNTIF($L$7:$L$500,N13) -> 6 | P13: =O13/$Q$4 -> 0.0625 | Q13: =IF(P13=0,0,(P13*((LOG(P13))/LOG(2)))) -> -0.25 | T13: =N13 -> 11221 | U13: =COUNTIF(L7:L22,T13) -> 2 | V13: =U13/(W4-U25) -> 0.125 | W13: =IF(V13=0,0,(V13*((LOG(V13))/LOG(2)))) -> -0.375 | Y13: =N13 -> 11221 | Z13: =COUNTIF(L23:L38,Y13) -> 4 | AA13: =Z13/(AB4-Z25) -> 0.25 | AB13: =IF(AA13=0,0,(AA13*((LOG(AA13))/LOG(2)))) -> -0.5 | AD13: =N13 -> 11221 | AE13: =COUNTIF(L39:L54,AD13) -> 0 | AF13: =AE13/(AG4-AE25) -> 0 | AG13: =IF(AF13=0,0,(AF13*((LOG(AF13))/LOG(2)))) -> 0 | AI13: =N13 -> 11221 | AJ13: =COUNTIF(L55:L70,AI13) -> 0 | AK13: =AJ13/(AL4-AJ25) -> 0 | AL13: =IF(AK13=0,0,(AK13*((LOG(AK13))/LOG(2)))) -> 0 | AN13: =N13 -> 11221 | AO13: =COUNTIF(L71:L86,AN13) -> 0 | AP13: =AO13/(AQ4-AO25) -> 0 | AQ13: =IF(AP13=0,0,(AP13*((LOG(AP13))/LOG(2)))) -> 0 | AS13: =N13 -> 11221 | AT13: =COUNTIF(L87:L102,AS13) -> 0 | AU13: =AT13/(AV4-AT25) -> 0 | AV13: =IF(AU13=0,0,(AU13*((LOG(AU13))/LOG(2)))) -> 0
A14: 21 | B14: 1455 | C14: 11 | D14: 1467 | E14: 22 | F14: 1480 | G14: 23 | H14: 1488 | I14: 13 | J14: 1508 | K14: 0 | L14: 21221 | N14: 11222 | O14: =COUNTIF($L$7:$L$500,N14) -> 1 | P14: =O14/$Q$4 -> 0.01041666667 | Q14: =IF(P14=0,0,(P14*((LOG(P14))/LOG(2)))) -> -0.06859335938 | T14: =N14 -> 11222 | U14: =COUNTIF(L7:L22,T14) -> 1 | V14: =U14/(W4-U25) -> 0.0625 | W14: =IF(V14=0,0,(V14*((LOG(V14))/LOG(2)))) -> -0.25 | Y14: =N14 -> 11222 | Z14: =COUNTIF(L23:L38,Y14) -> 0 | AA14: =Z14/(AB4-Z25) -> 0 | AB14: =IF(AA14=0,0,(AA14*((LOG(AA14))/LOG(2)))) -> 0 | AD14: =N14 -> 11222 | AE14: =COUNTIF(L39:L54,AD14) -> 0 | AF14: =AE14/(AG4-AE25) -> 0 | AG14: =IF(AF14=0,0,(AF14*((LOG(AF14))/LOG(2)))) -> 0 | AI14: =N14 -> 11222 | AJ14: =COUNTIF(L55:L70,AI14) -> 0 | AK14: =AJ14/(AL4-AJ25) -> 0 | AL14: =IF(AK14=0,0,(AK14*((LOG(AK14))/LOG(2)))) -> 0 | AN14: =N14 -> 11222 | AO14: =COUNTIF(L71:L86,AN14) -> 0 | AP14: =AO14/(AQ4-AO25) -> 0 | AQ14: =IF(AP14=0,0,(AP14*((LOG(AP14))/LOG(2)))) -> 0 | AS14: =N14 -> 11222 | AT14: =COUNTIF(L87:L102,AS14) -> 0 | AU14: =AT14/(AV4-AT25) -> 0 | AV14: =IF(AU14=0,0,(AU14*((LOG(AU14))/LOG(2)))) -> 0
A15: 12 | B15: 1726 | C15: 24 | D15: 1742 | E15: 24 | F15: 1751 | G15: 14 | H15: 1764 | I15: 13 | J15: 1776 | K15: 0 | L15: 12211 | N15: 12111 | O15: =COUNTIF($L$7:$L$500,N15) -> 2 | P15: =O15/$Q$4 -> 0.02083333333 | Q15: =IF(P15=0,0,(P15*((LOG(P15))/LOG(2)))) -> -0.1163533854 | T15: =N15 -> 12111 | U15: =COUNTIF(L7:L22,T15) -> 0 | V15: =U15/(W4-U25) -> 0 | W15: =IF(V15=0,0,(V15*((LOG(V15))/LOG(2)))) -> 0 | Y15: =N15 -> 12111 | Z15: =COUNTIF(L23:L38,Y15) -> 1 | AA15: =Z15/(AB4-Z25) -> 0.0625 | AB15: =IF(AA15=0,0,(AA15*((LOG(AA15))/LOG(2)))) -> -0.25 | AD15: =N15 -> 12111 | AE15: =COUNTIF(L39:L54,AD15) -> 0 | AF15: =AE15/(AG4-AE25) -> 0 | AG15: =IF(AF15=0,0,(AF15*((LOG(AF15))/LOG(2)))) -> 0 | AI15: =N15 -> 12111 | AJ15: =COUNTIF(L55:L70,AI15) -> 1 | AK15: =AJ15/(AL4-AJ25) -> 0.06666666667 | AL15: =IF(AK15=0,0,(AK15*((LOG(AK15))/LOG(2)))) -> -0.260459373 | AN15: =N15 -> 12111 | AO15: =COUNTIF(L71:L86,AN15) -> 0 | AP15: =AO15/(AQ4-AO25) -> 0 | AQ15: =IF(AP15=0,0,(AP15*((LOG(AP15))/LOG(2)))) -> 0 | AS15: =N15 -> 12111 | AT15: =COUNTIF(L87:L102,AS15) -> 0 | AU15: =AT15/(AV4-AT25) -> 0 | AV15: =IF(AU15=0,0,(AU15*((LOG(AU15))/LOG(2)))) -> 0
A16: 12 | B16: 1944 | C16: 13 | D16: 1958 | E16: 13 | F16: 1971 | G16: 14 | H16: 1988 | I16: 13 | J16: 2000 | K16: 0 | L16: 11111 | N16: 12112 | O16: =COUNTIF($L$7:$L$500,N16) -> 0 | P16: =O16/$Q$4 -> 0 | Q16: =IF(P16=0,0,(P16*((LOG(P16))/LOG(2)))) -> 0 | T16: =N16 -> 12112 | U16: =COUNTIF(L7:L22,T16) -> 0 | V16: =U16/(W4-U25) -> 0 | W16: =IF(V16=0,0,(V16*((LOG(V16))/LOG(2)))) -> 0 | Y16: =N16 -> 12112 | Z16: =COUNTIF(L23:L38,Y16) -> 0 | AA16: =Z16/(AB4-Z25) -> 0 | AB16: =IF(AA16=0,0,(AA16*((LOG(AA16))/LOG(2)))) -> 0 | AD16: =N16 -> 12112 | AE16: =COUNTIF(L39:L54,AD16) -> 0 | AF16: =AE16/(AG4-AE25) -> 0 | AG16: =IF(AF16=0,0,(AF16*((LOG(AF16))/LOG(2)))) -> 0 | AI16: =N16 -> 12112 | AJ16: =COUNTIF(L55:L70,AI16) -> 0 | AK16: =AJ16/(AL4-AJ25) -> 0 | AL16: =IF(AK16=0,0,(AK16*((LOG(AK16))/LOG(2)))) -> 0 | AN16: =N16 -> 12112 | AO16: =COUNTIF(L71:L86,AN16) -> 0 | AP16: =AO16/(AQ4-AO25) -> 0 | AQ16: =IF(AP16=0,0,(AP16*((LOG(AP16))/LOG(2)))) -> 0 | AS16: =N16 -> 12112 | AT16: =COUNTIF(L87:L102,AS16) -> 0 | AU16: =AT16/(AV4-AT25) -> 0 | AV16: =IF(AU16=0,0,(AU16*((LOG(AU16))/LOG(2)))) -> 0
A17: 12 | B17: 2147 | C17: 13 | D17: 2163 | E17: 24 | F17: 2184 | G17: 14 | H17: 2203 | I17: 13 | J17: 2215 | K17: 0 | L17: 11211 | N17: 12121 | O17: =COUNTIF($L$7:$L$500,N17) -> 3 | P17: =O17/$Q$4 -> 0.03125 | Q17: =IF(P17=0,0,(P17*((LOG(P17))/LOG(2)))) -> -0.15625 | T17: =N17 -> 12121 | U17: =COUNTIF(L7:L22,T17) -> 1 | V17: =U17/(W4-U25) -> 0.0625 | W17: =IF(V17=0,0,(V17*((LOG(V17))/LOG(2)))) -> -0.25 | Y17: =N17 -> 12121 | Z17: =COUNTIF(L23:L38,Y17) -> 0 | AA17: =Z17/(AB4-Z25) -> 0 | AB17: =IF(AA17=0,0,(AA17*((LOG(AA17))/LOG(2)))) -> 0 | AD17: =N17 -> 12121 | AE17: =COUNTIF(L39:L54,AD17) -> 0 | AF17: =AE17/(AG4-AE25) -> 0 | AG17: =IF(AF17=0,0,(AF17*((LOG(AF17))/LOG(2)))) -> 0 | AI17: =N17 -> 12121 | AJ17: =COUNTIF(L55:L70,AI17) -> 1 | AK17: =AJ17/(AL4-AJ25) -> 0.06666666667 | AL17: =IF(AK17=0,0,(AK17*((LOG(AK17))/LOG(2)))) -> -0.260459373 | AN17: =N17 -> 12121 | AO17: =COUNTIF(L71:L86,AN17) -> 0 | AP17: =AO17/(AQ4-AO25) -> 0 | AQ17: =IF(AP17=0,0,(AP17*((LOG(AP17))/LOG(2)))) -> 0 | AS17: =N17 -> 12121 | AT17: =COUNTIF(L87:L102,AS17) -> 1 | AU17: =AT17/(AV4-AT25) -> 0.0625 | AV17: =IF(AU17=0,0,(AU17*((LOG(AU17))/LOG(2)))) -> -0.25
A18: 12 | B18: 2560 | C18: 24 | D18: 2580 | E18: 24 | F18: 2600 | G18: 14 | H18: 2616 | I18: 24 | J18: 2635 | K18: 0 | L18: 12212 | N18: 12122 | O18: =COUNTIF($L$7:$L$500,N18) -> 1 | P18: =O18/$Q$4 -> 0.01041666667 | Q18: =IF(P18=0,0,(P18*((LOG(P18))/LOG(2)))) -> -0.06859335938 | T18: =N18 -> 12122 | U18: =COUNTIF(L7:L22,T18) -> 0 | V18: =U18/(W4-U25) -> 0 | W18: =IF(V18=0,0,(V18*((LOG(V18))/LOG(2)))) -> 0 | Y18: =N18 -> 12122 | Z18: =COUNTIF(L23:L38,Y18) -> 0 | AA18: =Z18/(AB4-Z25) -> 0 | AB18: =IF(AA18=0,0,(AA18*((LOG(AA18))/LOG(2)))) -> 0 | AD18: =N18 -> 12122 | AE18: =COUNTIF(L39:L54,AD18) -> 0 | AF18: =AE18/(AG4-AE25) -> 0 | AG18: =IF(AF18=0,0,(AF18*((LOG(AF18))/LOG(2)))) -> 0 | AI18: =N18 -> 12122 | AJ18: =COUNTIF(L55:L70,AI18) -> 0 | AK18: =AJ18/(AL4-AJ25) -> 0 | AL18: =IF(AK18=0,0,(AK18*((LOG(AK18))/LOG(2)))) -> 0 | AN18: =N18 -> 12122 | AO18: =COUNTIF(L71:L86,AN18) -> 0 | AP18: =AO18/(AQ4-AO25) -> 0 | AQ18: =IF(AP18=0,0,(AP18*((LOG(AP18))/LOG(2)))) -> 0 | AS18: =N18 -> 12122 | AT18: =COUNTIF(L87:L102,AS18) -> 1 | AU18: =AT18/(AV4-AT25) -> 0.0625 | AV18: =IF(AU18=0,0,(AU18*((LOG(AU18))/LOG(2)))) -> -0.25
A19: 12 | B19: 2936 | C19: 13 | D19: 2952 | E19: 24 | F19: 2968 | G19: 23 | H19: 2983 | I19: 24 | J19: 2993 | K19: 0 | L19: 11222 | N19: 12211 | O19: =COUNTIF($L$7:$L$500,N19) -> 3 | P19: =O19/$Q$4 -> 0.03125 | Q19: =IF(P19=0,0,(P19*((LOG(P19))/LOG(2)))) -> -0.15625 | T19: =N19 -> 12211 | U19: =COUNTIF(L7:L22,T19) -> 3 | V19: =U19/(W4-U25) -> 0.1875 | W19: =IF(V19=0,0,(V19*((LOG(V19))/LOG(2)))) -> -0.4528195311 | Y19: =N19 -> 12211 | Z19: =COUNTIF(L23:L38,Y19) -> 0 | AA19: =Z19/(AB4-Z25) -> 0 | AB19: =IF(AA19=0,0,(AA19*((LOG(AA19))/LOG(2)))) -> 0 | AD19: =N19 -> 12211 | AE19: =COUNTIF(L39:L54,AD19) -> 0 | AF19: =AE19/(AG4-AE25) -> 0 | AG19: =IF(AF19=0,0,(AF19*((LOG(AF19))/LOG(2)))) -> 0 | AI19: =N19 -> 12211 | AJ19: =COUNTIF(L55:L70,AI19) -> 0 | AK19: =AJ19/(AL4-AJ25) -> 0 | AL19: =IF(AK19=0,0,(AK19*((LOG(AK19))/LOG(2)))) -> 0 | AN19: =N19 -> 12211 | AO19: =COUNTIF(L71:L86,AN19) -> 0 | AP19: =AO19/(AQ4-AO25) -> 0 | AQ19: =IF(AP19=0,0,(AP19*((LOG(AP19))/LOG(2)))) -> 0 | AS19: =N19 -> 12211 | AT19: =COUNTIF(L87:L102,AS19) -> 0 | AU19: =AT19/(AV4-AT25) -> 0 | AV19: =IF(AU19=0,0,(AU19*((LOG(AU19))/LOG(2)))) -> 0
A20: 21 | B20: 3225 | C20: 11 | D20: 3236 | E20: 11 | F20: 3262 | G20: 12 | H20: 3274 | I20: 24 | J20: 3288 | K20: 0 | L20: 21112 | N20: 12212 | O20: =COUNTIF($L$7:$L$500,N20) -> 3 | P20: =O20/$Q$4 -> 0.03125 | Q20: =IF(P20=0,0,(P20*((LOG(P20))/LOG(2)))) -> -0.15625 | T20: =N20 -> 12212 | U20: =COUNTIF(L7:L22,T20) -> 3 | V20: =U20/(W4-U25) -> 0.1875 | W20: =IF(V20=0,0,(V20*((LOG(V20))/LOG(2)))) -> -0.4528195311 | Y20: =N20 -> 12212 | Z20: =COUNTIF(L23:L38,Y20) -> 0 | AA20: =Z20/(AB4-Z25) -> 0 | AB20: =IF(AA20=0,0,(AA20*((LOG(AA20))/LOG(2)))) -> 0 | AD20: =N20 -> 12212 | AE20: =COUNTIF(L39:L54,AD20) -> 0 | AF20: =AE20/(AG4-AE25) -> 0 | AG20: =IF(AF20=0,0,(AF20*((LOG(AF20))/LOG(2)))) -> 0 | AI20: =N20 -> 12212 | AJ20: =COUNTIF(L55:L70,AI20) -> 0 | AK20: =AJ20/(AL4-AJ25) -> 0 | AL20: =IF(AK20=0,0,(AK20*((LOG(AK20))/LOG(2)))) -> 0 | AN20: =N20 -> 12212 | AO20: =COUNTIF(L71:L86,AN20) -> 0 | AP20: =AO20/(AQ4-AO25) -> 0 | AQ20: =IF(AP20=0,0,(AP20*((LOG(AP20))/LOG(2)))) -> 0 | AS20: =N20 -> 12212 | AT20: =COUNTIF(L87:L102,AS20) -> 0 | AU20: =AT20/(AV4-AT25) -> 0 | AV20: =IF(AU20=0,0,(AU20*((LOG(AU20))/LOG(2)))) -> 0
A21: 12 | B21: 3454 | C21: 13 | D21: 3467 | E21: 24 | F21: 3481 | G21: 23 | H21: 3489 | I21: 13 | J21: 3503 | K21: 0 | L21: 11221 | N21: 12221 | O21: =COUNTIF($L$7:$L$500,N21) -> 1 | P21: =O21/$Q$4 -> 0.01041666667 | Q21: =IF(P21=0,0,(P21*((LOG(P21))/LOG(2)))) -> -0.06859335938 | T21: =N21 -> 12221 | U21: =COUNTIF(L7:L22,T21) -> 1 | V21: =U21/(W4-U25) -> 0.0625 | W21: =IF(V21=0,0,(V21*((LOG(V21))/LOG(2)))) -> -0.25 | Y21: =N21 -> 12221 | Z21: =COUNTIF(L23:L38,Y21) -> 0 | AA21: =Z21/(AB4-Z25) -> 0 | AB21: =IF(AA21=0,0,(AA21*((LOG(AA21))/LOG(2)))) -> 0 | AD21: =N21 -> 12221 | AE21: =COUNTIF(L39:L54,AD21) -> 0 | AF21: =AE21/(AG4-AE25) -> 0 | AG21: =IF(AF21=0,0,(AF21*((LOG(AF21))/LOG(2)))) -> 0 | AI21: =N21 -> 12221 | AJ21: =COUNTIF(L55:L70,AI21) -> 0 | AK21: =AJ21/(AL4-AJ25) -> 0 | AL21: =IF(AK21=0,0,(AK21*((LOG(AK21))/LOG(2)))) -> 0 | AN21: =N21 -> 12221 | AO21: =COUNTIF(L71:L86,AN21) -> 0 | AP21: =AO21/(AQ4-AO25) -> 0 | AQ21: =IF(AP21=0,0,(AP21*((LOG(AP21))/LOG(2)))) -> 0 | AS21: =N21 -> 12221 | AT21: =COUNTIF(L87:L102,AS21) -> 0 | AU21: =AT21/(AV4-AT25) -> 0 | AV21: =IF(AU21=0,0,(AU21*((LOG(AU21))/LOG(2)))) -> 0
A22: 12 | B22: 3708 | C22: 13 | D22: 3722 | E22: 24 | F22: 3735 | G22: 23 | H22: 3744 | I22: 13 | J22: 3760 | K22: 0 | L22: 11221 | N22: 12222 | O22: =COUNTIF($L$7:$L$500,N22) -> 1 | P22: =O22/$Q$4 -> 0.01041666667 | Q22: =IF(P22=0,0,(P22*((LOG(P22))/LOG(2)))) -> -0.06859335938 | T22: =N22 -> 12222 | U22: =COUNTIF(L7:L22,T22) -> 1 | V22: =U22/(W4-U25) -> 0.0625 | W22: =IF(V22=0,0,(V22*((LOG(V22))/LOG(2)))) -> -0.25 | Y22: =N22 -> 12222 | Z22: =COUNTIF(L23:L38,Y22) -> 0 | AA22: =Z22/(AB4-Z25) -> 0 | AB22: =IF(AA22=0,0,(AA22*((LOG(AA22))/LOG(2)))) -> 0 | AD22: =N22 -> 12222 | AE22: =COUNTIF(L39:L54,AD22) -> 0 | AF22: =AE22/(AG4-AE25) -> 0 | AG22: =IF(AF22=0,0,(AF22*((LOG(AF22))/LOG(2)))) -> 0 | AI22: =N22 -> 12222 | AJ22: =COUNTIF(L55:L70,AI22) -> 0 | AK22: =AJ22/(AL4-AJ25) -> 0 | AL22: =IF(AK22=0,0,(AK22*((LOG(AK22))/LOG(2)))) -> 0 | AN22: =N22 -> 12222 | AO22: =COUNTIF(L71:L86,AN22) -> 0 | AP22: =AO22/(AQ4-AO25) -> 0 | AQ22: =IF(AP22=0,0,(AP22*((LOG(AP22))/LOG(2)))) -> 0 | AS22: =N22 -> 12222 | AT22: =COUNTIF(L87:L102,AS22) -> 0 | AU22: =AT22/(AV4-AT25) -> 0 | AV22: =IF(AU22=0,0,(AU22*((LOG(AU22))/LOG(2)))) -> 0
A23: 12 | B23: 3880 | C23: 13 | D23: 3912 | E23: 13 | F23: 3925 | G23: 23 | H23: 3941 | I23: 24 | J23: 3949 | K23: 0 | L23: 11122 | N23: 21111 | O23: =COUNTIF($L$7:$L$500,N23) -> 1 | P23: =O23/$Q$4 -> 0.01041666667 | Q23: =IF(P23=0,0,(P23*((LOG(P23))/LOG(2)))) -> -0.06859335938 | T23: =N23 -> 21111 | U23: =COUNTIF(L7:L22,T23) -> 0 | V23: =U23/(W4-U25) -> 0 | W23: =IF(V23=0,0,(V23*((LOG(V23))/LOG(2)))) -> 0 | Y23: =N23 -> 21111 | Z23: =COUNTIF(L23:L38,Y23) -> 0 | AA23: =Z23/(AB4-Z25) -> 0 | AB23: =IF(AA23=0,0,(AA23*((LOG(AA23))/LOG(2)))) -> 0 | AD23: =N23 -> 21111 | AE23: =COUNTIF(L39:L54,AD23) -> 1 | AF23: =AE23/(AG4-AE25) -> 0.0625 | AG23: =IF(AF23=0,0,(AF23*((LOG(AF23))/LOG(2)))) -> -0.25 | AI23: =N23 -> 21111 | AJ23: =COUNTIF(L55:L70,AI23) -> 0 | AK23: =AJ23/(AL4-AJ25) -> 0 | AL23: =IF(AK23=0,0,(AK23*((LOG(AK23))/LOG(2)))) -> 0 | AN23: =N23 -> 21111 | AO23: =COUNTIF(L71:L86,AN23) -> 0 | AP23: =AO23/(AQ4-AO25) -> 0 | AQ23: =IF(AP23=0,0,(AP23*((LOG(AP23))/LOG(2)))) -> 0 | AS23: =N23 -> 21111 | AT23: =COUNTIF(L87:L102,AS23) -> 0 | AU23: =AT23/(AV4-AT25) -> 0 | AV23: =IF(AU23=0,0,(AU23*((LOG(AU23))/LOG(2)))) -> 0
A24: 12 | B24: 4158 | C24: 13 | D24: 4181 | E24: 13 | F24: 4199 | G24: 23 | H24: 4215 | I24: 24 | J24: 4229 | K24: 0 | L24: 11122 | N24: 21112 | O24: =COUNTIF($L$7:$L$500,N24) -> 1 | P24: =O24/$Q$4 -> 0.01041666667 | Q24: =IF(P24=0,0,(P24*((LOG(P24))/LOG(2)))) -> -0.06859335938 | T24: =N24 -> 21112 | U24: =COUNTIF(L7:L22,T24) -> 1 | V24: =U24/(W4-U25) -> 0.0625 | W24: =IF(V24=0,0,(V24*((LOG(V24))/LOG(2)))) -> -0.25 | Y24: =N24 -> 21112 | Z24: =COUNTIF(L23:L38,Y24) -> 0 | AA24: =Z24/(AB4-Z25) -> 0 | AB24: =IF(AA24=0,0,(AA24*((LOG(AA24))/LOG(2)))) -> 0 | AD24: =N24 -> 21112 | AE24: =COUNTIF(L39:L54,AD24) -> 0 | AF24: =AE24/(AG4-AE25) -> 0 | AG24: =IF(AF24=0,0,(AF24*((LOG(AF24))/LOG(2)))) -> 0 | AI24: =N24 -> 21112 | AJ24: =COUNTIF(L55:L70,AI24) -> 0 | AK24: =AJ24/(AL4-AJ25) -> 0 | AL24: =IF(AK24=0,0,(AK24*((LOG(AK24))/LOG(2)))) -> 0 | AN24: =N24 -> 21112 | AO24: =COUNTIF(L71:L86,AN24) -> 0 | AP24: =AO24/(AQ4-AO25) -> 0 | AQ24: =IF(AP24=0,0,(AP24*((LOG(AP24))/LOG(2)))) -> 0 | AS24: =N24 -> 21112 | AT24: =COUNTIF(L87:L102,AS24) -> 0 | AU24: =AT24/(AV4-AT25) -> 0 | AV24: =IF(AU24=0,0,(AU24*((LOG(AU24))/LOG(2)))) -> 0
A25: 12 | B25: 4390 | C25: 13 | D25: 4411 | E25: 24 | F25: 4425 | G25: 23 | H25: 4433 | I25: 13 | J25: 4471 | K25: 0 | L25: 11221 | N25: 21121 | O25: =COUNTIF($L$7:$L$500,N25) -> 1 | P25: =O25/$Q$4 -> 0.01041666667 | Q25: =IF(P25=0,0,(P25*((LOG(P25))/LOG(2)))) -> -0.06859335938 | T25: =N25 -> 21121 | U25: =COUNTIF(L7:L22,T25) -> 0 | Y25: =N25 -> 21121 | Z25: =COUNTIF(L23:L38,Y25) -> 0 | AD25: =N25 -> 21121 | AE25: =COUNTIF(L39:L54,AD25) -> 0 | AI25: =N25 -> 21121 | AJ25: =COUNTIF(L55:L70,AI25) -> 1 | AN25: =N25 -> 21121 | AO25: =COUNTIF(L71:L86,AN25) -> 0 | AS25: =N25 -> 21121 | AT25: =COUNTIF(L87:L102,AS25) -> 0
A26: 21 | B26: 4668 | C26: 11 | D26: 4683 | E26: 11 | F26: 4703 | G26: 21 | H26: 4718 | I26: 22 | J26: 4725 | K26: 0 | L26: 21122 | N26: 21122 | O26: =COUNTIF($L$7:$L$500,N26) -> 1 | P26: =O26/$Q$4 -> 0.01041666667 | Q26: =IF(P26=0,0,(P26*((LOG(P26))/LOG(2)))) -> -0.06859335938 | T26: =N26 -> 21122 | U26: =COUNTIF(L7:L22,T26) -> 0 | V26: =U26/(W4-U25) -> 0 | W26: =IF(V26=0,0,(V26*((LOG(V26))/LOG(2)))) -> 0 | Y26: =N26 -> 21122 | Z26: =COUNTIF(L23:L38,Y26) -> 1 | AA26: =Z26/(AB4-Z25) -> 0.0625 | AB26: =IF(AA26=0,0,(AA26*((LOG(AA26))/LOG(2)))) -> -0.25 | AD26: =N26 -> 21122 | AE26: =COUNTIF(L39:L54,AD26) -> 0 | AF26: =AE26/(AG4-AE25) -> 0 | AG26: =IF(AF26=0,0,(AF26*((LOG(AF26))/LOG(2)))) -> 0 | AI26: =N26 -> 21122 | AJ26: =COUNTIF(L55:L70,AI26) -> 0 | AK26: =AJ26/(AL4-AJ25) -> 0 | AL26: =IF(AK26=0,0,(AK26*((LOG(AK26))/LOG(2)))) -> 0 | AN26: =N26 -> 21122 | AO26: =COUNTIF(L71:L86,AN26) -> 0 | AP26: =AO26/(AQ4-AO25) -> 0 | AQ26: =IF(AP26=0,0,(AP26*((LOG(AP26))/LOG(2)))) -> 0 | AS26: =N26 -> 21122 | AT26: =COUNTIF(L87:L102,AS26) -> 0 | AU26: =AT26/(AV4-AT25) -> 0 | AV26: =IF(AU26=0,0,(AU26*((LOG(AU26))/LOG(2)))) -> 0
A27: 12 | B27: 4982 | C27: 13 | D27: 4996 | E27: 13 | F27: 5011 | G27: 23 | H27: 5034 | I27: 24 | J27: 5043 | K27: 0 | L27: 11122 | N27: 21211 | O27: =COUNTIF($L$7:$L$500,N27) -> 0 | P27: =O27/$Q$4 -> 0 | Q27: =IF(P27=0,0,(P27*((LOG(P27))/LOG(2)))) -> 0 | T27: =N27 -> 21211 | U27: =COUNTIF(L7:L22,T27) -> 0 | V27: =U27/(W4-U25) -> 0 | W27: =IF(V27=0,0,(V27*((LOG(V27))/LOG(2)))) -> 0 | Y27: =N27 -> 21211 | Z27: =COUNTIF(L23:L38,Y27) -> 0 | AA27: =Z27/(AB4-Z25) -> 0 | AB27: =IF(AA27=0,0,(AA27*((LOG(AA27))/LOG(2)))) -> 0 | AD27: =N27 -> 21211 | AE27: =COUNTIF(L39:L54,AD27) -> 0 | AF27: =AE27/(AG4-AE25) -> 0 | AG27: =IF(AF27=0,0,(AF27*((LOG(AF27))/LOG(2)))) -> 0 | AI27: =N27 -> 21211 | AJ27: =COUNTIF(L55:L70,AI27) -> 0 | AK27: =AJ27/(AL4-AJ25) -> 0 | AL27: =IF(AK27=0,0,(AK27*((LOG(AK27))/LOG(2)))) -> 0 | AN27: =N27 -> 21211 | AO27: =COUNTIF(L71:L86,AN27) -> 0 | AP27: =AO27/(AQ4-AO25) -> 0 | AQ27: =IF(AP27=0,0,(AP27*((LOG(AP27))/LOG(2)))) -> 0 | AS27: =N27 -> 21211 | AT27: =COUNTIF(L87:L102,AS27) -> 0 | AU27: =AT27/(AV4-AT25) -> 0 | AV27: =IF(AU27=0,0,(AU27*((LOG(AU27))/LOG(2)))) -> 0
A28: 12 | B28: 5263 | C28: 13 | D28: 5276 | E28: 24 | F28: 5289 | G28: 23 | H28: 5297 | I28: 13 | J28: 5312 | K28: 0 | L28: 11221 | N28: 21212 | O28: =COUNTIF($L$7:$L$500,N28) -> 0 | P28: =O28/$Q$4 -> 0 | Q28: =IF(P28=0,0,(P28*((LOG(P28))/LOG(2)))) -> 0 | T28: =N28 -> 21212 | U28: =COUNTIF(L7:L22,T28) -> 0 | V28: =U28/(W4-U25) -> 0 | W28: =IF(V28=0,0,(V28*((LOG(V28))/LOG(2)))) -> 0 | Y28: =N28 -> 21212 | Z28: =COUNTIF(L23:L38,Y28) -> 0 | AA28: =Z28/(AB4-Z25) -> 0 | AB28: =IF(AA28=0,0,(AA28*((LOG(AA28))/LOG(2)))) -> 0 | AD28: =N28 -> 21212 | AE28: =COUNTIF(L39:L54,AD28) -> 0 | AF28: =AE28/(AG4-AE25) -> 0 | AG28: =IF(AF28=0,0,(AF28*((LOG(AF28))/LOG(2)))) -> 0 | AI28: =N28 -> 21212 | AJ28: =COUNTIF(L55:L70,AI28) -> 0 | AK28: =AJ28/(AL4-AJ25) -> 0 | AL28: =IF(AK28=0,0,(AK28*((LOG(AK28))/LOG(2)))) -> 0 | AN28: =N28 -> 21212 | AO28: =COUNTIF(L71:L86,AN28) -> 0 | AP28: =AO28/(AQ4-AO25) -> 0 | AQ28: =IF(AP28=0,0,(AP28*((LOG(AP28))/LOG(2)))) -> 0 | AS28: =N28 -> 21212 | AT28: =COUNTIF(L87:L102,AS28) -> 0 | AU28: =AT28/(AV4-AT25) -> 0 | AV28: =IF(AU28=0,0,(AU28*((LOG(AU28))/LOG(2)))) -> 0
A29: 12 | B29: 5534 | C29: 13 | D29: 5543 | E29: 13 | F29: 5740 | G29: 14 | H29: 5817 | I29: 13 | J29: 5859 | K29: 0 | L29: 11111 | N29: 21221 | O29: =COUNTIF($L$7:$L$500,N29) -> 1 | P29: =O29/$Q$4 -> 0.01041666667 | Q29: =IF(P29=0,0,(P29*((LOG(P29))/LOG(2)))) -> -0.06859335938 | T29: =N29 -> 21221 | U29: =COUNTIF(L7:L22,T29) -> 1 | V29: =U29/(W4-U25) -> 0.0625 | W29: =IF(V29=0,0,(V29*((LOG(V29))/LOG(2)))) -> -0.25 | Y29: =N29 -> 21221 | Z29: =COUNTIF(L23:L38,Y29) -> 0 | AA29: =Z29/(AB4-Z25) -> 0 | AB29: =IF(AA29=0,0,(AA29*((LOG(AA29))/LOG(2)))) -> 0 | AD29: =N29 -> 21221 | AE29: =COUNTIF(L39:L54,AD29) -> 0 | AF29: =AE29/(AG4-AE25) -> 0 | AG29: =IF(AF29=0,0,(AF29*((LOG(AF29))/LOG(2)))) -> 0 | AI29: =N29 -> 21221 | AJ29: =COUNTIF(L55:L70,AI29) -> 0 | AK29: =AJ29/(AL4-AJ25) -> 0 | AL29: =IF(AK29=0,0,(AK29*((LOG(AK29))/LOG(2)))) -> 0 | AN29: =N29 -> 21221 | AO29: =COUNTIF(L71:L86,AN29) -> 0 | AP29: =AO29/(AQ4-AO25) -> 0 | AQ29: =IF(AP29=0,0,(AP29*((LOG(AP29))/LOG(2)))) -> 0 | AS29: =N29 -> 21221 | AT29: =COUNTIF(L87:L102,AS29) -> 0 | AU29: =AT29/(AV4-AT25) -> 0 | AV29: =IF(AU29=0,0,(AU29*((LOG(AU29))/LOG(2)))) -> 0
A30: 12 | B30: 6005 | C30: 13 | D30: 6019 | E30: 24 | F30: 6031 | G30: 14 | H30: 6044 | I30: 13 | J30: 6058 | K30: 0 | L30: 11211 | N30: 21222 | O30: =COUNTIF($L$7:$L$500,N30) -> 0 | P30: =O30/$Q$4 -> 0 | Q30: =IF(P30=0,0,(P30*((LOG(P30))/LOG(2)))) -> 0 | T30: =N30 -> 21222 | U30: =COUNTIF(L7:L22,T30) -> 0 | V30: =U30/(W4-U25) -> 0 | W30: =IF(V30=0,0,(V30*((LOG(V30))/LOG(2)))) -> 0 | Y30: =N30 -> 21222 | Z30: =COUNTIF(L23:L38,Y30) -> 0 | AA30: =Z30/(AB4-Z25) -> 0 | AB30: =IF(AA30=0,0,(AA30*((LOG(AA30))/LOG(2)))) -> 0 | AD30: =N30 -> 21222 | AE30: =COUNTIF(L39:L54,AD30) -> 0 | AF30: =AE30/(AG4-AE25) -> 0 | AG30: =IF(AF30=0,0,(AF30*((LOG(AF30))/LOG(2)))) -> 0 | AI30: =N30 -> 21222 | AJ30: =COUNTIF(L55:L70,AI30) -> 0 | AK30: =AJ30/(AL4-AJ25) -> 0 | AL30: =IF(AK30=0,0,(AK30*((LOG(AK30))/LOG(2)))) -> 0 | AN30: =N30 -> 21222 | AO30: =COUNTIF(L71:L86,AN30) -> 0 | AP30: =AO30/(AQ4-AO25) -> 0 | AQ30: =IF(AP30=0,0,(AP30*((LOG(AP30))/LOG(2)))) -> 0 | AS30: =N30 -> 21222 | AT30: =COUNTIF(L87:L102,AS30) -> 0 | AU30: =AT30/(AV4-AT25) -> 0 | AV30: =IF(AU30=0,0,(AU30*((LOG(AU30))/LOG(2)))) -> 0
A31: 12 | B31: 6220 | C31: 13 | D31: 6251 | E31: 24 | F31: 6264 | G31: 14 | H31: 6278 | I31: 13 | J31: 6291 | K31: 0 | L31: 11211 | N31: 22111 | O31: =COUNTIF($L$7:$L$500,N31) -> 0 | P31: =O31/$Q$4 -> 0 | Q31: =IF(P31=0,0,(P31*((LOG(P31))/LOG(2)))) -> 0 | T31: =N31 -> 22111 | U31: =COUNTIF(L7:L22,T31) -> 0 | V31: =U31/(W4-U25) -> 0 | W31: =IF(V31=0,0,(V31*((LOG(V31))/LOG(2)))) -> 0 | Y31: =N31 -> 22111 | Z31: =COUNTIF(L23:L38,Y31) -> 0 | AA31: =Z31/(AB4-Z25) -> 0 | AB31: =IF(AA31=0,0,(AA31*((LOG(AA31))/LOG(2)))) -> 0 | AD31: =N31 -> 22111 | AE31: =COUNTIF(L39:L54,AD31) -> 0 | AF31: =AE31/(AG4-AE25) -> 0 | AG31: =IF(AF31=0,0,(AF31*((LOG(AF31))/LOG(2)))) -> 0 | AI31: =N31 -> 22111 | AJ31: =COUNTIF(L55:L70,AI31) -> 0 | AK31: =AJ31/(AL4-AJ25) -> 0 | AL31: =IF(AK31=0,0,(AK31*((LOG(AK31))/LOG(2)))) -> 0 | AN31: =N31 -> 22111 | AO31: =COUNTIF(L71:L86,AN31) -> 0 | AP31: =AO31/(AQ4-AO25) -> 0 | AQ31: =IF(AP31=0,0,(AP31*((LOG(AP31))/LOG(2)))) -> 0 | AS31: =N31 -> 22111 | AT31: =COUNTIF(L87:L102,AS31) -> 0 | AU31: =AT31/(AV4-AT25) -> 0 | AV31: =IF(AU31=0,0,(AU31*((LOG(AU31))/LOG(2)))) -> 0
A32: 12 | B32: 6394 | C32: 13 | D32: 6406 | E32: 24 | F32: 6418 | G32: 14 | H32: 6428 | I32: 24 | J32: 6446 | K32: 0 | L32: 11212 | N32: 22112 | O32: =COUNTIF($L$7:$L$500,N32) -> 0 | P32: =O32/$Q$4 -> 0 | Q32: =IF(P32=0,0,(P32*((LOG(P32))/LOG(2)))) -> 0 | T32: =N32 -> 22112 | U32: =COUNTIF(L7:L22,T32) -> 0 | V32: =U32/(W4-U25) -> 0 | W32: =IF(V32=0,0,(V32*((LOG(V32))/LOG(2)))) -> 0 | Y32: =N32 -> 22112 | Z32: =COUNTIF(L23:L38,Y32) -> 0 | AA32: =Z32/(AB4-Z25) -> 0 | AB32: =IF(AA32=0,0,(AA32*((LOG(AA32))/LOG(2)))) -> 0 | AD32: =N32 -> 22112 | AE32: =COUNTIF(L39:L54,AD32) -> 0 | AF32: =AE32/(AG4-AE25) -> 0 | AG32: =IF(AF32=0,0,(AF32*((LOG(AF32))/LOG(2)))) -> 0 | AI32: =N32 -> 22112 | AJ32: =COUNTIF(L55:L70,AI32) -> 0 | AK32: =AJ32/(AL4-AJ25) -> 0 | AL32: =IF(AK32=0,0,(AK32*((LOG(AK32))/LOG(2)))) -> 0 | AN32: =N32 -> 22112 | AO32: =COUNTIF(L71:L86,AN32) -> 0 | AP32: =AO32/(AQ4-AO25) -> 0 | AQ32: =IF(AP32=0,0,(AP32*((LOG(AP32))/LOG(2)))) -> 0 | AS32: =N32 -> 22112 | AT32: =COUNTIF(L87:L102,AS32) -> 0 | AU32: =AT32/(AV4-AT25) -> 0 | AV32: =IF(AU32=0,0,(AU32*((LOG(AU32))/LOG(2)))) -> 0
A33: 12 | B33: 6549 | C33: 24 | D33: 6565 | E33: 13 | F33: 6577 | G33: 14 | H33: 6589 | I33: 13 | J33: 6603 | K33: 0 | L33: 12111 | N33: 22121 | O33: =COUNTIF($L$7:$L$500,N33) -> 0 | P33: =O33/$Q$4 -> 0 | Q33: =IF(P33=0,0,(P33*((LOG(P33))/LOG(2)))) -> 0 | T33: =N33 -> 22121 | U33: =COUNTIF(L7:L22,T33) -> 0 | V33: =U33/(W4-U25) -> 0 | W33: =IF(V33=0,0,(V33*((LOG(V33))/LOG(2)))) -> 0 | Y33: =N33 -> 22121 | Z33: =COUNTIF(L23:L38,Y33) -> 0 | AA33: =Z33/(AB4-Z25) -> 0 | AB33: =IF(AA33=0,0,(AA33*((LOG(AA33))/LOG(2)))) -> 0 | AD33: =N33 -> 22121 | AE33: =COUNTIF(L39:L54,AD33) -> 0 | AF33: =AE33/(AG4-AE25) -> 0 | AG33: =IF(AF33=0,0,(AF33*((LOG(AF33))/LOG(2)))) -> 0 | AI33: =N33 -> 22121 | AJ33: =COUNTIF(L55:L70,AI33) -> 0 | AK33: =AJ33/(AL4-AJ25) -> 0 | AL33: =IF(AK33=0,0,(AK33*((LOG(AK33))/LOG(2)))) -> 0 | AN33: =N33 -> 22121 | AO33: =COUNTIF(L71:L86,AN33) -> 0 | AP33: =AO33/(AQ4-AO25) -> 0 | AQ33: =IF(AP33=0,0,(AP33*((LOG(AP33))/LOG(2)))) -> 0 | AS33: =N33 -> 22121 | AT33: =COUNTIF(L87:L102,AS33) -> 0 | AU33: =AT33/(AV4-AT25) -> 0 | AV33: =IF(AU33=0,0,(AU33*((LOG(AU33))/LOG(2)))) -> 0
A34: 12 | B34: 6741 | C34: 13 | D34: 6754 | E34: 24 | F34: 6766 | G34: 14 | H34: 6776 | I34: 13 | J34: 6788 | K34: 0 | L34: 11211 | N34: 22122 | O34: =COUNTIF($L$7:$L$500,N34) -> 0 | P34: =O34/$Q$4 -> 0 | Q34: =IF(P34=0,0,(P34*((LOG(P34))/LOG(2)))) -> 0 | T34: =N34 -> 22122 | U34: =COUNTIF(L7:L22,T34) -> 0 | V34: =U34/(W4-U25) -> 0 | W34: =IF(V34=0,0,(V34*((LOG(V34))/LOG(2)))) -> 0 | Y34: =N34 -> 22122 | Z34: =COUNTIF(L23:L38,Y34) -> 0 | AA34: =Z34/(AB4-Z25) -> 0 | AB34: =IF(AA34=0,0,(AA34*((LOG(AA34))/LOG(2)))) -> 0 | AD34: =N34 -> 22122 | AE34: =COUNTIF(L39:L54,AD34) -> 0 | AF34: =AE34/(AG4-AE25) -> 0 | AG34: =IF(AF34=0,0,(AF34*((LOG(AF34))/LOG(2)))) -> 0 | AI34: =N34 -> 22122 | AJ34: =COUNTIF(L55:L70,AI34) -> 0 | AK34: =AJ34/(AL4-AJ25) -> 0 | AL34: =IF(AK34=0,0,(AK34*((LOG(AK34))/LOG(2)))) -> 0 | AN34: =N34 -> 22122 | AO34: =COUNTIF(L71:L86,AN34) -> 0 | AP34: =AO34/(AQ4-AO25) -> 0 | AQ34: =IF(AP34=0,0,(AP34*((LOG(AP34))/LOG(2)))) -> 0 | AS34: =N34 -> 22122 | AT34: =COUNTIF(L87:L102,AS34) -> 0 | AU34: =AT34/(AV4-AT25) -> 0 | AV34: =IF(AU34=0,0,(AU34*((LOG(AU34))/LOG(2)))) -> 0
A35: 12 | B35: 6893 | C35: 13 | D35: 6911 | E35: 24 | F35: 6923 | G35: 23 | H35: 6945 | I35: 13 | J35: 6954 | K35: 0 | L35: 11221 | N35: 22211 | O35: =COUNTIF($L$7:$L$500,N35) -> 0 | P35: =O35/$Q$4 -> 0 | Q35: =IF(P35=0,0,(P35*((LOG(P35))/LOG(2)))) -> 0 | T35: =N35 -> 22211 | U35: =COUNTIF(L7:L22,T35) -> 0 | V35: =U35/(W4-U25) -> 0 | W35: =IF(V35=0,0,(V35*((LOG(V35))/LOG(2)))) -> 0 | Y35: =N35 -> 22211 | Z35: =COUNTIF(L23:L38,Y35) -> 0 | AA35: =Z35/(AB4-Z25) -> 0 | AB35: =IF(AA35=0,0,(AA35*((LOG(AA35))/LOG(2)))) -> 0 | AD35: =N35 -> 22211 | AE35: =COUNTIF(L39:L54,AD35) -> 0 | AF35: =AE35/(AG4-AE25) -> 0 | AG35: =IF(AF35=0,0,(AF35*((LOG(AF35))/LOG(2)))) -> 0 | AI35: =N35 -> 22211 | AJ35: =COUNTIF(L55:L70,AI35) -> 0 | AK35: =AJ35/(AL4-AJ25) -> 0 | AL35: =IF(AK35=0,0,(AK35*((LOG(AK35))/LOG(2)))) -> 0 | AN35: =N35 -> 22211 | AO35: =COUNTIF(L71:L86,AN35) -> 0 | AP35: =AO35/(AQ4-AO25) -> 0 | AQ35: =IF(AP35=0,0,(AP35*((LOG(AP35))/LOG(2)))) -> 0 | AS35: =N35 -> 22211 | AT35: =COUNTIF(L87:L102,AS35) -> 0 | AU35: =AT35/(AV4-AT25) -> 0 | AV35: =IF(AU35=0,0,(AU35*((LOG(AU35))/LOG(2)))) -> 0
A36: 12 | B36: 7088 | C36: 13 | D36: 7114 | E36: 24 | F36: 7131 | G36: 23 | H36: 7144 | I36: 13 | J36: 7159 | K36: 0 | L36: 11221 | N36: 22212 | O36: =COUNTIF($L$7:$L$500,N36) -> 0 | P36: =O36/$Q$4 -> 0 | Q36: =IF(P36=0,0,(P36*((LOG(P36))/LOG(2)))) -> 0 | T36: =N36 -> 22212 | U36: =COUNTIF(L7:L22,T36) -> 0 | V36: =U36/(W4-U25) -> 0 | W36: =IF(V36=0,0,(V36*((LOG(V36))/LOG(2)))) -> 0 | Y36: =N36 -> 22212 | Z36: =COUNTIF(L23:L38,Y36) -> 0 | AA36: =Z36/(AB4-Z25) -> 0 | AB36: =IF(AA36=0,0,(AA36*((LOG(AA36))/LOG(2)))) -> 0 | AD36: =N36 -> 22212 | AE36: =COUNTIF(L39:L54,AD36) -> 0 | AF36: =AE36/(AG4-AE25) -> 0 | AG36: =IF(AF36=0,0,(AF36*((LOG(AF36))/LOG(2)))) -> 0 | AI36: =N36 -> 22212 | AJ36: =COUNTIF(L55:L70,AI36) -> 0 | AK36: =AJ36/(AL4-AJ25) -> 0 | AL36: =IF(AK36=0,0,(AK36*((LOG(AK36))/LOG(2)))) -> 0 | AN36: =N36 -> 22212 | AO36: =COUNTIF(L71:L86,AN36) -> 0 | AP36: =AO36/(AQ4-AO25) -> 0 | AQ36: =IF(AP36=0,0,(AP36*((LOG(AP36))/LOG(2)))) -> 0 | AS36: =N36 -> 22212 | AT36: =COUNTIF(L87:L102,AS36) -> 0 | AU36: =AT36/(AV4-AT25) -> 0 | AV36: =IF(AU36=0,0,(AU36*((LOG(AU36))/LOG(2)))) -> 0
A37: 12 | B37: 7415 | C37: 13 | D37: 7427 | E37: 13 | F37: 7443 | G37: 23 | H37: 7456 | I37: 13 | J37: 7477 | K37: 0 | L37: 11121 | N37: 22221 | O37: =COUNTIF($L$7:$L$500,N37) -> 0 | P37: =O37/$Q$4 -> 0 | Q37: =IF(P37=0,0,(P37*((LOG(P37))/LOG(2)))) -> 0 | T37: =N37 -> 22221 | U37: =COUNTIF(L7:L22,T37) -> 0 | V37: =U37/(W4-U25) -> 0 | W37: =IF(V37=0,0,(V37*((LOG(V37))/LOG(2)))) -> 0 | Y37: =N37 -> 22221 | Z37: =COUNTIF(L23:L38,Y37) -> 0 | AA37: =Z37/(AB4-Z25) -> 0 | AB37: =IF(AA37=0,0,(AA37*((LOG(AA37))/LOG(2)))) -> 0 | AD37: =N37 -> 22221 | AE37: =COUNTIF(L39:L54,AD37) -> 0 | AF37: =AE37/(AG4-AE25) -> 0 | AG37: =IF(AF37=0,0,(AF37*((LOG(AF37))/LOG(2)))) -> 0 | AI37: =N37 -> 22221 | AJ37: =COUNTIF(L55:L70,AI37) -> 0 | AK37: =AJ37/(AL4-AJ25) -> 0 | AL37: =IF(AK37=0,0,(AK37*((LOG(AK37))/LOG(2)))) -> 0 | AN37: =N37 -> 22221 | AO37: =COUNTIF(L71:L86,AN37) -> 0 | AP37: =AO37/(AQ4-AO25) -> 0 | AQ37: =IF(AP37=0,0,(AP37*((LOG(AP37))/LOG(2)))) -> 0 | AS37: =N37 -> 22221 | AT37: =COUNTIF(L87:L102,AS37) -> 0 | AU37: =AT37/(AV4-AT25) -> 0 | AV37: =IF(AU37=0,0,(AU37*((LOG(AU37))/LOG(2)))) -> 0
A38: 12 | B38: 7601 | C38: 13 | D38: 7611 | E38: 13 | F38: 7623 | G38: 14 | H38: 7636 | I38: 13 | J38: 7648 | K38: 0 | L38: 11111 | N38: 22222 | O38: =COUNTIF($L$7:$L$500,N38) -> 0 | P38: =O38/$Q$4 -> 0 | Q38: =IF(P38=0,0,(P38*((LOG(P38))/LOG(2)))) -> 0 | T38: =N38 -> 22222 | U38: =COUNTIF(L7:L22,T38) -> 0 | V38: =U38/(W4-U25) -> 0 | W38: =IF(V38=0,0,(V38*((LOG(V38))/LOG(2)))) -> 0 | Y38: =N38 -> 22222 | Z38: =COUNTIF(L23:L38,Y38) -> 0 | AA38: =Z38/(AB4-Z25) -> 0 | AB38: =IF(AA38=0,0,(AA38*((LOG(AA38))/LOG(2)))) -> 0 | AD38: =N38 -> 22222 | AE38: =COUNTIF(L39:L54,AD38) -> 0 | AF38: =AE38/(AG4-AE25) -> 0 | AG38: =IF(AF38=0,0,(AF38*((LOG(AF38))/LOG(2)))) -> 0 | AI38: =N38 -> 22222 | AJ38: =COUNTIF(L55:L70,AI38) -> 0 | AK38: =AJ38/(AL4-AJ25) -> 0 | AL38: =IF(AK38=0,0,(AK38*((LOG(AK38))/LOG(2)))) -> 0 | AN38: =N38 -> 22222 | AO38: =COUNTIF(L71:L86,AN38) -> 0 | AP38: =AO38/(AQ4-AO25) -> 0 | AQ38: =IF(AP38=0,0,(AP38*((LOG(AP38))/LOG(2)))) -> 0 | AS38: =N38 -> 22222 | AT38: =COUNTIF(L87:L102,AS38) -> 0 | AU38: =AT38/(AV4-AT25) -> 0 | AV38: =IF(AU38=0,0,(AU38*((LOG(AU38))/LOG(2)))) -> 0
A39: 12 | B39: 7774 | C39: 13 | D39: 7784 | E39: 13 | F39: 7796 | G39: 14 | H39: 7808 | I39: 13 | J39: 7816 | K39: 0 | L39: 11111 | P39: =SUM(P7:P38) -> 1 | Q39: =-SUM(Q7:Q38) -> 3.384014393 | V39: =SUM(V7:V38) -> 1 | W39: =-SUM(W7:W38) -> 3.280639062 | AA39: =SUM(AA7:AA38) -> 1 | AB39: =-SUM(AB7:AB38) -> 2.780639062 | AF39: =SUM(AF7:AF38) -> 1 | AG39: =-SUM(AG7:AG38) -> 0.993392729 | AK39: =SUM(AK7:AK38) -> 1 | AL39: =-SUM(AL7:AL38) -> 2.339572262 | AP39: =SUM(AP7:AP38) -> 1 | AQ39: =-SUM(AQ7:AQ38) -> 1.974601753 | AU39: =SUM(AU7:AU38) -> 1 | AV39: =-SUM(AV7:AV38) -> 2.477217001
A40: 12 | B40: 8036 | C40: 13 | D40: 8049 | E40: 13 | F40: 8066 | G40: 14 | H40: 8079 | I40: 13 | J40: 8101 | K40: 0 | L40: 11111 | P40: U= | Q40: =Q39/(LOG(Q4)/LOG(2)) -> 0.5139003286 | V40: U1= | W40: =W39/(LOG(W4)/LOG(2)) -> 0.8201597656 | AA40: U2= | AB40: =AB39/(LOG(AB4)/LOG(2)) -> 0.6951597656 | AF40: U3= | AG40: =AG39/(LOG(AG4)/LOG(2)) -> 0.2483481823 | AK40: U4= | AL40: =AL39/(LOG(AL4)/LOG(2)) -> 0.5848930655 | AP40: U5= | AQ40: =AQ39/(LOG(AQ4)/LOG(2)) -> 0.4936504382 | AU40: U6= | AV40: =AV39/(LOG(AV4)/LOG(2)) -> 0.6193042504
A41: 12 | B41: 8265 | C41: 13 | D41: 8274 | E41: 13 | F41: 8284 | G41: 14 | H41: 8295 | I41: 13 | J41: 8307 | K41: 0 | L41: 11111
A42: 12 | B42: 8448 | C42: 13 | D42: 8462 | E42: 13 | F42: 8475 | G42: 14 | H42: 8483 | I42: 13 | J42: 8497 | K42: 0 | L42: 11111
A43: 12 | B43: 8857 | C43: 13 | D43: 8886 | E43: 13 | F43: 8900 | G43: 14 | H43: 8910 | I43: 13 | J43: 8924 | K43: 0 | L43: 11111 | N43: Total Target Seq
A44: 21 | B44: 9229 | C44: 11 | D44: 9244 | E44: 11 | F44: 9256 | G44: 12 | H44: 9265 | I44: 13 | J44: 9277 | K44: 0 | L44: 21111 | N44: =COUNTIF(L7:L102,G3) -> 1 | P44: 16 | Q44: 16 | R44: 16 | S44: 16 | T44: 16 | U44: 16
A45: 12 | B45: 9666 | C45: 13 | D45: 9681 | E45: 13 | F45: 9697 | G45: 14 | H45: 9710 | I45: 13 | J45: 9723 | K45: 0 | L45: 11111 | P45: % of reinforcement given in 6 equal intervals based on number of trials
A46: 12 | B46: 9925 | C46: 13 | D46: 9946 | E46: 13 | F46: 9960 | G46: 14 | H46: 9973 | I46: 13 | J46: 9985 | K46: 0 | L46: 11111 | P46: %_1 | Q46: %_2 | R46: %_3 | S46: %_4 | T46: %_5 | U46: %_6
A47: 12 | B47: 10130 | C47: 13 | D47: 10145 | E47: 13 | F47: 10153 | G47: 14 | H47: 10165 | I47: 13 | J47: 10176 | K47: 0 | L47: 11111 | O47: target sequence | P47: =$G$3 -> 21121 | Q47: =$G$3 -> 21121 | R47: =$G$3 -> 21121 | S47: =$G$3 -> 21121 | T47: =$G$3 -> 21121 | U47: =$G$3 -> 21121
A48: 12 | B48: 10347 | C48: 13 | D48: 10359 | E48: 13 | F48: 10371 | G48: 14 | H48: 10382 | I48: 13 | J48: 10391 | K48: 0 | L48: 11111 | O48: total reinforcement | P48: =U25 -> 0 | Q48: =Z25 -> 0 | R48: =AE25 -> 0 | S48: =AJ25 -> 1 | T48: =AO25 -> 0 | U48: =AT25 -> 0
A49: 12 | B49: 10900 | C49: 13 | D49: 10914 | E49: 13 | F49: 10942 | G49: 14 | H49: 10959 | I49: 13 | J49: 10966 | K49: 0 | L49: 11111 | O49: % target
A50: 12 | B50: 11237 | C50: 13 | D50: 11246 | E50: 24 | F50: 11269 | G50: 14 | H50: 11284 | I50: 13 | J50: 11294 | K50: 0 | L50: 11211 | O50: CCRF
A51: 12 | B51: 11462 | C51: 13 | D51: 11475 | E51: 13 | F51: 11488 | G51: 14 | H51: 11501 | I51: 13 | J51: 11513 | K51: 0 | L51: 11111 | O51: % CCRf
A52: 12 | B52: 11677 | C52: 13 | D52: 11704 | E52: 13 | F52: 11714 | G52: 14 | H52: 11722 | I52: 13 | J52: 11731 | K52: 0 | L52: 11111 | O52: average response rate | P52: =J22/P44 -> 235 | Q52: =(J38-J22)/Q44 -> 243 | R52: =(J54-J38)/R44 -> 294.6875 | S52: =(J70-J54)/S44 -> 228.375 | T52: =(J86-J70)/T44 -> 188.375 | U52: =(J102-J86)/U44 -> 306.5
A53: 12 | B53: 11955 | C53: 13 | D53: 11966 | E53: 24 | F53: 12017 | G53: 14 | H53: 12031 | I53: 24 | J53: 12047 | K53: 0 | L53: 11212
A54: 12 | B54: 12316 | C54: 13 | D54: 12325 | E54: 13 | F54: 12337 | G54: 14 | H54: 12349 | I54: 13 | J54: 12363 | K54: 0 | L54: 11111
A55: 12 | B55: 12493 | C55: 13 | D55: 12506 | E55: 13 | F55: 12515 | G55: 14 | H55: 12531 | I55: 13 | J55: 12542 | K55: 0 | L55: 11111
A56: 12 | B56: 12794 | C56: 24 | D56: 12812 | E56: 13 | F56: 12825 | G56: 14 | H56: 12842 | I56: 13 | J56: 12854 | K56: 0 | L56: 12111
A57: 12 | B57: 13035 | C57: 13 | D57: 13050 | E57: 13 | F57: 13064 | G57: 23 | H57: 13083 | I57: 13 | J57: 13097 | K57: 0 | L57: 11121
A58: 12 | B58: 13292 | C58: 13 | D58: 13300 | E58: 13 | F58: 13313 | G58: 14 | H58: 13326 | I58: 13 | J58: 13337 | K58: 0 | L58: 11111
A59: 12 | B59: 13551 | C59: 13 | D59: 13564 | E59: 13 | F59: 13577 | G59: 14 | H59: 13590 | I59: 13 | J59: 13600 | K59: 0 | L59: 11111
A60: 12 | B60: 13797 | C60: 13 | D60: 13811 | E60: 24 | F60: 13827 | G60: 14 | H60: 13839 | I60: 24 | J60: 13862 | K60: 0 | L60: 11212
A61: 12 | B61: 14058 | C61: 13 | D61: 14071 | E61: 13 | F61: 14085 | G61: 14 | H61: 14094 | I61: 13 | J61: 14103 | K61: 0 | L61: 11111
A62: 12 | B62: 14242 | C62: 13 | D62: 14265 | E62: 13 | F62: 14279 | G62: 14 | H62: 14297 | I62: 24 | J62: 14313 | K62: 0 | L62: 11112
A63: 12 | B63: 14466 | C63: 13 | D63: 14489 | E63: 24 | F63: 14510 | G63: 14 | H63: 14519 | I63: 13 | J63: 14532 | K63: 0 | L63: 11211
A64: 12 | B64: 14690 | C64: 13 | D64: 14698 | E64: 13 | F64: 14706 | G64: 14 | H64: 14714 | I64: 13 | J64: 14725 | K64: 0 | L64: 11111
A65: 12 | B65: 14876 | C65: 13 | D65: 14899 | E65: 13 | F65: 14911 | G65: 14 | H65: 14919 | I65: 13 | J65: 14928 | K65: 0 | L65: 11111
A66: 21 | B66: 15097 | C66: 11 | D66: 15109 | E66: 11 | F66: 15127 | G66: 21 | H66: 15145 | I66: 11 | J66: 15155 | K66: 1 | L66: 21121
A67: 12 | B67: 15422 | C67: 24 | D67: 15435 | E67: 13 | F67: 15448 | G67: 23 | H67: 15464 | I67: 13 | J67: 15473 | K67: 0 | L67: 12121
A68: 12 | B68: 15595 | C68: 13 | D68: 15608 | E68: 24 | F68: 15622 | G68: 14 | H68: 15631 | I68: 24 | J68: 15666 | K68: 0 | L68: 11212
A69: 12 | B69: 15768 | C69: 13 | D69: 15783 | E69: 24 | F69: 15796 | G69: 14 | H69: 15805 | I69: 24 | J69: 15828 | K69: 0 | L69: 11212
A70: 12 | B70: 15962 | C70: 13 | D70: 15975 | E70: 24 | F70: 15988 | G70: 14 | H70: 16001 | I70: 24 | J70: 16017 | K70: 0 | L70: 11212
A71: 12 | B71: 16127 | C71: 13 | D71: 16150 | E71: 24 | F71: 16163 | G71: 14 | H71: 16175 | I71: 13 | J71: 16187 | K71: 0 | L71: 11211
A72: 12 | B72: 16291 | C72: 13 | D72: 16302 | E72: 13 | F72: 16313 | G72: 23 | H72: 16326 | I72: 13 | J72: 16335 | K72: 0 | L72: 11121
A73: 12 | B73: 16458 | C73: 13 | D73: 16482 | E73: 24 | F73: 16498 | G73: 14 | H73: 16510 | I73: 13 | J73: 16520 | K73: 0 | L73: 11211
A74: 12 | B74: 16632 | C74: 13 | D74: 16640 | E74: 13 | F74: 16654 | G74: 23 | H74: 16666 | I74: 13 | J74: 16679 | K74: 0 | L74: 11121
A75: 12 | B75: 16786 | C75: 13 | D75: 16799 | E75: 13 | F75: 16811 | G75: 23 | H75: 16823 | I75: 13 | J75: 16832 | K75: 0 | L75: 11121
A76: 12 | B76: 16935 | C76: 13 | D76: 16943 | E76: 13 | F76: 16959 | G76: 23 | H76: 16972 | I76: 24 | J76: 16985 | K76: 0 | L76: 11122
A77: 12 | B77: 17097 | C77: 13 | D77: 17116 | E77: 24 | F77: 17130 | G77: 14 | H77: 17139 | I77: 13 | J77: 17151 | K77: 0 | L77: 11211
A78: 12 | B78: 17308 | C78: 13 | D78: 17329 | E78: 13 | F78: 17338 | G78: 14 | H78: 17350 | I78: 13 | J78: 17363 | K78: 0 | L78: 11111
A79: 12 | B79: 17488 | C79: 13 | D79: 17496 | E79: 13 | F79: 17506 | G79: 14 | H79: 17516 | I79: 13 | J79: 17531 | K79: 0 | L79: 11111
A80: 12 | B80: 17666 | C80: 13 | D80: 17680 | E80: 13 | F80: 17693 | G80: 14 | H80: 17710 | I80: 24 | J80: 17723 | K80: 0 | L80: 11112
A81: 12 | B81: 17874 | C81: 13 | D81: 17890 | E81: 13 | F81: 17908 | G81: 14 | H81: 17921 | I81: 13 | J81: 17938 | K81: 0 | L81: 11111
A82: 12 | B82: 18127 | C82: 13 | D82: 18140 | E82: 13 | F82: 18164 | G82: 14 | H82: 18176 | I82: 13 | J82: 18190 | K82: 0 | L82: 11111
A83: 12 | B83: 18351 | C83: 13 | D83: 18360 | E83: 13 | F83: 18375 | G83: 23 | H83: 18391 | I83: 13 | J83: 18403 | K83: 0 | L83: 11121
A84: 12 | B84: 18557 | C84: 13 | D84: 18566 | E84: 13 | F84: 18574 | G84: 14 | H84: 18582 | I84: 13 | J84: 18592 | K84: 0 | L84: 11111
A85: 12 | B85: 18745 | C85: 13 | D85: 18765 | E85: 13 | F85: 18783 | G85: 14 | H85: 18797 | I85: 13 | J85: 18804 | K85: 0 | L85: 11111
A86: 12 | B86: 18994 | C86: 13 | D86: 19003 | E86: 13 | F86: 19013 | G86: 14 | H86: 19022 | I86: 13 | J86: 19031 | K86: 0 | L86: 11111
A87: 12 | B87: 19188 | C87: 13 | D87: 19203 | E87: 13 | F87: 19212 | G87: 14 | H87: 19224 | I87: 13 | J87: 19236 | K87: 0 | L87: 11111
A88: 12 | B88: 19544 | C88: 24 | D88: 19559 | E88: 13 | F88: 19569 | G88: 23 | H88: 19583 | I88: 24 | J88: 19593 | K88: 0 | L88: 12122
A89: 12 | B89: 19752 | C89: 13 | D89: 19766 | E89: 13 | F89: 19776 | G89: 14 | H89: 19787 | I89: 24 | J89: 19816 | K89: 0 | L89: 11112
A90: 12 | B90: 19959 | C90: 13 | D90: 19976 | E90: 24 | F90: 19989 | G90: 14 | H90: 19999 | I90: 13 | J90: 20011 | K90: 0 | L90: 11211
A91: 12 | B91: 20194 | C91: 13 | D91: 20216 | E91: 13 | F91: 20224 | G91: 14 | H91: 20238 | I91: 24 | J91: 20256 | K91: 0 | L91: 11112
A92: 12 | B92: 20431 | C92: 13 | D92: 20450 | E92: 24 | F92: 20467 | G92: 14 | H92: 20479 | I92: 24 | J92: 20500 | K92: 0 | L92: 11212
A93: 12 | B93: 20726 | C93: 13 | D93: 20740 | E93: 13 | F93: 20759 | G93: 14 | H93: 20779 | I93: 24 | J93: 20795 | K93: 0 | L93: 11112
A94: 12 | B94: 20963 | C94: 13 | D94: 21117 | E94: 13 | F94: 21139 | G94: 14 | H94: 21167 | I94: 13 | J94: 21176 | K94: 0 | L94: 11111
A95: 12 | B95: 21316 | C95: 13 | D95: 21335 | E95: 13 | F95: 21349 | G95: 14 | H95: 21363 | I95: 24 | J95: 21379 | K95: 0 | L95: 11112
A96: 12 | B96: 21605 | C96: 24 | D96: 21618 | E96: 13 | F96: 21629 | G96: 23 | H96: 21645 | I96: 13 | J96: 21654 | K96: 0 | L96: 12121
A97: 12 | B97: 21936 | C97: 13 | D97: 21952 | E97: 13 | F97: 21962 | G97: 14 | H97: 21976 | I97: 13 | J97: 21992 | K97: 0 | L97: 11111
A98: 12 | B98: 22240 | C98: 13 | D98: 22251 | E98: 13 | F98: 22260 | G98: 23 | H98: 22277 | I98: 13 | J98: 22286 | K98: 0 | L98: 11121
A99: 12 | B99: 22556 | C99: 13 | D99: 22581 | E99: 13 | F99: 22598 | G99: 23 | H99: 22612 | I99: 13 | J99: 22622 | K99: 0 | L99: 11121
A100: 12 | B100: 23187 | C100: 13 | D100: 23205 | E100: 13 | F100: 23224 | G100: 23 | H100: 23247 | I100: 13 | J100: 23258 | K100: 0 | L100: 11121
A101: 12 | B101: 23626 | C101: 13 | D101: 23641 | E101: 13 | F101: 23657 | G101: 14 | H101: 23667 | I101: 13 | J101: 23676 | K101: 0 | L101: 11111
A102: 12 | B102: 23866 | C102: 13 | D102: 23881 | E102: 13 | F102: 23894 | G102: 14 | H102: 23912 | I102: 24 | J102: 23935 | L102: 11112

Sheet !MA02830.010
A1: Report for:!MA02830.010
A2: Date: | B2: <date>
A3: Hen: | B3: <hen> | F3: Correct Sequence | G3: =Start!J2 -> 21121 | P3: Total Sequences in Data | Q3: =4994-COUNTBLANK(L7:L5000) -> 99 | V3: Total Sequences in Block Data | W3: =COUNTA(L7:L23) -> 17 | AA3: Total Sequences in Block Data | AB3: =COUNTA(L24:L39) -> 16 | AF3: Total Sequences in Block Data | AG3: =COUNTA(L40:L56) -> 17 | AK3: Total Sequences in Block Data | AL3: =COUNTA(L57:L72) -> 16 | AP3: Total Sequences in Block Data | AQ3: =COUNTA(L73:L89) -> 17 | AU3: Total Sequences in Block Data | AV3: =COUNTA(L90:L105) -> 16
P4: Total Sequences in Summary | Q4: =SUM(O7:O38) -> 99 | V4: Total Sequences in Block Summary | W4: =SUM(U7:U38) -> 17 | AA4: Total Sequences in Block Summary | AB4: =SUM(Z7:Z38) -> 16 | AF4: Total Sequences in Block Summary | AG4: =SUM(AE7:AE38) -> 17 | AK4: Total Sequences in Block Summary | AL4: =SUM(AJ7:AJ38) -> 16 | AP4: Total Sequences in Block Summary | AQ4: =SUM(AO7:AO38) -> 17 | AU4: Total Sequences in Block Summary | AV4: =SUM(AT7:AT38) -> 16
T5: Block 1 | Y5: Block 2 | AD5: Block 3 | AI5: Block 4 | AN5: Block 5 | AS5: Block 6
A6: Sequence Component 1 | B6: Time 1 | C6: Sequence Component 2 | D6: Time 2 | E6: Sequence Component 3 | F6: Time 3 | G6: Sequence Component 4 | H6: Time 4 | I6: Sequence Component 5 | J6: Time 5 | K6: Correct? 0=No 1=Yes | L6: Sequence | N6: Frequency | P6: Relative Frequency | Q6: Variability | T6: Frequency | V6: Relative Frequency | W6: Variability | Y6: Frequency | AA6: Relative Frequency | AB6: Variability | AD6: Frequency | AF6: Relative Frequency | AG6: Variability | AI6: Frequency | AK6: Relative Frequency | AL6: Variability | AN6: Frequency | AP6: Relative Frequency | AQ6: Variability | AS6: Frequency | AU6: Relative Frequency | AV6: Variability
A7: 12 | B7: 10 | C7: 24 | D7: 26 | E7: 24 | F7: 43 | G7: 23 | H7: 81 | I7: 24 | J7: 97 | K7: 0 | L7: 12222 | N7: 11111 | O7: =COUNTIF($L$7:$L$500,N7) -> 20 | P7: =O7/$Q$4 -> 0.202020202 | Q7: =IF(P7=0,0,(P7*((LOG(P7))/LOG(2)))) -> -0.4661471768 | T7: =N7 -> 11111 | U7: =COUNTIF(L7:L23,T7) -> 1 | V7: =U7/(W4-U25) -> 0.0625 | W7: =IF(V7=0,0,(V7*((LOG(V7))/LOG(2)))) -> -0.25 | Y7: =N7 -> 11111 | Z7: =COUNTIF(L24:L39,Y7) -> 4 | AA7: =Z7/(AB4-Z25) -> 0.25 | AB7: =IF(AA7=0,0,(AA7*((LOG(AA7))/LOG(2)))) -> -0.5 | AD7: =N7 -> 11111 | AE7: =COUNTIF(L40:L56,AD7) -> 2 | AF7: =AE7/(AG4-AE25) -> 0.125 | AG7: =IF(AF7=0,0,(AF7*((LOG(AF7))/LOG(2)))) -> -0.375 | AI7: =N7 -> 11111 | AJ7: =COUNTIF(L57:L72,AI7) -> 6 | AK7: =AJ7/(AL4-AJ25) -> 0.375 | AL7: =IF(AK7=0,0,(AK7*((LOG(AK7))/LOG(2)))) -> -0.5306390622 | AN7: =N7 -> 11111 | AO7: =COUNTIF(L73:L89,AN7) -> 3 | AP7: =AO7/(AQ4-AO25) -> 0.1764705882 | AQ7: =IF(AP7=0,0,(AP7*((LOG(AP7))/LOG(2)))) -> -0.4416177072 | AS7: =N7 -> 11111 | AT7: =COUNTIF(L90:L105,AS7) -> 4 | AU7: =AT7/(AV4-AT25) -> 0.2666666667 | AV7: =IF(AU7=0,0,(AU7*((LOG(AU7))/LOG(2)))) -> -0.5085041588
A8: 12 | B8: 201 | C8: 24 | D8: 218 | E8: 13 | F8: 244 | G8: 14 | H8: 263 | I8: 24 | J8: 276 | K8: 0 | L8: 12112 | N8: 11112 | O8: =COUNTIF($L$7:$L$500,N8) -> 17 | P8: =O8/$Q$4 -> 0.1717171717 | Q8: =IF(P8=0,0,(P8*((LOG(P8))/LOG(2)))) -> -0.4364868105 | T8: =N8 -> 11112 | U8: =COUNTIF(L7:L23,T8) -> 1 | V8: =U8/(W4-U25) -> 0.0625 | W8: =IF(V8=0,0,(V8*((LOG(V8))/LOG(2)))) -> -0.25 | Y8: =N8 -> 11112 | Z8: =COUNTIF(L24:L39,Y8) -> 5 | AA8: =Z8/(AB4-Z25) -> 0.3125 | AB8: =IF(AA8=0,0,(AA8*((LOG(AA8))/LOG(2)))) -> -0.5243974703 | AD8: =N8 -> 11112 | AE8: =COUNTIF(L40:L56,AD8) -> 3 | AF8: =AE8/(AG4-AE25) -> 0.1875 | AG8: =IF(AF8=0,0,(AF8*((LOG(AF8))/LOG(2)))) -> -0.4528195311 | AI8: =N8 -> 11112 | AJ8: =COUNTIF(L57:L72,AI8) -> 4 | AK8: =AJ8/(AL4-AJ25) -> 0.25 | AL8: =IF(AK8=0,0,(AK8*((LOG(AK8))/LOG(2)))) -> -0.5 | AN8: =N8 -> 11112 | AO8: =COUNTIF(L73:L89,AN8) -> 2 | AP8: =AO8/(AQ4-AO25) -> 0.1176470588 | AQ8: =IF(AP8=0,0,(AP8*((LOG(AP8))/LOG(2)))) -> -0.3632309225 | AS8: =N8 -> 11112 | AT8: =COUNTIF(L90:L105,AS8) -> 2 | AU8: =AT8/(AV4-AT25) -> 0.1333333333 | AV8: =IF(AU8=0,0,(AU8*((LOG(AU8))/LOG(2)))) -> -0.3875854127
A9: 12 | B9: 392 | C9: 24 | D9: 405 | E9: 13 | F9: 416 | G9: 23 | H9: 443 | I9: 13 | J9: 461 | K9: 0 | L9: 12121 | N9: 11121 | O9: =COUNTIF($L$7:$L$500,N9) -> 30 | P9: =O9/$Q$4 -> 0.303030303 | Q9: =IF(P9=0,0,(P9*((LOG(P9))/LOG(2)))) -> -0.5219594014 | T9: =N9 -> 11121 | U9: =COUNTIF(L7:L23,T9) -> 2 | V9: =U9/(W4-U25) -> 0.125 | W9: =IF(V9=0,0,(V9*((LOG(V9))/LOG(2)))) -> -0.375 | Y9: =N9 -> 11121 | Z9: =COUNTIF(L24:L39,Y9) -> 4 | AA9: =Z9/(AB4-Z25) -> 0.25 | AB9: =IF(AA9=0,0,(AA9*((LOG(AA9))/LOG(2)))) -> -0.5 | AD9: =N9 -> 11121 | AE9: =COUNTIF(L40:L56,AD9) -> 8 | AF9: =AE9/(AG4-AE25) -> 0.5 | AG9: =IF(AF9=0,0,(AF9*((LOG(AF9))/LOG(2)))) -> -0.5 | AI9: =N9 -> 11121 | AJ9: =COUNTIF(L57:L72,AI9) -> 5 | AK9: =AJ9/(AL4-AJ25) -> 0.3125 | AL9: =IF(AK9=0,0,(AK9*((LOG(AK9))/LOG(2)))) -> -0.5243974703 | AN9: =N9 -> 11121 | AO9: =COUNTIF(L73:L89,AN9) -> 6 | AP9: =AO9/(AQ4-AO25) -> 0.3529411765 | AQ9: =IF(AP9=0,0,(AP9*((LOG(AP9))/LOG(2)))) -> -0.5302942378 | AS9: =N9 -> 11121 | AT9: =COUNTIF(L90:L105,AS9) -> 5 | AU9: =AT9/(AV4-AT25) -> 0.3333333333 | AV9: =IF(AU9=0,0,(AU9*((LOG(AU9))/LOG(2)))) -> -0.5283208336
A10: 12 | B10: 572 | C10: 13 | D10: 586 | E10: 24 | F10: 600 | G10: 14 | H10: 612 | I10: 24 | J10: 627 | K10: 0 | L10: 11212 | N10: 11122 | O10: =COUNTIF($L$7:$L$500,N10) -> 0 | P10: =O10/$Q$4 -> 0 | Q10: =IF(P10=0,0,(P10*((LOG(P10))/LOG(2)))) -> 0 | T10: =N10 -> 11122 | U10: =COUNTIF(L7:L23,T10) -> 0 | V10: =U10/(W4-U25) -> 0 | W10: =IF(V10=0,0,(V10*((LOG(V10))/LOG(2)))) -> 0 | Y10: =N10 -> 11122 | Z10: =COUNTIF(L24:L39,Y10) -> 0 | AA10: =Z10/(AB4-Z25) -> 0 | AB10: =IF(AA10=0,0,(AA10*((LOG(AA10))/LOG(2)))) -> 0 | AD10: =N10 -> 11122 | AE10: =COUNTIF(L40:L56,AD10) -> 0 | AF10: =AE10/(AG4-AE25) -> 0 | AG10: =IF(AF10=0,0,(AF10*((LOG(AF10))/LOG(2)))) -> 0 | AI10: =N10 -> 11122 | AJ10: =COUNTIF(L57:L72,AI10) -> 0 | AK10: =AJ10/(AL4-AJ25) -> 0 | AL10: =IF(AK10=0,0,(AK10*((LOG(AK10))/LOG(2)))) -> 0 | AN10: =N10 -> 11122 | AO10: =COUNTIF(L73:L89,AN10) -> 0 | AP10: =AO10/(AQ4-AO25) -> 0 | AQ10: =IF(AP10=0,0,(AP10*((LOG(AP10))/LOG(2)))) -> 0 | AS10: =N10 -> 11122 | AT10: =COUNTIF(L90:L105,AS10) -> 0 | AU10: =AT10/(AV4-AT25) -> 0 | AV10: =IF(AU10=0,0,(AU10*((LOG(AU10))/LOG(2)))) -> 0
A11: 21 | B11: 742 | C11: 11 | D11: 752 | E11: 11 | F11: 761 | G11: 12 | H11: 774 | I11: 24 | J11: 803 | K11: 0 | L11: 21112 | N11: 11211 | O11: =COUNTIF($L$7:$L$500,N11) -> 2 | P11: =O11/$Q$4 -> 0.0202020202 | Q11: =IF(P11=0,0,(P11*((LOG(P11))/LOG(2)))) -> -0.1137243762 | T11: =N11 -> 11211 | U11: =COUNTIF(L7:L23,T11) -> 2 | V11: =U11/(W4-U25) -> 0.125 | W11: =IF(V11=0,0,(V11*((LOG(V11))/LOG(2)))) -> -0.375 | Y11: =N11 -> 11211 | Z11: =COUNTIF(L24:L39,Y11) -> 0 | AA11: =Z11/(AB4-Z25) -> 0 | AB11: =IF(AA11=0,0,(AA11*((LOG(AA11))/LOG(2)))) -> 0 | AD11: =N11 -> 11211 | AE11: =COUNTIF(L40:L56,AD11) -> 0 | AF11: =AE11/(AG4-AE25) -> 0 | AG11: =IF(AF11=0,0,(AF11*((LOG(AF11))/LOG(2)))) -> 0 | AI11: =N11 -> 11211 | AJ11: =COUNTIF(L57:L72,AI11) -> 0 | AK11: =AJ11/(AL4-AJ25) -> 0 | AL11: =IF(AK11=0,0,(AK11*((LOG(AK11))/LOG(2)))) -> 0 | AN11: =N11 -> 11211 | AO11: =COUNTIF(L73:L89,AN11) -> 0 | AP11: =AO11/(AQ4-AO25) -> 0 | AQ11: =IF(AP11=0,0,(AP11*((LOG(AP11))/LOG(2)))) -> 0 | AS11: =N11 -> 11211 | AT11: =COUNTIF(L90:L105,AS11) -> 0 | AU11: =AT11/(AV4-AT25) -> 0 | AV11: =IF(AU11=0,0,(AU11*((LOG(AU11))/LOG(2)))) -> 0
A12: 12 | B12: 1007 | C12: 13 | D12: 1024 | E12: 13 | F12: 1047 | G12: 23 | H12: 1062 | I12: 13 | J12: 1078 | K12: 0 | L12: 11121 | N12: 11212 | O12: =COUNTIF($L$7:$L$500,N12) -> 9 | P12: =O12/$Q$4 -> 0.09090909091 | Q12: =IF(P12=0,0,(P12*((LOG(P12))/LOG(2)))) -> -0.3144937835 | T12: =N12 -> 11212 | U12: =COUNTIF(L7:L23,T12) -> 4 | V12: =U12/(W4-U25) -> 0.25 | W12: =IF(V12=0,0,(V12*((LOG(V12))/LOG(2)))) -> -0.5 | Y12: =N12 -> 11212 | Z12: =COUNTIF(L24:L39,Y12) -> 0 | AA12: =Z12/(AB4-Z25) -> 0 | AB12: =IF(AA12=0,0,(AA12*((LOG(AA12))/LOG(2)))) -> 0 | AD12: =N12 -> 11212 | AE12: =COUNTIF(L40:L56,AD12) -> 1 | AF12: =AE12/(AG4-AE25) -> 0.0625 | AG12: =IF(AF12=0,0,(AF12*((LOG(AF12))/LOG(2)))) -> -0.25 | AI12: =N12 -> 11212 | AJ12: =COUNTIF(L57:L72,AI12) -> 0 | AK12: =AJ12/(AL4-AJ25) -> 0 | AL12: =IF(AK12=0,0,(AK12*((LOG(AK12))/LOG(2)))) -> 0 | AN12: =N12 -> 11212 | AO12: =COUNTIF(L73:L89,AN12) -> 2 | AP12: =AO12/(AQ4-AO25) -> 0.1176470588 | AQ12: =IF(AP12=0,0,(AP12*((LOG(AP12))/LOG(2)))) -> -0.3632309225 | AS12: =N12 -> 11212 | AT12: =COUNTIF(L90:L105,AS12) -> 2 | AU12: =AT12/(AV4-AT25) -> 0.1333333333 | AV12: =IF(AU12=0,0,(AU12*((LOG(AU12))/LOG(2)))) -> -0.3875854127
A13: 12 | B13: 1237 | C13: 13 | D13: 1250 | E13: 24 | F13: 1265 | G13: 14 | H13: 1275 | I13: 24 | J13: 1290 | K13: 0 | L13: 11212 | N13: 11221 | O13: =COUNTIF($L$7:$L$500,N13) -> 0 | P13: =O13/$Q$4 -> 0 | Q13: =IF(P13=0,0,(P13*((LOG(P13))/LOG(2)))) -> 0 | T13: =N13 -> 11221 | U13: =COUNTIF(L7:L23,T13) -> 0 | V13: =U13/(W4-U25) -> 0 | W13: =IF(V13=0,0,(V13*((LOG(V13))/LOG(2)))) -> 0 | Y13: =N13 -> 11221 | Z13: =COUNTIF(L24:L39,Y13) -> 0 | AA13: =Z13/(AB4-Z25) -> 0 | AB13: =IF(AA13=0,0,(AA13*((LOG(AA13))/LOG(2)))) -> 0 | AD13: =N13 -> 11221 | AE13: =COUNTIF(L40:L56,AD13) -> 0 | AF13: =AE13/(AG4-AE25) -> 0 | AG13: =IF(AF13=0,0,(AF13*((LOG(AF13))/LOG(2)))) -> 0 | AI13: =N13 -> 11221 | AJ13: =COUNTIF(L57:L72,AI13) -> 0 | AK13: =AJ13/(AL4-AJ25) -> 0 | AL13: =IF(AK13=0,0,(AK13*((LOG(AK13))/LOG(2)))) -> 0 | AN13: =N13 -> 11221 | AO13: =COUNTIF(L73:L89,AN13) -> 0 | AP13: =AO13/(AQ4-AO25) -> 0 | AQ13: =IF(AP13=0,0,(AP13*((LOG(AP13))/LOG(2)))) -> 0 | AS13: =N13 -> 11221 | AT13: =COUNTIF(L90:L105,AS13) -> 0 | AU13: =AT13/(AV4-AT25) -> 0 | AV13: =IF(AU13=0,0,(AU13*((LOG(AU13))/LOG(2)))) -> 0
A14: 12 | B14: 1604 | C14: 13 | D14: 1620 | E14: 24 | F14: 1634 | G14: 14 | H14: 1652 | I14: 24 | J14: 1667 | K14: 0 | L14: 11212 | N14: 11222 | O14: =COUNTIF($L$7:$L$500,N14) -> 0 | P14: =O14/$Q$4 -> 0 | Q14: =IF(P14=0,0,(P14*((LOG(P14))/LOG(2)))) -> 0 | T14: =N14 -> 11222 | U14: =COUNTIF(L7:L23,T14) -> 0 | V14: =U14/(W4-U25) -> 0 | W14: =IF(V14=0,0,(V14*((LOG(V14))/LOG(2)))) -> 0 | Y14: =N14 -> 11222 | Z14: =COUNTIF(L24:L39,Y14) -> 0 | AA14: =Z14/(AB4-Z25) -> 0 | AB14: =IF(AA14=0,0,(AA14*((LOG(AA14))/LOG(2)))) -> 0 | AD14: =N14 -> 11222 | AE14: =COUNTIF(L40:L56,AD14) -> 0 | AF14: =AE14/(AG4-AE25) -> 0 | AG14: =IF(AF14=0,0,(AF14*((LOG(AF14))/LOG(2)))) -> 0 | AI14: =N14 -> 11222 | AJ14: =COUNTIF(L57:L72,AI14) -> 0 | AK14: =AJ14/(AL4-AJ25) -> 0 | AL14: =IF(AK14=0,0,(AK14*((LOG(AK14))/LOG(2)))) -> 0 | AN14: =N14 -> 11222 | AO14: =COUNTIF(L73:L89,AN14) -> 0 | AP14: =AO14/(AQ4-AO25) -> 0 | AQ14: =IF(AP14=0,0,(AP14*((LOG(AP14))/LOG(2)))) -> 0 | AS14: =N14 -> 11222 | AT14: =COUNTIF(L90:L105,AS14) -> 0 | AU14: =AT14/(AV4-AT25) -> 0 | AV14: =IF(AU14=0,0,(AU14*((LOG(AU14))/LOG(2)))) -> 0
A15: 12 | B15: 1852 | C15: 13 | D15: 1879 | E15: 13 | F15: 1900 | G15: 14 | H15: 1917 | I15: 13 | J15: 1940 | K15: 0 | L15: 11111 | N15: 12111 | O15: =COUNTIF($L$7:$L$500,N15) -> 4 | P15: =O15/$Q$4 -> 0.0404040404 | Q15: =IF(P15=0,0,(P15*((LOG(P15))/LOG(2)))) -> -0.1870447119 | T15: =N15 -> 12111 | U15: =COUNTIF(L7:L23,T15) -> 1 | V15: =U15/(W4-U25) -> 0.0625 | W15: =IF(V15=0,0,(V15*((LOG(V15))/LOG(2)))) -> -0.25 | Y15: =N15 -> 12111 | Z15: =COUNTIF(L24:L39,Y15) -> 2 | AA15: =Z15/(AB4-Z25) -> 0.125 | AB15: =IF(AA15=0,0,(AA15*((LOG(AA15))/LOG(2)))) -> -0.375 | AD15: =N15 -> 12111 | AE15: =COUNTIF(L40:L56,AD15) -> 0 | AF15: =AE15/(AG4-AE25) -> 0 | AG15: =IF(AF15=0,0,(AF15*((LOG(AF15))/LOG(2)))) -> 0 | AI15: =N15 -> 12111 | AJ15: =COUNTIF(L57:L72,AI15) -> 1 | AK15: =AJ15/(AL4-AJ25) -> 0.0625 | AL15: =IF(AK15=0,0,(AK15*((LOG(AK15))/LOG(2)))) -> -0.25 | AN15: =N15 -> 12111 | AO15: =COUNTIF(L73:L89,AN15) -> 0 | AP15: =AO15/(AQ4-AO25) -> 0 | AQ15: =IF(AP15=0,0,(AP15*((LOG(AP15))/LOG(2)))) -> 0 | AS15: =N15 -> 12111 | AT15: =COUNTIF(L90:L105,AS15) -> 0 | AU15: =AT15/(AV4-AT25) -> 0 | AV15: =IF(AU15=0,0,(AU15*((LOG(AU15))/LOG(2)))) -> 0
A16: 12 | B16: 2469 | C16: 13 | D16: 2492 | E16: 13 | F16: 2512 | G16: 14 | H16: 2532 | I16: 24 | J16: 2549 | K16: 0 | L16: 11112 | N16: 12112 | O16: =COUNTIF($L$7:$L$500,N16) -> 1 | P16: =O16/$Q$4 -> 0.0101010101 | Q16: =IF(P16=0,0,(P16*((LOG(P16))/LOG(2)))) -> -0.06696319818 | T16: =N16 -> 12112 | U16: =COUNTIF(L7:L23,T16) -> 1 | V16: =U16/(W4-U25) -> 0.0625 | W16: =IF(V16=0,0,(V16*((LOG(V16))/LOG(2)))) -> -0.25 | Y16: =N16 -> 12112 | Z16: =COUNTIF(L24:L39,Y16) -> 0 | AA16: =Z16/(AB4-Z25) -> 0 | AB16: =IF(AA16=0,0,(AA16*((LOG(AA16))/LOG(2)))) -> 0 | AD16: =N16 -> 12112 | AE16: =COUNTIF(L40:L56,AD16) -> 0 | AF16: =AE16/(AG4-AE25) -> 0 | AG16: =IF(AF16=0,0,(AF16*((LOG(AF16))/LOG(2)))) -> 0 | AI16: =N16 -> 12112 | AJ16: =COUNTIF(L57:L72,AI16) -> 0 | AK16: =AJ16/(AL4-AJ25) -> 0 | AL16: =IF(AK16=0,0,(AK16*((LOG(AK16))/LOG(2)))) -> 0 | AN16: =N16 -> 12112 | AO16: =COUNTIF(L73:L89,AN16) -> 0 | AP16: =AO16/(AQ4-AO25) -> 0 | AQ16: =IF(AP16=0,0,(AP16*((LOG(AP16))/LOG(2)))) -> 0 | AS16: =N16 -> 12112 | AT16: =COUNTIF(L90:L105,AS16) -> 0 | AU16: =AT16/(AV4-AT25) -> 0 | AV16: =IF(AU16=0,0,(AU16*((LOG(AU16))/LOG(2)))) -> 0
A17: 12 | B17: 2777 | C17: 13 | D17: 2799 | E17: 24 | F17: 2815 | G17: 14 | H17: 2826 | I17: 24 | J17: 2846 | K17: 0 | L17: 11212 | N17: 12121 | O17: =COUNTIF($L$7:$L$500,N17) -> 3 | P17: =O17/$Q$4 -> 0.0303030303 | Q17: =IF(P17=0,0,(P17*((LOG(P17))/LOG(2)))) -> -0.1528604279 | T17: =N17 -> 12121 | U17: =COUNTIF(L7:L23,T17) -> 1 | V17: =U17/(W4-U25) -> 0.0625 | W17: =IF(V17=0,0,(V17*((LOG(V17))/LOG(2)))) -> -0.25 | Y17: =N17 -> 12121 | Z17: =COUNTIF(L24:L39,Y17) -> 0 | AA17: =Z17/(AB4-Z25) -> 0 | AB17: =IF(AA17=0,0,(AA17*((LOG(AA17))/LOG(2)))) -> 0 | AD17: =N17 -> 12121 | AE17: =COUNTIF(L40:L56,AD17) -> 1 | AF17: =AE17/(AG4-AE25) -> 0.0625 | AG17: =IF(AF17=0,0,(AF17*((LOG(AF17))/LOG(2)))) -> -0.25 | AI17: =N17 -> 12121 | AJ17: =COUNTIF(L57:L72,AI17) -> 0 | AK17: =AJ17/(AL4-AJ25) -> 0 | AL17: =IF(AK17=0,0,(AK17*((LOG(AK17))/LOG(2)))) -> 0 | AN17: =N17 -> 12121 | AO17: =COUNTIF(L73:L89,AN17) -> 1 | AP17: =AO17/(AQ4-AO25) -> 0.05882352941 | AQ17: =IF(AP17=0,0,(AP17*((LOG(AP17))/LOG(2)))) -> -0.2404389907 | AS17: =N17 -> 12121 | AT17: =COUNTIF(L90:L105,AS17) -> 0 | AU17: =AT17/(AV4-AT25) -> 0 | AV17: =IF(AU17=0,0,(AU17*((LOG(AU17))/LOG(2)))) -> 0
A18: 21 | B18: 3600 | C18: 11 | D18: 3622 | E18: 11 | F18: 3640 | G18: 21 | H18: 3657 | I18: 11 | J18: 3672 | K18: 1 | L18: 21121 | N18: 12122 | O18: =COUNTIF($L$7:$L$500,N18) -> 1 | P18: =O18/$Q$4 -> 0.0101010101 | Q18: =IF(P18=0,0,(P18*((LOG(P18))/LOG(2)))) -> -0.06696319818 | T18: =N18 -> 12122 | U18: =COUNTIF(L7:L23,T18) -> 0 | V18: =U18/(W4-U25) -> 0 | W18: =IF(V18=0,0,(V18*((LOG(V18))/LOG(2)))) -> 0 | Y18: =N18 -> 12122 | Z18: =COUNTIF(L24:L39,Y18) -> 0 | AA18: =Z18/(AB4-Z25) -> 0 | AB18: =IF(AA18=0,0,(AA18*((LOG(AA18))/LOG(2)))) -> 0 | AD18: =N18 -> 12122 | AE18: =COUNTIF(L40:L56,AD18) -> 0 | AF18: =AE18/(AG4-AE25) -> 0 | AG18: =IF(AF18=0,0,(AF18*((LOG(AF18))/LOG(2)))) -> 0 | AI18: =N18 -> 12122 | AJ18: =COUNTIF(L57:L72,AI18) -> 0 | AK18: =AJ18/(AL4-AJ25) -> 0 | AL18: =IF(AK18=0,0,(AK18*((LOG(AK18))/LOG(2)))) -> 0 | AN18: =N18 -> 12122 | AO18: =COUNTIF(L73:L89,AN18) -> 1 | AP18: =AO18/(AQ4-AO25) -> 0.05882352941 | AQ18: =IF(AP18=0,0,(AP18*((LOG(AP18))/LOG(2)))) -> -0.2404389907 | AS18: =N18 -> 12122 | AT18: =COUNTIF(L90:L105,AS18) -> 0 | AU18: =AT18/(AV4-AT25) -> 0 | AV18: =IF(AU18=0,0,(AU18*((LOG(AU18))/LOG(2)))) -> 0
A19: 12 | B19: 3897 | C19: 24 | D19: 3910 | E19: 24 | F19: 3920 | G19: 23 | H19: 3934 | I19: 13 | J19: 3944 | K19: 0 | L19: 12221 | N19: 12211 | O19: =COUNTIF($L$7:$L$500,N19) -> 0 | P19: =O19/$Q$4 -> 0 | Q19: =IF(P19=0,0,(P19*((LOG(P19))/LOG(2)))) -> 0 | T19: =N19 -> 12211 | U19: =COUNTIF(L7:L23,T19) -> 0 | V19: =U19/(W4-U25) -> 0 | W19: =IF(V19=0,0,(V19*((LOG(V19))/LOG(2)))) -> 0 | Y19: =N19 -> 12211 | Z19: =COUNTIF(L24:L39,Y19) -> 0 | AA19: =Z19/(AB4-Z25) -> 0 | AB19: =IF(AA19=0,0,(AA19*((LOG(AA19))/LOG(2)))) -> 0 | AD19: =N19 -> 12211 | AE19: =COUNTIF(L40:L56,AD19) -> 0 | AF19: =AE19/(AG4-AE25) -> 0 | AG19: =IF(AF19=0,0,(AF19*((LOG(AF19))/LOG(2)))) -> 0 | AI19: =N19 -> 12211 | AJ19: =COUNTIF(L57:L72,AI19) -> 0 | AK19: =AJ19/(AL4-AJ25) -> 0 | AL19: =IF(AK19=0,0,(AK19*((LOG(AK19))/LOG(2)))) -> 0 | AN19: =N19 -> 12211 | AO19: =COUNTIF(L73:L89,AN19) -> 0 | AP19: =AO19/(AQ4-AO25) -> 0 | AQ19: =IF(AP19=0,0,(AP19*((LOG(AP19))/LOG(2)))) -> 0 | AS19: =N19 -> 12211 | AT19: =COUNTIF(L90:L105,AS19) -> 0 | AU19: =AT19/(AV4-AT25) -> 0 | AV19: =IF(AU19=0,0,(AU19*((LOG(AU19))/LOG(2)))) -> 0
A20: 12 | B20: 4115 | C20: 13 | D20: 4134 | E20: 13 | F20: 4151 | G20: 23 | H20: 4164 | I20: 13 | J20: 4188 | K20: 0 | L20: 11121 | N20: 12212 | O20: =COUNTIF($L$7:$L$500,N20) -> 0 | P20: =O20/$Q$4 -> 0 | Q20: =IF(P20=0,0,(P20*((LOG(P20))/LOG(2)))) -> 0 | T20: =N20 -> 12212 | U20: =COUNTIF(L7:L23,T20) -> 0 | V20: =U20/(W4-U25) -> 0 | W20: =IF(V20=0,0,(V20*((LOG(V20))/LOG(2)))) -> 0 | Y20: =N20 -> 12212 | Z20: =COUNTIF(L24:L39,Y20) -> 0 | AA20: =Z20/(AB4-Z25) -> 0 | AB20: =IF(AA20=0,0,(AA20*((LOG(AA20))/LOG(2)))) -> 0 | AD20: =N20 -> 12212 | AE20: =COUNTIF(L40:L56,AD20) -> 0 | AF20: =AE20/(AG4-AE25) -> 0 | AG20: =IF(AF20=0,0,(AF20*((LOG(AF20))/LOG(2)))) -> 0 | AI20: =N20 -> 12212 | AJ20: =COUNTIF(L57:L72,AI20) -> 0 | AK20: =AJ20/(AL4-AJ25) -> 0 | AL20: =IF(AK20=0,0,(AK20*((LOG(AK20))/LOG(2)))) -> 0 | AN20: =N20 -> 12212 | AO20: =COUNTIF(L73:L89,AN20) -> 0 | AP20: =AO20/(AQ4-AO25) -> 0 | AQ20: =IF(AP20=0,0,(AP20*((LOG(AP20))/LOG(2)))) -> 0 | AS20: =N20 -> 12212 | AT20: =COUNTIF(L90:L105,AS20) -> 0 | AU20: =AT20/(AV4-AT25) -> 0 | AV20: =IF(AU20=0,0,(AU20*((LOG(AU20))/LOG(2)))) -> 0
A21: 12 | B21: 4382 | C21: 13 | D21: 4396 | E21: 24 | F21: 4410 | G21: 14 | H21: 4420 | I21: 13 | J21: 4442 | K21: 0 | L21: 11211 | N21: 12221 | O21: =COUNTIF($L$7:$L$500,N21) -> 1 | P21: =O21/$Q$4 -> 0.0101010101 | Q21: =IF(P21=0,0,(P21*((LOG(P21))/LOG(2)))) -> -0.06696319818 | T21: =N21 -> 12221 | U21: =COUNTIF(L7:L23,T21) -> 1 | V21: =U21/(W4-U25) -> 0.0625 | W21: =IF(V21=0,0,(V21*((LOG(V21))/LOG(2)))) -> -0.25 | Y21: =N21 -> 12221 | Z21: =COUNTIF(L24:L39,Y21) -> 0 | AA21: =Z21/(AB4-Z25) -> 0 | AB21: =IF(AA21=0,0,(AA21*((LOG(AA21))/LOG(2)))) -> 0 | AD21: =N21 -> 12221 | AE21: =COUNTIF(L40:L56,AD21) -> 0 | AF21: =AE21/(AG4-AE25) -> 0 | AG21: =IF(AF21=0,0,(AF21*((LOG(AF21))/LOG(2)))) -> 0 | AI21: =N21 -> 12221 | AJ21: =COUNTIF(L57:L72,AI21) -> 0 | AK21: =AJ21/(AL4-AJ25) -> 0 | AL21: =IF(AK21=0,0,(AK21*((LOG(AK21))/LOG(2)))) -> 0 | AN21: =N21 -> 12221 | AO21: =COUNTIF(L73:L89,AN21) -> 0 | AP21: =AO21/(AQ4-AO25) -> 0 | AQ21: =IF(AP21=0,0,(AP21*((LOG(AP21))/LOG(2)))) -> 0 | AS21: =N21 -> 12221 | AT21: =COUNTIF(L90:L105,AS21) -> 0 | AU21: =AT21/(AV4-AT25) -> 0 | AV21: =IF(AU21=0,0,(AU21*((LOG(AU21))/LOG(2)))) -> 0
A22: 12 | B22: 4641 | C22: 24 | D22: 4654 | E22: 13 | F22: 4671 | G22: 14 | H22: 4696 | I22: 13 | J22: 4718 | K22: 0 | L22: 12111 | N22: 12222 | O22: =COUNTIF($L$7:$L$500,N22) -> 1 | P22: =O22/$Q$4 -> 0.0101010101 | Q22: =IF(P22=0,0,(P22*((LOG(P22))/LOG(2)))) -> -0.06696319818 | T22: =N22 -> 12222 | U22: =COUNTIF(L7:L23,T22) -> 1 | V22: =U22/(W4-U25) -> 0.0625 | W22: =IF(V22=0,0,(V22*((LOG(V22))/LOG(2)))) -> -0.25 | Y22: =N22 -> 12222 | Z22: =COUNTIF(L24:L39,Y22) -> 0 | AA22: =Z22/(AB4-Z25) -> 0 | AB22: =IF(AA22=0,0,(AA22*((LOG(AA22))/LOG(2)))) -> 0 | AD22: =N22 -> 12222 | AE22: =COUNTIF(L40:L56,AD22) -> 0 | AF22: =AE22/(AG4-AE25) -> 0 | AG22: =IF(AF22=0,0,(AF22*((LOG(AF22))/LOG(2)))) -> 0 | AI22: =N22 -> 12222 | AJ22: =COUNTIF(L57:L72,AI22) -> 0 | AK22: =AJ22/(AL4-AJ25) -> 0 | AL22: =IF(AK22=0,0,(AK22*((LOG(AK22))/LOG(2)))) -> 0 | AN22: =N22 -> 12222 | AO22: =COUNTIF(L73:L89,AN22) -> 0 | AP22: =AO22/(AQ4-AO25) -> 0 | AQ22: =IF(AP22=0,0,(AP22*((LOG(AP22))/LOG(2)))) -> 0 | AS22: =N22 -> 12222 | AT22: =COUNTIF(L90:L105,AS22) -> 0 | AU22: =AT22/(AV4-AT25) -> 0 | AV22: =IF(AU22=0,0,(AU22*((LOG(AU22))/LOG(2)))) -> 0
A23: 12 | B23: 4865 | C23: 13 | D23: 4878 | E23: 24 | F23: 4890 | G23: 14 | H23: 4900 | I23: 13 | J23: 4921 | K23: 0 | L23: 11211 | N23: 21111 | O23: =COUNTIF($L$7:$L$500,N23) -> 3 | P23: =O23/$Q$4 -> 0.0303030303 | Q23: =IF(P23=0,0,(P23*((LOG(P23))/LOG(2)))) -> -0.1528604279 | T23: =N23 -> 21111 | U23: =COUNTIF(L7:L23,T23) -> 0 | V23: =U23/(W4-U25) -> 0 | W23: =IF(V23=0,0,(V23*((LOG(V23))/LOG(2)))) -> 0 | Y23: =N23 -> 21111 | Z23: =COUNTIF(L24:L39,Y23) -> 0 | AA23: =Z23/(AB4-Z25) -> 0 | AB23: =IF(AA23=0,0,(AA23*((LOG(AA23))/LOG(2)))) -> 0 | AD23: =N23 -> 21111 | AE23: =COUNTIF(L40:L56,AD23) -> 0 | AF23: =AE23/(AG4-AE25) -> 0 | AG23: =IF(AF23=0,0,(AF23*((LOG(AF23))/LOG(2)))) -> 0 | AI23: =N23 -> 21111 | AJ23: =COUNTIF(L57:L72,AI23) -> 0 | AK23: =AJ23/(AL4-AJ25) -> 0 | AL23: =IF(AK23=0,0,(AK23*((LOG(AK23))/LOG(2)))) -> 0 | AN23: =N23 -> 21111 | AO23: =COUNTIF(L73:L89,AN23) -> 1 | AP23: =AO23/(AQ4-AO25) -> 0.05882352941 | AQ23: =IF(AP23=0,0,(AP23*((LOG(AP23))/LOG(2)))) -> -0.2404389907 | AS23: =N23 -> 21111 | AT23: =COUNTIF(L90:L105,AS23) -> 2 | AU23: =AT23/(AV4-AT25) -> 0.1333333333 | AV23: =IF(AU23=0,0,(AU23*((LOG(AU23))/LOG(2)))) -> -0.3875854127
A24: 12 | B24: 5099 | C24: 24 | D24: 5112 | E24: 13 | F24: 5125 | G24: 14 | H24: 5147 | I24: 13 | J24: 5156 | K24: 0 | L24: 12111 | N24: 21112 | O24: =COUNTIF($L$7:$L$500,N24) -> 1 | P24: =O24/$Q$4 -> 0.0101010101 | Q24: =IF(P24=0,0,(P24*((LOG(P24))/LOG(2)))) -> -0.06696319818 | T24: =N24 -> 21112 | U24: =COUNTIF(L7:L23,T24) -> 1 | V24: =U24/(W4-U25) -> 0.0625 | W24: =IF(V24=0,0,(V24*((LOG(V24))/LOG(2)))) -> -0.25 | Y24: =N24 -> 21112 | Z24: =COUNTIF(L24:L39,Y24) -> 0 | AA24: =Z24/(AB4-Z25) -> 0 | AB24: =IF(AA24=0,0,(AA24*((LOG(AA24))/LOG(2)))) -> 0 | AD24: =N24 -> 21112 | AE24: =COUNTIF(L40:L56,AD24) -> 0 | AF24: =AE24/(AG4-AE25) -> 0 | AG24: =IF(AF24=0,0,(AF24*((LOG(AF24))/LOG(2)))) -> 0 | AI24: =N24 -> 21112 | AJ24: =COUNTIF(L57:L72,AI24) -> 0 | AK24: =AJ24/(AL4-AJ25) -> 0 | AL24: =IF(AK24=0,0,(AK24*((LOG(AK24))/LOG(2)))) -> 0 | AN24: =N24 -> 21112 | AO24: =COUNTIF(L73:L89,AN24) -> 0 | AP24: =AO24/(AQ4-AO25) -> 0 | AQ24: =IF(AP24=0,0,(AP24*((LOG(AP24))/LOG(2)))) -> 0 | AS24: =N24 -> 21112 | AT24: =COUNTIF(L90:L105,AS24) -> 0 | AU24: =AT24/(AV4-AT25) -> 0 | AV24: =IF(AU24=0,0,(AU24*((LOG(AU24))/LOG(2)))) -> 0
A25: 12 | B25: 5322 | C25: 13 | D25: 5337 | E25: 13 | F25: 5347 | G25: 14 | H25: 5366 | I25: 13 | J25: 5388 | K25: 0 | L25: 11111 | N25: 21121 | O25: =COUNTIF($L$7:$L$500,N25) -> 3 | P25: =O25/$Q$4 -> 0.0303030303 | Q25: =IF(P25=0,0,(P25*((LOG(P25))/LOG(2)))) -> -0.1528604279 | T25: =N25 -> 21121 | U25: =COUNTIF(L7:L23,T25) -> 1 | Y25: =N25 -> 21121 | Z25: =COUNTIF(L24:L39,Y25) -> 0 | AD25: =N25 -> 21121 | AE25: =COUNTIF(L40:L56,AD25) -> 1 | AI25: =N25 -> 21121 | AJ25: =COUNTIF(L57:L72,AI25) -> 0 | AN25: =N25 -> 21121 | AO25: =COUNTIF(L73:L89,AN25) -> 0 | AS25: =N25 -> 21121 | AT25: =COUNTIF(L90:L105,AS25) -> 1
A26: 12 | B26: 5563 | C26: 24 | D26: 5576 | E26: 13 | F26: 5587 | G26: 14 | H26: 5598 | I26: 13 | J26: 5617 | K26: 0 | L26: 12111 | N26: 21122 | O26: =COUNTIF($L$7:$L$500,N26) -> 1 | P26: =O26/$Q$4 -> 0.0101010101 | Q26: =IF(P26=0,0,(P26*((LOG(P26))/LOG(2)))) -> -0.06696319818 | T26: =N26 -> 21122 | U26: =COUNTIF(L7:L23,T26) -> 0 | V26: =U26/(W4-U25) -> 0 | W26: =IF(V26=0,0,(V26*((LOG(V26))/LOG(2)))) -> 0 | Y26: =N26 -> 21122 | Z26: =COUNTIF(L24:L39,Y26) -> 0 | AA26: =Z26/(AB4-Z25) -> 0 | AB26: =IF(AA26=0,0,(AA26*((LOG(AA26))/LOG(2)))) -> 0 | AD26: =N26 -> 21122 | AE26: =COUNTIF(L40:L56,AD26) -> 0 | AF26: =AE26/(AG4-AE25) -> 0 | AG26: =IF(AF26=0,0,(AF26*((LOG(AF26))/LOG(2)))) -> 0 | AI26: =N26 -> 21122 | AJ26: =COUNTIF(L57:L72,AI26) -> 0 | AK26: =AJ26/(AL4-AJ25) -> 0 | AL26: =IF(AK26=0,0,(AK26*((LOG(AK26))/LOG(2)))) -> 0 | AN26: =N26 -> 21122 | AO26: =COUNTIF(L73:L89,AN26) -> 1 | AP26: =AO26/(AQ4-AO25) -> 0.05882352941 | AQ26: =IF(AP26=0,0,(AP26*((LOG(AP26))/LOG(2)))) -> -0.2404389907 | AS26: =N26 -> 21122 | AT26: =COUNTIF(L90:L105,AS26) -> 0 | AU26: =AT26/(AV4-AT25) -> 0 | AV26: =IF(AU26=0,0,(AU26*((LOG(AU26))/LOG(2)))) -> 0
A27: 12 | B27: 5781 | C27: 13 | D27: 5795 | E27: 13 | F27: 5815 | G27: 23 | H27: 5833 | I27: 13 | J27: 5844 | K27: 0 | L27: 11121 | N27: 21211 | O27: =COUNTIF($L$7:$L$500,N27) -> 0 | P27: =O27/$Q$4 -> 0 | Q27: =IF(P27=0,0,(P27*((LOG(P27))/LOG(2)))) -> 0 | T27: =N27 -> 21211 | U27: =COUNTIF(L7:L23,T27) -> 0 | V27: =U27/(W4-U25) -> 0 | W27: =IF(V27=0,0,(V27*((LOG(V27))/LOG(2)))) -> 0 | Y27: =N27 -> 21211 | Z27: =COUNTIF(L24:L39,Y27) -> 0 | AA27: =Z27/(AB4-Z25) -> 0 | AB27: =IF(AA27=0,0,(AA27*((LOG(AA27))/LOG(2)))) -> 0 | AD27: =N27 -> 21211 | AE27: =COUNTIF(L40:L56,AD27) -> 0 | AF27: =AE27/(AG4-AE25) -> 0 | AG27: =IF(AF27=0,0,(AF27*((LOG(AF27))/LOG(2)))) -> 0 | AI27: =N27 -> 21211 | AJ27: =COUNTIF(L57:L72,AI27) -> 0 | AK27: =AJ27/(AL4-AJ25) -> 0 | AL27: =IF(AK27=0,0,(AK27*((LOG(AK27))/LOG(2)))) -> 0 | AN27: =N27 -> 21211 | AO27: =COUNTIF(L73:L89,AN27) -> 0 | AP27: =AO27/(AQ4-AO25) -> 0 | AQ27: =IF(AP27=0,0,(AP27*((LOG(AP27))/LOG(2)))) -> 0 | AS27: =N27 -> 21211 | AT27: =COUNTIF(L90:L105,AS27) -> 0 | AU27: =AT27/(AV4-AT25) -> 0 | AV27: =IF(AU27=0,0,(AU27*((LOG(AU27))/LOG(2)))) -> 0
A28: 12 | B28: 6016 | C28: 13 | D28: 6028 | E28: 13 | F28: 6047 | G28: 14 | H28: 6063 | I28: 13 | J28: 6079 | K28: 0 | L28: 11111 | N28: 21212 | O28: =COUNTIF($L$7:$L$500,N28) -> 1 | P28: =O28/$Q$4 -> 0.0101010101 | Q28: =IF(P28=0,0,(P28*((LOG(P28))/LOG(2)))) -> -0.06696319818 | T28: =N28 -> 21212 | U28: =COUNTIF(L7:L23,T28) -> 0 | V28: =U28/(W4-U25) -> 0 | W28: =IF(V28=0,0,(V28*((LOG(V28))/LOG(2)))) -> 0 | Y28: =N28 -> 21212 | Z28: =COUNTIF(L24:L39,Y28) -> 1 | AA28: =Z28/(AB4-Z25) -> 0.0625 | AB28: =IF(AA28=0,0,(AA28*((LOG(AA28))/LOG(2)))) -> -0.25 | AD28: =N28 -> 21212 | AE28: =COUNTIF(L40:L56,AD28) -> 0 | AF28: =AE28/(AG4-AE25) -> 0 | AG28: =IF(AF28=0,0,(AF28*((LOG(AF28))/LOG(2)))) -> 0 | AI28: =N28 -> 21212 | AJ28: =COUNTIF(L57:L72,AI28) -> 0 | AK28: =AJ28/(AL4-AJ25) -> 0 | AL28: =IF(AK28=0,0,(AK28*((LOG(AK28))/LOG(2)))) -> 0 | AN28: =N28 -> 21212 | AO28: =COUNTIF(L73:L89,AN28) -> 0 | AP28: =AO28/(AQ4-AO25) -> 0 | AQ28: =IF(AP28=0,0,(AP28*((LOG(AP28))/LOG(2)))) -> 0 | AS28: =N28 -> 21212 | AT28: =COUNTIF(L90:L105,AS28) -> 0 | AU28: =AT28/(AV4-AT25) -> 0 | AV28: =IF(AU28=0,0,(AU28*((LOG(AU28))/LOG(2)))) -> 0
A29: 12 | B29: 6215 | C29: 13 | D29: 6244 | E29: 13 | F29: 6261 | G29: 14 | H29: 6282 | I29: 13 | J29: 6319 | K29: 0 | L29: 11111 | N29: 21221 | O29: =COUNTIF($L$7:$L$500,N29) -> 1 | P29: =O29/$Q$4 -> 0.0101010101 | Q29: =IF(P29=0,0,(P29*((LOG(P29))/LOG(2)))) -> -0.06696319818 | T29: =N29 -> 21221 | U29: =COUNTIF(L7:L23,T29) -> 0 | V29: =U29/(W4-U25) -> 0 | W29: =IF(V29=0,0,(V29*((LOG(V29))/LOG(2)))) -> 0 | Y29: =N29 -> 21221 | Z29: =COUNTIF(L24:L39,Y29) -> 0 | AA29: =Z29/(AB4-Z25) -> 0 | AB29: =IF(AA29=0,0,(AA29*((LOG(AA29))/LOG(2)))) -> 0 | AD29: =N29 -> 21221 | AE29: =COUNTIF(L40:L56,AD29) -> 1 | AF29: =AE29/(AG4-AE25) -> 0.0625 | AG29: =IF(AF29=0,0,(AF29*((LOG(AF29))/LOG(2)))) -> -0.25 | AI29: =N29 -> 21221 | AJ29: =COUNTIF(L57:L72,AI29) -> 0 | AK29: =AJ29/(AL4-AJ25) -> 0 | AL29: =IF(AK29=0,0,(AK29*((LOG(AK29))/LOG(2)))) -> 0 | AN29: =N29 -> 21221 | AO29: =COUNTIF(L73:L89,AN29) -> 0 | AP29: =AO29/(AQ4-AO25) -> 0 | AQ29: =IF(AP29=0,0,(AP29*((LOG(AP29))/LOG(2)))) -> 0 | AS29: =N29 -> 21221 | AT29: =COUNTIF(L90:L105,AS29) -> 0 | AU29: =AT29/(AV4-AT25) -> 0 | AV29: =IF(AU29=0,0,(AU29*((LOG(AU29))/LOG(2)))) -> 0
A30: 12 | B30: 6510 | C30: 13 | D30: 6523 | E30: 13 | F30: 6542 | G30: 23 | H30: 6554 | I30: 13 | J30: 6565 | K30: 0 | L30: 11121 | N30: 21222 | O30: =COUNTIF($L$7:$L$500,N30) -> 0 | P30: =O30/$Q$4 -> 0 | Q30: =IF(P30=0,0,(P30*((LOG(P30))/LOG(2)))) -> 0 | T30: =N30 -> 21222 | U30: =COUNTIF(L7:L23,T30) -> 0 | V30: =U30/(W4-U25) -> 0 | W30: =IF(V30=0,0,(V30*((LOG(V30))/LOG(2)))) -> 0 | Y30: =N30 -> 21222 | Z30: =COUNTIF(L24:L39,Y30) -> 0 | AA30: =Z30/(AB4-Z25) -> 0 | AB30: =IF(AA30=0,0,(AA30*((LOG(AA30))/LOG(2)))) -> 0 | AD30: =N30 -> 21222 | AE30: =COUNTIF(L40:L56,AD30) -> 0 | AF30: =AE30/(AG4-AE25) -> 0 | AG30: =IF(AF30=0,0,(AF30*((LOG(AF30))/LOG(2)))) -> 0 | AI30: =N30 -> 21222 | AJ30: =COUNTIF(L57:L72,AI30) -> 0 | AK30: =AJ30/(AL4-AJ25) -> 0 | AL30: =IF(AK30=0,0,(AK30*((LOG(AK30))/LOG(2)))) -> 0 | AN30: =N30 -> 21222 | AO30: =COUNTIF(L73:L89,AN30) -> 0 | AP30: =AO30/(AQ4-AO25) -> 0 | AQ30: =IF(AP30=0,0,(AP30*((LOG(AP30))/LOG(2)))) -> 0 | AS30: =N30 -> 21222 | AT30: =COUNTIF(L90:L105,AS30) -> 0 | AU30: =AT30/(AV4-AT25) -> 0 | AV30: =IF(AU30=0,0,(AU30*((LOG(AU30))/LOG(2)))) -> 0
A31: 12 | B31: 6697 | C31: 13 | D31: 6713 | E31: 13 | F31: 6732 | G31: 14 | H31: 6748 | I31: 13 | J31: 6776 | K31: 0 | L31: 11111 | N31: 22111 | O31: =COUNTIF($L$7:$L$500,N31) -> 0 | P31: =O31/$Q$4 -> 0 | Q31: =IF(P31=0,0,(P31*((LOG(P31))/LOG(2)))) -> 0 | T31: =N31 -> 22111 | U31: =COUNTIF(L7:L23,T31) -> 0 | V31: =U31/(W4-U25) -> 0 | W31: =IF(V31=0,0,(V31*((LOG(V31))/LOG(2)))) -> 0 | Y31: =N31 -> 22111 | Z31: =COUNTIF(L24:L39,Y31) -> 0 | AA31: =Z31/(AB4-Z25) -> 0 | AB31: =IF(AA31=0,0,(AA31*((LOG(AA31))/LOG(2)))) -> 0 | AD31: =N31 -> 22111 | AE31: =COUNTIF(L40:L56,AD31) -> 0 | AF31: =AE31/(AG4-AE25) -> 0 | AG31: =IF(AF31=0,0,(AF31*((LOG(AF31))/LOG(2)))) -> 0 | AI31: =N31 -> 22111 | AJ31: =COUNTIF(L57:L72,AI31) -> 0 | AK31: =AJ31/(AL4-AJ25) -> 0 | AL31: =IF(AK31=0,0,(AK31*((LOG(AK31))/LOG(2)))) -> 0 | AN31: =N31 -> 22111 | AO31: =COUNTIF(L73:L89,AN31) -> 0 | AP31: =AO31/(AQ4-AO25) -> 0 | AQ31: =IF(AP31=0,0,(AP31*((LOG(AP31))/LOG(2)))) -> 0 | AS31: =N31 -> 22111 | AT31: =COUNTIF(L90:L105,AS31) -> 0 | AU31: =AT31/(AV4-AT25) -> 0 | AV31: =IF(AU31=0,0,(AU31*((LOG(AU31))/LOG(2)))) -> 0
A32: 12 | B32: 6940 | C32: 13 | D32: 6973 | E32: 13 | F32: 6992 | G32: 23 | H32: 7019 | I32: 13 | J32: 7027 | K32: 0 | L32: 11121 | N32: 22112 | O32: =COUNTIF($L$7:$L$500,N32) -> 0 | P32: =O32/$Q$4 -> 0 | Q32: =IF(P32=0,0,(P32*((LOG(P32))/LOG(2)))) -> 0 | T32: =N32 -> 22112 | U32: =COUNTIF(L7:L23,T32) -> 0 | V32: =U32/(W4-U25) -> 0 | W32: =IF(V32=0,0,(V32*((LOG(V32))/LOG(2)))) -> 0 | Y32: =N32 -> 22112 | Z32: =COUNTIF(L24:L39,Y32) -> 0 | AA32: =Z32/(AB4-Z25) -> 0 | AB32: =IF(AA32=0,0,(AA32*((LOG(AA32))/LOG(2)))) -> 0 | AD32: =N32 -> 22112 | AE32: =COUNTIF(L40:L56,AD32) -> 0 | AF32: =AE32/(AG4-AE25) -> 0 | AG32: =IF(AF32=0,0,(AF32*((LOG(AF32))/LOG(2)))) -> 0 | AI32: =N32 -> 22112 | AJ32: =COUNTIF(L57:L72,AI32) -> 0 | AK32: =AJ32/(AL4-AJ25) -> 0 | AL32: =IF(AK32=0,0,(AK32*((LOG(AK32))/LOG(2)))) -> 0 | AN32: =N32 -> 22112 | AO32: =COUNTIF(L73:L89,AN32) -> 0 | AP32: =AO32/(AQ4-AO25) -> 0 | AQ32: =IF(AP32=0,0,(AP32*((LOG(AP32))/LOG(2)))) -> 0 | AS32: =N32 -> 22112 | AT32: =COUNTIF(L90:L105,AS32) -> 0 | AU32: =AT32/(AV4-AT25) -> 0 | AV32: =IF(AU32=0,0,(AU32*((LOG(AU32))/LOG(2)))) -> 0
A33: 12 | B33: 7232 | C33: 13 | D33: 7245 | E33: 13 | F33: 7254 | G33: 14 | H33: 7272 | I33: 24 | J33: 7284 | K33: 0 | L33: 11112 | N33: 22121 | O33: =COUNTIF($L$7:$L$500,N33) -> 0 | P33: =O33/$Q$4 -> 0 | Q33: =IF(P33=0,0,(P33*((LOG(P33))/LOG(2)))) -> 0 | T33: =N33 -> 22121 | U33: =COUNTIF(L7:L23,T33) -> 0 | V33: =U33/(W4-U25) -> 0 | W33: =IF(V33=0,0,(V33*((LOG(V33))/LOG(2)))) -> 0 | Y33: =N33 -> 22121 | Z33: =COUNTIF(L24:L39,Y33) -> 0 | AA33: =Z33/(AB4-Z25) -> 0 | AB33: =IF(AA33=0,0,(AA33*((LOG(AA33))/LOG(2)))) -> 0 | AD33: =N33 -> 22121 | AE33: =COUNTIF(L40:L56,AD33) -> 0 | AF33: =AE33/(AG4-AE25) -> 0 | AG33: =IF(AF33=0,0,(AF33*((LOG(AF33))/LOG(2)))) -> 0 | AI33: =N33 -> 22121 | AJ33: =COUNTIF(L57:L72,AI33) -> 0 | AK33: =AJ33/(AL4-AJ25) -> 0 | AL33: =IF(AK33=0,0,(AK33*((LOG(AK33))/LOG(2)))) -> 0 | AN33: =N33 -> 22121 | AO33: =COUNTIF(L73:L89,AN33) -> 0 | AP33: =AO33/(AQ4-AO25) -> 0 | AQ33: =IF(AP33=0,0,(AP33*((LOG(AP33))/LOG(2)))) -> 0 | AS33: =N33 -> 22121 | AT33: =COUNTIF(L90:L105,AS33) -> 0 | AU33: =AT33/(AV4-AT25) -> 0 | AV33: =IF(AU33=0,0,(AU33*((LOG(AU33))/LOG(2)))) -> 0
A34: 12 | B34: 7440 | C34: 13 | D34: 7459 | E34: 13 | F34: 7472 | G34: 14 | H34: 7488 | I34: 24 | J34: 7500 | K34: 0 | L34: 11112 | N34: 22122 | O34: =COUNTIF($L$7:$L$500,N34) -> 0 | P34: =O34/$Q$4 -> 0 | Q34: =IF(P34=0,0,(P34*((LOG(P34))/LOG(2)))) -> 0 | T34: =N34 -> 22122 | U34: =COUNTIF(L7:L23,T34) -> 0 | V34: =U34/(W4-U25) -> 0 | W34: =IF(V34=0,0,(V34*((LOG(V34))/LOG(2)))) -> 0 | Y34: =N34 -> 22122 | Z34: =COUNTIF(L24:L39,Y34) -> 0 | AA34: =Z34/(AB4-Z25) -> 0 | AB34: =IF(AA34=0,0,(AA34*((LOG(AA34))/LOG(2)))) -> 0 | AD34: =N34 -> 22122 | AE34: =COUNTIF(L40:L56,AD34) -> 0 | AF34: =AE34/(AG4-AE25) -> 0 | AG34: =IF(AF34=0,0,(AF34*((LOG(AF34))/LOG(2)))) -> 0 | AI34: =N34 -> 22122 | AJ34: =COUNTIF(L57:L72,AI34) -> 0 | AK34: =AJ34/(AL4-AJ25) -> 0 | AL34: =IF(AK34=0,0,(AK34*((LOG(AK34))/LOG(2)))) -> 0 | AN34: =N34 -> 22122 | AO34: =COUNTIF(L73:L89,AN34) -> 0 | AP34: =AO34/(AQ4-AO25) -> 0 | AQ34: =IF(AP34=0,0,(AP34*((LOG(AP34))/LOG(2)))) -> 0 | AS34: =N34 -> 22122 | AT34: =COUNTIF(L90:L105,AS34) -> 0 | AU34: =AT34/(AV4-AT25) -> 0 | AV34: =IF(AU34=0,0,(AU34*((LOG(AU34))/LOG(2)))) -> 0
A35: 12 | B35: 7807 | C35: 13 | D35: 7913 | E35: 13 | F35: 7929 | G35: 23 | H35: 7943 | I35: 13 | J35: 7953 | K35: 0 | L35: 11121 | N35: 22211 | O35: =COUNTIF($L$7:$L$500,N35) -> 0 | P35: =O35/$Q$4 -> 0 | Q35: =IF(P35=0,0,(P35*((LOG(P35))/LOG(2)))) -> 0 | T35: =N35 -> 22211 | U35: =COUNTIF(L7:L23,T35) -> 0 | V35: =U35/(W4-U25) -> 0 | W35: =IF(V35=0,0,(V35*((LOG(V35))/LOG(2)))) -> 0 | Y35: =N35 -> 22211 | Z35: =COUNTIF(L24:L39,Y35) -> 0 | AA35: =Z35/(AB4-Z25) -> 0 | AB35: =IF(AA35=0,0,(AA35*((LOG(AA35))/LOG(2)))) -> 0 | AD35: =N35 -> 22211 | AE35: =COUNTIF(L40:L56,AD35) -> 0 | AF35: =AE35/(AG4-AE25) -> 0 | AG35: =IF(AF35=0,0,(AF35*((LOG(AF35))/LOG(2)))) -> 0 | AI35: =N35 -> 22211 | AJ35: =COUNTIF(L57:L72,AI35) -> 0 | AK35: =AJ35/(AL4-AJ25) -> 0 | AL35: =IF(AK35=0,0,(AK35*((LOG(AK35))/LOG(2)))) -> 0 | AN35: =N35 -> 22211 | AO35: =COUNTIF(L73:L89,AN35) -> 0 | AP35: =AO35/(AQ4-AO25) -> 0 | AQ35: =IF(AP35=0,0,(AP35*((LOG(AP35))/LOG(2)))) -> 0 | AS35: =N35 -> 22211 | AT35: =COUNTIF(L90:L105,AS35) -> 0 | AU35: =AT35/(AV4-AT25) -> 0 | AV35: =IF(AU35=0,0,(AU35*((LOG(AU35))/LOG(2)))) -> 0
A36: 12 | B36: 8255 | C36: 13 | D36: 8264 | E36: 13 | F36: 8280 | G36: 14 | H36: 8297 | I36: 24 | J36: 8309 | K36: 0 | L36: 11112 | N36: 22212 | O36: =COUNTIF($L$7:$L$500,N36) -> 0 | P36: =O36/$Q$4 -> 0 | Q36: =IF(P36=0,0,(P36*((LOG(P36))/LOG(2)))) -> 0 | T36: =N36 -> 22212 | U36: =COUNTIF(L7:L23,T36) -> 0 | V36: =U36/(W4-U25) -> 0 | W36: =IF(V36=0,0,(V36*((LOG(V36))/LOG(2)))) -> 0 | Y36: =N36 -> 22212 | Z36: =COUNTIF(L24:L39,Y36) -> 0 | AA36: =Z36/(AB4-Z25) -> 0 | AB36: =IF(AA36=0,0,(AA36*((LOG(AA36))/LOG(2)))) -> 0 | AD36: =N36 -> 22212 | AE36: =COUNTIF(L40:L56,AD36) -> 0 | AF36: =AE36/(AG4-AE25) -> 0 | AG36: =IF(AF36=0,0,(AF36*((LOG(AF36))/LOG(2)))) -> 0 | AI36: =N36 -> 22212 | AJ36: =COUNTIF(L57:L72,AI36) -> 0 | AK36: =AJ36/(AL4-AJ25) -> 0 | AL36: =IF(AK36=0,0,(AK36*((LOG(AK36))/LOG(2)))) -> 0 | AN36: =N36 -> 22212 | AO36: =COUNTIF(L73:L89,AN36) -> 0 | AP36: =AO36/(AQ4-AO25) -> 0 | AQ36: =IF(AP36=0,0,(AP36*((LOG(AP36))/LOG(2)))) -> 0 | AS36: =N36 -> 22212 | AT36: =COUNTIF(L90:L105,AS36) -> 0 | AU36: =AT36/(AV4-AT25) -> 0 | AV36: =IF(AU36=0,0,(AU36*((LOG(AU36))/LOG(2)))) -> 0
A37: 12 | B37: 8453 | C37: 13 | D37: 8472 | E37: 13 | F37: 8491 | G37: 14 | H37: 8508 | I37: 24 | J37: 8524 | K37: 0 | L37: 11112 | N37: 22221 | O37: =COUNTIF($L$7:$L$500,N37) -> 0 | P37: =O37/$Q$4 -> 0 | Q37: =IF(P37=0,0,(P37*((LOG(P37))/LOG(2)))) -> 0 | T37: =N37 -> 22221 | U37: =COUNTIF(L7:L23,T37) -> 0 | V37: =U37/(W4-U25) -> 0 | W37: =IF(V37=0,0,(V37*((LOG(V37))/LOG(2)))) -> 0 | Y37: =N37 -> 22221 | Z37: =COUNTIF(L24:L39,Y37) -> 0 | AA37: =Z37/(AB4-Z25) -> 0 | AB37: =IF(AA37=0,0,(AA37*((LOG(AA37))/LOG(2)))) -> 0 | AD37: =N37 -> 22221 | AE37: =COUNTIF(L40:L56,AD37) -> 0 | AF37: =AE37/(AG4-AE25) -> 0 | AG37: =IF(AF37=0,0,(AF37*((LOG(AF37))/LOG(2)))) -> 0 | AI37: =N37 -> 22221 | AJ37: =COUNTIF(L57:L72,AI37) -> 0 | AK37: =AJ37/(AL4-AJ25) -> 0 | AL37: =IF(AK37=0,0,(AK37*((LOG(AK37))/LOG(2)))) -> 0 | AN37: =N37 -> 22221 | AO37: =COUNTIF(L73:L89,AN37) -> 0 | AP37: =AO37/(AQ4-AO25) -> 0 | AQ37: =IF(AP37=0,0,(AP37*((LOG(AP37))/LOG(2)))) -> 0 | AS37: =N37 -> 22221 | AT37: =COUNTIF(L90:L105,AS37) -> 0 | AU37: =AT37/(AV4-AT25) -> 0 | AV37: =IF(AU37=0,0,(AU37*((LOG(AU37))/LOG(2)))) -> 0
A38: 21 | B38: 8750 | C38: 11 | D38: 8759 | E38: 22 | F38: 8772 | G38: 14 | H38: 8781 | I38: 24 | J38: 8799 | K38: 0 | L38: 21212 | N38: 22222 | O38: =COUNTIF($L$7:$L$500,N38) -> 0 | P38: =O38/$Q$4 -> 0 | Q38: =IF(P38=0,0,(P38*((LOG(P38))/LOG(2)))) -> 0 | T38: =N38 -> 22222 | U38: =COUNTIF(L7:L23,T38) -> 0 | V38: =U38/(W4-U25) -> 0 | W38: =IF(V38=0,0,(V38*((LOG(V38))/LOG(2)))) -> 0 | Y38: =N38 -> 22222 | Z38: =COUNTIF(L24:L39,Y38) -> 0 | AA38: =Z38/(AB4-Z25) -> 0 | AB38: =IF(AA38=0,0,(AA38*((LOG(AA38))/LOG(2)))) -> 0 | AD38: =N38 -> 22222 | AE38: =COUNTIF(L40:L56,AD38) -> 0 | AF38: =AE38/(AG4-AE25) -> 0 | AG38: =IF(AF38=0,0,(AF38*((LOG(AF38))/LOG(2)))) -> 0 | AI38: =N38 -> 22222 | AJ38: =COUNTIF(L57:L72,AI38) -> 0 | AK38: =AJ38/(AL4-AJ25) -> 0 | AL38: =IF(AK38=0,0,(AK38*((LOG(AK38))/LOG(2)))) -> 0 | AN38: =N38 -> 22222 | AO38: =COUNTIF(L73:L89,AN38) -> 0 | AP38: =AO38/(AQ4-AO25) -> 0 | AQ38: =IF(AP38=0,0,(AP38*((LOG(AP38))/LOG(2)))) -> 0 | AS38: =N38 -> 22222 | AT38: =COUNTIF(L90:L105,AS38) -> 0 | AU38: =AT38/(AV4-AT25) -> 0 | AV38: =IF(AU38=0,0,(AU38*((LOG(AU38))/LOG(2)))) -> 0
A39: 12 | B39: 8905 | C39: 13 | D39: 8934 | E39: 13 | F39: 8964 | G39: 14 | H39: 8988 | I39: 24 | J39: 9003 | K39: 0 | L39: 11112 | P39: =SUM(P7:P38) -> 1 | Q39: =-SUM(Q7:Q38) -> 3.034143129 | V39: =SUM(V7:V38) -> 1 | W39: =-SUM(W7:W38) -> 3.25 | AA39: =SUM(AA7:AA38) -> 1 | AB39: =-SUM(AB7:AB38) -> 2.14939747 | AF39: =SUM(AF7:AF38) -> 1 | AG39: =-SUM(AG7:AG38) -> 2.077819531 | AK39: =SUM(AK7:AK38) -> 1 | AL39: =-SUM(AL7:AL38) -> 1.805036533 | AP39: =SUM(AP7:AP38) -> 1 | AQ39: =-SUM(AQ7:AQ38) -> 2.660129753 | AU39: =SUM(AU7:AU38) -> 1 | AV39: =-SUM(AV7:AV38) -> 2.199581231
A40: 12 | B40: 9178 | C40: 13 | D40: 9205 | E40: 13 | F40: 9238 | G40: 23 | H40: 9272 | I40: 13 | J40: 9283 | K40: 0 | L40: 11121 | P40: U= | Q40: =Q39/(LOG(Q4)/LOG(2)) -> 0.4576828949 | V40: U1= | W40: =W39/(LOG(W4)/LOG(2)) -> 0.7951142619 | AA40: U2= | AB40: =AB39/(LOG(AB4)/LOG(2)) -> 0.5373493676 | AF40: U3= | AG40: =AG39/(LOG(AG4)/LOG(2)) -> 0.5083396747 | AK40: U4= | AL40: =AL39/(LOG(AL4)/LOG(2)) -> 0.4512591331 | AP40: U5= | AQ40: =AQ39/(LOG(AQ4)/LOG(2)) -> 0.6508021861 | AU40: U6= | AV40: =AV39/(LOG(AV4)/LOG(2)) -> 0.5498953077
A41: 12 | B41: 9428 | C41: 13 | D41: 9449 | E41: 24 | F41: 9472 | G41: 14 | H41: 9484 | I41: 24 | J41: 9500 | K41: 0 | L41: 11212
A42: 12 | B42: 9999 | C42: 24 | D42: 10026 | E42: 13 | F42: 10051 | G42: 23 | H42: 10066 | I42: 13 | J42: 10075 | K42: 0 | L42: 12121
A43: 12 | B43: 10196 | C43: 13 | D43: 10218 | E43: 13 | F43: 10228 | G43: 14 | H43: 10245 | I43: 24 | J43: 10258 | K43: 0 | L43: 11112 | N43: Total Target Seq
A44: 12 | B44: 10388 | C44: 13 | D44: 10397 | E44: 13 | F44: 10408 | G44: 14 | H44: 10419 | I44: 13 | J44: 10431 | K44: 0 | L44: 11111 | N44: =COUNTIF(L7:L105,G3) -> 3 | P44: 17 | Q44: 16 | R44: 17 | S44: 16 | T44: 17 | U44: 16
A45: 12 | B45: 10567 | C45: 13 | D45: 10582 | E45: 13 | F45: 10600 | G45: 23 | H45: 10612 | I45: 13 | J45: 10622 | K45: 0 | L45: 11121 | P45: % of reinforcement given in 6 equal intervals based on number of trials
A46: 12 | B46: 10794 | C46: 13 | D46: 10811 | E46: 13 | F46: 10821 | G46: 23 | H46: 10835 | I46: 13 | J46: 10845 | K46: 0 | L46: 11121 | P46: %_1 | Q46: %_2 | R46: %_3 | S46: %_4 | T46: %_5 | U46: %_6
A47: 21 | B47: 10960 | C47: 11 | D47: 11001 | E47: 22 | F47: 11015 | G47: 23 | H47: 11029 | I47: 13 | J47: 11068 | K47: 0 | L47: 21221 | O47: target sequence | P47: =$G$3 -> 21121 | Q47: =$G$3 -> 21121 | R47: =$G$3 -> 21121 | S47: =$G$3 -> 21121 | T47: =$G$3 -> 21121 | U47: =$G$3 -> 21121
A48: 12 | B48: 11233 | C48: 13 | D48: 11326 | E48: 13 | F48: 11353 | G48: 14 | H48: 11370 | I48: 24 | J48: 11384 | K48: 0 | L48: 11112 | O48: total reinforcement | P48: =U25 -> 1 | Q48: =Z25 -> 0 | R48: =AE25 -> 1 | S48: =AJ25 -> 0 | T48: =AO25 -> 0 | U48: =AT25 -> 1
A49: 21 | B49: 11532 | C49: 11 | D49: 11550 | E49: 11 | F49: 11564 | G49: 21 | H49: 11580 | I49: 11 | J49: 11589 | K49: 1 | L49: 21121 | O49: % target
A50: 12 | B50: 11808 | C50: 13 | D50: 11822 | E50: 13 | F50: 11835 | G50: 23 | H50: 11848 | I50: 13 | J50: 11859 | K50: 0 | L50: 11121 | O50: CCRF
A51: 12 | B51: 11995 | C51: 13 | D51: 12007 | E51: 13 | F51: 12020 | G51: 23 | H51: 12033 | I51: 13 | J51: 12043 | K51: 0 | L51: 11121 | O51: % CCRf
A52: 12 | B52: 12197 | C52: 13 | D52: 12213 | E52: 13 | F52: 12239 | G52: 23 | H52: 12252 | I52: 13 | J52: 12261 | K52: 0 | L52: 11121 | O52: average response rate | P52: =J23/P44 -> 289.4705882 | Q52: =(J39-J23)/Q44 -> 255.125 | R52: =(J56-J39)/R44 -> 242 | S52: =(J72-J56)/S44 -> 215.8125 | T52: =(J89-J72)/T44 -> 232 | U52: =(J105-J89)/U44 -> 214.75
A53: 12 | B53: 12392 | C53: 13 | D53: 12403 | E53: 13 | F53: 12430 | G53: 14 | H53: 12450 | I53: 24 | J53: 12463 | K53: 0 | L53: 11112
A54: 12 | B54: 12607 | C54: 13 | D54: 12629 | E54: 13 | F54: 12646 | G54: 23 | H54: 12662 | I54: 13 | J54: 12673 | K54: 0 | L54: 11121
A55: 12 | B55: 12846 | C55: 13 | D55: 12865 | E55: 13 | F55: 12883 | G55: 23 | H55: 12895 | I55: 13 | J55: 12905 | K55: 0 | L55: 11121
A56: 12 | B56: 13013 | C56: 13 | D56: 13058 | E56: 13 | F56: 13073 | G56: 14 | H56: 13091 | I56: 13 | J56: 13117 | K56: 0 | L56: 11111
A57: 12 | B57: 13267 | C57: 13 | D57: 13280 | E57: 13 | F57: 13294 | G57: 14 | H57: 13311 | I57: 24 | J57: 13335 | K57: 0 | L57: 11112
A58: 12 | B58: 13470 | C58: 13 | D58: 13479 | E58: 13 | F58: 13492 | G58: 14 | H58: 13515 | I58: 24 | J58: 13529 | K58: 0 | L58: 11112
A59: 12 | B59: 13651 | C59: 13 | D59: 13668 | E59: 13 | F59: 13686 | G59: 23 | H59: 13705 | I59: 13 | J59: 13714 | K59: 0 | L59: 11121
A60: 12 | B60: 13857 | C60: 13 | D60: 13887 | E60: 13 | F60: 13896 | G60: 14 | H60: 13915 | I60: 13 | J60: 13929 | K60: 0 | L60: 11111
A61: 12 | B61: 14050 | C61: 13 | D61: 14077 | E61: 13 | F61: 14097 | G61: 14 | H61: 14114 | I61: 24 | J61: 14134 | K61: 0 | L61: 11112
A62: 12 | B62: 14269 | C62: 13 | D62: 14309 | E62: 13 | F62: 14318 | G62: 23 | H62: 14338 | I62: 13 | J62: 14348 | K62: 0 | L62: 11121
A63: 12 | B63: 14485 | C63: 13 | D63: 14501 | E63: 13 | F63: 14529 | G63: 23 | H63: 14542 | I63: 13 | J63: 14550 | K63: 0 | L63: 11121
A64: 12 | B64: 14670 | C64: 13 | D64: 14679 | E64: 13 | F64: 14693 | G64: 14 | H64: 14713 | I64: 24 | J64: 14725 | K64: 0 | L64: 11112
A65: 12 | B65: 14919 | C65: 13 | D65: 15023 | E65: 13 | F65: 15031 | G65: 14 | H65: 15047 | I65: 13 | J65: 15067 | K65: 0 | L65: 11111
A66: 12 | B66: 15203 | C66: 13 | D66: 15223 | E66: 13 | F66: 15242 | G66: 14 | H66: 15252 | I66: 13 | J66: 15271 | K66: 0 | L66: 11111
A67: 12 | B67: 15424 | C67: 13 | D67: 15434 | E67: 13 | F67: 15459 | G67: 14 | H67: 15478 | I67: 13 | J67: 15501 | K67: 0 | L67: 11111
A68: 12 | B68: 15654 | C68: 24 | D68: 15668 | E68: 13 | F68: 15677 | G68: 14 | H68: 15688 | I68: 13 | J68: 15714 | K68: 0 | L68: 12111
A69: 12 | B69: 15827 | C69: 13 | D69: 15841 | E69: 13 | F69: 15854 | G69: 14 | H69: 15865 | I69: 13 | J69: 15898 | K69: 0 | L69: 11111
A70: 12 | B70: 16113 | C70: 13 | D70: 16140 | E70: 13 | F70: 16148 | G70: 23 | H70: 16168 | I70: 13 | J70: 16178 | K70: 0 | L70: 11121
A71: 12 | B71: 16298 | C71: 13 | D71: 16322 | E71: 13 | F71: 16344 | G71: 14 | H71: 16367 | I71: 13 | J71: 16374 | K71: 0 | L71: 11111
A72: 12 | B72: 16508 | C72: 13 | D72: 16524 | E72: 13 | F72: 16545 | G72: 23 | H72: 16561 | I72: 13 | J72: 16570 | K72: 0 | L72: 11121
A73: 12 | B73: 16707 | C73: 13 | D73: 16722 | E73: 13 | F73: 16736 | G73: 23 | H73: 16751 | I73: 13 | J73: 16760 | K73: 0 | L73: 11121
A74: 12 | B74: 16926 | C74: 13 | D74: 16934 | E74: 13 | F74: 16948 | G74: 14 | H74: 16963 | I74: 13 | J74: 16973 | K74: 0 | L74: 11111
A75: 12 | B75: 17131 | C75: 13 | D75: 17144 | E75: 13 | F75: 17161 | G75: 23 | H75: 17179 | I75: 13 | J75: 17189 | K75: 0 | L75: 11121
A76: 12 | B76: 17329 | C76: 13 | D76: 17347 | E76: 13 | F76: 17355 | G76: 14 | H76: 17368 | I76: 13 | J76: 17387 | K76: 0 | L76: 11111
A77: 21 | B77: 17543 | C77: 11 | D77: 17560 | E77: 11 | F77: 17578 | G77: 21 | H77: 17596 | I77: 22 | J77: 17631 | K77: 0 | L77: 21122
A78: 12 | B78: 17762 | C78: 13 | D78: 17776 | E78: 13 | F78: 17787 | G78: 14 | H78: 17795 | I78: 13 | J78: 17823 | K78: 0 | L78: 11111
A79: 12 | B79: 17992 | C79: 13 | D79: 18049 | E79: 13 | F79: 18074 | G79: 23 | H79: 18097 | I79: 13 | J79: 18108 | K79: 0 | L79: 11121
A80: 12 | B80: 18280 | C80: 13 | D80: 18300 | E80: 13 | F80: 18319 | G80: 14 | H80: 18336 | I80: 24 | J80: 18360 | K80: 0 | L80: 11112
A81: 12 | B81: 18485 | C81: 13 | D81: 18513 | E81: 13 | F81: 18530 | G81: 23 | H81: 18541 | I81: 13 | J81: 18551 | K81: 0 | L81: 11121
A82: 12 | B82: 18693 | C82: 24 | D82: 18707 | E82: 13 | F82: 18716 | G82: 23 | H82: 18729 | I82: 13 | J82: 18738 | K82: 0 | L82: 12121
A83: 12 | B83: 18868 | C83: 13 | D83: 18883 | E83: 13 | F83: 18896 | G83: 14 | H83: 18915 | I83: 24 | J83: 18927 | K83: 0 | L83: 11112
A84: 12 | B84: 19135 | C84: 13 | D84: 19144 | E84: 13 | F84: 19176 | G84: 23 | H84: 19197 | I84: 13 | J84: 19206 | K84: 0 | L84: 11121
A85: 12 | B85: 19407 | C85: 13 | D85: 19424 | E85: 24 | F85: 19437 | G85: 14 | H85: 19445 | I85: 24 | J85: 19463 | K85: 0 | L85: 11212
A86: 12 | B86: 19704 | C86: 24 | D86: 19723 | E86: 13 | F86: 19754 | G86: 23 | H86: 19770 | I86: 24 | J86: 19783 | K86: 0 | L86: 12122
A87: 12 | B87: 19964 | C87: 13 | D87: 19981 | E87: 24 | F87: 19994 | G87: 14 | H87: 20004 | I87: 24 | J87: 20021 | K87: 0 | L87: 11212
A88: 12 | B88: 20195 | C88: 13 | D88: 20212 | E88: 13 | F88: 20235 | G88: 23 | H88: 20248 | I88: 13 | J88: 20258 | K88: 0 | L88: 11121
A89: 21 | B89: 20435 | C89: 11 | D89: 20449 | E89: 11 | F89: 20460 | G89: 12 | H89: 20480 | I89: 13 | J89: 20514 | K89: 0 | L89: 21111
A90: 12 | B90: 20690 | C90: 13 | D90: 20707 | E90: 13 | F90: 20715 | G90: 23 | H90: 20730 | I90: 13 | J90: 20740 | K90: 0 | L90: 11121
A91: 12 | B91: 20917 | C91: 13 | D91: 20936 | E91: 13 | F91: 20949 | G91: 14 | H91: 20973 | I91: 24 | J91: 20988 | K91: 0 | L91: 11112
A92: 21 | B92: 21123 | C92: 11 | D92: 21135 | E92: 11 | F92: 21150 | G92: 21 | H92: 21166 | I92: 11 | J92: 21175 | K92: 1 | L92: 21121
A93: 12 | B93: 21325 | C93: 13 | D93: 21361 | E93: 13 | F93: 21378 | G93: 23 | H93: 21392 | I93: 13 | J93: 21401 | K93: 0 | L93: 11121
A94: 12 | B94: 21552 | C94: 13 | D94: 21573 | E94: 13 | F94: 21595 | G94: 23 | H94: 21610 | I94: 13 | J94: 21619 | K94: 0 | L94: 11121
A95: 12 | B95: 21739 | C95: 13 | D95: 21748 | E95: 13 | F95: 21762 | G95: 14 | H95: 21786 | I95: 24 | J95: 21801 | K95: 0 | L95: 11112
A96: 12 | B96: 21930 | C96: 13 | D96: 21943 | E96: 13 | F96: 21953 | G96: 14 | H96: 21970 | I96: 13 | J96: 21987 | K96: 0 | L96: 11111
A97: 12 | B97: 22180 | C97: 13 | D97: 22201 | E97: 13 | F97: 22218 | G97: 23 | H97: 22236 | I97: 13 | J97: 22245 | K97: 0 | L97: 11121
A98: 12 | B98: 22415 | C98: 13 | D98: 22437 | E98: 24 | F98: 22452 | G98: 14 | H98: 22463 | I98: 24 | J98: 22479 | K98: 0 | L98: 11212
A99: 21 | B99: 22603 | C99: 11 | D99: 22613 | E99: 11 | F99: 22629 | G99: 12 | H99: 22646 | I99: 13 | J99: 22655 | K99: 0 | L99: 21111
A100: 12 | B100: 22807 | C100: 13 | D100: 22822 | E100: 13 | F100: 22829 | G100: 14 | H100: 22845 | I100: 13 | J100: 22873 | K100: 0 | L100: 11111
A101: 12 | B101: 22988 | C101: 13 | D101: 23000 | E101: 13 | F101: 23017 | G101: 23 | H101: 23032 | I101: 13 | J101: 23040 | K101: 0 | L101: 11121
A102: 21 | B102: 23223 | C102: 11 | D102: 23233 | E102: 11 | F102: 23249 | G102: 12 | H102: 23283 | I102: 13 | J102: 23292 | K102: 0 | L102: 21111
A103: 12 | B103: 23460 | C103: 13 | D103: 23479 | E103: 24 | F103: 23491 | G103: 14 | H103: 23501 | I103: 24 | J103: 23520 | K103: 0 | L103: 11212
A104: 12 | B104: 23676 | C104: 13 | D104: 23686 | E104: 13 | F104: 23713 | G104: 14 | H104: 23730 | I104: 13 | J104: 23750 | K104: 0 | L104: 11111
A105: 12 | B105: 23893 | C105: 13 | D105: 23902 | E105: 13 | F105: 23913 | G105: 14 | H105: 23927 | I105: 13 | J105: 23950 | L105: 11111

Sheet !MA03740.010
A1: Report for:!MA03740.010
A2: Date: | B2: <date>
A3: Hen: | B3: <hen> | F3: Correct Sequence | G3: =Start!J2 -> 21121 | P3: Total Sequences in Data | Q3: =4994-COUNTBLANK(L7:L5000) -> 112 | V3: Total Sequences in Block Data | W3: =COUNTA(L7:L25) -> 19 | AA3: Total Sequences in Block Data | AB3: =COUNTA(L26:L43) -> 18 | AF3: Total Sequences in Block Data | AG3: =COUNTA(L44:L62) -> 19 | AK3: Total Sequences in Block Data | AL3: =COUNTA(L63:L81) -> 19 | AP3: Total Sequences in Block Data | AQ3: =COUNTA(L82:L99) -> 18 | AU3: Total Sequences in Block Data | AV3: =COUNTA(L100:L118) -> 19
P4: Total Sequences in Summary | Q4: =SUM(O7:O38) -> 111 | V4: Total Sequences in Block Summary | W4: =SUM(U7:U38) -> 19 | AA4: Total Sequences in Block Summary | AB4: =SUM(Z7:Z38) -> 18 | AF4: Total Sequences in Block Summary | AG4: =SUM(AE7:AE38) -> 19 | AK4: Total Sequences in Block Summary | AL4: =SUM(AJ7:AJ38) -> 19 | AP4: Total Sequences in Block Summary | AQ4: =SUM(AO7:AO38) -> 18 | AU4: Total Sequences in Block Summary | AV4: =SUM(AT7:AT38) -> 18
T5: Block 1 | Y5: Block 2 | AD5: Block 3 | AI5: Block 4 | AN5: Block 5 | AS5: Block 6
A6: Sequence Component 1 | B6: Time 1 | C6: Sequence Component 2 | D6: Time 2 | E6: Sequence Component 3 | F6: Time 3 | G6: Sequence Component 4 | H6: Time 4 | I6: Sequence Component 5 | J6: Time 5 | K6: Correct? 0=No 1=Yes | L6: Sequence | N6: Frequency | P6: Relative Frequency | Q6: Variability | T6: Frequency | V6: Relative Frequency | W6: Variability | Y6: Frequency | AA6: Relative Frequency | AB6: Variability | AD6: Frequency | AF6: Relative Frequency | AG6: Variability | AI6: Frequency | AK6: Relative Frequency | AL6: Variability | AN6: Frequency | AP6: Relative Frequency | AQ6: Variability | AS6: Frequency | AU6: Relative Frequency | AV6: Variability
A7: 21 | B7: 25 | C7: 22 | D7: 43 | E7: 13 | F7: 114 | G7: 14 | H7: 158 | I7: 24 | J7: 180 | K7: 0 | L7: 22112 | N7: 11111 | O7: =COUNTIF($L$7:$L$500,N7) -> 11 | P7: =O7/$Q$4 -> 0.0990990991 | Q7: =IF(P7=0,0,(P7*((LOG(P7))/LOG(2)))) -> -0.3304939345 | T7: =N7 -> 11111 | U7: =COUNTIF(L7:L25,T7) -> 5 | V7: =U7/(W4-U25) -> 0.2631578947 | W7: =IF(V7=0,0,(V7*((LOG(V7))/LOG(2)))) -> -0.5068419523 | Y7: =N7 -> 11111 | Z7: =COUNTIF(L26:L43,Y7) -> 1 | AA7: =Z7/(AB4-Z25) -> 0.0625 | AB7: =IF(AA7=0,0,(AA7*((LOG(AA7))/LOG(2)))) -> -0.25 | AD7: =N7 -> 11111 | AE7: =COUNTIF(L44:L62,AD7) -> 1 | AF7: =AE7/(AG4-AE25) -> 0.05555555556 | AG7: =IF(AF7=0,0,(AF7*((LOG(AF7))/LOG(2)))) -> -0.2316625001 | AI7: =N7 -> 11111 | AJ7: =COUNTIF(L63:L81,AI7) -> 0 | AK7: =AJ7/(AL4-AJ25) -> 0 | AL7: =IF(AK7=0,0,(AK7*((LOG(AK7))/LOG(2)))) -> 0 | AN7: =N7 -> 11111 | AO7: =COUNTIF(L82:L99,AN7) -> 0 | AP7: =AO7/(AQ4-AO25) -> 0 | AQ7: =IF(AP7=0,0,(AP7*((LOG(AP7))/LOG(2)))) -> 0 | AS7: =N7 -> 11111 | AT7: =COUNTIF(L100:L118,AS7) -> 4 | AU7: =AT7/(AV4-AT25) -> 0.2352941176 | AV7: =IF(AU7=0,0,(AU7*((LOG(AU7))/LOG(2)))) -> -0.4911677274
A8: 12 | B8: 299 | C8: 24 | D8: 313 | E8: 24 | F8: 328 | G8: 23 | H8: 422 | I8: 13 | J8: 441 | K8: 0 | L8: 12221 | N8: 11112 | O8: =COUNTIF($L$7:$L$500,N8) -> 8 | P8: =O8/$Q$4 -> 0.07207207207 | Q8: =IF(P8=0,0,(P8*((LOG(P8))/LOG(2)))) -> -0.2734714138 | T8: =N8 -> 11112 | U8: =COUNTIF(L7:L25,T8) -> 3 | V8: =U8/(W4-U25) -> 0.1578947368 | W8: =IF(V8=0,0,(V8*((LOG(V8))/LOG(2)))) -> -0.4204681599 | Y8: =N8 -> 11112 | Z8: =COUNTIF(L26:L43,Y8) -> 2 | AA8: =Z8/(AB4-Z25) -> 0.125 | AB8: =IF(AA8=0,0,(AA8*((LOG(AA8))/LOG(2)))) -> -0.375 | AD8: =N8 -> 11112 | AE8: =COUNTIF(L44:L62,AD8) -> 0 | AF8: =AE8/(AG4-AE25) -> 0 | AG8: =IF(AF8=0,0,(AF8*((LOG(AF8))/LOG(2)))) -> 0 | AI8: =N8 -> 11112 | AJ8: =COUNTIF(L63:L81,AI8) -> 0 | AK8: =AJ8/(AL4-AJ25) -> 0 | AL8: =IF(AK8=0,0,(AK8*((LOG(AK8))/LOG(2)))) -> 0 | AN8: =N8 -> 11112 | AO8: =COUNTIF(L82:L99,AN8) -> 3 | AP8: =AO8/(AQ4-AO25) -> 0.1875 | AQ8: =IF(AP8=0,0,(AP8*((LOG(AP8))/LOG(2)))) -> -0.4528195311 | AS8: =N8 -> 11112 | AT8: =COUNTIF(L100:L118,AS8) -> 0 | AU8: =AT8/(AV4-AT25) -> 0 | AV8: =IF(AU8=0,0,(AU8*((LOG(AU8))/LOG(2)))) -> 0
A9: 21 | B9: 543 | C9: 11 | D9: 563 | E9: 22 | F9: 576 | G9: 14 | H9: 585 | I9: 24 | J9: 599 | K9: 0 | L9: 21212 | N9: 11121 | O9: =COUNTIF($L$7:$L$500,N9) -> 15 | P9: =O9/$Q$4 -> 0.1351351351 | Q9: =IF(P9=0,0,(P9*((LOG(P9))/LOG(2)))) -> -0.3902061177 | T9: =N9 -> 11121 | U9: =COUNTIF(L7:L25,T9) -> 3 | V9: =U9/(W4-U25) -> 0.1578947368 | W9: =IF(V9=0,0,(V9*((LOG(V9))/LOG(2)))) -> -0.4204681599 | Y9: =N9 -> 11121 | Z9: =COUNTIF(L26:L43,Y9) -> 5 | AA9: =Z9/(AB4-Z25) -> 0.3125 | AB9: =IF(AA9=0,0,(AA9*((LOG(AA9))/LOG(2)))) -> -0.5243974703 | AD9: =N9 -> 11121 | AE9: =COUNTIF(L44:L62,AD9) -> 2 | AF9: =AE9/(AG4-AE25) -> 0.1111111111 | AG9: =IF(AF9=0,0,(AF9*((LOG(AF9))/LOG(2)))) -> -0.352213889 | AI9: =N9 -> 11121 | AJ9: =COUNTIF(L63:L81,AI9) -> 2 | AK9: =AJ9/(AL4-AJ25) -> 0.1176470588 | AL9: =IF(AK9=0,0,(AK9*((LOG(AK9))/LOG(2)))) -> -0.3632309225 | AN9: =N9 -> 11121 | AO9: =COUNTIF(L82:L99,AN9) -> 1 | AP9: =AO9/(AQ4-AO25) -> 0.0625 | AQ9: =IF(AP9=0,0,(AP9*((LOG(AP9))/LOG(2)))) -> -0.25 | AS9: =N9 -> 11121 | AT9: =COUNTIF(L100:L118,AS9) -> 2 | AU9: =AT9/(AV4-AT25) -> 0.1176470588 | AV9: =IF(AU9=0,0,(AU9*((LOG(AU9))/LOG(2)))) -> -0.3632309225
A10: 12 | B10: 731 | C10: 13 | D10: 747 | E10: 13 | F10: 766 | G10: 14 | H10: 774 | I10: 13 | J10: 811 | K10: 0 | L10: 11111 | N10: 11122 | O10: =COUNTIF($L$7:$L$500,N10) -> 1 | P10: =O10/$Q$4 -> 0.009009009009 | Q10: =IF(P10=0,0,(P10*((LOG(P10))/LOG(2)))) -> -0.06121095375 | T10: =N10 -> 11122 | U10: =COUNTIF(L7:L25,T10) -> 1 | V10: =U10/(W4-U25) -> 0.05263157895 | W10: =IF(V10=0,0,(V10*((LOG(V10))/LOG(2)))) -> -0.2235751323 | Y10: =N10 -> 11122 | Z10: =COUNTIF(L26:L43,Y10) -> 0 | AA10: =Z10/(AB4-Z25) -> 0 | AB10: =IF(AA10=0,0,(AA10*((LOG(AA10))/LOG(2)))) -> 0 | AD10: =N10 -> 11122 | AE10: =COUNTIF(L44:L62,AD10) -> 0 | AF10: =AE10/(AG4-AE25) -> 0 | AG10: =IF(AF10=0,0,(AF10*((LOG(AF10))/LOG(2)))) -> 0 | AI10: =N10 -> 11122 | AJ10: =COUNTIF(L63:L81,AI10) -> 0 | AK10: =AJ10/(AL4-AJ25) -> 0 | AL10: =IF(AK10=0,0,(AK10*((LOG(AK10))/LOG(2)))) -> 0 | AN10: =N10 -> 11122 | AO10: =COUNTIF(L82:L99,AN10) -> 0 | AP10: =AO10/(AQ4-AO25) -> 0 | AQ10: =IF(AP10=0,0,(AP10*((LOG(AP10))/LOG(2)))) -> 0 | AS10: =N10 -> 11122 | AT10: =COUNTIF(L100:L118,AS10) -> 0 | AU10: =AT10/(AV4-AT25) -> 0 | AV10: =IF(AU10=0,0,(AU10*((LOG(AU10))/LOG(2)))) -> 0
A11: 12 | B11: 1054 | C11: 24 | D11: 1070 | E11: 13 | F11: 1087 | G11: 23 | H11: 1104 | I11: 13 | J11: 1116 | K11: 0 | L11: 12121 | N11: 11211 | O11: =COUNTIF($L$7:$L$500,N11) -> 4 | P11: =O11/$Q$4 -> 0.03603603604 | Q11: =IF(P11=0,0,(P11*((LOG(P11))/LOG(2)))) -> -0.1727717429 | T11: =N11 -> 11211 | U11: =COUNTIF(L7:L25,T11) -> 0 | V11: =U11/(W4-U25) -> 0 | W11: =IF(V11=0,0,(V11*((LOG(V11))/LOG(2)))) -> 0 | Y11: =N11 -> 11211 | Z11: =COUNTIF(L26:L43,Y11) -> 1 | AA11: =Z11/(AB4-Z25) -> 0.0625 | AB11: =IF(AA11=0,0,(AA11*((LOG(AA11))/LOG(2)))) -> -0.25 | AD11: =N11 -> 11211 | AE11: =COUNTIF(L44:L62,AD11) -> 2 | AF11: =AE11/(AG4-AE25) -> 0.1111111111 | AG11: =IF(AF11=0,0,(AF11*((LOG(AF11))/LOG(2)))) -> -0.352213889 | AI11: =N11 -> 11211 | AJ11: =COUNTIF(L63:L81,AI11) -> 1 | AK11: =AJ11/(AL4-AJ25) -> 0.05882352941 | AL11: =IF(AK11=0,0,(AK11*((LOG(AK11))/LOG(2)))) -> -0.2404389907 | AN11: =N11 -> 11211 | AO11: =COUNTIF(L82:L99,AN11) -> 0 | AP11: =AO11/(AQ4-AO25) -> 0 | AQ11: =IF(AP11=0,0,(AP11*((LOG(AP11))/LOG(2)))) -> 0 | AS11: =N11 -> 11211 | AT11: =COUNTIF(L100:L118,AS11) -> 0 | AU11: =AT11/(AV4-AT25) -> 0 | AV11: =IF(AU11=0,0,(AU11*((LOG(AU11))/LOG(2)))) -> 0
A12: 12 | B12: 1319 | C12: 13 | D12: 1515 | E12: 13 | F12: 1529 | G12: 14 | H12: 1553 | I12: 24 | J12: 1568 | K12: 0 | L12: 11112 | N12: 11212 | O12: =COUNTIF($L$7:$L$500,N12) -> 11 | P12: =O12/$Q$4 -> 0.0990990991 | Q12: =IF(P12=0,0,(P12*((LOG(P12))/LOG(2)))) -> -0.3304939345 | T12: =N12 -> 11212 | U12: =COUNTIF(L7:L25,T12) -> 1 | V12: =U12/(W4-U25) -> 0.05263157895 | W12: =IF(V12=0,0,(V12*((LOG(V12))/LOG(2)))) -> -0.2235751323 | Y12: =N12 -> 11212 | Z12: =COUNTIF(L26:L43,Y12) -> 1 | AA12: =Z12/(AB4-Z25) -> 0.0625 | AB12: =IF(AA12=0,0,(AA12*((LOG(AA12))/LOG(2)))) -> -0.25 | AD12: =N12 -> 11212 | AE12: =COUNTIF(L44:L62,AD12) -> 2 | AF12: =AE12/(AG4-AE25) -> 0.1111111111 | AG12: =IF(AF12=0,0,(AF12*((LOG(AF12))/LOG(2)))) -> -0.352213889 | AI12: =N12 -> 11212 | AJ12: =COUNTIF(L63:L81,AI12) -> 3 | AK12: =AJ12/(AL4-AJ25) -> 0.1764705882 | AL12: =IF(AK12=0,0,(AK12*((LOG(AK12))/LOG(2)))) -> -0.4416177072 | AN12: =N12 -> 11212 | AO12: =COUNTIF(L82:L99,AN12) -> 2 | AP12: =AO12/(AQ4-AO25) -> 0.125 | AQ12: =IF(AP12=0,0,(AP12*((LOG(AP12))/LOG(2)))) -> -0.375 | AS12: =N12 -> 11212 | AT12: =COUNTIF(L100:L118,AS12) -> 2 | AU12: =AT12/(AV4-AT25) -> 0.1176470588 | AV12: =IF(AU12=0,0,(AU12*((LOG(AU12))/LOG(2)))) -> -0.3632309225
A13: 12 | B13: 1698 | C13: 13 | D13: 1712 | E13: 13 | F13: 1733 | G13: 14 | H13: 1752 | I13: 13 | J13: 1770 | K13: 0 | L13: 11111 | N13: 11221 | O13: =COUNTIF($L$7:$L$500,N13) -> 2 | P13: =O13/$Q$4 -> 0.01801801802 | Q13: =IF(P13=0,0,(P13*((LOG(P13))/LOG(2)))) -> -0.1044038895 | T13: =N13 -> 11221 | U13: =COUNTIF(L7:L25,T13) -> 1 | V13: =U13/(W4-U25) -> 0.05263157895 | W13: =IF(V13=0,0,(V13*((LOG(V13))/LOG(2)))) -> -0.2235751323 | Y13: =N13 -> 11221 | Z13: =COUNTIF(L26:L43,Y13) -> 0 | AA13: =Z13/(AB4-Z25) -> 0 | AB13: =IF(AA13=0,0,(AA13*((LOG(AA13))/LOG(2)))) -> 0 | AD13: =N13 -> 11221 | AE13: =COUNTIF(L44:L62,AD13) -> 0 | AF13: =AE13/(AG4-AE25) -> 0 | AG13: =IF(AF13=0,0,(AF13*((LOG(AF13))/LOG(2)))) -> 0 | AI13: =N13 -> 11221 | AJ13: =COUNTIF(L63:L81,AI13) -> 0 | AK13: =AJ13/(AL4-AJ25) -> 0 | AL13: =IF(AK13=0,0,(AK13*((LOG(AK13))/LOG(2)))) -> 0 | AN13: =N13 -> 11221 | AO13: =COUNTIF(L82:L99,AN13) -> 0 | AP13: =AO13/(AQ4-AO25) -> 0 | AQ13: =IF(AP13=0,0,(AP13*((LOG(AP13))/LOG(2)))) -> 0 | AS13: =N13 -> 11221 | AT13: =COUNTIF(L100:L118,AS13) -> 1 | AU13: =AT13/(AV4-AT25) -> 0.05882352941 | AV13: =IF(AU13=0,0,(AU13*((LOG(AU13))/LOG(2)))) -> -0.2404389907
A14: 12 | B14: 1905 | C14: 13 | D14: 1934 | E14: 13 | F14: 1943 | G14: 23 | H14: 1960 | I14: 24 | J14: 1983 | K14: 0 | L14: 11122 | N14: 11222 | O14: =COUNTIF($L$7:$L$500,N14) -> 2 | P14: =O14/$Q$4 -> 0.01801801802 | Q14: =IF(P14=0,0,(P14*((LOG(P14))/LOG(2)))) -> -0.1044038895 | T14: =N14 -> 11222 | U14: =COUNTIF(L7:L25,T14) -> 0 | V14: =U14/(W4-U25) -> 0 | W14: =IF(V14=0,0,(V14*((LOG(V14))/LOG(2)))) -> 0 | Y14: =N14 -> 11222 | Z14: =COUNTIF(L26:L43,Y14) -> 0 | AA14: =Z14/(AB4-Z25) -> 0 | AB14: =IF(AA14=0,0,(AA14*((LOG(AA14))/LOG(2)))) -> 0 | AD14: =N14 -> 11222 | AE14: =COUNTIF(L44:L62,AD14) -> 0 | AF14: =AE14/(AG4-AE25) -> 0 | AG14: =IF(AF14=0,0,(AF14*((LOG(AF14))/LOG(2)))) -> 0 | AI14: =N14 -> 11222 | AJ14: =COUNTIF(L63:L81,AI14) -> 0 | AK14: =AJ14/(AL4-AJ25) -> 0 | AL14: =IF(AK14=0,0,(AK14*((LOG(AK14))/LOG(2)))) -> 0 | AN14: =N14 -> 11222 | AO14: =COUNTIF(L82:L99,AN14) -> 2 | AP14: =AO14/(AQ4-AO25) -> 0.125 | AQ14: =IF(AP14=0,0,(AP14*((LOG(AP14))/LOG(2)))) -> -0.375 | AS14: =N14 -> 11222 | AT14: =COUNTIF(L100:L118,AS14) -> 0 | AU14: =AT14/(AV4-AT25) -> 0 | AV14: =IF(AU14=0,0,(AU14*((LOG(AU14))/LOG(2)))) -> 0
A15: 12 | B15: 2212 | C15: 13 | D15: 2227 | E15: 24 | F15: 2241 | G15: 14 | H15: 2252 | I15: 24 | J15: 2269 | K15: 0 | L15: 11212 | N15: 12111 | O15: =COUNTIF($L$7:$L$500,N15) -> 4 | P15: =O15/$Q$4 -> 0.03603603604 | Q15: =IF(P15=0,0,(P15*((LOG(P15))/LOG(2)))) -> -0.1727717429 | T15: =N15 -> 12111 | U15: =COUNTIF(L7:L25,T15) -> 0 | V15: =U15/(W4-U25) -> 0 | W15: =IF(V15=0,0,(V15*((LOG(V15))/LOG(2)))) -> 0 | Y15: =N15 -> 12111 | Z15: =COUNTIF(L26:L43,Y15) -> 0 | AA15: =Z15/(AB4-Z25) -> 0 | AB15: =IF(AA15=0,0,(AA15*((LOG(AA15))/LOG(2)))) -> 0 | AD15: =N15 -> 12111 | AE15: =COUNTIF(L44:L62,AD15) -> 0 | AF15: =AE15/(AG4-AE25) -> 0 | AG15: =IF(AF15=0,0,(AF15*((LOG(AF15))/LOG(2)))) -> 0 | AI15: =N15 -> 12111 | AJ15: =COUNTIF(L63:L81,AI15) -> 0 | AK15: =AJ15/(AL4-AJ25) -> 0 | AL15: =IF(AK15=0,0,(AK15*((LOG(AK15))/LOG(2)))) -> 0 | AN15: =N15 -> 12111 | AO15: =COUNTIF(L82:L99,AN15) -> 1 | AP15: =AO15/(AQ4-AO25) -> 0.0625 | AQ15: =IF(AP15=0,0,(AP15*((LOG(AP15))/LOG(2)))) -> -0.25 | AS15: =N15 -> 12111 | AT15: =COUNTIF(L100:L118,AS15) -> 3 | AU15: =AT15/(AV4-AT25) -> 0.1764705882 | AV15: =IF(AU15=0,0,(AU15*((LOG(AU15))/LOG(2)))) -> -0.4416177072
A16: 12 | B16: 2434 | C16: 13 | D16: 2460 | E16: 24 | F16: 2475 | G16: 23 | H16: 2507 | I16: 13 | J16: 2516 | K16: 0 | L16: 11221 | N16: 12112 | O16: =COUNTIF($L$7:$L$500,N16) -> 3 | P16: =O16/$Q$4 -> 0.02702702703 | Q16: =IF(P16=0,0,(P16*((LOG(P16))/LOG(2)))) -> -0.1407960369 | T16: =N16 -> 12112 | U16: =COUNTIF(L7:L25,T16) -> 0 | V16: =U16/(W4-U25) -> 0 | W16: =IF(V16=0,0,(V16*((LOG(V16))/LOG(2)))) -> 0 | Y16: =N16 -> 12112 | Z16: =COUNTIF(L26:L43,Y16) -> 0 | AA16: =Z16/(AB4-Z25) -> 0 | AB16: =IF(AA16=0,0,(AA16*((LOG(AA16))/LOG(2)))) -> 0 | AD16: =N16 -> 12112 | AE16: =COUNTIF(L44:L62,AD16) -> 1 | AF16: =AE16/(AG4-AE25) -> 0.05555555556 | AG16: =IF(AF16=0,0,(AF16*((LOG(AF16))/LOG(2)))) -> -0.2316625001 | AI16: =N16 -> 12112 | AJ16: =COUNTIF(L63:L81,AI16) -> 0 | AK16: =AJ16/(AL4-AJ25) -> 0 | AL16: =IF(AK16=0,0,(AK16*((LOG(AK16))/LOG(2)))) -> 0 | AN16: =N16 -> 12112 | AO16: =COUNTIF(L82:L99,AN16) -> 1 | AP16: =AO16/(AQ4-AO25) -> 0.0625 | AQ16: =IF(AP16=0,0,(AP16*((LOG(AP16))/LOG(2)))) -> -0.25 | AS16: =N16 -> 12112 | AT16: =COUNTIF(L100:L118,AS16) -> 1 | AU16: =AT16/(AV4-AT25) -> 0.05882352941 | AV16: =IF(AU16=0,0,(AU16*((LOG(AU16))/LOG(2)))) -> -0.2404389907
A17: 12 | B17: 2703 | C17: 13 | D17: 2720 | E17: 13 | F17: 2741 | G17: 23 | H17: 2759 | I17: 13 | J17: 2775 | K17: 0 | L17: 11121 | N17: 12121 | O17: =COUNTIF($L$7:$L$500,N17) -> 11 | P17: =O17/$Q$4 -> 0.0990990991 | Q17: =IF(P17=0,0,(P17*((LOG(P17))/LOG(2)))) -> -0.3304939345 | T17: =N17 -> 12121 | U17: =COUNTIF(L7:L25,T17) -> 1 | V17: =U17/(W4-U25) -> 0.05263157895 | W17: =IF(V17=0,0,(V17*((LOG(V17))/LOG(2)))) -> -0.2235751323 | Y17: =N17 -> 12121 | Z17: =COUNTIF(L26:L43,Y17) -> 3 | AA17: =Z17/(AB4-Z25) -> 0.1875 | AB17: =IF(AA17=0,0,(AA17*((LOG(AA17))/LOG(2)))) -> -0.4528195311 | AD17: =N17 -> 12121 | AE17: =COUNTIF(L44:L62,AD17) -> 1 | AF17: =AE17/(AG4-AE25) -> 0.05555555556 | AG17: =IF(AF17=0,0,(AF17*((LOG(AF17))/LOG(2)))) -> -0.2316625001 | AI17: =N17 -> 12121 | AJ17: =COUNTIF(L63:L81,AI17) -> 1 | AK17: =AJ17/(AL4-AJ25) -> 0.05882352941 | AL17: =IF(AK17=0,0,(AK17*((LOG(AK17))/LOG(2)))) -> -0.2404389907 | AN17: =N17 -> 12121 | AO17: =COUNTIF(L82:L99,AN17) -> 3 | AP17: =AO17/(AQ4-AO25) -> 0.1875 | AQ17: =IF(AP17=0,0,(AP17*((LOG(AP17))/LOG(2)))) -> -0.4528195311 | AS17: =N17 -> 12121 | AT17: =COUNTIF(L100:L118,AS17) -> 2 | AU17: =AT17/(AV4-AT25) -> 0.1176470588 | AV17: =IF(AU17=0,0,(AU17*((LOG(AU17))/LOG(2)))) -> -0.3632309225
A18: 12 | B18: 2957 | C18: 13 | D18: 2972 | E18: 13 | F18: 2989 | G18: 14 | H18: 3029 | I18: 13 | J18: 3065 | K18: 0 | L18: 11111 | N18: 12122 | O18: =COUNTIF($L$7:$L$500,N18) -> 2 | P18: =O18/$Q$4 -> 0.01801801802 | Q18: =IF(P18=0,0,(P18*((LOG(P18))/LOG(2)))) -> -0.1044038895 | T18: =N18 -> 12122 | U18: =COUNTIF(L7:L25,T18) -> 0 | V18: =U18/(W4-U25) -> 0 | W18: =IF(V18=0,0,(V18*((LOG(V18))/LOG(2)))) -> 0 | Y18: =N18 -> 12122 | Z18: =COUNTIF(L26:L43,Y18) -> 0 | AA18: =Z18/(AB4-Z25) -> 0 | AB18: =IF(AA18=0,0,(AA18*((LOG(AA18))/LOG(2)))) -> 0 | AD18: =N18 -> 12122 | AE18: =COUNTIF(L44:L62,AD18) -> 2 | AF18: =AE18/(AG4-AE25) -> 0.1111111111 | AG18: =IF(AF18=0,0,(AF18*((LOG(AF18))/LOG(2)))) -> -0.352213889 | AI18: =N18 -> 12122 | AJ18: =COUNTIF(L63:L81,AI18) -> 0 | AK18: =AJ18/(AL4-AJ25) -> 0 | AL18: =IF(AK18=0,0,(AK18*((LOG(AK18))/LOG(2)))) -> 0 | AN18: =N18 -> 12122 | AO18: =COUNTIF(L82:L99,AN18) -> 0 | AP18: =AO18/(AQ4-AO25) -> 0 | AQ18: =IF(AP18=0,0,(AP18*((LOG(AP18))/LOG(2)))) -> 0 | AS18: =N18 -> 12122 | AT18: =COUNTIF(L100:L118,AS18) -> 0 | AU18: =AT18/(AV4-AT25) -> 0 | AV18: =IF(AU18=0,0,(AU18*((LOG(AU18))/LOG(2)))) -> 0
A19: 12 | B19: 3200 | C19: 13 | D19: 3239 | E19: 13 | F19: 3249 | G19: 14 | H19: 3260 | I19: 24 | J19: 3278 | K19: 0 | L19: 11112 | N19: 12211 | O19: =COUNTIF($L$7:$L$500,N19) -> 1 | P19: =O19/$Q$4 -> 0.009009009009 | Q19: =IF(P19=0,0,(P19*((LOG(P19))/LOG(2)))) -> -0.06121095375 | T19: =N19 -> 12211 | U19: =COUNTIF(L7:L25,T19) -> 0 | V19: =U19/(W4-U25) -> 0 | W19: =IF(V19=0,0,(V19*((LOG(V19))/LOG(2)))) -> 0 | Y19: =N19 -> 12211 | Z19: =COUNTIF(L26:L43,Y19) -> 0 | AA19: =Z19/(AB4-Z25) -> 0 | AB19: =IF(AA19=0,0,(AA19*((LOG(AA19))/LOG(2)))) -> 0 | AD19: =N19 -> 12211 | AE19: =COUNTIF(L44:L62,AD19) -> 0 | AF19: =AE19/(AG4-AE25) -> 0 | AG19: =IF(AF19=0,0,(AF19*((LOG(AF19))/LOG(2)))) -> 0 | AI19: =N19 -> 12211 | AJ19: =COUNTIF(L63:L81,AI19) -> 0 | AK19: =AJ19/(AL4-AJ25) -> 0 | AL19: =IF(AK19=0,0,(AK19*((LOG(AK19))/LOG(2)))) -> 0 | AN19: =N19 -> 12211 | AO19: =COUNTIF(L82:L99,AN19) -> 0 | AP19: =AO19/(AQ4-AO25) -> 0 | AQ19: =IF(AP19=0,0,(AP19*((LOG(AP19))/LOG(2)))) -> 0 | AS19: =N19 -> 12211 | AT19: =COUNTIF(L100:L118,AS19) -> 1 | AU19: =AT19/(AV4-AT25) -> 0.05882352941 | AV19: =IF(AU19=0,0,(AU19*((LOG(AU19))/LOG(2)))) -> -0.2404389907
A20: 12 | B20: 3421 | C20: 13 | D20: 3433 | E20: 13 | F20: 3463 | G20: 14 | H20: 3484 | I20: 24 | J20: 3500 | K20: 0 | L20: 11112 | N20: 12212 | O20: =COUNTIF($L$7:$L$500,N20) -> 2 | P20: =O20/$Q$4 -> 0.01801801802 | Q20: =IF(P20=0,0,(P20*((LOG(P20))/LOG(2)))) -> -0.1044038895 | T20: =N20 -> 12212 | U20: =COUNTIF(L7:L25,T20) -> 0 | V20: =U20/(W4-U25) -> 0 | W20: =IF(V20=0,0,(V20*((LOG(V20))/LOG(2)))) -> 0 | Y20: =N20 -> 12212 | Z20: =COUNTIF(L26:L43,Y20) -> 0 | AA20: =Z20/(AB4-Z25) -> 0 | AB20: =IF(AA20=0,0,(AA20*((LOG(AA20))/LOG(2)))) -> 0 | AD20: =N20 -> 12212 | AE20: =COUNTIF(L44:L62,AD20) -> 1 | AF20: =AE20/(AG4-AE25) -> 0.05555555556 | AG20: =IF(AF20=0,0,(AF20*((LOG(AF20))/LOG(2)))) -> -0.2316625001 | AI20: =N20 -> 12212 | AJ20: =COUNTIF(L63:L81,AI20) -> 0 | AK20: =AJ20/(AL4-AJ25) -> 0 | AL20: =IF(AK20=0,0,(AK20*((LOG(AK20))/LOG(2)))) -> 0 | AN20: =N20 -> 12212 | AO20: =COUNTIF(L82:L99,AN20) -> 1 | AP20: =AO20/(AQ4-AO25) -> 0.0625 | AQ20: =IF(AP20=0,0,(AP20*((LOG(AP20))/LOG(2)))) -> -0.25 | AS20: =N20 -> 12212 | AT20: =COUNTIF(L100:L118,AS20) -> 0 | AU20: =AT20/(AV4-AT25) -> 0 | AV20: =IF(AU20=0,0,(AU20*((LOG(AU20))/LOG(2)))) -> 0
A21: 12 | B21: 3653 | C21: 13 | D21: 3688 | E21: 13 | F21: 3699 | G21: 14 | H21: 3710 | I21: 13 | J21: 3741 | K21: 0 | L21: 11111 | N21: 12221 | O21: =COUNTIF($L$7:$L$500,N21) -> 5 | P21: =O21/$Q$4 -> 0.04504504505 | Q21: =IF(P21=0,0,(P21*((LOG(P21))/LOG(2)))) -> -0.2014634131 | T21: =N21 -> 12221 | U21: =COUNTIF(L7:L25,T21) -> 1 | V21: =U21/(W4-U25) -> 0.05263157895 | W21: =IF(V21=0,0,(V21*((LOG(V21))/LOG(2)))) -> -0.2235751323 | Y21: =N21 -> 12221 | Z21: =COUNTIF(L26:L43,Y21) -> 0 | AA21: =Z21/(AB4-Z25) -> 0 | AB21: =IF(AA21=0,0,(AA21*((LOG(AA21))/LOG(2)))) -> 0 | AD21: =N21 -> 12221 | AE21: =COUNTIF(L44:L62,AD21) -> 2 | AF21: =AE21/(AG4-AE25) -> 0.1111111111 | AG21: =IF(AF21=0,0,(AF21*((LOG(AF21))/LOG(2)))) -> -0.352213889 | AI21: =N21 -> 12221 | AJ21: =COUNTIF(L63:L81,AI21) -> 1 | AK21: =AJ21/(AL4-AJ25) -> 0.05882352941 | AL21: =IF(AK21=0,0,(AK21*((LOG(AK21))/LOG(2)))) -> -0.2404389907 | AN21: =N21 -> 12221 | AO21: =COUNTIF(L82:L99,AN21) -> 1 | AP21: =AO21/(AQ4-AO25) -> 0.0625 | AQ21: =IF(AP21=0,0,(AP21*((LOG(AP21))/LOG(2)))) -> -0.25 | AS21: =N21 -> 12221 | AT21: =COUNTIF(L100:L118,AS21) -> 0 | AU21: =AT21/(AV4-AT25) -> 0 | AV21: =IF(AU21=0,0,(AU21*((LOG(AU21))/LOG(2)))) -> 0
A22: 12 | B22: 3875 | C22: 13 | D22: 3890 | E22: 13 | F22: 3914 | G22: 23 | H22: 3930 | I22: 13 | J22: 3948 | K22: 0 | L22: 11121 | N22: 12222 | O22: =COUNTIF($L$7:$L$500,N22) -> 4 | P22: =O22/$Q$4 -> 0.03603603604 | Q22: =IF(P22=0,0,(P22*((LOG(P22))/LOG(2)))) -> -0.1727717429 | T22: =N22 -> 12222 | U22: =COUNTIF(L7:L25,T22) -> 0 | V22: =U22/(W4-U25) -> 0 | W22: =IF(V22=0,0,(V22*((LOG(V22))/LOG(2)))) -> 0 | Y22: =N22 -> 12222 | Z22: =COUNTIF(L26:L43,Y22) -> 0 | AA22: =Z22/(AB4-Z25) -> 0 | AB22: =IF(AA22=0,0,(AA22*((LOG(AA22))/LOG(2)))) -> 0 | AD22: =N22 -> 12222 | AE22: =COUNTIF(L44:L62,AD22) -> 1 | AF22: =AE22/(AG4-AE25) -> 0.05555555556 | AG22: =IF(AF22=0,0,(AF22*((LOG(AF22))/LOG(2)))) -> -0.2316625001 | AI22: =N22 -> 12222 | AJ22: =COUNTIF(L63:L81,AI22) -> 2 | AK22: =AJ22/(AL4-AJ25) -> 0.1176470588 | AL22: =IF(AK22=0,0,(AK22*((LOG(AK22))/LOG(2)))) -> -0.3632309225 | AN22: =N22 -> 12222 | AO22: =COUNTIF(L82:L99,AN22) -> 1 | AP22: =AO22/(AQ4-AO25) -> 0.0625 | AQ22: =IF(AP22=0,0,(AP22*((LOG(AP22))/LOG(2)))) -> -0.25 | AS22: =N22 -> 12222 | AT22: =COUNTIF(L100:L118,AS22) -> 0 | AU22: =AT22/(AV4-AT25) -> 0 | AV22: =IF(AU22=0,0,(AU22*((LOG(AU22))/LOG(2)))) -> 0
A23: 21 | B23: 4218 | C23: 11 | D23: 4230 | E23: 11 | F23: 4245 | G23: 12 | H23: 4268 | I23: 24 | J23: 4285 | K23: 0 | L23: 21112 | N23: 21111 | O23: =COUNTIF($L$7:$L$500,N23) -> 2 | P23: =O23/$Q$4 -> 0.01801801802 | Q23: =IF(P23=0,0,(P23*((LOG(P23))/LOG(2)))) -> -0.1044038895 | T23: =N23 -> 21111 | U23: =COUNTIF(L7:L25,T23) -> 0 | V23: =U23/(W4-U25) -> 0 | W23: =IF(V23=0,0,(V23*((LOG(V23))/LOG(2)))) -> 0 | Y23: =N23 -> 21111 | Z23: =COUNTIF(L26:L43,Y23) -> 2 | AA23: =Z23/(AB4-Z25) -> 0.125 | AB23: =IF(AA23=0,0,(AA23*((LOG(AA23))/LOG(2)))) -> -0.375 | AD23: =N23 -> 21111 | AE23: =COUNTIF(L44:L62,AD23) -> 0 | AF23: =AE23/(AG4-AE25) -> 0 | AG23: =IF(AF23=0,0,(AF23*((LOG(AF23))/LOG(2)))) -> 0 | AI23: =N23 -> 21111 | AJ23: =COUNTIF(L63:L81,AI23) -> 0 | AK23: =AJ23/(AL4-AJ25) -> 0 | AL23: =IF(AK23=0,0,(AK23*((LOG(AK23))/LOG(2)))) -> 0 | AN23: =N23 -> 21111 | AO23: =COUNTIF(L82:L99,AN23) -> 0 | AP23: =AO23/(AQ4-AO25) -> 0 | AQ23: =IF(AP23=0,0,(AP23*((LOG(AP23))/LOG(2)))) -> 0 | AS23: =N23 -> 21111 | AT23: =COUNTIF(L100:L118,AS23) -> 0 | AU23: =AT23/(AV4-AT25) -> 0 | AV23: =IF(AU23=0,0,(AU23*((LOG(AU23))/LOG(2)))) -> 0
A24: 12 | B24: 4748 | C24: 13 | D24: 4766 | E24: 13 | F24: 4781 | G24: 23 | H24: 4802 | I24: 13 | J24: 4858 | K24: 0 | L24: 11121 | N24: 21112 | O24: =COUNTIF($L$7:$L$500,N24) -> 4 | P24: =O24/$Q$4 -> 0.03603603604 | Q24: =IF(P24=0,0,(P24*((LOG(P24))/LOG(2)))) -> -0.1727717429 | T24: =N24 -> 21112 | U24: =COUNTIF(L7:L25,T24) -> 1 | V24: =U24/(W4-U25) -> 0.05263157895 | W24: =IF(V24=0,0,(V24*((LOG(V24))/LOG(2)))) -> -0.2235751323 | Y24: =N24 -> 21112 | Z24: =COUNTIF(L26:L43,Y24) -> 1 | AA24: =Z24/(AB4-Z25) -> 0.0625 | AB24: =IF(AA24=0,0,(AA24*((LOG(AA24))/LOG(2)))) -> -0.25 | AD24: =N24 -> 21112 | AE24: =COUNTIF(L44:L62,AD24) -> 2 | AF24: =AE24/(AG4-AE25) -> 0.1111111111 | AG24: =IF(AF24=0,0,(AF24*((LOG(AF24))/LOG(2)))) -> -0.352213889 | AI24: =N24 -> 21112 | AJ24: =COUNTIF(L63:L81,AI24) -> 0 | AK24: =AJ24/(AL4-AJ25) -> 0 | AL24: =IF(AK24=0,0,(AK24*((LOG(AK24))/LOG(2)))) -> 0 | AN24: =N24 -> 21112 | AO24: =COUNTIF(L82:L99,AN24) -> 0 | AP24: =AO24/(AQ4-AO25) -> 0 | AQ24: =IF(AP24=0,0,(AP24*((LOG(AP24))/LOG(2)))) -> 0 | AS24: =N24 -> 21112 | AT24: =COUNTIF(L100:L118,AS24) -> 0 | AU24: =AT24/(AV4-AT25) -> 0 | AV24: =IF(AU24=0,0,(AU24*((LOG(AU24))/LOG(2)))) -> 0
A25: 12 | B25: 5027 | C25: 13 | D25: 5051 | E25: 13 | F25: 5067 | G25: 14 | H25: 5084 | I25: 13 | J25: 5102 | K25: 0 | L25: 11111 | N25: 21121 | O25: =COUNTIF($L$7:$L$500,N25) -> 8 | P25: =O25/$Q$4 -> 0.07207207207 | Q25: =IF(P25=0,0,(P25*((LOG(P25))/LOG(2)))) -> -0.2734714138 | T25: =N25 -> 21121 | U25: =COUNTIF(L7:L25,T25) -> 0 | Y25: =N25 -> 21121 | Z25: =COUNTIF(L26:L43,Y25) -> 2 | AD25: =N25 -> 21121 | AE25: =COUNTIF(L44:L62,AD25) -> 1 | AI25: =N25 -> 21121 | AJ25: =COUNTIF(L63:L81,AI25) -> 2 | AN25: =N25 -> 21121 | AO25: =COUNTIF(L82:L99,AN25) -> 2 | AS25: =N25 -> 21121 | AT25: =COUNTIF(L100:L118,AS25) -> 1
A26: 12 | B26: 5253 | C26: 13 | D26: 5269 | E26: 13 | F26: 5298 | G26: 23 | H26: 5317 | I26: 13 | J26: 5331 | K26: 0 | L26: 11121 | N26: 21122 | O26: =COUNTIF($L$7:$L$500,N26) -> 0 | P26: =O26/$Q$4 -> 0 | Q26: =IF(P26=0,0,(P26*((LOG(P26))/LOG(2)))) -> 0 | T26: =N26 -> 21122 | U26: =COUNTIF(L7:L25,T26) -> 0 | V26: =U26/(W4-U25) -> 0 | W26: =IF(V26=0,0,(V26*((LOG(V26))/LOG(2)))) -> 0 | Y26: =N26 -> 21122 | Z26: =COUNTIF(L26:L43,Y26) -> 0 | AA26: =Z26/(AB4-Z25) -> 0 | AB26: =IF(AA26=0,0,(AA26*((LOG(AA26))/LOG(2)))) -> 0 | AD26: =N26 -> 21122 | AE26: =COUNTIF(L44:L62,AD26) -> 0 | AF26: =AE26/(AG4-AE25) -> 0 | AG26: =IF(AF26=0,0,(AF26*((LOG(AF26))/LOG(2)))) -> 0 | AI26: =N26 -> 21122 | AJ26: =COUNTIF(L63:L81,AI26) -> 0 | AK26: =AJ26/(AL4-AJ25) -> 0 | AL26: =IF(AK26=0,0,(AK26*((LOG(AK26))/LOG(2)))) -> 0 | AN26: =N26 -> 21122 | AO26: =COUNTIF(L82:L99,AN26) -> 0 | AP26: =AO26/(AQ4-AO25) -> 0 | AQ26: =IF(AP26=0,0,(AP26*((LOG(AP26))/LOG(2)))) -> 0 | AS26: =N26 -> 21122 | AT26: =COUNTIF(L100:L118,AS26) -> 0 | AU26: =AT26/(AV4-AT25) -> 0 | AV26: =IF(AU26=0,0,(AU26*((LOG(AU26))/LOG(2)))) -> 0
A27: 12 | B27: 5565 | C27: 13 | D27: 5706 | E27: 13 | F27: 5721 | G27: 14 | H27: 5737 | I27: 24 | J27: 5753 | K27: 0 | L27: 11112 | N27: 21211 | O27: =COUNTIF($L$7:$L$500,N27) -> 2 | P27: =O27/$Q$4 -> 0.01801801802 | Q27: =IF(P27=0,0,(P27*((LOG(P27))/LOG(2)))) -> -0.1044038895 | T27: =N27 -> 21211 | U27: =COUNTIF(L7:L25,T27) -> 0 | V27: =U27/(W4-U25) -> 0 | W27: =IF(V27=0,0,(V27*((LOG(V27))/LOG(2)))) -> 0 | Y27: =N27 -> 21211 | Z27: =COUNTIF(L26:L43,Y27) -> 0 | AA27: =Z27/(AB4-Z25) -> 0 | AB27: =IF(AA27=0,0,(AA27*((LOG(AA27))/LOG(2)))) -> 0 | AD27: =N27 -> 21211 | AE27: =COUNTIF(L44:L62,AD27) -> 1 | AF27: =AE27/(AG4-AE25) -> 0.05555555556 | AG27: =IF(AF27=0,0,(AF27*((LOG(AF27))/LOG(2)))) -> -0.2316625001 | AI27: =N27 -> 21211 | AJ27: =COUNTIF(L63:L81,AI27) -> 1 | AK27: =AJ27/(AL4-AJ25) -> 0.05882352941 | AL27: =IF(AK27=0,0,(AK27*((LOG(AK27))/LOG(2)))) -> -0.2404389907 | AN27: =N27 -> 21211 | AO27: =COUNTIF(L82:L99,AN27) -> 0 | AP27: =AO27/(AQ4-AO25) -> 0 | AQ27: =IF(AP27=0,0,(AP27*((LOG(AP27))/LOG(2)))) -> 0 | AS27: =N27 -> 21211 | AT27: =COUNTIF(L100:L118,AS27) -> 0 | AU27: =AT27/(AV4-AT25) -> 0 | AV27: =IF(AU27=0,0,(AU27*((LOG(AU27))/LOG(2)))) -> 0
A28: 12 | B28: 5934 | C28: 13 | D28: 5968 | E28: 13 | F28: 5979 | G28: 23 | H28: 6002 | I28: 13 | J28: 6011 | K28: 0 | L28: 11121 | N28: 21212 | O28: =COUNTIF($L$7:$L$500,N28) -> 7 | P28: =O28/$Q$4 -> 0.06306306306 | Q28: =IF(P28=0,0,(P28*((LOG(P28))/LOG(2)))) -> -0.2514362758 | T28: =N28 -> 21212 | U28: =COUNTIF(L7:L25,T28) -> 1 | V28: =U28/(W4-U25) -> 0.05263157895 | W28: =IF(V28=0,0,(V28*((LOG(V28))/LOG(2)))) -> -0.2235751323 | Y28: =N28 -> 21212 | Z28: =COUNTIF(L26:L43,Y28) -> 0 | AA28: =Z28/(AB4-Z25) -> 0 | AB28: =IF(AA28=0,0,(AA28*((LOG(AA28))/LOG(2)))) -> 0 | AD28: =N28 -> 21212 | AE28: =COUNTIF(L44:L62,AD28) -> 0 | AF28: =AE28/(AG4-AE25) -> 0 | AG28: =IF(AF28=0,0,(AF28*((LOG(AF28))/LOG(2)))) -> 0 | AI28: =N28 -> 21212 | AJ28: =COUNTIF(L63:L81,AI28) -> 5 | AK28: =AJ28/(AL4-AJ25) -> 0.2941176471 | AL28: =IF(AK28=0,0,(AK28*((LOG(AK28))/LOG(2)))) -> -0.5192749254 | AN28: =N28 -> 21212 | AO28: =COUNTIF(L82:L99,AN28) -> 0 | AP28: =AO28/(AQ4-AO25) -> 0 | AQ28: =IF(AP28=0,0,(AP28*((LOG(AP28))/LOG(2)))) -> 0 | AS28: =N28 -> 21212 | AT28: =COUNTIF(L100:L118,AS28) -> 1 | AU28: =AT28/(AV4-AT25) -> 0.05882352941 | AV28: =IF(AU28=0,0,(AU28*((LOG(AU28))/LOG(2)))) -> -0.2404389907
A29: 12 | B29: 6777 | C29: 13 | D29: 6790 | E29: 13 | F29: 6811 | G29: 14 | H29: 6826 | I29: 24 | J29: 6840 | K29: 0 | L29: 11112 | N29: 21221 | O29: =COUNTIF($L$7:$L$500,N29) -> 0 | P29: =O29/$Q$4 -> 0 | Q29: =IF(P29=0,0,(P29*((LOG(P29))/LOG(2)))) -> 0 | T29: =N29 -> 21221 | U29: =COUNTIF(L7:L25,T29) -> 0 | V29: =U29/(W4-U25) -> 0 | W29: =IF(V29=0,0,(V29*((LOG(V29))/LOG(2)))) -> 0 | Y29: =N29 -> 21221 | Z29: =COUNTIF(L26:L43,Y29) -> 0 | AA29: =Z29/(AB4-Z25) -> 0 | AB29: =IF(AA29=0,0,(AA29*((LOG(AA29))/LOG(2)))) -> 0 | AD29: =N29 -> 21221 | AE29: =COUNTIF(L44:L62,AD29) -> 0 | AF29: =AE29/(AG4-AE25) -> 0 | AG29: =IF(AF29=0,0,(AF29*((LOG(AF29))/LOG(2)))) -> 0 | AI29: =N29 -> 21221 | AJ29: =COUNTIF(L63:L81,AI29) -> 0 | AK29: =AJ29/(AL4-AJ25) -> 0 | AL29: =IF(AK29=0,0,(AK29*((LOG(AK29))/LOG(2)))) -> 0 | AN29: =N29 -> 21221 | AO29: =COUNTIF(L82:L99,AN29) -> 0 | AP29: =AO29/(AQ4-AO25) -> 0 | AQ29: =IF(AP29=0,0,(AP29*((LOG(AP29))/LOG(2)))) -> 0 | AS29: =N29 -> 21221 | AT29: =COUNTIF(L100:L118,AS29) -> 0 | AU29: =AT29/(AV4-AT25) -> 0 | AV29: =IF(AU29=0,0,(AU29*((LOG(AU29))/LOG(2)))) -> 0
A30: 12 | B30: 6997 | C30: 24 | D30: 7016 | E30: 13 | F30: 7030 | G30: 23 | H30: 7045 | I30: 13 | J30: 7057 | K30: 0 | L30: 12121 | N30: 21222 | O30: =COUNTIF($L$7:$L$500,N30) -> 0 | P30: =O30/$Q$4 -> 0 | Q30: =IF(P30=0,0,(P30*((LOG(P30))/LOG(2)))) -> 0 | T30: =N30 -> 21222 | U30: =COUNTIF(L7:L25,T30) -> 0 | V30: =U30/(W4-U25) -> 0 | W30: =IF(V30=0,0,(V30*((LOG(V30))/LOG(2)))) -> 0 | Y30: =N30 -> 21222 | Z30: =COUNTIF(L26:L43,Y30) -> 0 | AA30: =Z30/(AB4-Z25) -> 0 | AB30: =IF(AA30=0,0,(AA30*((LOG(AA30))/LOG(2)))) -> 0 | AD30: =N30 -> 21222 | AE30: =COUNTIF(L44:L62,AD30) -> 0 | AF30: =AE30/(AG4-AE25) -> 0 | AG30: =IF(AF30=0,0,(AF30*((LOG(AF30))/LOG(2)))) -> 0 | AI30: =N30 -> 21222 | AJ30: =COUNTIF(L63:L81,AI30) -> 0 | AK30: =AJ30/(AL4-AJ25) -> 0 | AL30: =IF(AK30=0,0,(AK30*((LOG(AK30))/LOG(2)))) -> 0 | AN30: =N30 -> 21222 | AO30: =COUNTIF(L82:L99,AN30) -> 0 | AP30: =AO30/(AQ4-AO25) -> 0 | AQ30: =IF(AP30=0,0,(AP30*((LOG(AP30))/LOG(2)))) -> 0 | AS30: =N30 -> 21222 | AT30: =COUNTIF(L100:L118,AS30) -> 0 | AU30: =AT30/(AV4-AT25) -> 0 | AV30: =IF(AU30=0,0,(AU30*((LOG(AU30))/LOG(2)))) -> 0
A31: 21 | B31: 7191 | C31: 11 | D31: 7202 | E31: 11 | F31: 7222 | G31: 12 | H31: 7233 | I31: 13 | J31: 7249 | K31: 0 | L31: 21111 | N31: 22111 | O31: =COUNTIF($L$7:$L$500,N31) -> 0 | P31: =O31/$Q$4 -> 0 | Q31: =IF(P31=0,0,(P31*((LOG(P31))/LOG(2)))) -> 0 | T31: =N31 -> 22111 | U31: =COUNTIF(L7:L25,T31) -> 0 | V31: =U31/(W4-U25) -> 0 | W31: =IF(V31=0,0,(V31*((LOG(V31))/LOG(2)))) -> 0 | Y31: =N31 -> 22111 | Z31: =COUNTIF(L26:L43,Y31) -> 0 | AA31: =Z31/(AB4-Z25) -> 0 | AB31: =IF(AA31=0,0,(AA31*((LOG(AA31))/LOG(2)))) -> 0 | AD31: =N31 -> 22111 | AE31: =COUNTIF(L44:L62,AD31) -> 0 | AF31: =AE31/(AG4-AE25) -> 0 | AG31: =IF(AF31=0,0,(AF31*((LOG(AF31))/LOG(2)))) -> 0 | AI31: =N31 -> 22111 | AJ31: =COUNTIF(L63:L81,AI31) -> 0 | AK31: =AJ31/(AL4-AJ25) -> 0 | AL31: =IF(AK31=0,0,(AK31*((LOG(AK31))/LOG(2)))) -> 0 | AN31: =N31 -> 22111 | AO31: =COUNTIF(L82:L99,AN31) -> 0 | AP31: =AO31/(AQ4-AO25) -> 0 | AQ31: =IF(AP31=0,0,(AP31*((LOG(AP31))/LOG(2)))) -> 0 | AS31: =N31 -> 22111 | AT31: =COUNTIF(L100:L118,AS31) -> 0 | AU31: =AT31/(AV4-AT25) -> 0 | AV31: =IF(AU31=0,0,(AU31*((LOG(AU31))/LOG(2)))) -> 0
A32: 12 | B32: 7394 | C32: 13 | D32: 7408 | E32: 24 | F32: 7426 | G32: 14 | H32: 7436 | I32: 13 | J32: 7449 | K32: 0 | L32: 11211 | N32: 22112 | O32: =COUNTIF($L$7:$L$500,N32) -> 1 | P32: =O32/$Q$4 -> 0.009009009009 | Q32: =IF(P32=0,0,(P32*((LOG(P32))/LOG(2)))) -> -0.06121095375 | T32: =N32 -> 22112 | U32: =COUNTIF(L7:L25,T32) -> 1 | V32: =U32/(W4-U25) -> 0.05263157895 | W32: =IF(V32=0,0,(V32*((LOG(V32))/LOG(2)))) -> -0.2235751323 | Y32: =N32 -> 22112 | Z32: =COUNTIF(L26:L43,Y32) -> 0 | AA32: =Z32/(AB4-Z25) -> 0 | AB32: =IF(AA32=0,0,(AA32*((LOG(AA32))/LOG(2)))) -> 0 | AD32: =N32 -> 22112 | AE32: =COUNTIF(L44:L62,AD32) -> 0 | AF32: =AE32/(AG4-AE25) -> 0 | AG32: =IF(AF32=0,0,(AF32*((LOG(AF32))/LOG(2)))) -> 0 | AI32: =N32 -> 22112 | AJ32: =COUNTIF(L63:L81,AI32) -> 0 | AK32: =AJ32/(AL4-AJ25) -> 0 | AL32: =IF(AK32=0,0,(AK32*((LOG(AK32))/LOG(2)))) -> 0 | AN32: =N32 -> 22112 | AO32: =COUNTIF(L82:L99,AN32) -> 0 | AP32: =AO32/(AQ4-AO25) -> 0 | AQ32: =IF(AP32=0,0,(AP32*((LOG(AP32))/LOG(2)))) -> 0 | AS32: =N32 -> 22112 | AT32: =COUNTIF(L100:L118,AS32) -> 0 | AU32: =AT32/(AV4-AT25) -> 0 | AV32: =IF(AU32=0,0,(AU32*((LOG(AU32))/LOG(2)))) -> 0
A33: 21 | B33: 7748 | C33: 11 | D33: 7758 | E33: 11 | F33: 7772 | G33: 12 | H33: 7787 | I33: 24 | J33: 7803 | K33: 0 | L33: 21112 | N33: 22121 | O33: =COUNTIF($L$7:$L$500,N33) -> 1 | P33: =O33/$Q$4 -> 0.009009009009 | Q33: =IF(P33=0,0,(P33*((LOG(P33))/LOG(2)))) -> -0.06121095375 | T33: =N33 -> 22121 | U33: =COUNTIF(L7:L25,T33) -> 0 | V33: =U33/(W4-U25) -> 0 | W33: =IF(V33=0,0,(V33*((LOG(V33))/LOG(2)))) -> 0 | Y33: =N33 -> 22121 | Z33: =COUNTIF(L26:L43,Y33) -> 0 | AA33: =Z33/(AB4-Z25) -> 0 | AB33: =IF(AA33=0,0,(AA33*((LOG(AA33))/LOG(2)))) -> 0 | AD33: =N33 -> 22121 | AE33: =COUNTIF(L44:L62,AD33) -> 0 | AF33: =AE33/(AG4-AE25) -> 0 | AG33: =IF(AF33=0,0,(AF33*((LOG(AF33))/LOG(2)))) -> 0 | AI33: =N33 -> 22121 | AJ33: =COUNTIF(L63:L81,AI33) -> 1 | AK33: =AJ33/(AL4-AJ25) -> 0.05882352941 | AL33: =IF(AK33=0,0,(AK33*((LOG(AK33))/LOG(2)))) -> -0.2404389907 | AN33: =N33 -> 22121 | AO33: =COUNTIF(L82:L99,AN33) -> 0 | AP33: =AO33/(AQ4-AO25) -> 0 | AQ33: =IF(AP33=0,0,(AP33*((LOG(AP33))/LOG(2)))) -> 0 | AS33: =N33 -> 22121 | AT33: =COUNTIF(L100:L118,AS33) -> 0 | AU33: =AT33/(AV4-AT25) -> 0 | AV33: =IF(AU33=0,0,(AU33*((LOG(AU33))/LOG(2)))) -> 0
A34: 12 | B34: 7973 | C34: 13 | D34: 7992 | E34: 13 | F34: 8009 | G34: 23 | H34: 8023 | I34: 13 | J34: 8033 | K34: 0 | L34: 11121 | N34: 22122 | O34: =COUNTIF($L$7:$L$500,N34) -> 0 | P34: =O34/$Q$4 -> 0 | Q34: =IF(P34=0,0,(P34*((LOG(P34))/LOG(2)))) -> 0 | T34: =N34 -> 22122 | U34: =COUNTIF(L7:L25,T34) -> 0 | V34: =U34/(W4-U25) -> 0 | W34: =IF(V34=0,0,(V34*((LOG(V34))/LOG(2)))) -> 0 | Y34: =N34 -> 22122 | Z34: =COUNTIF(L26:L43,Y34) -> 0 | AA34: =Z34/(AB4-Z25) -> 0 | AB34: =IF(AA34=0,0,(AA34*((LOG(AA34))/LOG(2)))) -> 0 | AD34: =N34 -> 22122 | AE34: =COUNTIF(L44:L62,AD34) -> 0 | AF34: =AE34/(AG4-AE25) -> 0 | AG34: =IF(AF34=0,0,(AF34*((LOG(AF34))/LOG(2)))) -> 0 | AI34: =N34 -> 22122 | AJ34: =COUNTIF(L63:L81,AI34) -> 0 | AK34: =AJ34/(AL4-AJ25) -> 0 | AL34: =IF(AK34=0,0,(AK34*((LOG(AK34))/LOG(2)))) -> 0 | AN34: =N34 -> 22122 | AO34: =COUNTIF(L82:L99,AN34) -> 0 | AP34: =AO34/(AQ4-AO25) -> 0 | AQ34: =IF(AP34=0,0,(AP34*((LOG(AP34))/LOG(2)))) -> 0 | AS34: =N34 -> 22122 | AT34: =COUNTIF(L100:L118,AS34) -> 0 | AU34: =AT34/(AV4-AT25) -> 0 | AV34: =IF(AU34=0,0,(AU34*((LOG(AU34))/LOG(2)))) -> 0
A35: 21 | B35: 8209 | C35: 11 | D35: 8218 | E35: 11 | F35: 8234 | G35: 12 | H35: 8243 | I35: 13 | J35: 8255 | K35: 0 | L35: 21111 | N35: 22211 | O35: =COUNTIF($L$7:$L$500,N35) -> 0 | P35: =O35/$Q$4 -> 0 | Q35: =IF(P35=0,0,(P35*((LOG(P35))/LOG(2)))) -> 0 | T35: =N35 -> 22211 | U35: =COUNTIF(L7:L25,T35) -> 0 | V35: =U35/(W4-U25) -> 0 | W35: =IF(V35=0,0,(V35*((LOG(V35))/LOG(2)))) -> 0 | Y35: =N35 -> 22211 | Z35: =COUNTIF(L26:L43,Y35) -> 0 | AA35: =Z35/(AB4-Z25) -> 0 | AB35: =IF(AA35=0,0,(AA35*((LOG(AA35))/LOG(2)))) -> 0 | AD35: =N35 -> 22211 | AE35: =COUNTIF(L44:L62,AD35) -> 0 | AF35: =AE35/(AG4-AE25) -> 0 | AG35: =IF(AF35=0,0,(AF35*((LOG(AF35))/LOG(2)))) -> 0 | AI35: =N35 -> 22211 | AJ35: =COUNTIF(L63:L81,AI35) -> 0 | AK35: =AJ35/(AL4-AJ25) -> 0 | AL35: =IF(AK35=0,0,(AK35*((LOG(AK35))/LOG(2)))) -> 0 | AN35: =N35 -> 22211 | AO35: =COUNTIF(L82:L99,AN35) -> 0 | AP35: =AO35/(AQ4-AO25) -> 0 | AQ35: =IF(AP35=0,0,(AP35*((LOG(AP35))/LOG(2)))) -> 0 | AS35: =N35 -> 22211 | AT35: =COUNTIF(L100:L118,AS35) -> 0 | AU35: =AT35/(AV4-AT25) -> 0 | AV35: =IF(AU35=0,0,(AU35*((LOG(AU35))/LOG(2)))) -> 0
A36: 21 | B36: 8419 | C36: 11 | D36: 8429 | E36: 11 | F36: 8446 | G36: 21 | H36: 8462 | I36: 11 | J36: 8473 | K36: 1 | L36: 21121 | N36: 22212 | O36: =COUNTIF($L$7:$L$500,N36) -> 0 | P36: =O36/$Q$4 -> 0 | Q36: =IF(P36=0,0,(P36*((LOG(P36))/LOG(2)))) -> 0 | T36: =N36 -> 22212 | U36: =COUNTIF(L7:L25,T36) -> 0 | V36: =U36/(W4-U25) -> 0 | W36: =IF(V36=0,0,(V36*((LOG(V36))/LOG(2)))) -> 0 | Y36: =N36 -> 22212 | Z36: =COUNTIF(L26:L43,Y36) -> 0 | AA36: =Z36/(AB4-Z25) -> 0 | AB36: =IF(AA36=0,0,(AA36*((LOG(AA36))/LOG(2)))) -> 0 | AD36: =N36 -> 22212 | AE36: =COUNTIF(L44:L62,AD36) -> 0 | AF36: =AE36/(AG4-AE25) -> 0 | AG36: =IF(AF36=0,0,(AF36*((LOG(AF36))/LOG(2)))) -> 0 | AI36: =N36 -> 22212 | AJ36: =COUNTIF(L63:L81,AI36) -> 0 | AK36: =AJ36/(AL4-AJ25) -> 0 | AL36: =IF(AK36=0,0,(AK36*((LOG(AK36))/LOG(2)))) -> 0 | AN36: =N36 -> 22212 | AO36: =COUNTIF(L82:L99,AN36) -> 0 | AP36: =AO36/(AQ4-AO25) -> 0 | AQ36: =IF(AP36=0,0,(AP36*((LOG(AP36))/LOG(2)))) -> 0 | AS36: =N36 -> 22212 | AT36: =COUNTIF(L100:L118,AS36) -> 0 | AU36: =AT36/(AV4-AT25) -> 0 | AV36: =IF(AU36=0,0,(AU36*((LOG(AU36))/LOG(2)))) -> 0
A37: 12 | B37: 8709 | C37: 13 | D37: 8846 | E37: 24 | F37: 8858 | G37: 14 | H37: 8868 | I37: 24 | J37: 8882 | K37: 0 | L37: 11212 | N37: 22221 | O37: =COUNTIF($L$7:$L$500,N37) -> 0 | P37: =O37/$Q$4 -> 0 | Q37: =IF(P37=0,0,(P37*((LOG(P37))/LOG(2)))) -> 0 | T37: =N37 -> 22221 | U37: =COUNTIF(L7:L25,T37) -> 0 | V37: =U37/(W4-U25) -> 0 | W37: =IF(V37=0,0,(V37*((LOG(V37))/LOG(2)))) -> 0 | Y37: =N37 -> 22221 | Z37: =COUNTIF(L26:L43,Y37) -> 0 | AA37: =Z37/(AB4-Z25) -> 0 | AB37: =IF(AA37=0,0,(AA37*((LOG(AA37))/LOG(2)))) -> 0 | AD37: =N37 -> 22221 | AE37: =COUNTIF(L44:L62,AD37) -> 0 | AF37: =AE37/(AG4-AE25) -> 0 | AG37: =IF(AF37=0,0,(AF37*((LOG(AF37))/LOG(2)))) -> 0 | AI37: =N37 -> 22221 | AJ37: =COUNTIF(L63:L81,AI37) -> 0 | AK37: =AJ37/(AL4-AJ25) -> 0 | AL37: =IF(AK37=0,0,(AK37*((LOG(AK37))/LOG(2)))) -> 0 | AN37: =N37 -> 22221 | AO37: =COUNTIF(L82:L99,AN37) -> 0 | AP37: =AO37/(AQ4-AO25) -> 0 | AQ37: =IF(AP37=0,0,(AP37*((LOG(AP37))/LOG(2)))) -> 0 | AS37: =N37 -> 22221 | AT37: =COUNTIF(L100:L118,AS37) -> 0 | AU37: =AT37/(AV4-AT25) -> 0 | AV37: =IF(AU37=0,0,(AU37*((LOG(AU37))/LOG(2)))) -> 0
A38: 12 | B38: 9060 | C38: 13 | D38: 9083 | E38: 13 | F38: 9096 | G38: 23 | H38: 9109 | I38: 13 | J38: 9118 | K38: 0 | L38: 11121 | N38: 22222 | O38: =COUNTIF($L$7:$L$500,N38) -> 0 | P38: =O38/$Q$4 -> 0 | Q38: =IF(P38=0,0,(P38*((LOG(P38))/LOG(2)))) -> 0 | T38: =N38 -> 22222 | U38: =COUNTIF(L7:L25,T38) -> 0 | V38: =U38/(W4-U25) -> 0 | W38: =IF(V38=0,0,(V38*((LOG(V38))/LOG(2)))) -> 0 | Y38: =N38 -> 22222 | Z38: =COUNTIF(L26:L43,Y38) -> 0 | AA38: =Z38/(AB4-Z25) -> 0 | AB38: =IF(AA38=0,0,(AA38*((LOG(AA38))/LOG(2)))) -> 0 | AD38: =N38 -> 22222 | AE38: =COUNTIF(L44:L62,AD38) -> 0 | AF38: =AE38/(AG4-AE25) -> 0 | AG38: =IF(AF38=0,0,(AF38*((LOG(AF38))/LOG(2)))) -> 0 | AI38: =N38 -> 22222 | AJ38: =COUNTIF(L63:L81,AI38) -> 0 | AK38: =AJ38/(AL4-AJ25) -> 0 | AL38: =IF(AK38=0,0,(AK38*((LOG(AK38))/LOG(2)))) -> 0 | AN38: =N38 -> 22222 | AO38: =COUNTIF(L82:L99,AN38) -> 0 | AP38: =AO38/(AQ4-AO25) -> 0 | AQ38: =IF(AP38=0,0,(AP38*((LOG(AP38))/LOG(2)))) -> 0 | AS38: =N38 -> 22222 | AT38: =COUNTIF(L100:L118,AS38) -> 0 | AU38: =AT38/(AV4-AT25) -> 0 | AV38: =IF(AU38=0,0,(AU38*((LOG(AU38))/LOG(2)))) -> 0
A39: 12 | B39: 9273 | C39: 13 | D39: 9290 | E39: 13 | F39: 9307 | G39: 14 | H39: 9339 | I39: 13 | J39: 9361 | K39: 0 | L39: 11111 | P39: =SUM(P7:P38) -> 1 | Q39: =-SUM(Q7:Q38) -> 4.084680598 | V39: =SUM(V7:V38) -> 1 | W39: =-SUM(W7:W38) -> 3.13637933 | AA39: =SUM(AA7:AA38) -> 1 | AB39: =-SUM(AB7:AB38) -> 2.727217001 | AF39: =SUM(AF7:AF38) -> 1 | AG39: =-SUM(AG7:AG38) -> 3.503258335 | AK39: =SUM(AK7:AK38) -> 1 | AL39: =-SUM(AL7:AL38) -> 2.889549431 | AP39: =SUM(AP7:AP38) -> 1 | AQ39: =-SUM(AQ7:AQ38) -> 3.155639062 | AU39: =SUM(AU7:AU38) -> 1 | AV39: =-SUM(AV7:AV38) -> 2.984234165
A40: 21 | B40: 9501 | C40: 11 | D40: 9511 | E40: 11 | F40: 9546 | G40: 21 | H40: 9560 | I40: 11 | J40: 9570 | K40: 1 | L40: 21121 | P40: U= | Q40: =Q39/(LOG(Q4)/LOG(2)) -> 0.6011820116 | V40: U1= | W40: =W39/(LOG(W4)/LOG(2)) -> 0.7383316501 | AA40: U2= | AB40: =AB39/(LOG(AB4)/LOG(2)) -> 0.654020636 | AF40: U3= | AG40: =AG39/(LOG(AG4)/LOG(2)) -> 0.8246982378 | AK40: U4= | AL40: =AL39/(LOG(AL4)/LOG(2)) -> 0.6802256916 | AP40: U5= | AQ40: =AQ39/(LOG(AQ4)/LOG(2)) -> 0.7567615871 | AU40: U6= | AV40: =AV39/(LOG(AV4)/LOG(2)) -> 0.7156565558
A41: 12 | B41: 9757 | C41: 24 | D41: 9770 | E41: 13 | F41: 9779 | G41: 23 | H41: 9795 | I41: 13 | J41: 9831 | K41: 0 | L41: 12121
A42: 12 | B42: 10018 | C42: 24 | D42: 10035 | E42: 13 | F42: 10045 | G42: 23 | H42: 10058 | I42: 13 | J42: 10072 | K42: 0 | L42: 12121
A43: 12 | B43: 10191 | C43: 13 | D43: 10208 | E43: 13 | F43: 10224 | G43: 23 | H43: 10236 | I43: 13 | J43: 10245 | K43: 0 | L43: 11121 | N43: Total Target Seq
A44: 21 | B44: 10363 | C44: 11 | D44: 10383 | E44: 11 | F44: 10397 | G44: 12 | H44: 10420 | I44: 24 | J44: 10436 | K44: 0 | L44: 21112 | N44: =COUNTIF(L7:L118,G3) -> 8 | P44: 19 | Q44: 18 | R44: 19 | S44: 19 | T44: 18 | U44: 19
A45: 12 | B45: 10559 | C45: 13 | D45: 10569 | E45: 13 | F45: 10577 | G45: 14 | H45: 10595 | I45: 13 | J45: 10629 | K45: 0 | L45: 11111 | P45: % of reinforcement given in 6 equal intervals based on number of trials
A46: 12 | B46: 10786 | C46: 13 | D46: 10800 | E46: 24 | F46: 10813 | G46: 14 | H46: 10830 | I46: 24 | J46: 10846 | K46: 0 | L46: 11212 | P46: %_1 | Q46: %_2 | R46: %_3 | S46: %_4 | T46: %_5 | U46: %_6
A47: 21 | B47: 10988 | C47: 11 | D47: 10999 | E47: 11 | F47: 11017 | G47: 12 | H47: 11038 | I47: 24 | J47: 11060 | K47: 0 | L47: 21112 | O47: target sequence | P47: =$G$3 -> 21121 | Q47: =$G$3 -> 21121 | R47: =$G$3 -> 21121 | S47: =$G$3 -> 21121 | T47: =$G$3 -> 21121 | U47: =$G$3 -> 21121
A48: 12 | B48: 11213 | C48: 24 | D48: 11225 | E48: 13 | F48: 11235 | G48: 23 | H48: 11250 | I48: 13 | J48: 11268 | K48: 0 | L48: 12121 | O48: total reinforcement | P48: =U25 -> 0 | Q48: =Z25 -> 2 | R48: =AE25 -> 1 | S48: =AJ25 -> 2 | T48: =AO25 -> 2 | U48: =AT25 -> 1
A49: 12 | B49: 11445 | C49: 13 | D49: 11473 | E49: 24 | F49: 11485 | G49: 14 | H49: 11494 | I49: 13 | J49: 11521 | K49: 0 | L49: 11211 | O49: % target
A50: 12 | B50: 11675 | C50: 13 | D50: 11693 | E50: 13 | F50: 11711 | G50: 23 | H50: 11747 | I50: 13 | J50: 11756 | K50: 0 | L50: 11121 | O50: CCRF
A51: 21 | B51: 11896 | C51: 11 | D51: 11909 | E51: 22 | F51: 11921 | G51: 14 | H51: 11939 | I51: 13 | J51: 11962 | K51: 0 | L51: 21211 | O51: % CCRf
A52: 12 | B52: 12093 | C52: 13 | D52: 12108 | E52: 24 | F52: 12121 | G52: 14 | H52: 12130 | I52: 24 | J52: 12142 | K52: 0 | L52: 11212 | O52: average response rate | P52: =J25/P44 -> 268.5263158 | Q52: =(J43-J25)/Q44 -> 285.7222222 | R52: =(J62-J43)/R44 -> 197.3157895 | S52: =(J81-J62)/S44 -> 190.6842105 | T52: =(J99-J81)/T44 -> 167.2777778 | U52: =(J118-J99)/U44 -> -1085.684211
A53: 12 | B53: 12310 | C53: 13 | D53: 12322 | E53: 13 | F53: 12346 | G53: 23 | H53: 12357 | I53: 13 | J53: 12367 | K53: 0 | L53: 11121
A54: 12 | B54: 12512 | C54: 13 | D54: 12535 | E54: 24 | F54: 12548 | G54: 14 | H54: 12557 | I54: 13 | J54: 12568 | K54: 0 | L54: 11211
A55: 21 | B55: 12716 | C55: 11 | D55: 12727 | E55: 11 | F55: 12749 | G55: 21 | H55: 12761 | I55: 11 | J55: 12772 | K55: 1 | L55: 21121
A56: 12 | B56: 12909 | C56: 24 | D56: 12921 | E56: 13 | F56: 12937 | G56: 14 | H56: 12974 | I56: 24 | J56: 12987 | K56: 0 | L56: 12112
A57: 12 | B57: 13095 | C57: 24 | D57: 13105 | E57: 13 | F57: 13116 | G57: 23 | H57: 13129 | I57: 24 | J57: 13159 | K57: 0 | L57: 12122
A58: 12 | B58: 13261 | C58: 24 | D58: 13276 | E58: 13 | F58: 13287 | G58: 23 | H58: 13299 | I58: 24 | J58: 13311 | K58: 0 | L58: 12122
A59: 12 | B59: 13411 | C59: 24 | D59: 13424 | E59: 24 | F59: 13438 | G59: 14 | H59: 13447 | I59: 24 | J59: 13460 | K59: 0 | L59: 12212
A60: 12 | B60: 13557 | C60: 24 | D60: 13569 | E60: 24 | F60: 13585 | G60: 23 | H60: 13599 | I60: 13 | J60: 13609 | K60: 0 | L60: 12221
A61: 12 | B61: 13721 | C61: 24 | D61: 13730 | E61: 24 | F61: 13743 | G61: 23 | H61: 13758 | I61: 13 | J61: 13800 | K61: 0 | L61: 12221
A62: 12 | B62: 13922 | C62: 24 | D62: 13933 | E62: 24 | F62: 13956 | G62: 23 | H62: 13978 | I62: 24 | J62: 13994 | K62: 0 | L62: 12222
A63: 12 | B63: 14102 | C63: 13 | D63: 14128 | E63: 24 | F63: 14140 | G63: 14 | H63: 14148 | I63: 24 | J63: 14160 | K63: 0 | L63: 11212
A64: 12 | B64: 14297 | C64: 24 | D64: 14314 | E64: 13 | F64: 14322 | G64: 23 | H64: 14335 | I64: 13 | J64: 14358 | K64: 0 | L64: 12121
A65: 21 | B65: 14501 | C65: 22 | D65: 14531 | E65: 13 | F65: 14556 | G65: 23 | H65: 14567 | I65: 13 | J65: 14576 | K65: 0 | L65: 22121
A66: 12 | B66: 14701 | C66: 13 | D66: 14716 | E66: 13 | F66: 14734 | G66: 23 | H66: 14745 | I66: 13 | J66: 14754 | K66: 0 | L66: 11121
A67: 21 | B67: 14870 | C67: 11 | D67: 14888 | E67: 22 | F67: 14899 | G67: 14 | H67: 14907 | I67: 24 | J67: 14920 | K67: 0 | L67: 21212
A68: 12 | B68: 15078 | C68: 13 | D68: 15101 | E68: 13 | F68: 15121 | G68: 23 | H68: 15135 | I68: 13 | J68: 15145 | K68: 0 | L68: 11121
A69: 21 | B69: 15265 | C69: 11 | D69: 15274 | E69: 22 | F69: 15285 | G69: 14 | H69: 15296 | I69: 24 | J69: 15307 | K69: 0 | L69: 21212
A70: 12 | B70: 15486 | C70: 13 | D70: 15507 | E70: 24 | F70: 15532 | G70: 14 | H70: 15540 | I70: 24 | J70: 15551 | K70: 0 | L70: 11212
A71: 21 | B71: 15697 | C71: 11 | D71: 15706 | E71: 22 | F71: 15717 | G71: 14 | H71: 15726 | I71: 13 | J71: 15738 | K71: 0 | L71: 21211
A72: 21 | B72: 15860 | C72: 11 | D72: 15869 | E72: 22 | F72: 15878 | G72: 14 | H72: 15887 | I72: 24 | J72: 15901 | K72: 0 | L72: 21212
A73: 21 | B73: 16013 | C73: 11 | D73: 16022 | E73: 11 | F73: 16035 | G73: 21 | H73: 16046 | I73: 11 | J73: 16055 | K73: 1 | L73: 21121
A74: 12 | B74: 16200 | C74: 13 | D74: 16224 | E74: 24 | F74: 16237 | G74: 14 | H74: 16260 | I74: 24 | J74: 16284 | K74: 0 | L74: 11212
A75: 21 | B75: 16420 | C75: 11 | D75: 16429 | E75: 22 | F75: 16442 | G75: 14 | H75: 16458 | I75: 24 | J75: 16478 | K75: 0 | L75: 21212
A76: 12 | B76: 16700 | C76: 13 | D76: 16718 | E76: 24 | F76: 16727 | G76: 14 | H76: 16746 | I76: 13 | J76: 16758 | K76: 0 | L76: 11211
A77: 21 | B77: 16882 | C77: 11 | D77: 16896 | E77: 22 | F77: 16907 | G77: 14 | H77: 16919 | I77: 24 | J77: 16932 | K77: 0 | L77: 21212
A78: 21 | B78: 17055 | C78: 11 | D78: 17072 | E78: 11 | F78: 17087 | G78: 21 | H78: 17099 | I78: 11 | J78: 17110 | K78: 1 | L78: 21121
A79: 12 | B79: 17224 | C79: 24 | D79: 17236 | E79: 24 | F79: 17253 | G79: 23 | H79: 17281 | I79: 13 | J79: 17297 | K79: 0 | L79: 12221
A80: 12 | B80: 17402 | C80: 24 | D80: 17414 | E80: 24 | F80: 17426 | G80: 23 | H80: 17439 | I80: 24 | J80: 17453 | K80: 0 | L80: 12222
A81: 12 | B81: 17566 | C81: 24 | D81: 17578 | E81: 24 | F81: 17592 | G81: 23 | H81: 17605 | I81: 24 | J81: 17617 | K81: 0 | L81: 12222
A82: 12 | B82: 17740 | C82: 24 | D82: 17749 | E82: 13 | F82: 17758 | G82: 14 | H82: 17778 | I82: 24 | J82: 17790 | K82: 0 | L82: 12112
A83: 12 | B83: 17887 | C83: 13 | D83: 17906 | E83: 24 | F83: 17919 | G83: 23 | H83: 17931 | I83: 24 | J83: 17942 | K83: 0 | L83: 11222
A84: 12 | B84: 18051 | C84: 24 | D84: 18062 | E84: 13 | F84: 18071 | G84: 23 | H84: 18084 | I84: 13 | J84: 18115 | K84: 0 | L84: 12121
A85: 12 | B85: 18220 | C85: 13 | D85: 18232 | E85: 24 | F85: 18242 | G85: 14 | H85: 18255 | I85: 24 | J85: 18266 | K85: 0 | L85: 11212
A86: 12 | B86: 18401 | C86: 24 | D86: 18412 | E86: 24 | F86: 18423 | G86: 23 | H86: 18458 | I86: 13 | J86: 18481 | K86: 0 | L86: 12221
A87: 12 | B87: 18590 | C87: 24 | D87: 18602 | E87: 24 | F87: 18614 | G87: 14 | H87: 18627 | I87: 24 | J87: 18638 | K87: 0 | L87: 12212
A88: 12 | B88: 18743 | C88: 13 | D88: 18758 | E88: 24 | F88: 18768 | G88: 14 | H88: 18781 | I88: 24 | J88: 18793 | K88: 0 | L88: 11212
A89: 21 | B89: 18893 | C89: 11 | D89: 18903 | E89: 11 | F89: 18918 | G89: 21 | H89: 18929 | I89: 11 | J89: 18942 | K89: 1 | L89: 21121
A90: 12 | B90: 19050 | C90: 13 | D90: 19079 | E90: 24 | F90: 19091 | G90: 23 | H90: 19101 | I90: 24 | J90: 19111 | K90: 0 | L90: 11222
A91: 12 | B91: 19213 | C91: 24 | D91: 19225 | E91: 13 | F91: 19235 | G91: 23 | H91: 19246 | I91: 13 | J91: 19259 | K91: 0 | L91: 12121
A92: 12 | B92: 19371 | C92: 24 | D92: 19382 | E92: 24 | F92: 19392 | G92: 23 | H92: 19401 | I92: 24 | J92: 19412 | K92: 0 | L92: 12222
A93: 12 | B93: 19509 | C93: 24 | D93: 19539 | E93: 13 | F93: 19548 | G93: 23 | H93: 19576 | I93: 13 | J93: 19588 | K93: 0 | L93: 12121
A94: 12 | B94: 19710 | C94: 24 | D94: 19723 | E94: 13 | F94: 19741 | G94: 14 | H94: 19758 | I94: 13 | J94: 19768 | K94: 0 | L94: 12111
A95: 12 | B95: 19871 | C95: 13 | D95: 19879 | E95: 13 | F95: 19893 | G95: 14 | H95: 19914 | I95: 24 | J95: 19925 | K95: 0 | L95: 11112
A96: 12 | B96: 20053 | C96: 13 | D96: 20063 | E96: 13 | F96: 20081 | G96: 23 | H96: 20093 | I96: 13 | J96: 20101 | K96: 0 | L96: 11121
A97: 12 | B97: 20207 | C97: 13 | D97: 20219 | E97: 13 | F97: 20232 | G97: 14 | H97: 20250 | I97: 24 | J97: 20278 | K97: 0 | L97: 11112
A98: 12 | B98: 20402 | C98: 13 | D98: 20413 | E98: 13 | F98: 20433 | G98: 14 | H98: 20446 | I98: 24 | J98: 20458 | K98: 0 | L98: 11112
A99: 21 | B99: 20572 | C99: 11 | D99: 20581 | E99: 11 | F99: 20593 | G99: 21 | H99: 20612 | I99: 11 | J99: 20628 | K99: 1 | L99: 21121
A100: 12 | B100: 20751 | C100: 24 | D100: 20764 | E100: 13 | F100: 20780 | G100: 14 | H100: 20788 | I100: 13 | J100: 20801 | K100: 0 | L100: 12111
A101: 12 | B101: 20963 | C101: 13 | D101: 20980 | E101: 13 | F101: 20988 | G101: 14 | H101: 21003 | I101: 13 | J101: 21018 | K101: 0 | L101: 11111
A102: 12 | B102: 21140 | C102: 13 | D102: 21149 | E102: 24 | F102: 21161 | G102: 14 | H102: 21170 | I102: 24 | J102: 21183 | K102: 0 | L102: 11212
A103: 12 | B103: 21289 | C103: 13 | D103: 21298 | E103: 13 | F103: 21313 | G103: 14 | H103: 21330 | I103: 13 | J103: 21357 | K103: 0 | L103: 11111
A104: 12 | B104: 21489 | C104: 24 | D104: 21510 | E104: 13 | F104: 21523 | G104: 23 | H104: 21535 | I104: 13 | J104: 21553 | K104: 0 | L104: 12121
A105: 12 | B105: 21757 | C105: 24 | D105: 21769 | E105: 13 | F105: 21789 | G105: 14 | H105: 21798 | I105: 13 | J105: 21806 | K105: 0 | L105: 12111
A106: 12 | B106: 21942 | C106: 13 | D106: 21957 | E106: 13 | F106: 21974 | G106: 14 | H106: 21990 | I106: 13 | J106: 21998 | K106: 0 | L106: 11111
A107: 12 | B107: 22110 | C107: 13 | D107: 22125 | E107: 13 | F107: 22140 | G107: 23 | H107: 22153 | I107: 13 | J107: 22162 | K107: 0 | L107: 11121
A108: 21 | B108: 22265 | C108: 11 | D108: 22274 | E108: 11 | F108: 22286 | G108: 21 | H108: 22300 | I108: 11 | J108: 22309 | K108: 1 | L108: 21121
A109: 12 | B109: 22412 | C109: 24 | D109: 22442 | E109: 24 | F109: 22476 | G109: 14 | H109: 22509 | I109: 13 | J109: 22521 | K109: 0 | L109: 12211
A110: 12 | B110: 22622 | C110: 13 | D110: 22631 | E110: 13 | F110: 22643 | G110: 23 | H110: 22655 | I110: 13 | J110: 22673 | K110: 0 | L110: 11121
A111: 12 | B111: 22771 | C111: 13 | D111: 22784 | E111: 13 | F111: 22797 | G111: 14 | H111: 22805 | I111: 13 | J111: 22813 | K111: 0 | L111: 11111
A112: 21 | B112: 22915 | C112: 11 | D112: 22923 | E112: 22 | F112: 22935 | G112: 14 | H112: 22950 | I112: 24 | J112: 22963 | K112: 0 | L112: 21212
A113: 12 | B113: 23059 | C113: 24 | D113: 23074 | E113: 13 | F113: 23082 | G113: 14 | H113: 23096 | I113: 24 | J113: 23122 | K113: 0 | L113: 12112
A114: 12 | B114: 23244 | C114: 13 | D114: 23280 | E114: 24 | F114: 23293 | G114: 14 | H114: 23304 | I114: 24 | J114: 23322 | K114: 0 | L114: 11212
A115: 12 | B115: 23443 | C115: 24 | D115: 23455 | E115: 13 | F115: 23482 | G115: 23 | H115: 23494 | I115: 13 | J115: 23574 | K115: 0 | L115: 12121
A116: 12 | B116: 23689 | C116: 13 | D116: 23696 | E116: 24 | F116: 23708 | G116: 23 | H116: 23721 | I116: 13 | J116: 23737 | K116: 0 | L116: 11221
A117: 12 | B117: 23845 | C117: 24 | D117: 23861 | E117: 13 | F117: 23869 | G117: 14 | H117: 23880 | I117: 13 | J117: 23887 | K117: 0 | L117: 12111
A118: 12 | B118: 23988 | C118: 13 | D118: 23999 | L118: 11

Sheet !MA04840.010
A1: Report for:!MA04840.010
A2: Date: | B2: <date>
A3: Hen: | B3: <hen> | F3: Correct Sequence | G3: =Start!J2 -> 21121 | P3: Total Sequences in Data | Q3: =4994-COUNTBLANK(L7:L5000) -> 127 | V3: Total Sequences in Block Data | W3: =COUNTA(L7:L27) -> 21 | AA3: Total Sequences in Block Data | AB3: =COUNTA(L28:L48) -> 21 | AF3: Total Sequences in Block Data | AG3: =COUNTA(L49:L70) -> 22 | AK3: Total Sequences in Block Data | AL3: =COUNTA(L71:L91) -> 21 | AP3: Total Sequences in Block Data | AQ3: =COUNTA(L92:L112) -> 21 | AU3: Total Sequences in Block Data | AV3: =COUNTA(L113:L133) -> 21
P4: Total Sequences in Summary | Q4: =SUM(O7:O38) -> 126 | V4: Total Sequences in Block Summary | W4: =SUM(U7:U38) -> 21 | AA4: Total Sequences in Block Summary | AB4: =SUM(Z7:Z38) -> 21 | AF4: Total Sequences in Block Summary | AG4: =SUM(AE7:AE38) -> 22 | AK4: Total Sequences in Block Summary | AL4: =SUM(AJ7:AJ38) -> 21 | AP4: Total Sequences in Block Summary | AQ4: =SUM(AO7:AO38) -> 21 | AU4: Total Sequences in Block Summary | AV4: =SUM(AT7:AT38) -> 20
T5: Block 1 | Y5: Block 2 | AD5: Block 3 | AI5: Block 4 | AN5: Block 5 | AS5: Block 6
A6: Sequence Component 1 | B6: Time 1 | C6: Sequence Component 2 | D6: Time 2 | E6: Sequence Component 3 | F6: Time 3 | G6: Sequence Component 4 | H6: Time 4 | I6: Sequence Component 5 | J6: Time 5 | K6: Correct? 0=No 1=Yes | L6: Sequence | N6: Frequency | P6: Relative Frequency | Q6: Variability | T6: Frequency | V6: Relative Frequency | W6: Variability | Y6: Frequency | AA6: Relative Frequency | AB6: Variability | AD6: Frequency | AF6: Relative Frequency | AG6: Variability | AI6: Frequency | AK6: Relative Frequency | AL6: Variability | AN6: Frequency | AP6: Relative Frequency | AQ6: Variability | AS6: Frequency | AU6: Relative Frequency | AV6: Variability
A7: 12 | B7: 15 | C7: 24 | D7: 27 | E7: 24 | F7: 45 | G7: 14 | H7: 57 | I7: 24 | J7: 70 | K7: 0 | L7: 12212 | N7: 11111 | O7: =COUNTIF($L$7:$L$500,N7) -> 0 | P7: =O7/$Q$4 -> 0 | Q7: =IF(P7=0,0,(P7*((LOG(P7))/LOG(2)))) -> 0 | T7: =N7 -> 11111 | U7: =COUNTIF(L7:L27,T7) -> 0 | V7: =U7/(W4-U25) -> 0 | W7: =IF(V7=0,0,(V7*((LOG(V7))/LOG(2)))) -> 0 | Y7: =N7 -> 11111 | Z7: =COUNTIF(L28:L48,Y7) -> 0 | AA7: =Z7/(AB4-Z25) -> 0 | AB7: =IF(AA7=0,0,(AA7*((LOG(AA7))/LOG(2)))) -> 0 | AD7: =N7 -> 11111 | AE7: =COUNTIF(L49:L70,AD7) -> 0 | AF7: =AE7/(AG4-AE25) -> 0 | AG7: =IF(AF7=0,0,(AF7*((LOG(AF7))/LOG(2)))) -> 0 | AI7: =N7 -> 11111 | AJ7: =COUNTIF(L71:L91,AI7) -> 0 | AK7: =AJ7/(AL4-AJ25) -> 0 | AL7: =IF(AK7=0,0,(AK7*((LOG(AK7))/LOG(2)))) -> 0 | AN7: =N7 -> 11111 | AO7: =COUNTIF(L92:L112,AN7) -> 0 | AP7: =AO7/(AQ4-AO25) -> 0 | AQ7: =IF(AP7=0,0,(AP7*((LOG(AP7))/LOG(2)))) -> 0 | AS7: =N7 -> 11111 | AT7: =COUNTIF(L113:L133,AS7) -> 0 | AU7: =AT7/(AV4-AT25) -> 0 | AV7: =IF(AU7=0,0,(AU7*((LOG(AU7))/LOG(2)))) -> 0
A8: 12 | B8: 179 | C8: 24 | D8: 191 | E8: 13 | F8: 220 | G8: 23 | H8: 232 | I8: 13 | J8: 246 | K8: 0 | L8: 12121 | N8: 11112 | O8: =COUNTIF($L$7:$L$500,N8) -> 1 | P8: =O8/$Q$4 -> 0.007936507937 | Q8: =IF(P8=0,0,(P8*((LOG(P8))/LOG(2)))) -> -0.05537523749 | T8: =N8 -> 11112 | U8: =COUNTIF(L7:L27,T8) -> 1 | V8: =U8/(W4-U25) -> 0.05263157895 | W8: =IF(V8=0,0,(V8*((LOG(V8))/LOG(2)))) -> -0.2235751323 | Y8: =N8 -> 11112 | Z8: =COUNTIF(L28:L48,Y8) -> 0 | AA8: =Z8/(AB4-Z25) -> 0 | AB8: =IF(AA8=0,0,(AA8*((LOG(AA8))/LOG(2)))) -> 0 | AD8: =N8 -> 11112 | AE8: =COUNTIF(L49:L70,AD8) -> 0 | AF8: =AE8/(AG4-AE25) -> 0 | AG8: =IF(AF8=0,0,(AF8*((LOG(AF8))/LOG(2)))) -> 0 | AI8: =N8 -> 11112 | AJ8: =COUNTIF(L71:L91,AI8) -> 0 | AK8: =AJ8/(AL4-AJ25) -> 0 | AL8: =IF(AK8=0,0,(AK8*((LOG(AK8))/LOG(2)))) -> 0 | AN8: =N8 -> 11112 | AO8: =COUNTIF(L92:L112,AN8) -> 0 | AP8: =AO8/(AQ4-AO25) -> 0 | AQ8: =IF(AP8=0,0,(AP8*((LOG(AP8))/LOG(2)))) -> 0 | AS8: =N8 -> 11112 | AT8: =COUNTIF(L113:L133,AS8) -> 0 | AU8: =AT8/(AV4-AT25) -> 0 | AV8: =IF(AU8=0,0,(AU8*((LOG(AU8))/LOG(2)))) -> 0
A9: 12 | B9: 350 | C9: 24 | D9: 363 | E9: 13 | F9: 375 | G9: 23 | H9: 388 | I9: 13 | J9: 401 | K9: 0 | L9: 12121 | N9: 11121 | O9: =COUNTIF($L$7:$L$500,N9) -> 2 | P9: =O9/$Q$4 -> 0.01587301587 | Q9: =IF(P9=0,0,(P9*((LOG(P9))/LOG(2)))) -> -0.0948774591 | T9: =N9 -> 11121 | U9: =COUNTIF(L7:L27,T9) -> 0 | V9: =U9/(W4-U25) -> 0 | W9: =IF(V9=0,0,(V9*((LOG(V9))/LOG(2)))) -> 0 | Y9: =N9 -> 11121 | Z9: =COUNTIF(L28:L48,Y9) -> 1 | AA9: =Z9/(AB4-Z25) -> 0.04761904762 | AB9: =IF(AA9=0,0,(AA9*((LOG(AA9))/LOG(2)))) -> -0.2091579725 | AD9: =N9 -> 11121 | AE9: =COUNTIF(L49:L70,AD9) -> 0 | AF9: =AE9/(AG4-AE25) -> 0 | AG9: =IF(AF9=0,0,(AF9*((LOG(AF9))/LOG(2)))) -> 0 | AI9: =N9 -> 11121 | AJ9: =COUNTIF(L71:L91,AI9) -> 0 | AK9: =AJ9/(AL4-AJ25) -> 0 | AL9: =IF(AK9=0,0,(AK9*((LOG(AK9))/LOG(2)))) -> 0 | AN9: =N9 -> 11121 | AO9: =COUNTIF(L92:L112,AN9) -> 1 | AP9: =AO9/(AQ4-AO25) -> 0.05 | AQ9: =IF(AP9=0,0,(AP9*((LOG(AP9))/LOG(2)))) -> -0.2160964047 | AS9: =N9 -> 11121 | AT9: =COUNTIF(L113:L133,AS9) -> 0 | AU9: =AT9/(AV4-AT25) -> 0 | AV9: =IF(AU9=0,0,(AU9*((LOG(AU9))/LOG(2)))) -> 0
A10: 12 | B10: 502 | C10: 13 | D10: 515 | E10: 24 | F10: 526 | G10: 14 | H10: 536 | I10: 24 | J10: 550 | K10: 0 | L10: 11212 | N10: 11122 | O10: =COUNTIF($L$7:$L$500,N10) -> 0 | P10: =O10/$Q$4 -> 0 | Q10: =IF(P10=0,0,(P10*((LOG(P10))/LOG(2)))) -> 0 | T10: =N10 -> 11122 | U10: =COUNTIF(L7:L27,T10) -> 0 | V10: =U10/(W4-U25) -> 0 | W10: =IF(V10=0,0,(V10*((LOG(V10))/LOG(2)))) -> 0 | Y10: =N10 -> 11122 | Z10: =COUNTIF(L28:L48,Y10) -> 0 | AA10: =Z10/(AB4-Z25) -> 0 | AB10: =IF(AA10=0,0,(AA10*((LOG(AA10))/LOG(2)))) -> 0 | AD10: =N10 -> 11122 | AE10: =COUNTIF(L49:L70,AD10) -> 0 | AF10: =AE10/(AG4-AE25) -> 0 | AG10: =IF(AF10=0,0,(AF10*((LOG(AF10))/LOG(2)))) -> 0 | AI10: =N10 -> 11122 | AJ10: =COUNTIF(L71:L91,AI10) -> 0 | AK10: =AJ10/(AL4-AJ25) -> 0 | AL10: =IF(AK10=0,0,(AK10*((LOG(AK10))/LOG(2)))) -> 0 | AN10: =N10 -> 11122 | AO10: =COUNTIF(L92:L112,AN10) -> 0 | AP10: =AO10/(AQ4-AO25) -> 0 | AQ10: =IF(AP10=0,0,(AP10*((LOG(AP10))/LOG(2)))) -> 0 | AS10: =N10 -> 11122 | AT10: =COUNTIF(L113:L133,AS10) -> 0 | AU10: =AT10/(AV4-AT25) -> 0 | AV10: =IF(AU10=0,0,(AU10*((LOG(AU10))/LOG(2)))) -> 0
A11: 21 | B11: 652 | C11: 11 | D11: 661 | E11: 11 | F11: 669 | G11: 21 | H11: 679 | I11: 11 | J11: 691 | K11: 1 | L11: 21121 | N11: 11211 | O11: =COUNTIF($L$7:$L$500,N11) -> 4 | P11: =O11/$Q$4 -> 0.03174603175 | Q11: =IF(P11=0,0,(P11*((LOG(P11))/LOG(2)))) -> -0.1580088865 | T11: =N11 -> 11211 | U11: =COUNTIF(L7:L27,T11) -> 0 | V11: =U11/(W4-U25) -> 0 | W11: =IF(V11=0,0,(V11*((LOG(V11))/LOG(2)))) -> 0 | Y11: =N11 -> 11211 | Z11: =COUNTIF(L28:L48,Y11) -> 4 | AA11: =Z11/(AB4-Z25) -> 0.1904761905 | AB11: =IF(AA11=0,0,(AA11*((LOG(AA11))/LOG(2)))) -> -0.4556795091 | AD11: =N11 -> 11211 | AE11: =COUNTIF(L49:L70,AD11) -> 0 | AF11: =AE11/(AG4-AE25) -> 0 | AG11: =IF(AF11=0,0,(AF11*((LOG(AF11))/LOG(2)))) -> 0 | AI11: =N11 -> 11211 | AJ11: =COUNTIF(L71:L91,AI11) -> 0 | AK11: =AJ11/(AL4-AJ25) -> 0 | AL11: =IF(AK11=0,0,(AK11*((LOG(AK11))/LOG(2)))) -> 0 | AN11: =N11 -> 11211 | AO11: =COUNTIF(L92:L112,AN11) -> 0 | AP11: =AO11/(AQ4-AO25) -> 0 | AQ11: =IF(AP11=0,0,(AP11*((LOG(AP11))/LOG(2)))) -> 0 | AS11: =N11 -> 11211 | AT11: =COUNTIF(L113:L133,AS11) -> 0 | AU11: =AT11/(AV4-AT25) -> 0 | AV11: =IF(AU11=0,0,(AU11*((LOG(AU11))/LOG(2)))) -> 0
A12: 12 | B12: 783 | C12: 24 | D12: 795 | E12: 24 | F12: 808 | G12: 23 | H12: 821 | I12: 24 | J12: 835 | K12: 0 | L12: 12222 | N12: 11212 | O12: =COUNTIF($L$7:$L$500,N12) -> 11 | P12: =O12/$Q$4 -> 0.0873015873 | Q12: =IF(P12=0,0,(P12*((LOG(P12))/LOG(2)))) -> -0.3071137409 | T12: =N12 -> 11212 | U12: =COUNTIF(L7:L27,T12) -> 3 | V12: =U12/(W4-U25) -> 0.1578947368 | W12: =IF(V12=0,0,(V12*((LOG(V12))/LOG(2)))) -> -0.4204681599 | Y12: =N12 -> 11212 | Z12: =COUNTIF(L28:L48,Y12) -> 1 | AA12: =Z12/(AB4-Z25) -> 0.04761904762 | AB12: =IF(AA12=0,0,(AA12*((LOG(AA12))/LOG(2)))) -> -0.2091579725 | AD12: =N12 -> 11212 | AE12: =COUNTIF(L49:L70,AD12) -> 0 | AF12: =AE12/(AG4-AE25) -> 0 | AG12: =IF(AF12=0,0,(AF12*((LOG(AF12))/LOG(2)))) -> 0 | AI12: =N12 -> 11212 | AJ12: =COUNTIF(L71:L91,AI12) -> 0 | AK12: =AJ12/(AL4-AJ25) -> 0 | AL12: =IF(AK12=0,0,(AK12*((LOG(AK12))/LOG(2)))) -> 0 | AN12: =N12 -> 11212 | AO12: =COUNTIF(L92:L112,AN12) -> 2 | AP12: =AO12/(AQ4-AO25) -> 0.1 | AQ12: =IF(AP12=0,0,(AP12*((LOG(AP12))/LOG(2)))) -> -0.3321928095 | AS12: =N12 -> 11212 | AT12: =COUNTIF(L113:L133,AS12) -> 5 | AU12: =AT12/(AV4-AT25) -> 0.2941176471 | AV12: =IF(AU12=0,0,(AU12*((LOG(AU12))/LOG(2)))) -> -0.5192749254
A13: 12 | B13: 933 | C13: 24 | D13: 945 | E13: 24 | F13: 956 | G13: 14 | H13: 985 | I13: 24 | J13: 997 | K13: 0 | L13: 12212 | N13: 11221 | O13: =COUNTIF($L$7:$L$500,N13) -> 1 | P13: =O13/$Q$4 -> 0.007936507937 | Q13: =IF(P13=0,0,(P13*((LOG(P13))/LOG(2)))) -> -0.05537523749 | T13: =N13 -> 11221 | U13: =COUNTIF(L7:L27,T13) -> 0 | V13: =U13/(W4-U25) -> 0 | W13: =IF(V13=0,0,(V13*((LOG(V13))/LOG(2)))) -> 0 | Y13: =N13 -> 11221 | Z13: =COUNTIF(L28:L48,Y13) -> 0 | AA13: =Z13/(AB4-Z25) -> 0 | AB13: =IF(AA13=0,0,(AA13*((LOG(AA13))/LOG(2)))) -> 0 | AD13: =N13 -> 11221 | AE13: =COUNTIF(L49:L70,AD13) -> 0 | AF13: =AE13/(AG4-AE25) -> 0 | AG13: =IF(AF13=0,0,(AF13*((LOG(AF13))/LOG(2)))) -> 0 | AI13: =N13 -> 11221 | AJ13: =COUNTIF(L71:L91,AI13) -> 1 | AK13: =AJ13/(AL4-AJ25) -> 0.04761904762 | AL13: =IF(AK13=0,0,(AK13*((LOG(AK13))/LOG(2)))) -> -0.2091579725 | AN13: =N13 -> 11221 | AO13: =COUNTIF(L92:L112,AN13) -> 0 | AP13: =AO13/(AQ4-AO25) -> 0 | AQ13: =IF(AP13=0,0,(AP13*((LOG(AP13))/LOG(2)))) -> 0 | AS13: =N13 -> 11221 | AT13: =COUNTIF(L113:L133,AS13) -> 0 | AU13: =AT13/(AV4-AT25) -> 0 | AV13: =IF(AU13=0,0,(AU13*((LOG(AU13))/LOG(2)))) -> 0
A14: 12 | B14: 1111 | C14: 24 | D14: 1123 | E14: 24 | F14: 1132 | G14: 23 | H14: 1144 | I14: 13 | J14: 1173 | K14: 0 | L14: 12221 | N14: 11222 | O14: =COUNTIF($L$7:$L$500,N14) -> 2 | P14: =O14/$Q$4 -> 0.01587301587 | Q14: =IF(P14=0,0,(P14*((LOG(P14))/LOG(2)))) -> -0.0948774591 | T14: =N14 -> 11222 | U14: =COUNTIF(L7:L27,T14) -> 1 | V14: =U14/(W4-U25) -> 0.05263157895 | W14: =IF(V14=0,0,(V14*((LOG(V14))/LOG(2)))) -> -0.2235751323 | Y14: =N14 -> 11222 | Z14: =COUNTIF(L28:L48,Y14) -> 0 | AA14: =Z14/(AB4-Z25) -> 0 | AB14: =IF(AA14=0,0,(AA14*((LOG(AA14))/LOG(2)))) -> 0 | AD14: =N14 -> 11222 | AE14: =COUNTIF(L49:L70,AD14) -> 0 | AF14: =AE14/(AG4-AE25) -> 0 | AG14: =IF(AF14=0,0,(AF14*((LOG(AF14))/LOG(2)))) -> 0 | AI14: =N14 -> 11222 | AJ14: =COUNTIF(L71:L91,AI14) -> 0 | AK14: =AJ14/(AL4-AJ25) -> 0 | AL14: =IF(AK14=0,0,(AK14*((LOG(AK14))/LOG(2)))) -> 0 | AN14: =N14 -> 11222 | AO14: =COUNTIF(L92:L112,AN14) -> 0 | AP14: =AO14/(AQ4-AO25) -> 0 | AQ14: =IF(AP14=0,0,(AP14*((LOG(AP14))/LOG(2)))) -> 0 | AS14: =N14 -> 11222 | AT14: =COUNTIF(L113:L133,AS14) -> 1 | AU14: =AT14/(AV4-AT25) -> 0.05882352941 | AV14: =IF(AU14=0,0,(AU14*((LOG(AU14))/LOG(2)))) -> -0.2404389907
A15: 12 | B15: 1281 | C15: 24 | D15: 1293 | E15: 13 | F15: 1302 | G15: 23 | H15: 1313 | I15: 13 | J15: 1321 | K15: 0 | L15: 12121 | N15: 12111 | O15: =COUNTIF($L$7:$L$500,N15) -> 1 | P15: =O15/$Q$4 -> 0.007936507937 | Q15: =IF(P15=0,0,(P15*((LOG(P15))/LOG(2)))) -> -0.05537523749 | T15: =N15 -> 12111 | U15: =COUNTIF(L7:L27,T15) -> 1 | V15: =U15/(W4-U25) -> 0.05263157895 | W15: =IF(V15=0,0,(V15*((LOG(V15))/LOG(2)))) -> -0.2235751323 | Y15: =N15 -> 12111 | Z15: =COUNTIF(L28:L48,Y15) -> 0 | AA15: =Z15/(AB4-Z25) -> 0 | AB15: =IF(AA15=0,0,(AA15*((LOG(AA15))/LOG(2)))) -> 0 | AD15: =N15 -> 12111 | AE15: =COUNTIF(L49:L70,AD15) -> 0 | AF15: =AE15/(AG4-AE25) -> 0 | AG15: =IF(AF15=0,0,(AF15*((LOG(AF15))/LOG(2)))) -> 0 | AI15: =N15 -> 12111 | AJ15: =COUNTIF(L71:L91,AI15) -> 0 | AK15: =AJ15/(AL4-AJ25) -> 0 | AL15: =IF(AK15=0,0,(AK15*((LOG(AK15))/LOG(2)))) -> 0 | AN15: =N15 -> 12111 | AO15: =COUNTIF(L92:L112,AN15) -> 0 | AP15: =AO15/(AQ4-AO25) -> 0 | AQ15: =IF(AP15=0,0,(AP15*((LOG(AP15))/LOG(2)))) -> 0 | AS15: =N15 -> 12111 | AT15: =COUNTIF(L113:L133,AS15) -> 0 | AU15: =AT15/(AV4-AT25) -> 0 | AV15: =IF(AU15=0,0,(AU15*((LOG(AU15))/LOG(2)))) -> 0
A16: 12 | B16: 1424 | C16: 24 | D16: 1435 | E16: 13 | F16: 1448 | G16: 14 | H16: 1455 | I16: 13 | J16: 1474 | K16: 0 | L16: 12111 | N16: 12112 | O16: =COUNTIF($L$7:$L$500,N16) -> 0 | P16: =O16/$Q$4 -> 0 | Q16: =IF(P16=0,0,(P16*((LOG(P16))/LOG(2)))) -> 0 | T16: =N16 -> 12112 | U16: =COUNTIF(L7:L27,T16) -> 0 | V16: =U16/(W4-U25) -> 0 | W16: =IF(V16=0,0,(V16*((LOG(V16))/LOG(2)))) -> 0 | Y16: =N16 -> 12112 | Z16: =COUNTIF(L28:L48,Y16) -> 0 | AA16: =Z16/(AB4-Z25) -> 0 | AB16: =IF(AA16=0,0,(AA16*((LOG(AA16))/LOG(2)))) -> 0 | AD16: =N16 -> 12112 | AE16: =COUNTIF(L49:L70,AD16) -> 0 | AF16: =AE16/(AG4-AE25) -> 0 | AG16: =IF(AF16=0,0,(AF16*((LOG(AF16))/LOG(2)))) -> 0 | AI16: =N16 -> 12112 | AJ16: =COUNTIF(L71:L91,AI16) -> 0 | AK16: =AJ16/(AL4-AJ25) -> 0 | AL16: =IF(AK16=0,0,(AK16*((LOG(AK16))/LOG(2)))) -> 0 | AN16: =N16 -> 12112 | AO16: =COUNTIF(L92:L112,AN16) -> 0 | AP16: =AO16/(AQ4-AO25) -> 0 | AQ16: =IF(AP16=0,0,(AP16*((LOG(AP16))/LOG(2)))) -> 0 | AS16: =N16 -> 12112 | AT16: =COUNTIF(L113:L133,AS16) -> 0 | AU16: =AT16/(AV4-AT25) -> 0 | AV16: =IF(AU16=0,0,(AU16*((LOG(AU16))/LOG(2)))) -> 0
A17: 12 | B17: 1577 | C17: 13 | D17: 1587 | E17: 24 | F17: 1599 | G17: 14 | H17: 1614 | I17: 24 | J17: 1625 | K17: 0 | L17: 11212 | N17: 12121 | O17: =COUNTIF($L$7:$L$500,N17) -> 12 | P17: =O17/$Q$4 -> 0.09523809524 | Q17: =IF(P17=0,0,(P17*((LOG(P17))/LOG(2)))) -> -0.3230778498 | T17: =N17 -> 12121 | U17: =COUNTIF(L7:L27,T17) -> 5 | V17: =U17/(W4-U25) -> 0.2631578947 | W17: =IF(V17=0,0,(V17*((LOG(V17))/LOG(2)))) -> -0.5068419523 | Y17: =N17 -> 12121 | Z17: =COUNTIF(L28:L48,Y17) -> 0 | AA17: =Z17/(AB4-Z25) -> 0 | AB17: =IF(AA17=0,0,(AA17*((LOG(AA17))/LOG(2)))) -> 0 | AD17: =N17 -> 12121 | AE17: =COUNTIF(L49:L70,AD17) -> 1 | AF17: =AE17/(AG4-AE25) -> 0.04545454545 | AG17: =IF(AF17=0,0,(AF17*((LOG(AF17))/LOG(2)))) -> -0.2027014372 | AI17: =N17 -> 12121 | AJ17: =COUNTIF(L71:L91,AI17) -> 2 | AK17: =AJ17/(AL4-AJ25) -> 0.09523809524 | AL17: =IF(AK17=0,0,(AK17*((LOG(AK17))/LOG(2)))) -> -0.3230778498 | AN17: =N17 -> 12121 | AO17: =COUNTIF(L92:L112,AN17) -> 1 | AP17: =AO17/(AQ4-AO25) -> 0.05 | AQ17: =IF(AP17=0,0,(AP17*((LOG(AP17))/LOG(2)))) -> -0.2160964047 | AS17: =N17 -> 12121 | AT17: =COUNTIF(L113:L133,AS17) -> 3 | AU17: =AT17/(AV4-AT25) -> 0.1764705882 | AV17: =IF(AU17=0,0,(AU17*((LOG(AU17))/LOG(2)))) -> -0.4416177072
A18: 12 | B18: 1728 | C18: 13 | D18: 1736 | E18: 24 | F18: 1748 | G18: 23 | H18: 1763 | I18: 24 | J18: 1775 | K18: 0 | L18: 11222 | N18: 12122 | O18: =COUNTIF($L$7:$L$500,N18) -> 0 | P18: =O18/$Q$4 -> 0 | Q18: =IF(P18=0,0,(P18*((LOG(P18))/LOG(2)))) -> 0 | T18: =N18 -> 12122 | U18: =COUNTIF(L7:L27,T18) -> 0 | V18: =U18/(W4-U25) -> 0 | W18: =IF(V18=0,0,(V18*((LOG(V18))/LOG(2)))) -> 0 | Y18: =N18 -> 12122 | Z18: =COUNTIF(L28:L48,Y18) -> 0 | AA18: =Z18/(AB4-Z25) -> 0 | AB18: =IF(AA18=0,0,(AA18*((LOG(AA18))/LOG(2)))) -> 0 | AD18: =N18 -> 12122 | AE18: =COUNTIF(L49:L70,AD18) -> 0 | AF18: =AE18/(AG4-AE25) -> 0 | AG18: =IF(AF18=0,0,(AF18*((LOG(AF18))/LOG(2)))) -> 0 | AI18: =N18 -> 12122 | AJ18: =COUNTIF(L71:L91,AI18) -> 0 | AK18: =AJ18/(AL4-AJ25) -> 0 | AL18: =IF(AK18=0,0,(AK18*((LOG(AK18))/LOG(2)))) -> 0 | AN18: =N18 -> 12122 | AO18: =COUNTIF(L92:L112,AN18) -> 0 | AP18: =AO18/(AQ4-AO25) -> 0 | AQ18: =IF(AP18=0,0,(AP18*((LOG(AP18))/LOG(2)))) -> 0 | AS18: =N18 -> 12122 | AT18: =COUNTIF(L113:L133,AS18) -> 0 | AU18: =AT18/(AV4-AT25) -> 0 | AV18: =IF(AU18=0,0,(AU18*((LOG(AU18))/LOG(2)))) -> 0
A19: 12 | B19: 1894 | C19: 13 | D19: 1914 | E19: 24 | F19: 1924 | G19: 14 | H19: 1933 | I19: 24 | J19: 1946 | K19: 0 | L19: 11212 | N19: 12211 | O19: =COUNTIF($L$7:$L$500,N19) -> 1 | P19: =O19/$Q$4 -> 0.007936507937 | Q19: =IF(P19=0,0,(P19*((LOG(P19))/LOG(2)))) -> -0.05537523749 | T19: =N19 -> 12211 | U19: =COUNTIF(L7:L27,T19) -> 1 | V19: =U19/(W4-U25) -> 0.05263157895 | W19: =IF(V19=0,0,(V19*((LOG(V19))/LOG(2)))) -> -0.2235751323 | Y19: =N19 -> 12211 | Z19: =COUNTIF(L28:L48,Y19) -> 0 | AA19: =Z19/(AB4-Z25) -> 0 | AB19: =IF(AA19=0,0,(AA19*((LOG(AA19))/LOG(2)))) -> 0 | AD19: =N19 -> 12211 | AE19: =COUNTIF(L49:L70,AD19) -> 0 | AF19: =AE19/(AG4-AE25) -> 0 | AG19: =IF(AF19=0,0,(AF19*((LOG(AF19))/LOG(2)))) -> 0 | AI19: =N19 -> 12211 | AJ19: =COUNTIF(L71:L91,AI19) -> 0 | AK19: =AJ19/(AL4-AJ25) -> 0 | AL19: =IF(AK19=0,0,(AK19*((LOG(AK19))/LOG(2)))) -> 0 | AN19: =N19 -> 12211 | AO19: =COUNTIF(L92:L112,AN19) -> 0 | AP19: =AO19/(AQ4-AO25) -> 0 | AQ19: =IF(AP19=0,0,(AP19*((LOG(AP19))/LOG(2)))) -> 0 | AS19: =N19 -> 12211 | AT19: =COUNTIF(L113:L133,AS19) -> 0 | AU19: =AT19/(AV4-AT25) -> 0 | AV19: =IF(AU19=0,0,(AU19*((LOG(AU19))/LOG(2)))) -> 0
A20: 21 | B20: 2104 | C20: 11 | D20: 2113 | E20: 22 | F20: 2125 | G20: 14 | H20: 2134 | I20: 24 | J20: 2151 | K20: 0 | L20: 21212 | N20: 12212 | O20: =COUNTIF($L$7:$L$500,N20) -> 3 | P20: =O20/$Q$4 -> 0.02380952381 | Q20: =IF(P20=0,0,(P20*((LOG(P20))/LOG(2)))) -> -0.1283885101 | T20: =N20 -> 12212 | U20: =COUNTIF(L7:L27,T20) -> 2 | V20: =U20/(W4-U25) -> 0.1052631579 | W20: =IF(V20=0,0,(V20*((LOG(V20))/LOG(2)))) -> -0.3418871067 | Y20: =N20 -> 12212 | Z20: =COUNTIF(L28:L48,Y20) -> 0 | AA20: =Z20/(AB4-Z25) -> 0 | AB20: =IF(AA20=0,0,(AA20*((LOG(AA20))/LOG(2)))) -> 0 | AD20: =N20 -> 12212 | AE20: =COUNTIF(L49:L70,AD20) -> 0 | AF20: =AE20/(AG4-AE25) -> 0 | AG20: =IF(AF20=0,0,(AF20*((LOG(AF20))/LOG(2)))) -> 0 | AI20: =N20 -> 12212 | AJ20: =COUNTIF(L71:L91,AI20) -> 0 | AK20: =AJ20/(AL4-AJ25) -> 0 | AL20: =IF(AK20=0,0,(AK20*((LOG(AK20))/LOG(2)))) -> 0 | AN20: =N20 -> 12212 | AO20: =COUNTIF(L92:L112,AN20) -> 0 | AP20: =AO20/(AQ4-AO25) -> 0 | AQ20: =IF(AP20=0,0,(AP20*((LOG(AP20))/LOG(2)))) -> 0 | AS20: =N20 -> 12212 | AT20: =COUNTIF(L113:L133,AS20) -> 1 | AU20: =AT20/(AV4-AT25) -> 0.05882352941 | AV20: =IF(AU20=0,0,(AU20*((LOG(AU20))/LOG(2)))) -> -0.2404389907
A21: 21 | B21: 2259 | C21: 11 | D21: 2267 | E21: 11 | F21: 2281 | G21: 21 | H21: 2292 | I21: 11 | J21: 2301 | K21: 1 | L21: 21121 | N21: 12221 | O21: =COUNTIF($L$7:$L$500,N21) -> 4 | P21: =O21/$Q$4 -> 0.03174603175 | Q21: =IF(P21=0,0,(P21*((LOG(P21))/LOG(2)))) -> -0.1580088865 | T21: =N21 -> 12221 | U21: =COUNTIF(L7:L27,T21) -> 3 | V21: =U21/(W4-U25) -> 0.1578947368 | W21: =IF(V21=0,0,(V21*((LOG(V21))/LOG(2)))) -> -0.4204681599 | Y21: =N21 -> 12221 | Z21: =COUNTIF(L28:L48,Y21) -> 0 | AA21: =Z21/(AB4-Z25) -> 0 | AB21: =IF(AA21=0,0,(AA21*((LOG(AA21))/LOG(2)))) -> 0 | AD21: =N21 -> 12221 | AE21: =COUNTIF(L49:L70,AD21) -> 0 | AF21: =AE21/(AG4-AE25) -> 0 | AG21: =IF(AF21=0,0,(AF21*((LOG(AF21))/LOG(2)))) -> 0 | AI21: =N21 -> 12221 | AJ21: =COUNTIF(L71:L91,AI21) -> 0 | AK21: =AJ21/(AL4-AJ25) -> 0 | AL21: =IF(AK21=0,0,(AK21*((LOG(AK21))/LOG(2)))) -> 0 | AN21: =N21 -> 12221 | AO21: =COUNTIF(L92:L112,AN21) -> 0 | AP21: =AO21/(AQ4-AO25) -> 0 | AQ21: =IF(AP21=0,0,(AP21*((LOG(AP21))/LOG(2)))) -> 0 | AS21: =N21 -> 12221 | AT21: =COUNTIF(L113:L133,AS21) -> 1 | AU21: =AT21/(AV4-AT25) -> 0.05882352941 | AV21: =IF(AU21=0,0,(AU21*((LOG(AU21))/LOG(2)))) -> -0.2404389907
A22: 12 | B22: 2403 | C22: 24 | D22: 2415 | E22: 24 | F22: 2431 | G22: 23 | H22: 2478 | I22: 13 | J22: 2490 | K22: 0 | L22: 12221 | N22: 12222 | O22: =COUNTIF($L$7:$L$500,N22) -> 1 | P22: =O22/$Q$4 -> 0.007936507937 | Q22: =IF(P22=0,0,(P22*((LOG(P22))/LOG(2)))) -> -0.05537523749 | T22: =N22 -> 12222 | U22: =COUNTIF(L7:L27,T22) -> 1 | V22: =U22/(W4-U25) -> 0.05263157895 | W22: =IF(V22=0,0,(V22*((LOG(V22))/LOG(2)))) -> -0.2235751323 | Y22: =N22 -> 12222 | Z22: =COUNTIF(L28:L48,Y22) -> 0 | AA22: =Z22/(AB4-Z25) -> 0 | AB22: =IF(AA22=0,0,(AA22*((LOG(AA22))/LOG(2)))) -> 0 | AD22: =N22 -> 12222 | AE22: =COUNTIF(L49:L70,AD22) -> 0 | AF22: =AE22/(AG4-AE25) -> 0 | AG22: =IF(AF22=0,0,(AF22*((LOG(AF22))/LOG(2)))) -> 0 | AI22: =N22 -> 12222 | AJ22: =COUNTIF(L71:L91,AI22) -> 0 | AK22: =AJ22/(AL4-AJ25) -> 0 | AL22: =IF(AK22=0,0,(AK22*((LOG(AK22))/LOG(2)))) -> 0 | AN22: =N22 -> 12222 | AO22: =COUNTIF(L92:L112,AN22) -> 0 | AP22: =AO22/(AQ4-AO25) -> 0 | AQ22: =IF(AP22=0,0,(AP22*((LOG(AP22))/LOG(2)))) -> 0 | AS22: =N22 -> 12222 | AT22: =COUNTIF(L113:L133,AS22) -> 0 | AU22: =AT22/(AV4-AT25) -> 0 | AV22: =IF(AU22=0,0,(AU22*((LOG(AU22))/LOG(2)))) -> 0
A23: 12 | B23: 2593 | C23: 24 | D23: 2605 | E23: 24 | F23: 2617 | G23: 14 | H23: 2640 | I23: 13 | J23: 2652 | K23: 0 | L23: 12211 | N23: 21111 | O23: =COUNTIF($L$7:$L$500,N23) -> 0 | P23: =O23/$Q$4 -> 0 | Q23: =IF(P23=0,0,(P23*((LOG(P23))/LOG(2)))) -> 0 | T23: =N23 -> 21111 | U23: =COUNTIF(L7:L27,T23) -> 0 | V23: =U23/(W4-U25) -> 0 | W23: =IF(V23=0,0,(V23*((LOG(V23))/LOG(2)))) -> 0 | Y23: =N23 -> 21111 | Z23: =COUNTIF(L28:L48,Y23) -> 0 | AA23: =Z23/(AB4-Z25) -> 0 | AB23: =IF(AA23=0,0,(AA23*((LOG(AA23))/LOG(2)))) -> 0 | AD23: =N23 -> 21111 | AE23: =COUNTIF(L49:L70,AD23) -> 0 | AF23: =AE23/(AG4-AE25) -> 0 | AG23: =IF(AF23=0,0,(AF23*((LOG(AF23))/LOG(2)))) -> 0 | AI23: =N23 -> 21111 | AJ23: =COUNTIF(L71:L91,AI23) -> 0 | AK23: =AJ23/(AL4-AJ25) -> 0 | AL23: =IF(AK23=0,0,(AK23*((LOG(AK23))/LOG(2)))) -> 0 | AN23: =N23 -> 21111 | AO23: =COUNTIF(L92:L112,AN23) -> 0 | AP23: =AO23/(AQ4-AO25) -> 0 | AQ23: =IF(AP23=0,0,(AP23*((LOG(AP23))/LOG(2)))) -> 0 | AS23: =N23 -> 21111 | AT23: =COUNTIF(L113:L133,AS23) -> 0 | AU23: =AT23/(AV4-AT25) -> 0 | AV23: =IF(AU23=0,0,(AU23*((LOG(AU23))/LOG(2)))) -> 0
A24: 12 | B24: 2771 | C24: 24 | D24: 2782 | E24: 24 | F24: 2794 | G24: 23 | H24: 2806 | I24: 13 | J24: 2818 | K24: 0 | L24: 12221 | N24: 21112 | O24: =COUNTIF($L$7:$L$500,N24) -> 0 | P24: =O24/$Q$4 -> 0 | Q24: =IF(P24=0,0,(P24*((LOG(P24))/LOG(2)))) -> 0 | T24: =N24 -> 21112 | U24: =COUNTIF(L7:L27,T24) -> 0 | V24: =U24/(W4-U25) -> 0 | W24: =IF(V24=0,0,(V24*((LOG(V24))/LOG(2)))) -> 0 | Y24: =N24 -> 21112 | Z24: =COUNTIF(L28:L48,Y24) -> 0 | AA24: =Z24/(AB4-Z25) -> 0 | AB24: =IF(AA24=0,0,(AA24*((LOG(AA24))/LOG(2)))) -> 0 | AD24: =N24 -> 21112 | AE24: =COUNTIF(L49:L70,AD24) -> 0 | AF24: =AE24/(AG4-AE25) -> 0 | AG24: =IF(AF24=0,0,(AF24*((LOG(AF24))/LOG(2)))) -> 0 | AI24: =N24 -> 21112 | AJ24: =COUNTIF(L71:L91,AI24) -> 0 | AK24: =AJ24/(AL4-AJ25) -> 0 | AL24: =IF(AK24=0,0,(AK24*((LOG(AK24))/LOG(2)))) -> 0 | AN24: =N24 -> 21112 | AO24: =COUNTIF(L92:L112,AN24) -> 0 | AP24: =AO24/(AQ4-AO25) -> 0 | AQ24: =IF(AP24=0,0,(AP24*((LOG(AP24))/LOG(2)))) -> 0 | AS24: =N24 -> 21112 | AT24: =COUNTIF(L113:L133,AS24) -> 0 | AU24: =AT24/(AV4-AT25) -> 0 | AV24: =IF(AU24=0,0,(AU24*((LOG(AU24))/LOG(2)))) -> 0
A25: 12 | B25: 2927 | C25: 24 | D25: 2941 | E25: 13 | F25: 2954 | G25: 23 | H25: 2967 | I25: 13 | J25: 2983 | K25: 0 | L25: 12121 | N25: 21121 | O25: =COUNTIF($L$7:$L$500,N25) -> 6 | P25: =O25/$Q$4 -> 0.04761904762 | Q25: =IF(P25=0,0,(P25*((LOG(P25))/LOG(2)))) -> -0.2091579725 | T25: =N25 -> 21121 | U25: =COUNTIF(L7:L27,T25) -> 2 | Y25: =N25 -> 21121 | Z25: =COUNTIF(L28:L48,Y25) -> 0 | AD25: =N25 -> 21121 | AE25: =COUNTIF(L49:L70,AD25) -> 0 | AI25: =N25 -> 21121 | AJ25: =COUNTIF(L71:L91,AI25) -> 0 | AN25: =N25 -> 21121 | AO25: =COUNTIF(L92:L112,AN25) -> 1 | AS25: =N25 -> 21121 | AT25: =COUNTIF(L113:L133,AS25) -> 3
A26: 12 | B26: 3102 | C26: 24 | D26: 3111 | E26: 13 | F26: 3121 | G26: 23 | H26: 3134 | I26: 13 | J26: 3145 | K26: 0 | L26: 12121 | N26: 21122 | O26: =COUNTIF($L$7:$L$500,N26) -> 1 | P26: =O26/$Q$4 -> 0.007936507937 | Q26: =IF(P26=0,0,(P26*((LOG(P26))/LOG(2)))) -> -0.05537523749 | T26: =N26 -> 21122 | U26: =COUNTIF(L7:L27,T26) -> 0 | V26: =U26/(W4-U25) -> 0 | W26: =IF(V26=0,0,(V26*((LOG(V26))/LOG(2)))) -> 0 | Y26: =N26 -> 21122 | Z26: =COUNTIF(L28:L48,Y26) -> 0 | AA26: =Z26/(AB4-Z25) -> 0 | AB26: =IF(AA26=0,0,(AA26*((LOG(AA26))/LOG(2)))) -> 0 | AD26: =N26 -> 21122 | AE26: =COUNTIF(L49:L70,AD26) -> 0 | AF26: =AE26/(AG4-AE25) -> 0 | AG26: =IF(AF26=0,0,(AF26*((LOG(AF26))/LOG(2)))) -> 0 | AI26: =N26 -> 21122 | AJ26: =COUNTIF(L71:L91,AI26) -> 0 | AK26: =AJ26/(AL4-AJ25) -> 0 | AL26: =IF(AK26=0,0,(AK26*((LOG(AK26))/LOG(2)))) -> 0 | AN26: =N26 -> 21122 | AO26: =COUNTIF(L92:L112,AN26) -> 0 | AP26: =AO26/(AQ4-AO25) -> 0 | AQ26: =IF(AP26=0,0,(AP26*((LOG(AP26))/LOG(2)))) -> 0 | AS26: =N26 -> 21122 | AT26: =COUNTIF(L113:L133,AS26) -> 1 | AU26: =AT26/(AV4-AT25) -> 0.05882352941 | AV26: =IF(AU26=0,0,(AU26*((LOG(AU26))/LOG(2)))) -> -0.2404389907
A27: 12 | B27: 3253 | C27: 13 | D27: 3263 | E27: 13 | F27: 3290 | G27: 14 | H27: 3308 | I27: 24 | J27: 3328 | K27: 0 | L27: 11112 | N27: 21211 | O27: =COUNTIF($L$7:$L$500,N27) -> 7 | P27: =O27/$Q$4 -> 0.05555555556 | Q27: =IF(P27=0,0,(P27*((LOG(P27))/LOG(2)))) -> -0.2316625001 | T27: =N27 -> 21211 | U27: =COUNTIF(L7:L27,T27) -> 0 | V27: =U27/(W4-U25) -> 0 | W27: =IF(V27=0,0,(V27*((LOG(V27))/LOG(2)))) -> 0 | Y27: =N27 -> 21211 | Z27: =COUNTIF(L28:L48,Y27) -> 4 | AA27: =Z27/(AB4-Z25) -> 0.1904761905 | AB27: =IF(AA27=0,0,(AA27*((LOG(AA27))/LOG(2)))) -> -0.4556795091 | AD27: =N27 -> 21211 | AE27: =COUNTIF(L49:L70,AD27) -> 3 | AF27: =AE27/(AG4-AE25) -> 0.1363636364 | AG27: =IF(AF27=0,0,(AF27*((LOG(AF27))/LOG(2)))) -> -0.3919730615 | AI27: =N27 -> 21211 | AJ27: =COUNTIF(L71:L91,AI27) -> 0 | AK27: =AJ27/(AL4-AJ25) -> 0 | AL27: =IF(AK27=0,0,(AK27*((LOG(AK27))/LOG(2)))) -> 0 | AN27: =N27 -> 21211 | AO27: =COUNTIF(L92:L112,AN27) -> 0 | AP27: =AO27/(AQ4-AO25) -> 0 | AQ27: =IF(AP27=0,0,(AP27*((LOG(AP27))/LOG(2)))) -> 0 | AS27: =N27 -> 21211 | AT27: =COUNTIF(L113:L133,AS27) -> 0 | AU27: =AT27/(AV4-AT25) -> 0 | AV27: =IF(AU27=0,0,(AU27*((LOG(AU27))/LOG(2)))) -> 0
A28: 12 | B28: 3440 | C28: 13 | D28: 3449 | E28: 24 | F28: 3458 | G28: 14 | H28: 3467 | I28: 13 | J28: 3484 | K28: 0 | L28: 11211 | N28: 21212 | O28: =COUNTIF($L$7:$L$500,N28) -> 35 | P28: =O28/$Q$4 -> 0.2777777778 | Q28: =IF(P28=0,0,(P28*((LOG(P28))/LOG(2)))) -> -0.513332474 | T28: =N28 -> 21212 | U28: =COUNTIF(L7:L27,T28) -> 1 | V28: =U28/(W4-U25) -> 0.05263157895 | W28: =IF(V28=0,0,(V28*((LOG(V28))/LOG(2)))) -> -0.2235751323 | Y28: =N28 -> 21212 | Z28: =COUNTIF(L28:L48,Y28) -> 8 | AA28: =Z28/(AB4-Z25) -> 0.380952381 | AB28: =IF(AA28=0,0,(AA28*((LOG(AA28))/LOG(2)))) -> -0.5304066372 | AD28: =N28 -> 21212 | AE28: =COUNTIF(L49:L70,AD28) -> 7 | AF28: =AE28/(AG4-AE25) -> 0.3181818182 | AG28: =IF(AF28=0,0,(AF28*((LOG(AF28))/LOG(2)))) -> -0.5256607671 | AI28: =N28 -> 21212 | AJ28: =COUNTIF(L71:L91,AI28) -> 4 | AK28: =AJ28/(AL4-AJ25) -> 0.1904761905 | AL28: =IF(AK28=0,0,(AK28*((LOG(AK28))/LOG(2)))) -> -0.4556795091 | AN28: =N28 -> 21212 | AO28: =COUNTIF(L92:L112,AN28) -> 10 | AP28: =AO28/(AQ4-AO25) -> 0.5 | AQ28: =IF(AP28=0,0,(AP28*((LOG(AP28))/LOG(2)))) -> -0.5 | AS28: =N28 -> 21212 | AT28: =COUNTIF(L113:L133,AS28) -> 5 | AU28: =AT28/(AV4-AT25) -> 0.2941176471 | AV28: =IF(AU28=0,0,(AU28*((LOG(AU28))/LOG(2)))) -> -0.5192749254
A29: 12 | B29: 3584 | C29: 13 | D29: 3600 | E29: 13 | F29: 3627 | G29: 23 | H29: 3635 | I29: 13 | J29: 3643 | K29: 0 | L29: 11121 | N29: 21221 | O29: =COUNTIF($L$7:$L$500,N29) -> 2 | P29: =O29/$Q$4 -> 0.01587301587 | Q29: =IF(P29=0,0,(P29*((LOG(P29))/LOG(2)))) -> -0.0948774591 | T29: =N29 -> 21221 | U29: =COUNTIF(L7:L27,T29) -> 0 | V29: =U29/(W4-U25) -> 0 | W29: =IF(V29=0,0,(V29*((LOG(V29))/LOG(2)))) -> 0 | Y29: =N29 -> 21221 | Z29: =COUNTIF(L28:L48,Y29) -> 1 | AA29: =Z29/(AB4-Z25) -> 0.04761904762 | AB29: =IF(AA29=0,0,(AA29*((LOG(AA29))/LOG(2)))) -> -0.2091579725 | AD29: =N29 -> 21221 | AE29: =COUNTIF(L49:L70,AD29) -> 0 | AF29: =AE29/(AG4-AE25) -> 0 | AG29: =IF(AF29=0,0,(AF29*((LOG(AF29))/LOG(2)))) -> 0 | AI29: =N29 -> 21221 | AJ29: =COUNTIF(L71:L91,AI29) -> 1 | AK29: =AJ29/(AL4-AJ25) -> 0.04761904762 | AL29: =IF(AK29=0,0,(AK29*((LOG(AK29))/LOG(2)))) -> -0.2091579725 | AN29: =N29 -> 21221 | AO29: =COUNTIF(L92:L112,AN29) -> 0 | AP29: =AO29/(AQ4-AO25) -> 0 | AQ29: =IF(AP29=0,0,(AP29*((LOG(AP29))/LOG(2)))) -> 0 | AS29: =N29 -> 21221 | AT29: =COUNTIF(L113:L133,AS29) -> 0 | AU29: =AT29/(AV4-AT25) -> 0 | AV29: =IF(AU29=0,0,(AU29*((LOG(AU29))/LOG(2)))) -> 0
A30: 12 | B30: 3756 | C30: 13 | D30: 3774 | E30: 24 | F30: 3786 | G30: 14 | H30: 3794 | I30: 13 | J30: 3806 | K30: 0 | L30: 11211 | N30: 21222 | O30: =COUNTIF($L$7:$L$500,N30) -> 0 | P30: =O30/$Q$4 -> 0 | Q30: =IF(P30=0,0,(P30*((LOG(P30))/LOG(2)))) -> 0 | T30: =N30 -> 21222 | U30: =COUNTIF(L7:L27,T30) -> 0 | V30: =U30/(W4-U25) -> 0 | W30: =IF(V30=0,0,(V30*((LOG(V30))/LOG(2)))) -> 0 | Y30: =N30 -> 21222 | Z30: =COUNTIF(L28:L48,Y30) -> 0 | AA30: =Z30/(AB4-Z25) -> 0 | AB30: =IF(AA30=0,0,(AA30*((LOG(AA30))/LOG(2)))) -> 0 | AD30: =N30 -> 21222 | AE30: =COUNTIF(L49:L70,AD30) -> 0 | AF30: =AE30/(AG4-AE25) -> 0 | AG30: =IF(AF30=0,0,(AF30*((LOG(AF30))/LOG(2)))) -> 0 | AI30: =N30 -> 21222 | AJ30: =COUNTIF(L71:L91,AI30) -> 0 | AK30: =AJ30/(AL4-AJ25) -> 0 | AL30: =IF(AK30=0,0,(AK30*((LOG(AK30))/LOG(2)))) -> 0 | AN30: =N30 -> 21222 | AO30: =COUNTIF(L92:L112,AN30) -> 0 | AP30: =AO30/(AQ4-AO25) -> 0 | AQ30: =IF(AP30=0,0,(AP30*((LOG(AP30))/LOG(2)))) -> 0 | AS30: =N30 -> 21222 | AT30: =COUNTIF(L113:L133,AS30) -> 0 | AU30: =AT30/(AV4-AT25) -> 0 | AV30: =IF(AU30=0,0,(AU30*((LOG(AU30))/LOG(2)))) -> 0
A31: 12 | B31: 3965 | C31: 13 | D31: 3981 | E31: 24 | F31: 3992 | G31: 14 | H31: 4004 | I31: 13 | J31: 4015 | K31: 0 | L31: 11211 | N31: 22111 | O31: =COUNTIF($L$7:$L$500,N31) -> 1 | P31: =O31/$Q$4 -> 0.007936507937 | Q31: =IF(P31=0,0,(P31*((LOG(P31))/LOG(2)))) -> -0.05537523749 | T31: =N31 -> 22111 | U31: =COUNTIF(L7:L27,T31) -> 0 | V31: =U31/(W4-U25) -> 0 | W31: =IF(V31=0,0,(V31*((LOG(V31))/LOG(2)))) -> 0 | Y31: =N31 -> 22111 | Z31: =COUNTIF(L28:L48,Y31) -> 1 | AA31: =Z31/(AB4-Z25) -> 0.04761904762 | AB31: =IF(AA31=0,0,(AA31*((LOG(AA31))/LOG(2)))) -> -0.2091579725 | AD31: =N31 -> 22111 | AE31: =COUNTIF(L49:L70,AD31) -> 0 | AF31: =AE31/(AG4-AE25) -> 0 | AG31: =IF(AF31=0,0,(AF31*((LOG(AF31))/LOG(2)))) -> 0 | AI31: =N31 -> 22111 | AJ31: =COUNTIF(L71:L91,AI31) -> 0 | AK31: =AJ31/(AL4-AJ25) -> 0 | AL31: =IF(AK31=0,0,(AK31*((LOG(AK31))/LOG(2)))) -> 0 | AN31: =N31 -> 22111 | AO31: =COUNTIF(L92:L112,AN31) -> 0 | AP31: =AO31/(AQ4-AO25) -> 0 | AQ31: =IF(AP31=0,0,(AP31*((LOG(AP31))/LOG(2)))) -> 0 | AS31: =N31 -> 22111 | AT31: =COUNTIF(L113:L133,AS31) -> 0 | AU31: =AT31/(AV4-AT25) -> 0 | AV31: =IF(AU31=0,0,(AU31*((LOG(AU31))/LOG(2)))) -> 0
A32: 21 | B32: 4154 | C32: 11 | D32: 4166 | E32: 22 | F32: 4179 | G32: 14 | H32: 4192 | I32: 24 | J32: 4204 | K32: 0 | L32: 21212 | N32: 22112 | O32: =COUNTIF($L$7:$L$500,N32) -> 0 | P32: =O32/$Q$4 -> 0 | Q32: =IF(P32=0,0,(P32*((LOG(P32))/LOG(2)))) -> 0 | T32: =N32 -> 22112 | U32: =COUNTIF(L7:L27,T32) -> 0 | V32: =U32/(W4-U25) -> 0 | W32: =IF(V32=0,0,(V32*((LOG(V32))/LOG(2)))) -> 0 | Y32: =N32 -> 22112 | Z32: =COUNTIF(L28:L48,Y32) -> 0 | AA32: =Z32/(AB4-Z25) -> 0 | AB32: =IF(AA32=0,0,(AA32*((LOG(AA32))/LOG(2)))) -> 0 | AD32: =N32 -> 22112 | AE32: =COUNTIF(L49:L70,AD32) -> 0 | AF32: =AE32/(AG4-AE25) -> 0 | AG32: =IF(AF32=0,0,(AF32*((LOG(AF32))/LOG(2)))) -> 0 | AI32: =N32 -> 22112 | AJ32: =COUNTIF(L71:L91,AI32) -> 0 | AK32: =AJ32/(AL4-AJ25) -> 0 | AL32: =IF(AK32=0,0,(AK32*((LOG(AK32))/LOG(2)))) -> 0 | AN32: =N32 -> 22112 | AO32: =COUNTIF(L92:L112,AN32) -> 0 | AP32: =AO32/(AQ4-AO25) -> 0 | AQ32: =IF(AP32=0,0,(AP32*((LOG(AP32))/LOG(2)))) -> 0 | AS32: =N32 -> 22112 | AT32: =COUNTIF(L113:L133,AS32) -> 0 | AU32: =AT32/(AV4-AT25) -> 0 | AV32: =IF(AU32=0,0,(AU32*((LOG(AU32))/LOG(2)))) -> 0
A33: 12 | B33: 4338 | C33: 13 | D33: 4361 | E33: 24 | F33: 4384 | G33: 14 | H33: 4393 | I33: 24 | J33: 4405 | K33: 0 | L33: 11212 | N33: 22121 | O33: =COUNTIF($L$7:$L$500,N33) -> 18 | P33: =O33/$Q$4 -> 0.1428571429 | Q33: =IF(P33=0,0,(P33*((LOG(P33))/LOG(2)))) -> -0.4010507032 | T33: =N33 -> 22121 | U33: =COUNTIF(L7:L27,T33) -> 0 | V33: =U33/(W4-U25) -> 0 | W33: =IF(V33=0,0,(V33*((LOG(V33))/LOG(2)))) -> 0 | Y33: =N33 -> 22121 | Z33: =COUNTIF(L28:L48,Y33) -> 1 | AA33: =Z33/(AB4-Z25) -> 0.04761904762 | AB33: =IF(AA33=0,0,(AA33*((LOG(AA33))/LOG(2)))) -> -0.2091579725 | AD33: =N33 -> 22121 | AE33: =COUNTIF(L49:L70,AD33) -> 8 | AF33: =AE33/(AG4-AE25) -> 0.3636363636 | AG33: =IF(AF33=0,0,(AF33*((LOG(AF33))/LOG(2)))) -> -0.5307024068 | AI33: =N33 -> 22121 | AJ33: =COUNTIF(L71:L91,AI33) -> 5 | AK33: =AJ33/(AL4-AJ25) -> 0.2380952381 | AL33: =IF(AK33=0,0,(AK33*((LOG(AK33))/LOG(2)))) -> -0.49294984 | AN33: =N33 -> 22121 | AO33: =COUNTIF(L92:L112,AN33) -> 4 | AP33: =AO33/(AQ4-AO25) -> 0.2 | AQ33: =IF(AP33=0,0,(AP33*((LOG(AP33))/LOG(2)))) -> -0.464385619 | AS33: =N33 -> 22121 | AT33: =COUNTIF(L113:L133,AS33) -> 0 | AU33: =AT33/(AV4-AT25) -> 0 | AV33: =IF(AU33=0,0,(AU33*((LOG(AU33))/LOG(2)))) -> 0
A34: 21 | B34: 4512 | C34: 11 | D34: 4526 | E34: 22 | F34: 4538 | G34: 14 | H34: 4546 | I34: 13 | J34: 4554 | K34: 0 | L34: 21211 | N34: 22122 | O34: =COUNTIF($L$7:$L$500,N34) -> 3 | P34: =O34/$Q$4 -> 0.02380952381 | Q34: =IF(P34=0,0,(P34*((LOG(P34))/LOG(2)))) -> -0.1283885101 | T34: =N34 -> 22122 | U34: =COUNTIF(L7:L27,T34) -> 0 | V34: =U34/(W4-U25) -> 0 | W34: =IF(V34=0,0,(V34*((LOG(V34))/LOG(2)))) -> 0 | Y34: =N34 -> 22122 | Z34: =COUNTIF(L28:L48,Y34) -> 0 | AA34: =Z34/(AB4-Z25) -> 0 | AB34: =IF(AA34=0,0,(AA34*((LOG(AA34))/LOG(2)))) -> 0 | AD34: =N34 -> 22122 | AE34: =COUNTIF(L49:L70,AD34) -> 1 | AF34: =AE34/(AG4-AE25) -> 0.04545454545 | AG34: =IF(AF34=0,0,(AF34*((LOG(AF34))/LOG(2)))) -> -0.2027014372 | AI34: =N34 -> 22122 | AJ34: =COUNTIF(L71:L91,AI34) -> 2 | AK34: =AJ34/(AL4-AJ25) -> 0.09523809524 | AL34: =IF(AK34=0,0,(AK34*((LOG(AK34))/LOG(2)))) -> -0.3230778498 | AN34: =N34 -> 22122 | AO34: =COUNTIF(L92:L112,AN34) -> 0 | AP34: =AO34/(AQ4-AO25) -> 0 | AQ34: =IF(AP34=0,0,(AP34*((LOG(AP34))/LOG(2)))) -> 0 | AS34: =N34 -> 22122 | AT34: =COUNTIF(L113:L133,AS34) -> 0 | AU34: =AT34/(AV4-AT25) -> 0 | AV34: =IF(AU34=0,0,(AU34*((LOG(AU34))/LOG(2)))) -> 0
A35: 12 | B35: 4671 | C35: 13 | D35: 4688 | E35: 24 | F35: 4698 | G35: 14 | H35: 4706 | I35: 13 | J35: 4715 | K35: 0 | L35: 11211 | N35: 22211 | O35: =COUNTIF($L$7:$L$500,N35) -> 1 | P35: =O35/$Q$4 -> 0.007936507937 | Q35: =IF(P35=0,0,(P35*((LOG(P35))/LOG(2)))) -> -0.05537523749 | T35: =N35 -> 22211 | U35: =COUNTIF(L7:L27,T35) -> 0 | V35: =U35/(W4-U25) -> 0 | W35: =IF(V35=0,0,(V35*((LOG(V35))/LOG(2)))) -> 0 | Y35: =N35 -> 22211 | Z35: =COUNTIF(L28:L48,Y35) -> 0 | AA35: =Z35/(AB4-Z25) -> 0 | AB35: =IF(AA35=0,0,(AA35*((LOG(AA35))/LOG(2)))) -> 0 | AD35: =N35 -> 22211 | AE35: =COUNTIF(L49:L70,AD35) -> 0 | AF35: =AE35/(AG4-AE25) -> 0 | AG35: =IF(AF35=0,0,(AF35*((LOG(AF35))/LOG(2)))) -> 0 | AI35: =N35 -> 22211 | AJ35: =COUNTIF(L71:L91,AI35) -> 1 | AK35: =AJ35/(AL4-AJ25) -> 0.04761904762 | AL35: =IF(AK35=0,0,(AK35*((LOG(AK35))/LOG(2)))) -> -0.2091579725 | AN35: =N35 -> 22211 | AO35: =COUNTIF(L92:L112,AN35) -> 0 | AP35: =AO35/(AQ4-AO25) -> 0 | AQ35: =IF(AP35=0,0,(AP35*((LOG(AP35))/LOG(2)))) -> 0 | AS35: =N35 -> 22211 | AT35: =COUNTIF(L113:L133,AS35) -> 0 | AU35: =AT35/(AV4-AT25) -> 0 | AV35: =IF(AU35=0,0,(AU35*((LOG(AU35))/LOG(2)))) -> 0
A36: 21 | B36: 4854 | C36: 11 | D36: 4863 | E36: 22 | F36: 4874 | G36: 14 | H36: 4882 | I36: 13 | J36: 4890 | K36: 0 | L36: 21211 | N36: 22212 | O36: =COUNTIF($L$7:$L$500,N36) -> 6 | P36: =O36/$Q$4 -> 0.04761904762 | Q36: =IF(P36=0,0,(P36*((LOG(P36))/LOG(2)))) -> -0.2091579725 | T36: =N36 -> 22212 | U36: =COUNTIF(L7:L27,T36) -> 0 | V36: =U36/(W4-U25) -> 0 | W36: =IF(V36=0,0,(V36*((LOG(V36))/LOG(2)))) -> 0 | Y36: =N36 -> 22212 | Z36: =COUNTIF(L28:L48,Y36) -> 0 | AA36: =Z36/(AB4-Z25) -> 0 | AB36: =IF(AA36=0,0,(AA36*((LOG(AA36))/LOG(2)))) -> 0 | AD36: =N36 -> 22212 | AE36: =COUNTIF(L49:L70,AD36) -> 1 | AF36: =AE36/(AG4-AE25) -> 0.04545454545 | AG36: =IF(AF36=0,0,(AF36*((LOG(AF36))/LOG(2)))) -> -0.2027014372 | AI36: =N36 -> 22212 | AJ36: =COUNTIF(L71:L91,AI36) -> 3 | AK36: =AJ36/(AL4-AJ25) -> 0.1428571429 | AL36: =IF(AK36=0,0,(AK36*((LOG(AK36))/LOG(2)))) -> -0.4010507032 | AN36: =N36 -> 22212 | AO36: =COUNTIF(L92:L112,AN36) -> 2 | AP36: =AO36/(AQ4-AO25) -> 0.1 | AQ36: =IF(AP36=0,0,(AP36*((LOG(AP36))/LOG(2)))) -> -0.3321928095 | AS36: =N36 -> 22212 | AT36: =COUNTIF(L113:L133,AS36) -> 0 | AU36: =AT36/(AV4-AT25) -> 0 | AV36: =IF(AU36=0,0,(AU36*((LOG(AU36))/LOG(2)))) -> 0
A37: 21 | B37: 5001 | C37: 11 | D37: 5009 | E37: 22 | F37: 5020 | G37: 14 | H37: 5029 | I37: 13 | J37: 5036 | K37: 0 | L37: 21211 | N37: 22221 | O37: =COUNTIF($L$7:$L$500,N37) -> 2 | P37: =O37/$Q$4 -> 0.01587301587 | Q37: =IF(P37=0,0,(P37*((LOG(P37))/LOG(2)))) -> -0.0948774591 | T37: =N37 -> 22221 | U37: =COUNTIF(L7:L27,T37) -> 0 | V37: =U37/(W4-U25) -> 0 | W37: =IF(V37=0,0,(V37*((LOG(V37))/LOG(2)))) -> 0 | Y37: =N37 -> 22221 | Z37: =COUNTIF(L28:L48,Y37) -> 0 | AA37: =Z37/(AB4-Z25) -> 0 | AB37: =IF(AA37=0,0,(AA37*((LOG(AA37))/LOG(2)))) -> 0 | AD37: =N37 -> 22221 | AE37: =COUNTIF(L49:L70,AD37) -> 1 | AF37: =AE37/(AG4-AE25) -> 0.04545454545 | AG37: =IF(AF37=0,0,(AF37*((LOG(AF37))/LOG(2)))) -> -0.2027014372 | AI37: =N37 -> 22221 | AJ37: =COUNTIF(L71:L91,AI37) -> 1 | AK37: =AJ37/(AL4-AJ25) -> 0.04761904762 | AL37: =IF(AK37=0,0,(AK37*((LOG(AK37))/LOG(2)))) -> -0.2091579725 | AN37: =N37 -> 22221 | AO37: =COUNTIF(L92:L112,AN37) -> 0 | AP37: =AO37/(AQ4-AO25) -> 0 | AQ37: =IF(AP37=0,0,(AP37*((LOG(AP37))/LOG(2)))) -> 0 | AS37: =N37 -> 22221 | AT37: =COUNTIF(L113:L133,AS37) -> 0 | AU37: =AT37/(AV4-AT25) -> 0 | AV37: =IF(AU37=0,0,(AU37*((LOG(AU37))/LOG(2)))) -> 0
A38: 21 | B38: 5146 | C38: 11 | D38: 5156 | E38: 22 | F38: 5167 | G38: 14 | H38: 5177 | I38: 24 | J38: 5190 | K38: 0 | L38: 21212 | N38: 22222 | O38: =COUNTIF($L$7:$L$500,N38) -> 1 | P38: =O38/$Q$4 -> 0.007936507937 | Q38: =IF(P38=0,0,(P38*((LOG(P38))/LOG(2)))) -> -0.05537523749 | T38: =N38 -> 22222 | U38: =COUNTIF(L7:L27,T38) -> 0 | V38: =U38/(W4-U25) -> 0 | W38: =IF(V38=0,0,(V38*((LOG(V38))/LOG(2)))) -> 0 | Y38: =N38 -> 22222 | Z38: =COUNTIF(L28:L48,Y38) -> 0 | AA38: =Z38/(AB4-Z25) -> 0 | AB38: =IF(AA38=0,0,(AA38*((LOG(AA38))/LOG(2)))) -> 0 | AD38: =N38 -> 22222 | AE38: =COUNTIF(L49:L70,AD38) -> 0 | AF38: =AE38/(AG4-AE25) -> 0 | AG38: =IF(AF38=0,0,(AF38*((LOG(AF38))/LOG(2)))) -> 0 | AI38: =N38 -> 22222 | AJ38: =COUNTIF(L71:L91,AI38) -> 1 | AK38: =AJ38/(AL4-AJ25) -> 0.04761904762 | AL38: =IF(AK38=0,0,(AK38*((LOG(AK38))/LOG(2)))) -> -0.2091579725 | AN38: =N38 -> 22222 | AO38: =COUNTIF(L92:L112,AN38) -> 0 | AP38: =AO38/(AQ4-AO25) -> 0 | AQ38: =IF(AP38=0,0,(AP38*((LOG(AP38))/LOG(2)))) -> 0 | AS38: =N38 -> 22222 | AT38: =COUNTIF(L113:L133,AS38) -> 0 | AU38: =AT38/(AV4-AT25) -> 0 | AV38: =IF(AU38=0,0,(AU38*((LOG(AU38))/LOG(2)))) -> 0
A39: 21 | B39: 5331 | C39: 11 | D39: 5350 | E39: 22 | F39: 5361 | G39: 14 | H39: 5371 | I39: 13 | J39: 5392 | K39: 0 | L39: 21211 | P39: =SUM(P7:P38) -> 1 | Q39: =-SUM(Q7:Q38) -> 3.64523498 | V39: =SUM(V7:V38) -> 1 | W39: =-SUM(W7:W38) -> 3.031116172 | AA39: =SUM(AA7:AA38) -> 1 | AB39: =-SUM(AB7:AB38) -> 2.487555518 | AF39: =SUM(AF7:AF38) -> 1 | AG39: =-SUM(AG7:AG38) -> 2.259141984 | AK39: =SUM(AK7:AK38) -> 1 | AL39: =-SUM(AL7:AL38) -> 3.041625614 | AP39: =SUM(AP7:AP38) -> 1 | AQ39: =-SUM(AQ7:AQ38) -> 2.060964047 | AU39: =SUM(AU7:AU38) -> 1 | AV39: =-SUM(AV7:AV38) -> 2.441923521
A40: 21 | B40: 5498 | C40: 22 | D40: 5519 | E40: 13 | F40: 5527 | G40: 14 | H40: 5549 | I40: 13 | J40: 5556 | K40: 0 | L40: 22111 | P40: U= | Q40: =Q39/(LOG(Q4)/LOG(2)) -> 0.5224435625 | V40: U1= | W40: =W39/(LOG(W4)/LOG(2)) -> 0.6900949728 | AA40: U2= | AB40: =AB39/(LOG(AB4)/LOG(2)) -> 0.5663423834 | AF40: U3= | AG40: =AG39/(LOG(AG4)/LOG(2)) -> 0.506598638 | AK40: U4= | AL40: =AL39/(LOG(AL4)/LOG(2)) -> 0.6924876601 | AP40: U5= | AQ40: =AQ39/(LOG(AQ4)/LOG(2)) -> 0.4692201972 | AU40: U6= | AV40: =AV39/(LOG(AV4)/LOG(2)) -> 0.5650079009
A41: 21 | B41: 5691 | C41: 11 | D41: 5700 | E41: 22 | F41: 5710 | G41: 14 | H41: 5719 | I41: 24 | J41: 5731 | K41: 0 | L41: 21212
A42: 21 | B42: 5908 | C42: 11 | D42: 5919 | E42: 22 | F42: 5943 | G42: 23 | H42: 5974 | I42: 13 | J42: 5984 | K42: 0 | L42: 21221
A43: 21 | B43: 6158 | C43: 11 | D43: 6167 | E43: 22 | F43: 6176 | G43: 14 | H43: 6185 | I43: 24 | J43: 6198 | K43: 0 | L43: 21212 | N43: Total Target Seq
A44: 21 | B44: 6328 | C44: 11 | D44: 6337 | E44: 22 | F44: 6348 | G44: 14 | H44: 6364 | I44: 24 | J44: 6377 | K44: 0 | L44: 21212 | N44: =COUNTIF(L7:L133,G3) -> 6 | P44: 21 | Q44: 21 | R44: 22 | S44: 21 | T44: 21 | U44: 21
A45: 21 | B45: 6478 | C45: 11 | D45: 6487 | E45: 22 | F45: 6495 | G45: 14 | H45: 6504 | I45: 24 | J45: 6513 | K45: 0 | L45: 21212 | P45: % of reinforcement given in 6 equal intervals based on number of trials
A46: 21 | B46: 6654 | C46: 11 | D46: 6663 | E46: 22 | F46: 6674 | G46: 14 | H46: 6682 | I46: 24 | J46: 6696 | K46: 0 | L46: 21212 | P46: %_1 | Q46: %_2 | R46: %_3 | S46: %_4 | T46: %_5 | U46: %_6
A47: 21 | B47: 6799 | C47: 22 | D47: 6813 | E47: 13 | F47: 6822 | G47: 23 | H47: 6831 | I47: 13 | J47: 6843 | K47: 0 | L47: 22121 | O47: target sequence | P47: =$G$3 -> 21121 | Q47: =$G$3 -> 21121 | R47: =$G$3 -> 21121 | S47: =$G$3 -> 21121 | T47: =$G$3 -> 21121 | U47: =$G$3 -> 21121
A48: 21 | B48: 7026 | C48: 11 | D48: 7066 | E48: 22 | F48: 7079 | G48: 14 | H48: 7091 | I48: 24 | J48: 7105 | K48: 0 | L48: 21212 | O48: total reinforcement | P48: =U25 -> 2 | Q48: =Z25 -> 0 | R48: =AE25 -> 0 | S48: =AJ25 -> 0 | T48: =AO25 -> 1 | U48: =AT25 -> 3
A49: 21 | B49: 7223 | C49: 22 | D49: 7247 | E49: 13 | F49: 7256 | G49: 23 | H49: 7268 | I49: 13 | J49: 7283 | K49: 0 | L49: 22121 | O49: % target
A50: 21 | B50: 7402 | C50: 11 | D50: 7412 | E50: 22 | F50: 7420 | G50: 14 | H50: 7429 | I50: 24 | J50: 7441 | K50: 0 | L50: 21212 | O50: CCRF
A51: 21 | B51: 7743 | C51: 22 | D51: 7807 | E51: 13 | F51: 7828 | G51: 23 | H51: 7840 | I51: 13 | J51: 7854 | K51: 0 | L51: 22121 | O51: % CCRf
A52: 21 | B52: 7977 | C52: 11 | D52: 7986 | E52: 22 | F52: 7997 | G52: 14 | H52: 8006 | I52: 13 | J52: 8017 | K52: 0 | L52: 21211 | O52: average response rate | P52: =J27/P44 -> 158.4761905 | Q52: =(J48-J27)/Q44 -> 179.8571429 | R52: =(J70-J48)/R44 -> 219.5454545 | S52: =(J91-J70)/S44 -> 204.8095238 | T52: =(J112-J91)/T44 -> 185.4761905 | U52: =(J133-J112)/U44 -> -958.6190476
A53: 21 | B53: 8121 | C53: 22 | D53: 8146 | E53: 13 | F53: 8154 | G53: 23 | H53: 8167 | I53: 13 | J53: 8176 | K53: 0 | L53: 22121
A54: 21 | B54: 8334 | C54: 11 | D54: 8343 | E54: 22 | F54: 8355 | G54: 14 | H54: 8368 | I54: 24 | J54: 8380 | K54: 0 | L54: 21212
A55: 21 | B55: 8602 | C55: 22 | D55: 8628 | E55: 13 | F55: 8637 | G55: 23 | H55: 8646 | I55: 13 | J55: 8654 | K55: 0 | L55: 22121
A56: 12 | B56: 8824 | C56: 24 | D56: 8835 | E56: 13 | F56: 8844 | G56: 23 | H56: 8857 | I56: 13 | J56: 8865 | K56: 0 | L56: 12121
A57: 21 | B57: 9030 | C57: 11 | D57: 9039 | E57: 22 | F57: 9050 | G57: 14 | H57: 9059 | I57: 24 | J57: 9072 | K57: 0 | L57: 21212
A58: 21 | B58: 9501 | C58: 22 | D58: 9514 | E58: 24 | F58: 9535 | G58: 14 | H58: 9544 | I58: 24 | J58: 9557 | K58: 0 | L58: 22212
A59: 21 | B59: 9712 | C59: 11 | D59: 9722 | E59: 22 | F59: 9738 | G59: 14 | H59: 9747 | I59: 24 | J59: 9765 | K59: 0 | L59: 21212
A60: 21 | B60: 9910 | C60: 11 | D60: 9921 | E60: 22 | F60: 9932 | G60: 14 | H60: 9940 | I60: 24 | J60: 9955 | K60: 0 | L60: 21212
A61: 21 | B61: 10135 | C61: 22 | D61: 10143 | E61: 13 | F61: 10153 | G61: 23 | H61: 10166 | I61: 13 | J61: 10177 | K61: 0 | L61: 22121
A62: 21 | B62: 10281 | C62: 22 | D62: 10295 | E62: 13 | F62: 10306 | G62: 23 | H62: 10318 | I62: 13 | J62: 10327 | K62: 0 | L62: 22121
A63: 21 | B63: 10500 | C63: 11 | D63: 10509 | E63: 22 | F63: 10522 | G63: 14 | H63: 10531 | I63: 13 | J63: 10542 | K63: 0 | L63: 21211
A64: 21 | B64: 10707 | C64: 11 | D64: 10717 | E64: 22 | F64: 10729 | G64: 14 | H64: 10738 | I64: 13 | J64: 10747 | K64: 0 | L64: 21211
A65: 21 | B65: 10900 | C65: 22 | D65: 10918 | E65: 13 | F65: 10927 | G65: 23 | H65: 10946 | I65: 24 | J65: 10976 | K65: 0 | L65: 22122
A66: 21 | B66: 11111 | C66: 11 | D66: 11121 | E66: 22 | F66: 11131 | G66: 14 | H66: 11140 | I66: 24 | J66: 11153 | K66: 0 | L66: 21212
A67: 21 | B67: 11304 | C67: 22 | D67: 11323 | E67: 13 | F67: 11331 | G67: 23 | H67: 11343 | I67: 13 | J67: 11354 | K67: 0 | L67: 22121
A68: 21 | B68: 11535 | C68: 22 | D68: 11549 | E68: 24 | F68: 11561 | G68: 23 | H68: 11580 | I68: 13 | J68: 11588 | K68: 0 | L68: 22221
A69: 21 | B69: 11702 | C69: 22 | D69: 11719 | E69: 13 | F69: 11729 | G69: 23 | H69: 11741 | I69: 13 | J69: 11749 | K69: 0 | L69: 22121
A70: 21 | B70: 11897 | C70: 11 | D70: 11906 | E70: 22 | F70: 11915 | G70: 14 | H70: 11923 | I70: 24 | J70: 11935 | K70: 0 | L70: 21212
A71: 21 | B71: 12089 | C71: 11 | D71: 12099 | E71: 22 | F71: 12109 | G71: 14 | H71: 12118 | I71: 24 | J71: 12129 | K71: 0 | L71: 21212
A72: 21 | B72: 12330 | C72: 22 | D72: 12357 | E72: 24 | F72: 12408 | G72: 23 | H72: 12436 | I72: 24 | J72: 12474 | K72: 0 | L72: 22222
A73: 21 | B73: 12600 | C73: 22 | D73: 12617 | E73: 13 | F73: 12626 | G73: 23 | H73: 12634 | I73: 13 | J73: 12643 | K73: 0 | L73: 22121
A74: 21 | B74: 12792 | C74: 22 | D74: 12809 | E74: 24 | F74: 12839 | G74: 23 | H74: 12865 | I74: 13 | J74: 12878 | K74: 0 | L74: 22221
A75: 21 | B75: 13011 | C75: 11 | D75: 13026 | E75: 22 | F75: 13037 | G75: 14 | H75: 13046 | I75: 24 | J75: 13057 | K75: 0 | L75: 21212
A76: 21 | B76: 13214 | C76: 22 | D76: 13275 | E76: 24 | F76: 13327 | G76: 14 | H76: 13343 | I76: 24 | J76: 13351 | K76: 0 | L76: 22212
A77: 21 | B77: 13666 | C77: 22 | D77: 13683 | E77: 13 | F77: 13696 | G77: 23 | H77: 13713 | I77: 24 | J77: 13741 | K77: 0 | L77: 22122
A78: 21 | B78: 13871 | C78: 11 | D78: 13883 | E78: 22 | F78: 13895 | G78: 23 | H78: 13906 | I78: 13 | J78: 13919 | K78: 0 | L78: 21221
A79: 21 | B79: 14029 | C79: 22 | D79: 14037 | E79: 24 | F79: 14050 | G79: 14 | H79: 14060 | I79: 24 | J79: 14072 | K79: 0 | L79: 22212
A80: 12 | B80: 14193 | C80: 24 | D80: 14204 | E80: 13 | F80: 14214 | G80: 23 | H80: 14226 | I80: 13 | J80: 14239 | K80: 0 | L80: 12121
A81: 21 | B81: 14357 | C81: 11 | D81: 14370 | E81: 22 | F81: 14380 | G81: 14 | H81: 14388 | I81: 24 | J81: 14402 | K81: 0 | L81: 21212
A82: 21 | B82: 14532 | C82: 22 | D82: 14576 | E82: 13 | F82: 14587 | G82: 23 | H82: 14596 | I82: 13 | J82: 14609 | K82: 0 | L82: 22121
A83: 21 | B83: 14747 | C83: 22 | D83: 14759 | E83: 13 | F83: 14773 | G83: 23 | H83: 14785 | I83: 24 | J83: 14800 | K83: 0 | L83: 22122
A84: 21 | B84: 14919 | C84: 22 | D84: 14934 | E84: 13 | F84: 14945 | G84: 23 | H84: 14956 | I84: 13 | J84: 14965 | K84: 0 | L84: 22121
A85: 21 | B85: 15076 | C85: 22 | D85: 15087 | E85: 24 | F85: 15122 | G85: 14 | H85: 15133 | I85: 24 | J85: 15144 | K85: 0 | L85: 22212
A86: 12 | B86: 15275 | C86: 24 | D86: 15293 | E86: 13 | F86: 15304 | G86: 23 | H86: 15313 | I86: 13 | J86: 15322 | K86: 0 | L86: 12121
A87: 21 | B87: 15426 | C87: 22 | D87: 15442 | E87: 24 | F87: 15460 | G87: 14 | H87: 15470 | I87: 13 | J87: 15489 | K87: 0 | L87: 22211
A88: 21 | B88: 15593 | C88: 22 | D88: 15606 | E88: 13 | F88: 15614 | G88: 23 | H88: 15623 | I88: 13 | J88: 15632 | K88: 0 | L88: 22121
A89: 21 | B89: 15754 | C89: 22 | D89: 15776 | E89: 13 | F89: 15785 | G89: 23 | H89: 15794 | I89: 13 | J89: 15803 | K89: 0 | L89: 22121
A90: 12 | B90: 15987 | C90: 13 | D90: 16006 | E90: 24 | F90: 16019 | G90: 23 | H90: 16052 | I90: 13 | J90: 16066 | K90: 0 | L90: 11221
A91: 21 | B91: 16183 | C91: 11 | D91: 16201 | E91: 22 | F91: 16216 | G91: 14 | H91: 16224 | I91: 24 | J91: 16236 | K91: 0 | L91: 21212
A92: 21 | B92: 16351 | C92: 22 | D92: 16365 | E92: 13 | F92: 16375 | G92: 23 | H92: 16384 | I92: 13 | J92: 16392 | K92: 0 | L92: 22121
A93: 12 | B93: 16543 | C93: 13 | D93: 16554 | E93: 24 | F93: 16566 | G93: 14 | H93: 16575 | I93: 24 | J93: 16588 | K93: 0 | L93: 11212
A94: 21 | B94: 16712 | C94: 22 | D94: 16730 | E94: 13 | F94: 16744 | G94: 23 | H94: 16756 | I94: 13 | J94: 16768 | K94: 0 | L94: 22121
A95: 21 | B95: 16903 | C95: 11 | D95: 16918 | E95: 22 | F95: 16929 | G95: 14 | H95: 16938 | I95: 24 | J95: 16950 | K95: 0 | L95: 21212
A96: 12 | B96: 17089 | C96: 24 | D96: 17101 | E96: 13 | F96: 17110 | G96: 23 | H96: 17123 | I96: 13 | J96: 17135 | K96: 0 | L96: 12121
A97: 21 | B97: 17336 | C97: 22 | D97: 17370 | E97: 24 | F97: 17380 | G97: 14 | H97: 17394 | I97: 24 | J97: 17407 | K97: 0 | L97: 22212
A98: 12 | B98: 17550 | C98: 13 | D98: 17575 | E98: 24 | F98: 17593 | G98: 14 | H98: 17606 | I98: 24 | J98: 17618 | K98: 0 | L98: 11212
A99: 21 | B99: 17763 | C99: 11 | D99: 17777 | E99: 22 | F99: 17790 | G99: 14 | H99: 17798 | I99: 24 | J99: 17811 | K99: 0 | L99: 21212
A100: 21 | B100: 17965 | C100: 11 | D100: 17982 | E100: 22 | F100: 17996 | G100: 14 | H100: 18006 | I100: 24 | J100: 18018 | K100: 0 | L100: 21212
A101: 21 | B101: 18184 | C101: 22 | D101: 18196 | E101: 13 | F101: 18210 | G101: 23 | H101: 18222 | I101: 13 | J101: 18231 | K101: 0 | L101: 22121
A102: 21 | B102: 18341 | C102: 11 | D102: 18355 | E102: 11 | F102: 18369 | G102: 21 | H102: 18378 | I102: 11 | J102: 18388 | K102: 1 | L102: 21121
A103: 21 | B103: 18522 | C103: 11 | D103: 18532 | E103: 22 | F103: 18540 | G103: 14 | H103: 18549 | I103: 24 | J103: 18562 | K103: 0 | L103: 21212
A104: 21 | B104: 18672 | C104: 11 | D104: 18682 | E104: 22 | F104: 18691 | G104: 14 | H104: 18700 | I104: 24 | J104: 18709 | K104: 0 | L104: 21212
A105: 21 | B105: 18836 | C105: 22 | D105: 18863 | E105: 24 | F105: 18881 | G105: 14 | H105: 18894 | I105: 24 | J105: 18904 | K105: 0 | L105: 22212
A106: 21 | B106: 19045 | C106: 11 | D106: 19055 | E106: 22 | F106: 19066 | G106: 14 | H106: 19077 | I106: 24 | J106: 19089 | K106: 0 | L106: 21212
A107: 21 | B107: 19198 | C107: 22 | D107: 19223 | E107: 13 | F107: 19234 | G107: 23 | H107: 19246 | I107: 13 | J107: 19258 | K107: 0 | L107: 22121
A108: 21 | B108: 19392 | C108: 11 | D108: 19402 | E108: 22 | F108: 19411 | G108: 14 | H108: 19421 | I108: 24 | J108: 19434 | K108: 0 | L108: 21212
A109: 12 | B109: 19552 | C109: 13 | D109: 19569 | E109: 13 | F109: 19582 | G109: 23 | H109: 19591 | I109: 13 | J109: 19600 | K109: 0 | L109: 11121
A110: 21 | B110: 19742 | C110: 11 | D110: 19752 | E110: 22 | F110: 19761 | G110: 14 | H110: 19769 | I110: 24 | J110: 19782 | K110: 0 | L110: 21212
A111: 21 | B111: 19904 | C111: 11 | D111: 19916 | E111: 22 | F111: 19925 | G111: 14 | H111: 19954 | I111: 24 | J111: 19971 | K111: 0 | L111: 21212
A112: 21 | B112: 20088 | C112: 11 | D112: 20097 | E112: 22 | F112: 20111 | G112: 14 | H112: 20119 | I112: 24 | J112: 20131 | K112: 0 | L112: 21212
A113: 12 | B113: 20260 | C113: 13 | D113: 20269 | E113: 24 | F113: 20280 | G113: 14 | H113: 20299 | I113: 24 | J113: 20311 | K113: 0 | L113: 11212
A114: 12 | B114: 20451 | C114: 24 | D114: 20462 | E114: 13 | F114: 20470 | G114: 23 | H114: 20481 | I114: 13 | J114: 20496 | K114: 0 | L114: 12121
A115: 21 | B115: 20635 | C115: 11 | D115: 20644 | E115: 22 | F115: 20655 | G115: 14 | H115: 20663 | I115: 24 | J115: 20675 | K115: 0 | L115: 21212
A116: 12 | B116: 20910 | C116: 24 | D116: 20921 | E116: 24 | F116: 20948 | G116: 14 | H116: 20969 | I116: 24 | J116: 20981 | K116: 0 | L116: 12212
A117: 21 | B117: 21151 | C117: 11 | D117: 21164 | E117: 22 | F117: 21173 | G117: 14 | H117: 21181 | I117: 24 | J117: 21191 | K117: 0 | L117: 21212
A118: 21 | B118: 21320 | C118: 11 | D118: 21340 | E118: 11 | F118: 21353 | G118: 21 | H118: 21361 | I118: 11 | J118: 21374 | K118: 1 | L118: 21121
A119: 12 | B119: 21503 | C119: 13 | D119: 21520 | E119: 24 | F119: 21529 | G119: 23 | H119: 21542 | I119: 24 | J119: 21569 | K119: 0 | L119: 11222
A120: 12 | B120: 21705 | C120: 13 | D120: 21718 | E120: 24 | F120: 21727 | G120: 14 | H120: 21735 | I120: 24 | J120: 21744 | K120: 0 | L120: 11212
A121: 21 | B121: 21865 | C121: 11 | D121: 21873 | E121: 22 | F121: 21884 | G121: 14 | H121: 21894 | I121: 24 | J121: 21906 | K121: 0 | L121: 21212
A122: 21 | B122: 22011 | C122: 11 | D122: 22029 | E122: 22 | F122: 22043 | G122: 14 | H122: 22051 | I122: 24 | J122: 22060 | K122: 0 | L122: 21212
A123: 21 | B123: 22172 | C123: 11 | D123: 22182 | E123: 11 | F123: 22194 | G123: 21 | H123: 22203 | I123: 22 | J123: 22233 | K123: 0 | L123: 21122
A124: 12 | B124: 22422 | C124: 13 | D124: 22432 | E124: 24 | F124: 22445 | G124: 14 | H124: 22460 | I124: 24 | J124: 22473 | K124: 0 | L124: 11212
A125: 21 | B125: 22599 | C125: 11 | D125: 22610 | E125: 11 | F125: 22623 | G125: 21 | H125: 22634 | I125: 11 | J125: 22642 | K125: 1 | L125: 21121
A126: 12 | B126: 22752 | C126: 13 | D126: 22793 | E126: 24 | F126: 22805 | G126: 14 | H126: 22830 | I126: 24 | J126: 22843 | K126: 0 | L126: 11212
A127: 12 | B127: 23011 | C127: 24 | D127: 23020 | E127: 13 | F127: 23028 | G127: 23 | H127: 23042 | I127: 13 | J127: 23056 | K127: 0 | L127: 12121
A128: 21 | B128: 23166 | C128: 11 | D128: 23174 | E128: 22 | F128: 23184 | G128: 14 | H128: 23193 | I128: 24 | J128: 23206 | K128: 0 | L128: 21212
A129: 21 | B129: 23307 | C129: 11 | D129: 23328 | E129: 11 | F129: 23343 | G129: 21 | H129: 23352 | I129: 11 | J129: 23365 | K129: 1 | L129: 21121
A130: 12 | B130: 23484 | C130: 24 | D130: 23493 | E130: 24 | F130: 23504 | G130: 23 | H130: 23515 | I130: 13 | J130: 23538 | K130: 0 | L130: 12221
A131: 12 | B131: 23642 | C131: 24 | D131: 23650 | E131: 13 | F131: 23658 | G131: 23 | H131: 23670 | I131: 13 | J131: 23679 | K131: 0 | L131: 12121
A132: 12 | B132: 23786 | C132: 13 | D132: 23803 | E132: 24 | F132: 23815 | G132: 14 | H132: 23842 | I132: 24 | J132: 23853 | K132: 0 | L132: 11212
A133: 12 | B133: 23964 | C133: 13 | D133: 23978 | E133: 24 | F133: 23988 | L133: 112

Sheet !MA05850.010
A1: Report for:!MA05850.010
A2: Date: | B2: <date>
A3: Hen: | B3: <hen> | F3: Correct Sequence | G3: =Start!J2 -> 21121 | P3: Total Sequences in Data | Q3: =4994-COUNTBLANK(L7:L5000) -> 136 | V3: Total Sequences in Block Data | W3: =COUNTA(L7:L29) -> 23 | AA3: Total Sequences in Block Data | AB3: =COUNTA(L30:L51) -> 22 | AF3: Total Sequences in Block Data | AG3: =COUNTA(L52:L74) -> 23 | AK3: Total Sequences in Block Data | AL3: =COUNTA(L75:L97) -> 23 | AP3: Total Sequences in Block Data | AQ3: =COUNTA(L98:L119) -> 22 | AU3: Total Sequences in Block Data | AV3: =COUNTA(L120:L142) -> 23
P4: Total Sequences in Summary | Q4: =SUM(O7:O38) -> 136 | V4: Total Sequences in Block Summary | W4: =SUM(U7:U38) -> 23 | AA4: Total Sequences in Block Summary | AB4: =SUM(Z7:Z38) -> 22 | AF4: Total Sequences in Block Summary | AG4: =SUM(AE7:AE38) -> 23 | AK4: Total Sequences in Block Summary | AL4: =SUM(AJ7:AJ38) -> 23 | AP4: Total Sequences in Block Summary | AQ4: =SUM(AO7:AO38) -> 22 | AU4: Total Sequences in Block Summary | AV4: =SUM(AT7:AT38) -> 23
T5: Block 1 | Y5: Block 2 | AD5: Block 3 | AI5: Block 4 | AN5: Block 5 | AS5: Block 6
A6: Sequence Component 1 | B6: Time 1 | C6: Sequence Component 2 | D6: Time 2 | E6: Sequence Component 3 | F6: Time 3 | G6: Sequence Component 4 | H6: Time 4 | I6: Sequence Component 5 | J6: Time 5 | K6: Correct? 0=No 1=Yes | L6: Sequence | N6: Frequency | P6: Relative Frequency | Q6: Variability | T6: Frequency | V6: Relative Frequency | W6: Variability | Y6: Frequency | AA6: Relative Frequency | AB6: Variability | AD6: Frequency | AF6: Relative Frequency | AG6: Variability | AI6: Frequency | AK6: Relative Frequency | AL6: Variability | AN6: Frequency | AP6: Relative Frequency | AQ6: Variability | AS6: Frequency | AU6: Relative Frequency | AV6: Variability
A7: 12 | B7: 22 | C7: 24 | D7: 37 | E7: 24 | F7: 57 | G7: 14 | H7: 81 | I7: 24 | J7: 95 | K7: 0 | L7: 12212 | N7: 11111 | O7: =COUNTIF($L$7:$L$500,N7) -> 0 | P7: =O7/$Q$4 -> 0 | Q7: =IF(P7=0,0,(P7*((LOG(P7))/LOG(2)))) -> 0 | T7: =N7 -> 11111 | U7: =COUNTIF(L7:L29,T7) -> 0 | V7: =U7/(W4-U25) -> 0 | W7: =IF(V7=0,0,(V7*((LOG(V7))/LOG(2)))) -> 0 | Y7: =N7 -> 11111 | Z7: =COUNTIF(L30:L51,Y7) -> 0 | AA7: =Z7/(AB4-Z25) -> 0 | AB7: =IF(AA7=0,0,(AA7*((LOG(AA7))/LOG(2)))) -> 0 | AD7: =N7 -> 11111 | AE7: =COUNTIF(L52:L74,AD7) -> 0 | AF7: =AE7/(AG4-AE25) -> 0 | AG7: =IF(AF7=0,0,(AF7*((LOG(AF7))/LOG(2)))) -> 0 | AI7: =N7 -> 11111 | AJ7: =COUNTIF(L75:L97,AI7) -> 0 | AK7: =AJ7/(AL4-AJ25) -> 0 | AL7: =IF(AK7=0,0,(AK7*((LOG(AK7))/LOG(2)))) -> 0 | AN7: =N7 -> 11111 | AO7: =COUNTIF(L98:L119,AN7) -> 0 | AP7: =AO7/(AQ4-AO25) -> 0 | AQ7: =IF(AP7=0,0,(AP7*((LOG(AP7))/LOG(2)))) -> 0 | AS7: =N7 -> 11111 | AT7: =COUNTIF(L120:L142,AS7) -> 0 | AU7: =AT7/(AV4-AT25) -> 0 | AV7: =IF(AU7=0,0,(AU7*((LOG(AU7))/LOG(2)))) -> 0
A8: 12 | B8: 203 | C8: 24 | D8: 215 | E8: 13 | F8: 238 | G8: 23 | H8: 250 | I8: 13 | J8: 269 | K8: 0 | L8: 12121 | N8: 11112 | O8: =COUNTIF($L$7:$L$500,N8) -> 1 | P8: =O8/$Q$4 -> 0.007352941176 | Q8: =IF(P8=0,0,(P8*((LOG(P8))/LOG(2)))) -> -0.05211369736 | T8: =N8 -> 11112 | U8: =COUNTIF(L7:L29,T8) -> 1 | V8: =U8/(W4-U25) -> 0.04761904762 | W8: =IF(V8=0,0,(V8*((LOG(V8))/LOG(2)))) -> -0.2091579725 | Y8: =N8 -> 11112 | Z8: =COUNTIF(L30:L51,Y8) -> 0 | AA8: =Z8/(AB4-Z25) -> 0 | AB8: =IF(AA8=0,0,(AA8*((LOG(AA8))/LOG(2)))) -> 0 | AD8: =N8 -> 11112 | AE8: =COUNTIF(L52:L74,AD8) -> 0 | AF8: =AE8/(AG4-AE25) -> 0 | AG8: =IF(AF8=0,0,(AF8*((LOG(AF8))/LOG(2)))) -> 0 | AI8: =N8 -> 11112 | AJ8: =COUNTIF(L75:L97,AI8) -> 0 | AK8: =AJ8/(AL4-AJ25) -> 0 | AL8: =IF(AK8=0,0,(AK8*((LOG(AK8))/LOG(2)))) -> 0 | AN8: =N8 -> 11112 | AO8: =COUNTIF(L98:L119,AN8) -> 0 | AP8: =AO8/(AQ4-AO25) -> 0 | AQ8: =IF(AP8=0,0,(AP8*((LOG(AP8))/LOG(2)))) -> 0 | AS8: =N8 -> 11112 | AT8: =COUNTIF(L120:L142,AS8) -> 0 | AU8: =AT8/(AV4-AT25) -> 0 | AV8: =IF(AU8=0,0,(AU8*((LOG(AU8))/LOG(2)))) -> 0
A9: 12 | B9: 376 | C9: 13 | D9: 397 | E9: 24 | F9: 408 | G9: 14 | H9: 417 | I9: 13 | J9: 429 | K9: 0 | L9: 11211 | N9: 11121 | O9: =COUNTIF($L$7:$L$500,N9) -> 9 | P9: =O9/$Q$4 -> 0.06617647059 | Q9: =IF(P9=0,0,(P9*((LOG(P9))/LOG(2)))) -> -0.2592488276 | T9: =N9 -> 11121 | U9: =COUNTIF(L7:L29,T9) -> 4 | V9: =U9/(W4-U25) -> 0.1904761905 | W9: =IF(V9=0,0,(V9*((LOG(V9))/LOG(2)))) -> -0.4556795091 | Y9: =N9 -> 11121 | Z9: =COUNTIF(L30:L51,Y9) -> 0 | AA9: =Z9/(AB4-Z25) -> 0 | AB9: =IF(AA9=0,0,(AA9*((LOG(AA9))/LOG(2)))) -> 0 | AD9: =N9 -> 11121 | AE9: =COUNTIF(L52:L74,AD9) -> 2 | AF9: =AE9/(AG4-AE25) -> 0.09090909091 | AG9: =IF(AF9=0,0,(AF9*((LOG(AF9))/LOG(2)))) -> -0.3144937835 | AI9: =N9 -> 11121 | AJ9: =COUNTIF(L75:L97,AI9) -> 1 | AK9: =AJ9/(AL4-AJ25) -> 0.04545454545 | AL9: =IF(AK9=0,0,(AK9*((LOG(AK9))/LOG(2)))) -> -0.2027014372 | AN9: =N9 -> 11121 | AO9: =COUNTIF(L98:L119,AN9) -> 2 | AP9: =AO9/(AQ4-AO25) -> 0.09090909091 | AQ9: =IF(AP9=0,0,(AP9*((LOG(AP9))/LOG(2)))) -> -0.3144937835 | AS9: =N9 -> 11121 | AT9: =COUNTIF(L120:L142,AS9) -> 0 | AU9: =AT9/(AV4-AT25) -> 0 | AV9: =IF(AU9=0,0,(AU9*((LOG(AU9))/LOG(2)))) -> 0
A10: 12 | B10: 542 | C10: 24 | D10: 553 | E10: 13 | F10: 566 | G10: 14 | H10: 574 | I10: 24 | J10: 586 | K10: 0 | L10: 12112 | N10: 11122 | O10: =COUNTIF($L$7:$L$500,N10) -> 1 | P10: =O10/$Q$4 -> 0.007352941176 | Q10: =IF(P10=0,0,(P10*((LOG(P10))/LOG(2)))) -> -0.05211369736 | T10: =N10 -> 11122 | U10: =COUNTIF(L7:L29,T10) -> 0 | V10: =U10/(W4-U25) -> 0 | W10: =IF(V10=0,0,(V10*((LOG(V10))/LOG(2)))) -> 0 | Y10: =N10 -> 11122 | Z10: =COUNTIF(L30:L51,Y10) -> 0 | AA10: =Z10/(AB4-Z25) -> 0 | AB10: =IF(AA10=0,0,(AA10*((LOG(AA10))/LOG(2)))) -> 0 | AD10: =N10 -> 11122 | AE10: =COUNTIF(L52:L74,AD10) -> 0 | AF10: =AE10/(AG4-AE25) -> 0 | AG10: =IF(AF10=0,0,(AF10*((LOG(AF10))/LOG(2)))) -> 0 | AI10: =N10 -> 11122 | AJ10: =COUNTIF(L75:L97,AI10) -> 0 | AK10: =AJ10/(AL4-AJ25) -> 0 | AL10: =IF(AK10=0,0,(AK10*((LOG(AK10))/LOG(2)))) -> 0 | AN10: =N10 -> 11122 | AO10: =COUNTIF(L98:L119,AN10) -> 1 | AP10: =AO10/(AQ4-AO25) -> 0.04545454545 | AQ10: =IF(AP10=0,0,(AP10*((LOG(AP10))/LOG(2)))) -> -0.2027014372 | AS10: =N10 -> 11122 | AT10: =COUNTIF(L120:L142,AS10) -> 0 | AU10: =AT10/(AV4-AT25) -> 0 | AV10: =IF(AU10=0,0,(AU10*((LOG(AU10))/LOG(2)))) -> 0
A11: 12 | B11: 693 | C11: 13 | D11: 702 | E11: 24 | F11: 712 | G11: 14 | H11: 723 | I11: 24 | J11: 735 | K11: 0 | L11: 11212 | N11: 11211 | O11: =COUNTIF($L$7:$L$500,N11) -> 16 | P11: =O11/$Q$4 -> 0.1176470588 | Q11: =IF(P11=0,0,(P11*((LOG(P11))/LOG(2)))) -> -0.3632309225 | T11: =N11 -> 11211 | U11: =COUNTIF(L7:L29,T11) -> 4 | V11: =U11/(W4-U25) -> 0.1904761905 | W11: =IF(V11=0,0,(V11*((LOG(V11))/LOG(2)))) -> -0.4556795091 | Y11: =N11 -> 11211 | Z11: =COUNTIF(L30:L51,Y11) -> 0 | AA11: =Z11/(AB4-Z25) -> 0 | AB11: =IF(AA11=0,0,(AA11*((LOG(AA11))/LOG(2)))) -> 0 | AD11: =N11 -> 11211 | AE11: =COUNTIF(L52:L74,AD11) -> 5 | AF11: =AE11/(AG4-AE25) -> 0.2272727273 | AG11: =IF(AF11=0,0,(AF11*((LOG(AF11))/LOG(2)))) -> -0.4857962554 | AI11: =N11 -> 11211 | AJ11: =COUNTIF(L75:L97,AI11) -> 3 | AK11: =AJ11/(AL4-AJ25) -> 0.1363636364 | AL11: =IF(AK11=0,0,(AK11*((LOG(AK11))/LOG(2)))) -> -0.3919730615 | AN11: =N11 -> 11211 | AO11: =COUNTIF(L98:L119,AN11) -> 3 | AP11: =AO11/(AQ4-AO25) -> 0.1363636364 | AQ11: =IF(AP11=0,0,(AP11*((LOG(AP11))/LOG(2)))) -> -0.3919730615 | AS11: =N11 -> 11211 | AT11: =COUNTIF(L120:L142,AS11) -> 1 | AU11: =AT11/(AV4-AT25) -> 0.04347826087 | AV11: =IF(AU11=0,0,(AU11*((LOG(AU11))/LOG(2)))) -> -0.1966766068
A12: 12 | B12: 840 | C12: 13 | D12: 851 | E12: 13 | F12: 875 | G12: 23 | H12: 884 | I12: 13 | J12: 895 | K12: 0 | L12: 11121 | N12: 11212 | O12: =COUNTIF($L$7:$L$500,N12) -> 18 | P12: =O12/$Q$4 -> 0.1323529412 | Q12: =IF(P12=0,0,(P12*((LOG(P12))/LOG(2)))) -> -0.3861447141 | T12: =N12 -> 11212 | U12: =COUNTIF(L7:L29,T12) -> 2 | V12: =U12/(W4-U25) -> 0.09523809524 | W12: =IF(V12=0,0,(V12*((LOG(V12))/LOG(2)))) -> -0.3230778498 | Y12: =N12 -> 11212 | Z12: =COUNTIF(L30:L51,Y12) -> 3 | AA12: =Z12/(AB4-Z25) -> 0.1428571429 | AB12: =IF(AA12=0,0,(AA12*((LOG(AA12))/LOG(2)))) -> -0.4010507032 | AD12: =N12 -> 11212 | AE12: =COUNTIF(L52:L74,AD12) -> 4 | AF12: =AE12/(AG4-AE25) -> 0.1818181818 | AG12: =IF(AF12=0,0,(AF12*((LOG(AF12))/LOG(2)))) -> -0.4471693852 | AI12: =N12 -> 11212 | AJ12: =COUNTIF(L75:L97,AI12) -> 3 | AK12: =AJ12/(AL4-AJ25) -> 0.1363636364 | AL12: =IF(AK12=0,0,(AK12*((LOG(AK12))/LOG(2)))) -> -0.3919730615 | AN12: =N12 -> 11212 | AO12: =COUNTIF(L98:L119,AN12) -> 3 | AP12: =AO12/(AQ4-AO25) -> 0.1363636364 | AQ12: =IF(AP12=0,0,(AP12*((LOG(AP12))/LOG(2)))) -> -0.3919730615 | AS12: =N12 -> 11212 | AT12: =COUNTIF(L120:L142,AS12) -> 3 | AU12: =AT12/(AV4-AT25) -> 0.1304347826 | AV12: =IF(AU12=0,0,(AU12*((LOG(AU12))/LOG(2)))) -> -0.3832955811
A13: 12 | B13: 1016 | C13: 13 | D13: 1025 | E13: 24 | F13: 1034 | G13: 14 | H13: 1046 | I13: 24 | J13: 1058 | K13: 0 | L13: 11212 | N13: 11221 | O13: =COUNTIF($L$7:$L$500,N13) -> 1 | P13: =O13/$Q$4 -> 0.007352941176 | Q13: =IF(P13=0,0,(P13*((LOG(P13))/LOG(2)))) -> -0.05211369736 | T13: =N13 -> 11221 | U13: =COUNTIF(L7:L29,T13) -> 1 | V13: =U13/(W4-U25) -> 0.04761904762 | W13: =IF(V13=0,0,(V13*((LOG(V13))/LOG(2)))) -> -0.2091579725 | Y13: =N13 -> 11221 | Z13: =COUNTIF(L30:L51,Y13) -> 0 | AA13: =Z13/(AB4-Z25) -> 0 | AB13: =IF(AA13=0,0,(AA13*((LOG(AA13))/LOG(2)))) -> 0 | AD13: =N13 -> 11221 | AE13: =COUNTIF(L52:L74,AD13) -> 0 | AF13: =AE13/(AG4-AE25) -> 0 | AG13: =IF(AF13=0,0,(AF13*((LOG(AF13))/LOG(2)))) -> 0 | AI13: =N13 -> 11221 | AJ13: =COUNTIF(L75:L97,AI13) -> 0 | AK13: =AJ13/(AL4-AJ25) -> 0 | AL13: =IF(AK13=0,0,(AK13*((LOG(AK13))/LOG(2)))) -> 0 | AN13: =N13 -> 11221 | AO13: =COUNTIF(L98:L119,AN13) -> 0 | AP13: =AO13/(AQ4-AO25) -> 0 | AQ13: =IF(AP13=0,0,(AP13*((LOG(AP13))/LOG(2)))) -> 0 | AS13: =N13 -> 11221 | AT13: =COUNTIF(L120:L142,AS13) -> 0 | AU13: =AT13/(AV4-AT25) -> 0 | AV13: =IF(AU13=0,0,(AU13*((LOG(AU13))/LOG(2)))) -> 0
A14: 21 | B14: 1169 | C14: 11 | D14: 1183 | E14: 11 | F14: 1195 | G14: 21 | H14: 1204 | I14: 11 | J14: 1216 | K14: 1 | L14: 21121 | N14: 11222 | O14: =COUNTIF($L$7:$L$500,N14) -> 0 | P14: =O14/$Q$4 -> 0 | Q14: =IF(P14=0,0,(P14*((LOG(P14))/LOG(2)))) -> 0 | T14: =N14 -> 11222 | U14: =COUNTIF(L7:L29,T14) -> 0 | V14: =U14/(W4-U25) -> 0 | W14: =IF(V14=0,0,(V14*((LOG(V14))/LOG(2)))) -> 0 | Y14: =N14 -> 11222 | Z14: =COUNTIF(L30:L51,Y14) -> 0 | AA14: =Z14/(AB4-Z25) -> 0 | AB14: =IF(AA14=0,0,(AA14*((LOG(AA14))/LOG(2)))) -> 0 | AD14: =N14 -> 11222 | AE14: =COUNTIF(L52:L74,AD14) -> 0 | AF14: =AE14/(AG4-AE25) -> 0 | AG14: =IF(AF14=0,0,(AF14*((LOG(AF14))/LOG(2)))) -> 0 | AI14: =N14 -> 11222 | AJ14: =COUNTIF(L75:L97,AI14) -> 0 | AK14: =AJ14/(AL4-AJ25) -> 0 | AL14: =IF(AK14=0,0,(AK14*((LOG(AK14))/LOG(2)))) -> 0 | AN14: =N14 -> 11222 | AO14: =COUNTIF(L98:L119,AN14) -> 0 | AP14: =AO14/(AQ4-AO25) -> 0 | AQ14: =IF(AP14=0,0,(AP14*((LOG(AP14))/LOG(2)))) -> 0 | AS14: =N14 -> 11222 | AT14: =COUNTIF(L120:L142,AS14) -> 0 | AU14: =AT14/(AV4-AT25) -> 0 | AV14: =IF(AU14=0,0,(AU14*((LOG(AU14))/LOG(2)))) -> 0
A15: 12 | B15: 1324 | C15: 24 | D15: 1333 | E15: 13 | F15: 1353 | G15: 23 | H15: 1371 | I15: 13 | J15: 1385 | K15: 0 | L15: 12121 | N15: 12111 | O15: =COUNTIF($L$7:$L$500,N15) -> 5 | P15: =O15/$Q$4 -> 0.03676470588 | Q15: =IF(P15=0,0,(P15*((LOG(P15))/LOG(2)))) -> -0.1752034833 | T15: =N15 -> 12111 | U15: =COUNTIF(L7:L29,T15) -> 1 | V15: =U15/(W4-U25) -> 0.04761904762 | W15: =IF(V15=0,0,(V15*((LOG(V15))/LOG(2)))) -> -0.2091579725 | Y15: =N15 -> 12111 | Z15: =COUNTIF(L30:L51,Y15) -> 1 | AA15: =Z15/(AB4-Z25) -> 0.04761904762 | AB15: =IF(AA15=0,0,(AA15*((LOG(AA15))/LOG(2)))) -> -0.2091579725 | AD15: =N15 -> 12111 | AE15: =COUNTIF(L52:L74,AD15) -> 0 | AF15: =AE15/(AG4-AE25) -> 0 | AG15: =IF(AF15=0,0,(AF15*((LOG(AF15))/LOG(2)))) -> 0 | AI15: =N15 -> 12111 | AJ15: =COUNTIF(L75:L97,AI15) -> 1 | AK15: =AJ15/(AL4-AJ25) -> 0.04545454545 | AL15: =IF(AK15=0,0,(AK15*((LOG(AK15))/LOG(2)))) -> -0.2027014372 | AN15: =N15 -> 12111 | AO15: =COUNTIF(L98:L119,AN15) -> 2 | AP15: =AO15/(AQ4-AO25) -> 0.09090909091 | AQ15: =IF(AP15=0,0,(AP15*((LOG(AP15))/LOG(2)))) -> -0.3144937835 | AS15: =N15 -> 12111 | AT15: =COUNTIF(L120:L142,AS15) -> 0 | AU15: =AT15/(AV4-AT25) -> 0 | AV15: =IF(AU15=0,0,(AU15*((LOG(AU15))/LOG(2)))) -> 0
A16: 12 | B16: 1484 | C16: 13 | D16: 1506 | E16: 13 | F16: 1523 | G16: 23 | H16: 1533 | I16: 13 | J16: 1554 | K16: 0 | L16: 11121 | N16: 12112 | O16: =COUNTIF($L$7:$L$500,N16) -> 4 | P16: =O16/$Q$4 -> 0.02941176471 | Q16: =IF(P16=0,0,(P16*((LOG(P16))/LOG(2)))) -> -0.14963126 | T16: =N16 -> 12112 | U16: =COUNTIF(L7:L29,T16) -> 2 | V16: =U16/(W4-U25) -> 0.09523809524 | W16: =IF(V16=0,0,(V16*((LOG(V16))/LOG(2)))) -> -0.3230778498 | Y16: =N16 -> 12112 | Z16: =COUNTIF(L30:L51,Y16) -> 0 | AA16: =Z16/(AB4-Z25) -> 0 | AB16: =IF(AA16=0,0,(AA16*((LOG(AA16))/LOG(2)))) -> 0 | AD16: =N16 -> 12112 | AE16: =COUNTIF(L52:L74,AD16) -> 1 | AF16: =AE16/(AG4-AE25) -> 0.04545454545 | AG16: =IF(AF16=0,0,(AF16*((LOG(AF16))/LOG(2)))) -> -0.2027014372 | AI16: =N16 -> 12112 | AJ16: =COUNTIF(L75:L97,AI16) -> 1 | AK16: =AJ16/(AL4-AJ25) -> 0.04545454545 | AL16: =IF(AK16=0,0,(AK16*((LOG(AK16))/LOG(2)))) -> -0.2027014372 | AN16: =N16 -> 12112 | AO16: =COUNTIF(L98:L119,AN16) -> 0 | AP16: =AO16/(AQ4-AO25) -> 0 | AQ16: =IF(AP16=0,0,(AP16*((LOG(AP16))/LOG(2)))) -> 0 | AS16: =N16 -> 12112 | AT16: =COUNTIF(L120:L142,AS16) -> 0 | AU16: =AT16/(AV4-AT25) -> 0 | AV16: =IF(AU16=0,0,(AU16*((LOG(AU16))/LOG(2)))) -> 0
A17: 21 | B17: 1698 | C17: 11 | D17: 1706 | E17: 11 | F17: 1722 | G17: 21 | H17: 1731 | I17: 11 | J17: 1744 | K17: 1 | L17: 21121 | N17: 12121 | O17: =COUNTIF($L$7:$L$500,N17) -> 21 | P17: =O17/$Q$4 -> 0.1544117647 | Q17: =IF(P17=0,0,(P17*((LOG(P17))/LOG(2)))) -> -0.4161621602 | T17: =N17 -> 12121 | U17: =COUNTIF(L7:L29,T17) -> 3 | V17: =U17/(W4-U25) -> 0.1428571429 | W17: =IF(V17=0,0,(V17*((LOG(V17))/LOG(2)))) -> -0.4010507032 | Y17: =N17 -> 12121 | Z17: =COUNTIF(L30:L51,Y17) -> 0 | AA17: =Z17/(AB4-Z25) -> 0 | AB17: =IF(AA17=0,0,(AA17*((LOG(AA17))/LOG(2)))) -> 0 | AD17: =N17 -> 12121 | AE17: =COUNTIF(L52:L74,AD17) -> 6 | AF17: =AE17/(AG4-AE25) -> 0.2727272727 | AG17: =IF(AF17=0,0,(AF17*((LOG(AF17))/LOG(2)))) -> -0.5112188503 | AI17: =N17 -> 12121 | AJ17: =COUNTIF(L75:L97,AI17) -> 4 | AK17: =AJ17/(AL4-AJ25) -> 0.1818181818 | AL17: =IF(AK17=0,0,(AK17*((LOG(AK17))/LOG(2)))) -> -0.4471693852 | AN17: =N17 -> 12121 | AO17: =COUNTIF(L98:L119,AN17) -> 2 | AP17: =AO17/(AQ4-AO25) -> 0.09090909091 | AQ17: =IF(AP17=0,0,(AP17*((LOG(AP17))/LOG(2)))) -> -0.3144937835 | AS17: =N17 -> 12121 | AT17: =COUNTIF(L120:L142,AS17) -> 6 | AU17: =AT17/(AV4-AT25) -> 0.2608695652 | AV17: =IF(AU17=0,0,(AU17*((LOG(AU17))/LOG(2)))) -> -0.505721597
A18: 12 | B18: 1849 | C18: 24 | D18: 1859 | E18: 13 | F18: 1885 | G18: 23 | H18: 1894 | I18: 13 | J18: 1902 | K18: 0 | L18: 12121 | N18: 12122 | O18: =COUNTIF($L$7:$L$500,N18) -> 1 | P18: =O18/$Q$4 -> 0.007352941176 | Q18: =IF(P18=0,0,(P18*((LOG(P18))/LOG(2)))) -> -0.05211369736 | T18: =N18 -> 12122 | U18: =COUNTIF(L7:L29,T18) -> 0 | V18: =U18/(W4-U25) -> 0 | W18: =IF(V18=0,0,(V18*((LOG(V18))/LOG(2)))) -> 0 | Y18: =N18 -> 12122 | Z18: =COUNTIF(L30:L51,Y18) -> 0 | AA18: =Z18/(AB4-Z25) -> 0 | AB18: =IF(AA18=0,0,(AA18*((LOG(AA18))/LOG(2)))) -> 0 | AD18: =N18 -> 12122 | AE18: =COUNTIF(L52:L74,AD18) -> 0 | AF18: =AE18/(AG4-AE25) -> 0 | AG18: =IF(AF18=0,0,(AF18*((LOG(AF18))/LOG(2)))) -> 0 | AI18: =N18 -> 12122 | AJ18: =COUNTIF(L75:L97,AI18) -> 0 | AK18: =AJ18/(AL4-AJ25) -> 0 | AL18: =IF(AK18=0,0,(AK18*((LOG(AK18))/LOG(2)))) -> 0 | AN18: =N18 -> 12122 | AO18: =COUNTIF(L98:L119,AN18) -> 0 | AP18: =AO18/(AQ4-AO25) -> 0 | AQ18: =IF(AP18=0,0,(AP18*((LOG(AP18))/LOG(2)))) -> 0 | AS18: =N18 -> 12122 | AT18: =COUNTIF(L120:L142,AS18) -> 1 | AU18: =AT18/(AV4-AT25) -> 0.04347826087 | AV18: =IF(AU18=0,0,(AU18*((LOG(AU18))/LOG(2)))) -> -0.1966766068
A19: 12 | B19: 2007 | C19: 13 | D19: 2020 | E19: 24 | F19: 2032 | G19: 14 | H19: 2047 | I19: 13 | J19: 2062 | K19: 0 | L19: 11211 | N19: 12211 | O19: =COUNTIF($L$7:$L$500,N19) -> 2 | P19: =O19/$Q$4 -> 0.01470588235 | Q19: =IF(P19=0,0,(P19*((LOG(P19))/LOG(2)))) -> -0.08952151237 | T19: =N19 -> 12211 | U19: =COUNTIF(L7:L29,T19) -> 1 | V19: =U19/(W4-U25) -> 0.04761904762 | W19: =IF(V19=0,0,(V19*((LOG(V19))/LOG(2)))) -> -0.2091579725 | Y19: =N19 -> 12211 | Z19: =COUNTIF(L30:L51,Y19) -> 0 | AA19: =Z19/(AB4-Z25) -> 0 | AB19: =IF(AA19=0,0,(AA19*((LOG(AA19))/LOG(2)))) -> 0 | AD19: =N19 -> 12211 | AE19: =COUNTIF(L52:L74,AD19) -> 0 | AF19: =AE19/(AG4-AE25) -> 0 | AG19: =IF(AF19=0,0,(AF19*((LOG(AF19))/LOG(2)))) -> 0 | AI19: =N19 -> 12211 | AJ19: =COUNTIF(L75:L97,AI19) -> 0 | AK19: =AJ19/(AL4-AJ25) -> 0 | AL19: =IF(AK19=0,0,(AK19*((LOG(AK19))/LOG(2)))) -> 0 | AN19: =N19 -> 12211 | AO19: =COUNTIF(L98:L119,AN19) -> 0 | AP19: =AO19/(AQ4-AO25) -> 0 | AQ19: =IF(AP19=0,0,(AP19*((LOG(AP19))/LOG(2)))) -> 0 | AS19: =N19 -> 12211 | AT19: =COUNTIF(L120:L142,AS19) -> 1 | AU19: =AT19/(AV4-AT25) -> 0.04347826087 | AV19: =IF(AU19=0,0,(AU19*((LOG(AU19))/LOG(2)))) -> -0.1966766068
A20: 12 | B20: 2168 | C20: 24 | D20: 2177 | E20: 24 | F20: 2199 | G20: 14 | H20: 2209 | I20: 13 | J20: 2217 | K20: 0 | L20: 12211 | N20: 12212 | O20: =COUNTIF($L$7:$L$500,N20) -> 2 | P20: =O20/$Q$4 -> 0.01470588235 | Q20: =IF(P20=0,0,(P20*((LOG(P20))/LOG(2)))) -> -0.08952151237 | T20: =N20 -> 12212 | U20: =COUNTIF(L7:L29,T20) -> 1 | V20: =U20/(W4-U25) -> 0.04761904762 | W20: =IF(V20=0,0,(V20*((LOG(V20))/LOG(2)))) -> -0.2091579725 | Y20: =N20 -> 12212 | Z20: =COUNTIF(L30:L51,Y20) -> 0 | AA20: =Z20/(AB4-Z25) -> 0 | AB20: =IF(AA20=0,0,(AA20*((LOG(AA20))/LOG(2)))) -> 0 | AD20: =N20 -> 12212 | AE20: =COUNTIF(L52:L74,AD20) -> 0 | AF20: =AE20/(AG4-AE25) -> 0 | AG20: =IF(AF20=0,0,(AF20*((LOG(AF20))/LOG(2)))) -> 0 | AI20: =N20 -> 12212 | AJ20: =COUNTIF(L75:L97,AI20) -> 0 | AK20: =AJ20/(AL4-AJ25) -> 0 | AL20: =IF(AK20=0,0,(AK20*((LOG(AK20))/LOG(2)))) -> 0 | AN20: =N20 -> 12212 | AO20: =COUNTIF(L98:L119,AN20) -> 0 | AP20: =AO20/(AQ4-AO25) -> 0 | AQ20: =IF(AP20=0,0,(AP20*((LOG(AP20))/LOG(2)))) -> 0 | AS20: =N20 -> 12212 | AT20: =COUNTIF(L120:L142,AS20) -> 1 | AU20: =AT20/(AV4-AT25) -> 0.04347826087 | AV20: =IF(AU20=0,0,(AU20*((LOG(AU20))/LOG(2)))) -> -0.1966766068
A21: 12 | B21: 2312 | C21: 13 | D21: 2324 | E21: 13 | F21: 2348 | G21: 14 | H21: 2365 | I21: 24 | J21: 2377 | K21: 0 | L21: 11112 | N21: 12221 | O21: =COUNTIF($L$7:$L$500,N21) -> 2 | P21: =O21/$Q$4 -> 0.01470588235 | Q21: =IF(P21=0,0,(P21*((LOG(P21))/LOG(2)))) -> -0.08952151237 | T21: =N21 -> 12221 | U21: =COUNTIF(L7:L29,T21) -> 0 | V21: =U21/(W4-U25) -> 0 | W21: =IF(V21=0,0,(V21*((LOG(V21))/LOG(2)))) -> 0 | Y21: =N21 -> 12221 | Z21: =COUNTIF(L30:L51,Y21) -> 0 | AA21: =Z21/(AB4-Z25) -> 0 | AB21: =IF(AA21=0,0,(AA21*((LOG(AA21))/LOG(2)))) -> 0 | AD21: =N21 -> 12221 | AE21: =COUNTIF(L52:L74,AD21) -> 0 | AF21: =AE21/(AG4-AE25) -> 0 | AG21: =IF(AF21=0,0,(AF21*((LOG(AF21))/LOG(2)))) -> 0 | AI21: =N21 -> 12221 | AJ21: =COUNTIF(L75:L97,AI21) -> 0 | AK21: =AJ21/(AL4-AJ25) -> 0 | AL21: =IF(AK21=0,0,(AK21*((LOG(AK21))/LOG(2)))) -> 0 | AN21: =N21 -> 12221 | AO21: =COUNTIF(L98:L119,AN21) -> 0 | AP21: =AO21/(AQ4-AO25) -> 0 | AQ21: =IF(AP21=0,0,(AP21*((LOG(AP21))/LOG(2)))) -> 0 | AS21: =N21 -> 12221 | AT21: =COUNTIF(L120:L142,AS21) -> 2 | AU21: =AT21/(AV4-AT25) -> 0.08695652174 | AV21: =IF(AU21=0,0,(AU21*((LOG(AU21))/LOG(2)))) -> -0.3063966918
A22: 12 | B22: 2490 | C22: 13 | D22: 2499 | E22: 24 | F22: 2510 | G22: 14 | H22: 2526 | I22: 13 | J22: 2542 | K22: 0 | L22: 11211 | N22: 12222 | O22: =COUNTIF($L$7:$L$500,N22) -> 0 | P22: =O22/$Q$4 -> 0 | Q22: =IF(P22=0,0,(P22*((LOG(P22))/LOG(2)))) -> 0 | T22: =N22 -> 12222 | U22: =COUNTIF(L7:L29,T22) -> 0 | V22: =U22/(W4-U25) -> 0 | W22: =IF(V22=0,0,(V22*((LOG(V22))/LOG(2)))) -> 0 | Y22: =N22 -> 12222 | Z22: =COUNTIF(L30:L51,Y22) -> 0 | AA22: =Z22/(AB4-Z25) -> 0 | AB22: =IF(AA22=0,0,(AA22*((LOG(AA22))/LOG(2)))) -> 0 | AD22: =N22 -> 12222 | AE22: =COUNTIF(L52:L74,AD22) -> 0 | AF22: =AE22/(AG4-AE25) -> 0 | AG22: =IF(AF22=0,0,(AF22*((LOG(AF22))/LOG(2)))) -> 0 | AI22: =N22 -> 12222 | AJ22: =COUNTIF(L75:L97,AI22) -> 0 | AK22: =AJ22/(AL4-AJ25) -> 0 | AL22: =IF(AK22=0,0,(AK22*((LOG(AK22))/LOG(2)))) -> 0 | AN22: =N22 -> 12222 | AO22: =COUNTIF(L98:L119,AN22) -> 0 | AP22: =AO22/(AQ4-AO25) -> 0 | AQ22: =IF(AP22=0,0,(AP22*((LOG(AP22))/LOG(2)))) -> 0 | AS22: =N22 -> 12222 | AT22: =COUNTIF(L120:L142,AS22) -> 0 | AU22: =AT22/(AV4-AT25) -> 0 | AV22: =IF(AU22=0,0,(AU22*((LOG(AU22))/LOG(2)))) -> 0
A23: 12 | B23: 2669 | C23: 13 | D23: 2681 | E23: 24 | F23: 2693 | G23: 14 | H23: 2702 | I23: 13 | J23: 2707 | K23: 0 | L23: 11211 | N23: 21111 | O23: =COUNTIF($L$7:$L$500,N23) -> 1 | P23: =O23/$Q$4 -> 0.007352941176 | Q23: =IF(P23=0,0,(P23*((LOG(P23))/LOG(2)))) -> -0.05211369736 | T23: =N23 -> 21111 | U23: =COUNTIF(L7:L29,T23) -> 0 | V23: =U23/(W4-U25) -> 0 | W23: =IF(V23=0,0,(V23*((LOG(V23))/LOG(2)))) -> 0 | Y23: =N23 -> 21111 | Z23: =COUNTIF(L30:L51,Y23) -> 1 | AA23: =Z23/(AB4-Z25) -> 0.04761904762 | AB23: =IF(AA23=0,0,(AA23*((LOG(AA23))/LOG(2)))) -> -0.2091579725 | AD23: =N23 -> 21111 | AE23: =COUNTIF(L52:L74,AD23) -> 0 | AF23: =AE23/(AG4-AE25) -> 0 | AG23: =IF(AF23=0,0,(AF23*((LOG(AF23))/LOG(2)))) -> 0 | AI23: =N23 -> 21111 | AJ23: =COUNTIF(L75:L97,AI23) -> 0 | AK23: =AJ23/(AL4-AJ25) -> 0 | AL23: =IF(AK23=0,0,(AK23*((LOG(AK23))/LOG(2)))) -> 0 | AN23: =N23 -> 21111 | AO23: =COUNTIF(L98:L119,AN23) -> 0 | AP23: =AO23/(AQ4-AO25) -> 0 | AQ23: =IF(AP23=0,0,(AP23*((LOG(AP23))/LOG(2)))) -> 0 | AS23: =N23 -> 21111 | AT23: =COUNTIF(L120:L142,AS23) -> 0 | AU23: =AT23/(AV4-AT25) -> 0 | AV23: =IF(AU23=0,0,(AU23*((LOG(AU23))/LOG(2)))) -> 0
A24: 12 | B24: 2824 | C24: 13 | D24: 2839 | E24: 24 | F24: 2848 | G24: 23 | H24: 2869 | I24: 13 | J24: 2881 | K24: 0 | L24: 11221 | N24: 21112 | O24: =COUNTIF($L$7:$L$500,N24) -> 1 | P24: =O24/$Q$4 -> 0.007352941176 | Q24: =IF(P24=0,0,(P24*((LOG(P24))/LOG(2)))) -> -0.05211369736 | T24: =N24 -> 21112 | U24: =COUNTIF(L7:L29,T24) -> 0 | V24: =U24/(W4-U25) -> 0 | W24: =IF(V24=0,0,(V24*((LOG(V24))/LOG(2)))) -> 0 | Y24: =N24 -> 21112 | Z24: =COUNTIF(L30:L51,Y24) -> 1 | AA24: =Z24/(AB4-Z25) -> 0.04761904762 | AB24: =IF(AA24=0,0,(AA24*((LOG(AA24))/LOG(2)))) -> -0.2091579725 | AD24: =N24 -> 21112 | AE24: =COUNTIF(L52:L74,AD24) -> 0 | AF24: =AE24/(AG4-AE25) -> 0 | AG24: =IF(AF24=0,0,(AF24*((LOG(AF24))/LOG(2)))) -> 0 | AI24: =N24 -> 21112 | AJ24: =COUNTIF(L75:L97,AI24) -> 0 | AK24: =AJ24/(AL4-AJ25) -> 0 | AL24: =IF(AK24=0,0,(AK24*((LOG(AK24))/LOG(2)))) -> 0 | AN24: =N24 -> 21112 | AO24: =COUNTIF(L98:L119,AN24) -> 0 | AP24: =AO24/(AQ4-AO25) -> 0 | AQ24: =IF(AP24=0,0,(AP24*((LOG(AP24))/LOG(2)))) -> 0 | AS24: =N24 -> 21112 | AT24: =COUNTIF(L120:L142,AS24) -> 0 | AU24: =AT24/(AV4-AT25) -> 0 | AV24: =IF(AU24=0,0,(AU24*((LOG(AU24))/LOG(2)))) -> 0
A25: 21 | B25: 2981 | C25: 11 | D25: 2996 | E25: 22 | F25: 3007 | G25: 14 | H25: 3029 | I25: 24 | J25: 3041 | K25: 0 | L25: 21212 | N25: 21121 | O25: =COUNTIF($L$7:$L$500,N25) -> 5 | P25: =O25/$Q$4 -> 0.03676470588 | Q25: =IF(P25=0,0,(P25*((LOG(P25))/LOG(2)))) -> -0.1752034833 | T25: =N25 -> 21121 | U25: =COUNTIF(L7:L29,T25) -> 2 | Y25: =N25 -> 21121 | Z25: =COUNTIF(L30:L51,Y25) -> 1 | AD25: =N25 -> 21121 | AE25: =COUNTIF(L52:L74,AD25) -> 1 | AI25: =N25 -> 21121 | AJ25: =COUNTIF(L75:L97,AI25) -> 1 | AN25: =N25 -> 21121 | AO25: =COUNTIF(L98:L119,AN25) -> 0 | AS25: =N25 -> 21121 | AT25: =COUNTIF(L120:L142,AS25) -> 0
A26: 12 | B26: 3173 | C26: 24 | D26: 3181 | E26: 13 | F26: 3203 | G26: 14 | H26: 3211 | I26: 13 | J26: 3221 | K26: 0 | L26: 12111 | N26: 21122 | O26: =COUNTIF($L$7:$L$500,N26) -> 0 | P26: =O26/$Q$4 -> 0 | Q26: =IF(P26=0,0,(P26*((LOG(P26))/LOG(2)))) -> 0 | T26: =N26 -> 21122 | U26: =COUNTIF(L7:L29,T26) -> 0 | V26: =U26/(W4-U25) -> 0 | W26: =IF(V26=0,0,(V26*((LOG(V26))/LOG(2)))) -> 0 | Y26: =N26 -> 21122 | Z26: =COUNTIF(L30:L51,Y26) -> 0 | AA26: =Z26/(AB4-Z25) -> 0 | AB26: =IF(AA26=0,0,(AA26*((LOG(AA26))/LOG(2)))) -> 0 | AD26: =N26 -> 21122 | AE26: =COUNTIF(L52:L74,AD26) -> 0 | AF26: =AE26/(AG4-AE25) -> 0 | AG26: =IF(AF26=0,0,(AF26*((LOG(AF26))/LOG(2)))) -> 0 | AI26: =N26 -> 21122 | AJ26: =COUNTIF(L75:L97,AI26) -> 0 | AK26: =AJ26/(AL4-AJ25) -> 0 | AL26: =IF(AK26=0,0,(AK26*((LOG(AK26))/LOG(2)))) -> 0 | AN26: =N26 -> 21122 | AO26: =COUNTIF(L98:L119,AN26) -> 0 | AP26: =AO26/(AQ4-AO25) -> 0 | AQ26: =IF(AP26=0,0,(AP26*((LOG(AP26))/LOG(2)))) -> 0 | AS26: =N26 -> 21122 | AT26: =COUNTIF(L120:L142,AS26) -> 0 | AU26: =AT26/(AV4-AT25) -> 0 | AV26: =IF(AU26=0,0,(AU26*((LOG(AU26))/LOG(2)))) -> 0
A27: 12 | B27: 3323 | C27: 13 | D27: 3338 | E27: 13 | F27: 3356 | G27: 23 | H27: 3368 | I27: 13 | J27: 3376 | K27: 0 | L27: 11121 | N27: 21211 | O27: =COUNTIF($L$7:$L$500,N27) -> 18 | P27: =O27/$Q$4 -> 0.1323529412 | Q27: =IF(P27=0,0,(P27*((LOG(P27))/LOG(2)))) -> -0.3861447141 | T27: =N27 -> 21211 | U27: =COUNTIF(L7:L29,T27) -> 0 | V27: =U27/(W4-U25) -> 0 | W27: =IF(V27=0,0,(V27*((LOG(V27))/LOG(2)))) -> 0 | Y27: =N27 -> 21211 | Z27: =COUNTIF(L30:L51,Y27) -> 7 | AA27: =Z27/(AB4-Z25) -> 0.3333333333 | AB27: =IF(AA27=0,0,(AA27*((LOG(AA27))/LOG(2)))) -> -0.5283208336 | AD27: =N27 -> 21211 | AE27: =COUNTIF(L52:L74,AD27) -> 1 | AF27: =AE27/(AG4-AE25) -> 0.04545454545 | AG27: =IF(AF27=0,0,(AF27*((LOG(AF27))/LOG(2)))) -> -0.2027014372 | AI27: =N27 -> 21211 | AJ27: =COUNTIF(L75:L97,AI27) -> 4 | AK27: =AJ27/(AL4-AJ25) -> 0.1818181818 | AL27: =IF(AK27=0,0,(AK27*((LOG(AK27))/LOG(2)))) -> -0.4471693852 | AN27: =N27 -> 21211 | AO27: =COUNTIF(L98:L119,AN27) -> 3 | AP27: =AO27/(AQ4-AO25) -> 0.1363636364 | AQ27: =IF(AP27=0,0,(AP27*((LOG(AP27))/LOG(2)))) -> -0.3919730615 | AS27: =N27 -> 21211 | AT27: =COUNTIF(L120:L142,AS27) -> 3 | AU27: =AT27/(AV4-AT25) -> 0.1304347826 | AV27: =IF(AU27=0,0,(AU27*((LOG(AU27))/LOG(2)))) -> -0.3832955811
A28: 12 | B28: 3489 | C28: 24 | D28: 3500 | E28: 13 | F28: 3512 | G28: 14 | H28: 3528 | I28: 24 | J28: 3541 | K28: 0 | L28: 12112 | N28: 21212 | O28: =COUNTIF($L$7:$L$500,N28) -> 15 | P28: =O28/$Q$4 -> 0.1102941176 | Q28: =IF(P28=0,0,(P28*((LOG(P28))/LOG(2)))) -> -0.3507984094 | T28: =N28 -> 21212 | U28: =COUNTIF(L7:L29,T28) -> 1 | V28: =U28/(W4-U25) -> 0.04761904762 | W28: =IF(V28=0,0,(V28*((LOG(V28))/LOG(2)))) -> -0.2091579725 | Y28: =N28 -> 21212 | Z28: =COUNTIF(L30:L51,Y28) -> 2 | AA28: =Z28/(AB4-Z25) -> 0.09523809524 | AB28: =IF(AA28=0,0,(AA28*((LOG(AA28))/LOG(2)))) -> -0.3230778498 | AD28: =N28 -> 21212 | AE28: =COUNTIF(L52:L74,AD28) -> 2 | AF28: =AE28/(AG4-AE25) -> 0.09090909091 | AG28: =IF(AF28=0,0,(AF28*((LOG(AF28))/LOG(2)))) -> -0.3144937835 | AI28: =N28 -> 21212 | AJ28: =COUNTIF(L75:L97,AI28) -> 3 | AK28: =AJ28/(AL4-AJ25) -> 0.1363636364 | AL28: =IF(AK28=0,0,(AK28*((LOG(AK28))/LOG(2)))) -> -0.3919730615 | AN28: =N28 -> 21212 | AO28: =COUNTIF(L98:L119,AN28) -> 6 | AP28: =AO28/(AQ4-AO25) -> 0.2727272727 | AQ28: =IF(AP28=0,0,(AP28*((LOG(AP28))/LOG(2)))) -> -0.5112188503 | AS28: =N28 -> 21212 | AT28: =COUNTIF(L120:L142,AS28) -> 1 | AU28: =AT28/(AV4-AT25) -> 0.04347826087 | AV28: =IF(AU28=0,0,(AU28*((LOG(AU28))/LOG(2)))) -> -0.1966766068
A29: 12 | B29: 3664 | C29: 13 | D29: 3675 | E29: 13 | F29: 3693 | G29: 23 | H29: 3706 | I29: 13 | J29: 3714 | K29: 0 | L29: 11121 | N29: 21221 | O29: =COUNTIF($L$7:$L$500,N29) -> 3 | P29: =O29/$Q$4 -> 0.02205882353 | Q29: =IF(P29=0,0,(P29*((LOG(P29))/LOG(2)))) -> -0.121378684 | T29: =N29 -> 21221 | U29: =COUNTIF(L7:L29,T29) -> 0 | V29: =U29/(W4-U25) -> 0 | W29: =IF(V29=0,0,(V29*((LOG(V29))/LOG(2)))) -> 0 | Y29: =N29 -> 21221 | Z29: =COUNTIF(L30:L51,Y29) -> 1 | AA29: =Z29/(AB4-Z25) -> 0.04761904762 | AB29: =IF(AA29=0,0,(AA29*((LOG(AA29))/LOG(2)))) -> -0.2091579725 | AD29: =N29 -> 21221 | AE29: =COUNTIF(L52:L74,AD29) -> 1 | AF29: =AE29/(AG4-AE25) -> 0.04545454545 | AG29: =IF(AF29=0,0,(AF29*((LOG(AF29))/LOG(2)))) -> -0.2027014372 | AI29: =N29 -> 21221 | AJ29: =COUNTIF(L75:L97,AI29) -> 0 | AK29: =AJ29/(AL4-AJ25) -> 0 | AL29: =IF(AK29=0,0,(AK29*((LOG(AK29))/LOG(2)))) -> 0 | AN29: =N29 -> 21221 | AO29: =COUNTIF(L98:L119,AN29) -> 0 | AP29: =AO29/(AQ4-AO25) -> 0 | AQ29: =IF(AP29=0,0,(AP29*((LOG(AP29))/LOG(2)))) -> 0 | AS29: =N29 -> 21221 | AT29: =COUNTIF(L120:L142,AS29) -> 1 | AU29: =AT29/(AV4-AT25) -> 0.04347826087 | AV29: =IF(AU29=0,0,(AU29*((LOG(AU29))/LOG(2)))) -> -0.1966766068
A30: 21 | B30: 3824 | C30: 22 | D30: 3839 | E30: 13 | F30: 3859 | G30: 23 | H30: 3868 | I30: 13 | J30: 3877 | K30: 0 | L30: 22121 | N30: 21222 | O30: =COUNTIF($L$7:$L$500,N30) -> 0 | P30: =O30/$Q$4 -> 0 | Q30: =IF(P30=0,0,(P30*((LOG(P30))/LOG(2)))) -> 0 | T30: =N30 -> 21222 | U30: =COUNTIF(L7:L29,T30) -> 0 | V30: =U30/(W4-U25) -> 0 | W30: =IF(V30=0,0,(V30*((LOG(V30))/LOG(2)))) -> 0 | Y30: =N30 -> 21222 | Z30: =COUNTIF(L30:L51,Y30) -> 0 | AA30: =Z30/(AB4-Z25) -> 0 | AB30: =IF(AA30=0,0,(AA30*((LOG(AA30))/LOG(2)))) -> 0 | AD30: =N30 -> 21222 | AE30: =COUNTIF(L52:L74,AD30) -> 0 | AF30: =AE30/(AG4-AE25) -> 0 | AG30: =IF(AF30=0,0,(AF30*((LOG(AF30))/LOG(2)))) -> 0 | AI30: =N30 -> 21222 | AJ30: =COUNTIF(L75:L97,AI30) -> 0 | AK30: =AJ30/(AL4-AJ25) -> 0 | AL30: =IF(AK30=0,0,(AK30*((LOG(AK30))/LOG(2)))) -> 0 | AN30: =N30 -> 21222 | AO30: =COUNTIF(L98:L119,AN30) -> 0 | AP30: =AO30/(AQ4-AO25) -> 0 | AQ30: =IF(AP30=0,0,(AP30*((LOG(AP30))/LOG(2)))) -> 0 | AS30: =N30 -> 21222 | AT30: =COUNTIF(L120:L142,AS30) -> 0 | AU30: =AT30/(AV4-AT25) -> 0 | AV30: =IF(AU30=0,0,(AU30*((LOG(AU30))/LOG(2)))) -> 0
A31: 21 | B31: 3990 | C31: 11 | D31: 3998 | E31: 11 | F31: 4011 | G31: 12 | H31: 4024 | I31: 24 | J31: 4036 | K31: 0 | L31: 21112 | N31: 22111 | O31: =COUNTIF($L$7:$L$500,N31) -> 1 | P31: =O31/$Q$4 -> 0.007352941176 | Q31: =IF(P31=0,0,(P31*((LOG(P31))/LOG(2)))) -> -0.05211369736 | T31: =N31 -> 22111 | U31: =COUNTIF(L7:L29,T31) -> 0 | V31: =U31/(W4-U25) -> 0 | W31: =IF(V31=0,0,(V31*((LOG(V31))/LOG(2)))) -> 0 | Y31: =N31 -> 22111 | Z31: =COUNTIF(L30:L51,Y31) -> 0 | AA31: =Z31/(AB4-Z25) -> 0 | AB31: =IF(AA31=0,0,(AA31*((LOG(AA31))/LOG(2)))) -> 0 | AD31: =N31 -> 22111 | AE31: =COUNTIF(L52:L74,AD31) -> 0 | AF31: =AE31/(AG4-AE25) -> 0 | AG31: =IF(AF31=0,0,(AF31*((LOG(AF31))/LOG(2)))) -> 0 | AI31: =N31 -> 22111 | AJ31: =COUNTIF(L75:L97,AI31) -> 1 | AK31: =AJ31/(AL4-AJ25) -> 0.04545454545 | AL31: =IF(AK31=0,0,(AK31*((LOG(AK31))/LOG(2)))) -> -0.2027014372 | AN31: =N31 -> 22111 | AO31: =COUNTIF(L98:L119,AN31) -> 0 | AP31: =AO31/(AQ4-AO25) -> 0 | AQ31: =IF(AP31=0,0,(AP31*((LOG(AP31))/LOG(2)))) -> 0 | AS31: =N31 -> 22111 | AT31: =COUNTIF(L120:L142,AS31) -> 0 | AU31: =AT31/(AV4-AT25) -> 0 | AV31: =IF(AU31=0,0,(AU31*((LOG(AU31))/LOG(2)))) -> 0
A32: 21 | B32: 4139 | C32: 22 | D32: 4150 | E32: 13 | F32: 4158 | G32: 23 | H32: 4167 | I32: 13 | J32: 4178 | K32: 0 | L32: 22121 | N32: 22112 | O32: =COUNTIF($L$7:$L$500,N32) -> 3 | P32: =O32/$Q$4 -> 0.02205882353 | Q32: =IF(P32=0,0,(P32*((LOG(P32))/LOG(2)))) -> -0.121378684 | T32: =N32 -> 22112 | U32: =COUNTIF(L7:L29,T32) -> 0 | V32: =U32/(W4-U25) -> 0 | W32: =IF(V32=0,0,(V32*((LOG(V32))/LOG(2)))) -> 0 | Y32: =N32 -> 22112 | Z32: =COUNTIF(L30:L51,Y32) -> 1 | AA32: =Z32/(AB4-Z25) -> 0.04761904762 | AB32: =IF(AA32=0,0,(AA32*((LOG(AA32))/LOG(2)))) -> -0.2091579725 | AD32: =N32 -> 22112 | AE32: =COUNTIF(L52:L74,AD32) -> 0 | AF32: =AE32/(AG4-AE25) -> 0 | AG32: =IF(AF32=0,0,(AF32*((LOG(AF32))/LOG(2)))) -> 0 | AI32: =N32 -> 22112 | AJ32: =COUNTIF(L75:L97,AI32) -> 0 | AK32: =AJ32/(AL4-AJ25) -> 0 | AL32: =IF(AK32=0,0,(AK32*((LOG(AK32))/LOG(2)))) -> 0 | AN32: =N32 -> 22112 | AO32: =COUNTIF(L98:L119,AN32) -> 0 | AP32: =AO32/(AQ4-AO25) -> 0 | AQ32: =IF(AP32=0,0,(AP32*((LOG(AP32))/LOG(2)))) -> 0 | AS32: =N32 -> 22112 | AT32: =COUNTIF(L120:L142,AS32) -> 2 | AU32: =AT32/(AV4-AT25) -> 0.08695652174 | AV32: =IF(AU32=0,0,(AU32*((LOG(AU32))/LOG(2)))) -> -0.3063966918
A33: 21 | B33: 4284 | C33: 22 | D33: 4297 | E33: 13 | F33: 4306 | G33: 14 | H33: 4324 | I33: 24 | J33: 4333 | K33: 0 | L33: 22112 | N33: 22121 | O33: =COUNTIF($L$7:$L$500,N33) -> 6 | P33: =O33/$Q$4 -> 0.04411764706 | Q33: =IF(P33=0,0,(P33*((LOG(P33))/LOG(2)))) -> -0.1986397209 | T33: =N33 -> 22121 | U33: =COUNTIF(L7:L29,T33) -> 0 | V33: =U33/(W4-U25) -> 0 | W33: =IF(V33=0,0,(V33*((LOG(V33))/LOG(2)))) -> 0 | Y33: =N33 -> 22121 | Z33: =COUNTIF(L30:L51,Y33) -> 4 | AA33: =Z33/(AB4-Z25) -> 0.1904761905 | AB33: =IF(AA33=0,0,(AA33*((LOG(AA33))/LOG(2)))) -> -0.4556795091 | AD33: =N33 -> 22121 | AE33: =COUNTIF(L52:L74,AD33) -> 0 | AF33: =AE33/(AG4-AE25) -> 0 | AG33: =IF(AF33=0,0,(AF33*((LOG(AF33))/LOG(2)))) -> 0 | AI33: =N33 -> 22121 | AJ33: =COUNTIF(L75:L97,AI33) -> 1 | AK33: =AJ33/(AL4-AJ25) -> 0.04545454545 | AL33: =IF(AK33=0,0,(AK33*((LOG(AK33))/LOG(2)))) -> -0.2027014372 | AN33: =N33 -> 22121 | AO33: =COUNTIF(L98:L119,AN33) -> 0 | AP33: =AO33/(AQ4-AO25) -> 0 | AQ33: =IF(AP33=0,0,(AP33*((LOG(AP33))/LOG(2)))) -> 0 | AS33: =N33 -> 22121 | AT33: =COUNTIF(L120:L142,AS33) -> 1 | AU33: =AT33/(AV4-AT25) -> 0.04347826087 | AV33: =IF(AU33=0,0,(AU33*((LOG(AU33))/LOG(2)))) -> -0.1966766068
A34: 21 | B34: 4484 | C34: 11 | D34: 4494 | E34: 11 | F34: 4515 | G34: 12 | H34: 4523 | I34: 13 | J34: 4534 | K34: 0 | L34: 21111 | N34: 22122 | O34: =COUNTIF($L$7:$L$500,N34) -> 0 | P34: =O34/$Q$4 -> 0 | Q34: =IF(P34=0,0,(P34*((LOG(P34))/LOG(2)))) -> 0 | T34: =N34 -> 22122 | U34: =COUNTIF(L7:L29,T34) -> 0 | V34: =U34/(W4-U25) -> 0 | W34: =IF(V34=0,0,(V34*((LOG(V34))/LOG(2)))) -> 0 | Y34: =N34 -> 22122 | Z34: =COUNTIF(L30:L51,Y34) -> 0 | AA34: =Z34/(AB4-Z25) -> 0 | AB34: =IF(AA34=0,0,(AA34*((LOG(AA34))/LOG(2)))) -> 0 | AD34: =N34 -> 22122 | AE34: =COUNTIF(L52:L74,AD34) -> 0 | AF34: =AE34/(AG4-AE25) -> 0 | AG34: =IF(AF34=0,0,(AF34*((LOG(AF34))/LOG(2)))) -> 0 | AI34: =N34 -> 22122 | AJ34: =COUNTIF(L75:L97,AI34) -> 0 | AK34: =AJ34/(AL4-AJ25) -> 0 | AL34: =IF(AK34=0,0,(AK34*((LOG(AK34))/LOG(2)))) -> 0 | AN34: =N34 -> 22122 | AO34: =COUNTIF(L98:L119,AN34) -> 0 | AP34: =AO34/(AQ4-AO25) -> 0 | AQ34: =IF(AP34=0,0,(AP34*((LOG(AP34))/LOG(2)))) -> 0 | AS34: =N34 -> 22122 | AT34: =COUNTIF(L120:L142,AS34) -> 0 | AU34: =AT34/(AV4-AT25) -> 0 | AV34: =IF(AU34=0,0,(AU34*((LOG(AU34))/LOG(2)))) -> 0
A35: 21 | B35: 4664 | C35: 11 | D35: 4677 | E35: 22 | F35: 4685 | G35: 14 | H35: 4694 | I35: 13 | J35: 4705 | K35: 0 | L35: 21211 | N35: 22211 | O35: =COUNTIF($L$7:$L$500,N35) -> 0 | P35: =O35/$Q$4 -> 0 | Q35: =IF(P35=0,0,(P35*((LOG(P35))/LOG(2)))) -> 0 | T35: =N35 -> 22211 | U35: =COUNTIF(L7:L29,T35) -> 0 | V35: =U35/(W4-U25) -> 0 | W35: =IF(V35=0,0,(V35*((LOG(V35))/LOG(2)))) -> 0 | Y35: =N35 -> 22211 | Z35: =COUNTIF(L30:L51,Y35) -> 0 | AA35: =Z35/(AB4-Z25) -> 0 | AB35: =IF(AA35=0,0,(AA35*((LOG(AA35))/LOG(2)))) -> 0 | AD35: =N35 -> 22211 | AE35: =COUNTIF(L52:L74,AD35) -> 0 | AF35: =AE35/(AG4-AE25) -> 0 | AG35: =IF(AF35=0,0,(AF35*((LOG(AF35))/LOG(2)))) -> 0 | AI35: =N35 -> 22211 | AJ35: =COUNTIF(L75:L97,AI35) -> 0 | AK35: =AJ35/(AL4-AJ25) -> 0 | AL35: =IF(AK35=0,0,(AK35*((LOG(AK35))/LOG(2)))) -> 0 | AN35: =N35 -> 22211 | AO35: =COUNTIF(L98:L119,AN35) -> 0 | AP35: =AO35/(AQ4-AO25) -> 0 | AQ35: =IF(AP35=0,0,(AP35*((LOG(AP35))/LOG(2)))) -> 0 | AS35: =N35 -> 22211 | AT35: =COUNTIF(L120:L142,AS35) -> 0 | AU35: =AT35/(AV4-AT25) -> 0 | AV35: =IF(AU35=0,0,(AU35*((LOG(AU35))/LOG(2)))) -> 0
A36: 21 | B36: 4837 | C36: 11 | D36: 4845 | E36: 22 | F36: 4854 | G36: 14 | H36: 4862 | I36: 13 | J36: 4869 | K36: 0 | L36: 21211 | N36: 22212 | O36: =COUNTIF($L$7:$L$500,N36) -> 0 | P36: =O36/$Q$4 -> 0 | Q36: =IF(P36=0,0,(P36*((LOG(P36))/LOG(2)))) -> 0 | T36: =N36 -> 22212 | U36: =COUNTIF(L7:L29,T36) -> 0 | V36: =U36/(W4-U25) -> 0 | W36: =IF(V36=0,0,(V36*((LOG(V36))/LOG(2)))) -> 0 | Y36: =N36 -> 22212 | Z36: =COUNTIF(L30:L51,Y36) -> 0 | AA36: =Z36/(AB4-Z25) -> 0 | AB36: =IF(AA36=0,0,(AA36*((LOG(AA36))/LOG(2)))) -> 0 | AD36: =N36 -> 22212 | AE36: =COUNTIF(L52:L74,AD36) -> 0 | AF36: =AE36/(AG4-AE25) -> 0 | AG36: =IF(AF36=0,0,(AF36*((LOG(AF36))/LOG(2)))) -> 0 | AI36: =N36 -> 22212 | AJ36: =COUNTIF(L75:L97,AI36) -> 0 | AK36: =AJ36/(AL4-AJ25) -> 0 | AL36: =IF(AK36=0,0,(AK36*((LOG(AK36))/LOG(2)))) -> 0 | AN36: =N36 -> 22212 | AO36: =COUNTIF(L98:L119,AN36) -> 0 | AP36: =AO36/(AQ4-AO25) -> 0 | AQ36: =IF(AP36=0,0,(AP36*((LOG(AP36))/LOG(2)))) -> 0 | AS36: =N36 -> 22212 | AT36: =COUNTIF(L120:L142,AS36) -> 0 | AU36: =AT36/(AV4-AT25) -> 0 | AV36: =IF(AU36=0,0,(AU36*((LOG(AU36))/LOG(2)))) -> 0
A37: 21 | B37: 4984 | C37: 11 | D37: 4993 | E37: 22 | F37: 5003 | G37: 14 | H37: 5011 | I37: 24 | J37: 5023 | K37: 0 | L37: 21212 | N37: 22221 | O37: =COUNTIF($L$7:$L$500,N37) -> 0 | P37: =O37/$Q$4 -> 0 | Q37: =IF(P37=0,0,(P37*((LOG(P37))/LOG(2)))) -> 0 | T37: =N37 -> 22221 | U37: =COUNTIF(L7:L29,T37) -> 0 | V37: =U37/(W4-U25) -> 0 | W37: =IF(V37=0,0,(V37*((LOG(V37))/LOG(2)))) -> 0 | Y37: =N37 -> 22221 | Z37: =COUNTIF(L30:L51,Y37) -> 0 | AA37: =Z37/(AB4-Z25) -> 0 | AB37: =IF(AA37=0,0,(AA37*((LOG(AA37))/LOG(2)))) -> 0 | AD37: =N37 -> 22221 | AE37: =COUNTIF(L52:L74,AD37) -> 0 | AF37: =AE37/(AG4-AE25) -> 0 | AG37: =IF(AF37=0,0,(AF37*((LOG(AF37))/LOG(2)))) -> 0 | AI37: =N37 -> 22221 | AJ37: =COUNTIF(L75:L97,AI37) -> 0 | AK37: =AJ37/(AL4-AJ25) -> 0 | AL37: =IF(AK37=0,0,(AK37*((LOG(AK37))/LOG(2)))) -> 0 | AN37: =N37 -> 22221 | AO37: =COUNTIF(L98:L119,AN37) -> 0 | AP37: =AO37/(AQ4-AO25) -> 0 | AQ37: =IF(AP37=0,0,(AP37*((LOG(AP37))/LOG(2)))) -> 0 | AS37: =N37 -> 22221 | AT37: =COUNTIF(L120:L142,AS37) -> 0 | AU37: =AT37/(AV4-AT25) -> 0 | AV37: =IF(AU37=0,0,(AU37*((LOG(AU37))/LOG(2)))) -> 0
A38: 21 | B38: 5178 | C38: 22 | D38: 5196 | E38: 13 | F38: 5203 | G38: 23 | H38: 5213 | I38: 13 | J38: 5221 | K38: 0 | L38: 22121 | N38: 22222 | O38: =COUNTIF($L$7:$L$500,N38) -> 0 | P38: =O38/$Q$4 -> 0 | Q38: =IF(P38=0,0,(P38*((LOG(P38))/LOG(2)))) -> 0 | T38: =N38 -> 22222 | U38: =COUNTIF(L7:L29,T38) -> 0 | V38: =U38/(W4-U25) -> 0 | W38: =IF(V38=0,0,(V38*((LOG(V38))/LOG(2)))) -> 0 | Y38: =N38 -> 22222 | Z38: =COUNTIF(L30:L51,Y38) -> 0 | AA38: =Z38/(AB4-Z25) -> 0 | AB38: =IF(AA38=0,0,(AA38*((LOG(AA38))/LOG(2)))) -> 0 | AD38: =N38 -> 22222 | AE38: =COUNTIF(L52:L74,AD38) -> 0 | AF38: =AE38/(AG4-AE25) -> 0 | AG38: =IF(AF38=0,0,(AF38*((LOG(AF38))/LOG(2)))) -> 0 | AI38: =N38 -> 22222 | AJ38: =COUNTIF(L75:L97,AI38) -> 0 | AK38: =AJ38/(AL4-AJ25) -> 0 | AL38: =IF(AK38=0,0,(AK38*((LOG(AK38))/LOG(2)))) -> 0 | AN38: =N38 -> 22222 | AO38: =COUNTIF(L98:L119,AN38) -> 0 | AP38: =AO38/(AQ4-AO25) -> 0 | AQ38: =IF(AP38=0,0,(AP38*((LOG(AP38))/LOG(2)))) -> 0 | AS38: =N38 -> 22222 | AT38: =COUNTIF(L120:L142,AS38) -> 0 | AU38: =AT38/(AV4-AT25) -> 0 | AV38: =IF(AU38=0,0,(AU38*((LOG(AU38))/LOG(2)))) -> 0
A39: 12 | B39: 5343 | C39: 13 | D39: 5358 | E39: 24 | F39: 5369 | G39: 14 | H39: 5377 | I39: 24 | J39: 5392 | K39: 0 | L39: 11212 | P39: =SUM(P7:P38) -> 1 | Q39: =-SUM(Q7:Q38) -> 3.736525482 | V39: =SUM(V7:V38) -> 1 | W39: =-SUM(W7:W38) -> 3.213513256 | AA39: =SUM(AA7:AA38) -> 1 | AB39: =-SUM(AB7:AB38) -> 2.753918758 | AF39: =SUM(AF7:AF38) -> 1 | AG39: =-SUM(AG7:AG38) -> 2.68127637 | AK39: =SUM(AK7:AK38) -> 1 | AL39: =-SUM(AL7:AL38) -> 3.083765141 | AP39: =SUM(AP7:AP38) -> 1 | AQ39: =-SUM(AQ7:AQ38) -> 2.833320823 | AU39: =SUM(AU7:AU38) -> 1 | AV39: =-SUM(AV7:AV38) -> 3.26184239
A40: 21 | B40: 5527 | C40: 11 | D40: 5536 | E40: 22 | F40: 5548 | G40: 14 | H40: 5556 | I40: 13 | J40: 5569 | K40: 0 | L40: 21211 | P40: U= | Q40: =Q39/(LOG(Q4)/LOG(2)) -> 0.5272021266 | V40: U1= | W40: =W39/(LOG(W4)/LOG(2)) -> 0.7103944385 | AA40: U2= | AB40: =AB39/(LOG(AB4)/LOG(2)) -> 0.6175492739 | AF40: U3= | AG40: =AG39/(LOG(AG4)/LOG(2)) -> 0.5927356352 | AK40: U4= | AL40: =AL39/(LOG(AL4)/LOG(2)) -> 0.6817117066 | AP40: U5= | AQ40: =AQ39/(LOG(AQ4)/LOG(2)) -> 0.6353546965 | AU40: U6= | AV40: =AV39/(LOG(AV4)/LOG(2)) -> 0.7210783056
A41: 21 | B41: 5767 | C41: 11 | D41: 5776 | E41: 22 | F41: 5786 | G41: 14 | H41: 5794 | I41: 13 | J41: 5805 | K41: 0 | L41: 21211
A42: 12 | B42: 6027 | C42: 24 | D42: 6038 | E42: 13 | F42: 6051 | G42: 14 | H42: 6058 | I42: 13 | J42: 6069 | K42: 0 | L42: 12111
A43: 12 | B43: 6357 | C43: 13 | D43: 6370 | E43: 24 | F43: 6379 | G43: 14 | H43: 6400 | I43: 24 | J43: 6410 | K43: 0 | L43: 11212 | N43: Total Target Seq
A44: 21 | B44: 6544 | C44: 22 | D44: 6554 | E44: 13 | F44: 6562 | G44: 23 | H44: 6570 | I44: 13 | J44: 6579 | K44: 0 | L44: 22121 | N44: =COUNTIF(L7:L142,G3) -> 5 | P44: 23 | Q44: 22 | R44: 23 | S44: 23 | T44: 22 | U44: 23
A45: 21 | B45: 6689 | C45: 11 | D45: 6706 | E45: 22 | F45: 6717 | G45: 14 | H45: 6725 | I45: 24 | J45: 6737 | K45: 0 | L45: 21212 | P45: % of reinforcement given in 6 equal intervals based on number of trials
A46: 21 | B46: 6877 | C46: 11 | D46: 6885 | E46: 22 | F46: 6894 | G46: 23 | H46: 6921 | I46: 13 | J46: 6932 | K46: 0 | L46: 21221 | P46: %_1 | Q46: %_2 | R46: %_3 | S46: %_4 | T46: %_5 | U46: %_6
A47: 21 | B47: 7081 | C47: 11 | D47: 7089 | E47: 22 | F47: 7100 | G47: 14 | H47: 7109 | I47: 13 | J47: 7125 | K47: 0 | L47: 21211 | O47: target sequence | P47: =$G$3 -> 21121 | Q47: =$G$3 -> 21121 | R47: =$G$3 -> 21121 | S47: =$G$3 -> 21121 | T47: =$G$3 -> 21121 | U47: =$G$3 -> 21121
A48: 12 | B48: 7246 | C48: 13 | D48: 7257 | E48: 24 | F48: 7267 | G48: 14 | H48: 7275 | I48: 24 | J48: 7286 | K48: 0 | L48: 11212 | O48: total reinforcement | P48: =U25 -> 2 | Q48: =Z25 -> 1 | R48: =AE25 -> 1 | S48: =AJ25 -> 1 | T48: =AO25 -> 0 | U48: =AT25 -> 0
A49: 21 | B49: 7428 | C49: 11 | D49: 7437 | E49: 11 | F49: 7450 | G49: 21 | H49: 7461 | I49: 11 | J49: 7470 | K49: 1 | L49: 21121 | O49: % target
A50: 21 | B50: 7614 | C50: 11 | D50: 7623 | E50: 22 | F50: 7634 | G50: 14 | H50: 7643 | I50: 13 | J50: 7659 | K50: 0 | L50: 21211 | O50: CCRF
A51: 21 | B51: 7785 | C51: 11 | D51: 7793 | E51: 22 | F51: 7804 | G51: 14 | H51: 7812 | I51: 13 | J51: 7820 | K51: 0 | L51: 21211 | O51: % CCRf
A52: 12 | B52: 7929 | C52: 24 | D52: 7940 | E52: 13 | F52: 7948 | G52: 23 | H52: 7958 | I52: 13 | J52: 7966 | K52: 0 | L52: 12121 | O52: average response rate | P52: =J29/P44 -> 161.4782609 | Q52: =(J51-J29)/Q44 -> 186.6363636 | R52: =(J74-J51)/R44 -> 156 | S52: =(J97-J74)/S44 -> 158.9130435 | T52: =(J119-J97)/T44 -> 161.4090909 | U52: =(J142-J119)/U44 -> 227.3478261
A53: 12 | B53: 8085 | C53: 13 | D53: 8099 | E53: 24 | F53: 8110 | G53: 14 | H53: 8133 | I53: 13 | J53: 8140 | K53: 0 | L53: 11211
A54: 12 | B54: 8262 | C54: 24 | D54: 8272 | E54: 13 | F54: 8281 | G54: 23 | H54: 8291 | I54: 13 | J54: 8299 | K54: 0 | L54: 12121
A55: 21 | B55: 8410 | C55: 11 | D55: 8419 | E55: 22 | F55: 8431 | G55: 14 | H55: 8439 | I55: 13 | J55: 8447 | K55: 0 | L55: 21211
A56: 12 | B56: 8566 | C56: 24 | D56: 8574 | E56: 13 | F56: 8586 | G56: 23 | H56: 8610 | I56: 13 | J56: 8627 | K56: 0 | L56: 12121
A57: 12 | B57: 8735 | C57: 13 | D57: 8748 | E57: 24 | F57: 8758 | G57: 14 | H57: 8767 | I57: 24 | J57: 8791 | K57: 0 | L57: 11212
A58: 21 | B58: 8892 | C58: 11 | D58: 8900 | E58: 22 | F58: 8908 | G58: 14 | H58: 8918 | I58: 24 | J58: 8930 | K58: 0 | L58: 21212
A59: 12 | B59: 9036 | C59: 13 | D59: 9047 | E59: 24 | F59: 9056 | G59: 14 | H59: 9068 | I59: 13 | J59: 9074 | K59: 0 | L59: 11211
A60: 21 | B60: 9174 | C60: 11 | D60: 9181 | E60: 22 | F60: 9192 | G60: 23 | H60: 9202 | I60: 13 | J60: 9219 | K60: 0 | L60: 21221
A61: 12 | B61: 9322 | C61: 13 | D61: 9334 | E61: 24 | F61: 9349 | G61: 14 | H61: 9361 | I61: 24 | J61: 9373 | K61: 0 | L61: 11212
A62: 12 | B62: 9472 | C62: 13 | D62: 9487 | E62: 13 | F62: 9499 | G62: 23 | H62: 9510 | I62: 13 | J62: 9523 | K62: 0 | L62: 11121
A63: 12 | B63: 9656 | C63: 24 | D63: 9666 | E63: 13 | F63: 9674 | G63: 23 | H63: 9685 | I63: 13 | J63: 9699 | K63: 0 | L63: 12121
